Workbook

Sheet HOME
A1: CHLAPCI
B9: DISCIPLÍNY

Sheet TVOJE
B1: 6.A | E1: 6.B | H1: 7.A | K1: 7.B | N1: 8.A | Q1: 8.B | T1: 8.B | W1: 9.A

Sheet TVOJE2
I1: ,
G3: body | I3: 21 - 22 | J3: 20 - 21 | K3: 19 - 20
C4: 60 m
C6: 300 m
C8: 1000 m
C10: dálka
C12: výška
C14: míček
C16: koule
C18: oštěp
C20: člunek
C22: lehsed
C24: odbíjení
C26: plavání
C28: shyby
C30: šplh
C32: švihadlo
C34: z místa

Sheet FOTO
B2: PRO ZOBRAZENÍ FOTOGRAFIÍ JE TŘEBA PŘÍSTUP K INTERNETU
E5: DALŠÍ SPORTOVNÍ AKCE
B7: 2020 | C7: VYHLÁŠENÍ SE NEUSKUTEČNILO | E7: 10.12.2019 OF FLORBAL STARŠÍ ŽÁCI | F7: 13.11.2019 OF PLAVÁNÍ JILEMNICE
E8: 19.12.2019 OF FLORBAL ML.ŽÁCI JIL. | F8: 25.9.2019 JILEMNICKÉ ŠTAFETY
E9: 24. 9.2019 OF ČTYŘBOJ TURNOV
B11: 2019 | C11: VYHLÁŠENÍ SPORTOVCE ŠKOLY 13. ROČNÍK | E11: 6. 12. 2018 OF FLORBAL 6.-7. ROČ | F11: 14.11.2018 OF PLAVÁNÍ JILEMNICE
E12: 26. 9.2018 OF ČTYŘBOJ TURNOV
B13: 2018 | C13: VYHLÁŠENÍ SPORTOVCE ŠKOLY 12. ROČNÍK
B15: 2017 | C15: VYHLÁŠENÍ SPORTOVCE ŠKOLY 11. ROČNÍK
B17: 2016 | C17: VYHLÁŠENÍ SPORTOVCE ŠKOLY 10. ROČNÍK | E17: 11. 5. 2016 POHÁR ROZHLASU TURNOV
C20: průběžně budu přídávat další

Sheet CH15
C1: T O P 1 5 | S1: stav k | U1: =TODAY() -> 2023-06-26
F3: 60 m | G3: 300m | H3: 1000m | I3: dálka | J3: výška | K3: míček | L3: koule | M3: člunek | N3: lehsed | O3: odbíjení | P3: plavání | Q3: šplh | R3: švihadlo | S3: z místa | T3: REPRE | U3: CELKEM
A5: 1. | B5: =B35 -> HONCŮ | C5: Filip | D5: 6.A | F5: 577.8095649 | G5: 0 | H5: 0 | I5: 558.714 | J5: 525.4 | K5: 0 | L5: 392.7777778 | M5: 647.5767729 | N5: 437.5 | O5: 0 | P5: 0 | Q5: 0 | R5: 0 | S5: 0 | T5: 25 | U5: 3164.778116
A6: 2. | B6: =B36 -> JÍLEK | C6: Lukáš | D6: 6.A | F6: 0 | G6: 0 | H6: 0 | I6: 0 | J6: 0 | K6: 0 | L6: 0 | M6: 0 | N6: 0 | O6: 0 | P6: 0 | Q6: 0 | R6: 0 | S6: 0 | T6: 0 | U6: 0
A7: 3. | B7: =B37 -> KUČERA | C7: Tadeáš | D7: 6.A | F7: 636.0208546 | G7: 0 | H7: 671.1346153 | I7: 567.606 | J7: 525.4 | K7: 200 | L7: 427.2222222 | M7: 714.1200158 | N7: 500 | O7: 56 | P7: 0 | Q7: 309.3786941 | R7: 400 | S7: 566.2 | T7: 75 | U7: 5648.082402
A8: 4. | B8: =B38 -> ROZUMEK | C8: Lukáš | D8: 6.A | F8: 592.0190899 | G8: 0 | H8: 0 | I8: 444.6 | J8: 0 | K8: 387.5 | L8: 508.8888889 | M8: 583.8700007 | N8: 375 | O8: 0 | P8: 0 | Q8: 0 | R8: 500 | S8: 0 | T8: 0 | U8: 3391.87798
A9: 5. | B9: =B39 -> ŘEHOŘEK | C9: Marek | D9: 6.A | F9: 627.4254685 | G9: 0 | H9: 0 | I9: 0 | J9: 439.6 | K9: 287.5 | L9: 0 | M9: 0 | N9: 312.5 | O9: 0 | P9: 0 | Q9: 0 | R9: 387.5 | S9: 608 | T9: 25 | U9: 2687.525469
A10: 6. | B10: =B40 -> ŘÍHA | C10: Tadeáš | D10: 6.A | F10: 649.4696698 | G10: 0 | H10: 0 | I10: 708.396 | J10: 639.8 | K10: 525.75 | L10: 550 | M10: 721.4266008 | N10: 400 | O10: 56 | P10: 631.0219036 | Q10: 0 | R10: 493.75 | S10: 714.4 | T10: 50 | U10: 6140.014174
A11: 7. | B11: =B41 -> SKRBEK | C11: Richard | D11: 6.A | F11: 649.4696698 | G11: 0 | H11: 0 | I11: 580.944 | J11: 468.2 | K11: 0 | L11: 490 | M11: 603.039864 | N11: 325 | O11: 0 | P11: 0 | Q11: 0 | R11: 193.75 | S11: 0 | T11: 0 | U11: 3310.403534
A12: 8. | B12: =B42 -> ŠIMEK | C12: Erik | D12: 6.A | F12: 705.3569685 | G12: 0 | H12: 0 | I12: 0 | J12: 697 | K12: 462.5 | L12: 590 | M12: 705.9736758 | N12: 537.5 | O12: 0 | P12: 0 | Q12: 449.3409575 | R12: 506.25 | S12: 0 | T12: 0 | U12: 4653.921602
A13: 9. | B13: =B43 -> ŠÍR | C13: Jan | D13: 6.A | F13: 678.5680154 | G13: 0 | H13: 0 | I13: 583.908 | J13: 611.2 | K13: 325 | L13: 483.3333333 | M13: 650.9598483 | N13: 375 | O13: 0 | P13: 0 | Q13: 341.4940926 | R13: 587.5 | S13: 0 | T13: 0 | U13: 4636.96329
A14: 10. | B14: =B44 -> ŠÍR | C14: Stanislav | D14: 6.A | F14: 654.1085365 | G14: 0 | H14: 0 | I14: 0 | J14: 525.4 | K14: 425 | L14: 404.4444444 | M14: 669.791402 | N14: 425 | O14: 0 | P14: 0 | Q14: 437.1859101 | R14: 468.75 | S14: 0 | T14: 0 | U14: 4009.680293
A15: 11. | B15: =B45 -> ŠPINAR | C15: František | D15: 6.A | F15: 592.0190899 | G15: 0 | H15: 0 | I15: 499.434 | J15: 525.4 | K15: 337.5 | L15: 486.1111111 | M15: 538.9251969 | N15: 0 | O15: 0 | P15: 457.6656969 | Q15: 0 | R15: 0 | S15: 0 | T15: 0 | U15: 3437.055095
A16: 12. | B16: =B46 -> TOTH | C16: Mikuláš | D16: 6.A | F16: 615.0522717 | G16: 0 | H16: 0 | I16: 0 | J16: 525.4 | K16: 356.25 | L16: 0 | M16: 571.2839842 | N16: 537.5 | O16: 0 | P16: 0 | Q16: 0 | R16: 568.75 | S16: 0 | T16: 0 | U16: 3174.236256
A17: 13. | B17: =B47 -> WEISZLEMLEIN | C17: Adam | D17: 6.A | F17: 631.6873474 | G17: 0 | H17: 0 | I17: 466.83 | J17: 0 | K17: 0 | L17: 0 | M17: 587.8343291 | N17: 0 | O17: 0 | P17: 0 | Q17: 0 | R17: 0 | S17: 596.6 | T17: 0 | U17: 2282.951677
A18: 14. | B18: =B48 -> ČERNÝ | C18: Filip | D18: 6.B | F18: 0 | G18: 0 | H18: 0 | I18: 0 | J18: 0 | K18: 0 | L18: 0 | M18: 0 | N18: 0 | O18: 0 | P18: 0 | Q18: 0 | R18: 0 | S18: 0 | T18: 0 | U18: 0
A19: 15. | B19: =B49 -> GINGAL | C19: Patrik | D19: 6.B | F19: 688.9859416 | G19: 0 | H19: 0 | I19: 0 | J19: 0 | K19: 406.25 | L19: 0 | M19: 650.1129288 | N19: 375 | O19: 0 | P19: 0 | Q19: 0 | R19: 0 | S19: 0 | T19: 0 | U19: 2120.34887
F34: 60 m | G34: 300m | H34: 1000m | I34: dálka | J34: výška | K34: míček | L34: koule | M34: člunek | N34: lehsed | O34: odbíjení | P34: plavání | Q34: šplh | R34: švihadlo | S34: z místa | T34: REPRE | U34: CELKEM
B35: ='60'!B101 -> HONCŮ | C35: ='60'!C101 -> Filip | D35: ='60'!D101 -> 6.A | F35: ='60'!H101 -> 577.8095649 | G35: ='300'!H101 -> 0 | H35: ='1000'!H101 -> 0 | I35: =DÁLKA!H101 -> 558.714 | J35: =VÝŠKA!H101 -> 525.4 | K35: =MÍČEK!H101 -> 0 | L35: =KOULE!H101 -> 392.7777778 | M35: =ČLUNEK!H101 -> 647.5767729 | N35: =LEHSED!H101 -> 437.5 | O35: =ODBÍJENÍ!H101 -> 0 | P35: =PLAVÁNÍ!H101 -> 0 | Q35: =ŠPLH!H101 -> 0 | R35: =ŠVIHADLO!H101 -> 0 | S35: ='Z MÍSTA'!H101 -> 0 | T35: =REPRE!E4 -> 25 | U35: =SUM(F35:T35) -> 3164.778116 | W35: =FREQUENCY(F35:S35,0) -> 8
B36: ='60'!B102 -> JÍLEK | C36: ='60'!C102 -> Lukáš | D36: ='60'!D102 -> 6.A | F36: ='60'!H102 -> 0 | G36: ='300'!H102 -> 0 | H36: ='1000'!H102 -> 0 | I36: =DÁLKA!H102 -> 0 | J36: =VÝŠKA!H102 -> 0 | K36: =MÍČEK!H102 -> 0 | L36: =KOULE!H102 -> 0 | M36: =ČLUNEK!H102 -> 0 | N36: =LEHSED!H102 -> 0 | O36: =ODBÍJENÍ!H102 -> 0 | P36: =PLAVÁNÍ!H102 -> 0 | Q36: =ŠPLH!H102 -> 0 | R36: =ŠVIHADLO!H102 -> 0 | S36: ='Z MÍSTA'!H102 -> 0 | T36: =REPRE!E5 -> 0 | U36: 0 | W36: 14
B37: ='60'!B103 -> KUČERA | C37: ='60'!C103 -> Tadeáš | D37: ='60'!D103 -> 6.A | F37: ='60'!H103 -> 636.0208546 | G37: ='300'!H103 -> 0 | H37: ='1000'!H103 -> 671.1346153 | I37: =DÁLKA!H103 -> 567.606 | J37: =VÝŠKA!H103 -> 525.4 | K37: =MÍČEK!H103 -> 200 | L37: =KOULE!H103 -> 427.2222222 | M37: =ČLUNEK!H103 -> 714.1200158 | N37: =LEHSED!H103 -> 500 | O37: =ODBÍJENÍ!H103 -> 56 | P37: =PLAVÁNÍ!H103 -> 0 | Q37: =ŠPLH!H103 -> 309.3786941 | R37: =ŠVIHADLO!H103 -> 400 | S37: ='Z MÍSTA'!H103 -> 566.2 | T37: =REPRE!E6 -> 75 | U37: 5648.082402 | W37: 2
B38: ='60'!B104 -> ROZUMEK | C38: ='60'!C104 -> Lukáš | D38: ='60'!D104 -> 6.A | F38: ='60'!H104 -> 592.0190899 | G38: ='300'!H104 -> 0 | H38: ='1000'!H104 -> 0 | I38: =DÁLKA!H104 -> 444.6 | J38: =VÝŠKA!H104 -> 0 | K38: =MÍČEK!H104 -> 387.5 | L38: =KOULE!H104 -> 508.8888889 | M38: =ČLUNEK!H104 -> 583.8700007 | N38: =LEHSED!H104 -> 375 | O38: =ODBÍJENÍ!H104 -> 0 | P38: =PLAVÁNÍ!H104 -> 0 | Q38: =ŠPLH!H104 -> 0 | R38: =ŠVIHADLO!H104 -> 500 | S38: ='Z MÍSTA'!H104 -> 0 | T38: =REPRE!E7 -> 0 | U38: 3391.87798 | W38: 7
B39: ='60'!B105 -> ŘEHOŘEK | C39: ='60'!C105 -> Marek | D39: ='60'!D105 -> 6.A | F39: ='60'!H105 -> 627.4254685 | G39: ='300'!H105 -> 0 | H39: ='1000'!H105 -> 0 | I39: =DÁLKA!H105 -> 0 | J39: =VÝŠKA!H105 -> 439.6 | K39: =MÍČEK!H105 -> 287.5 | L39: =KOULE!H105 -> 0 | M39: =ČLUNEK!H105 -> 0 | N39: =LEHSED!H105 -> 312.5 | O39: =ODBÍJENÍ!H105 -> 0 | P39: =PLAVÁNÍ!H105 -> 0 | Q39: =ŠPLH!H105 -> 0 | R39: =ŠVIHADLO!H105 -> 387.5 | S39: ='Z MÍSTA'!H105 -> 608 | T39: =REPRE!E8 -> 25 | U39: 2687.525469 | W39: 8
B40: ='60'!B106 -> ŘÍHA | C40: ='60'!C106 -> Tadeáš | D40: ='60'!D106 -> 6.A | F40: ='60'!H106 -> 649.4696698 | G40: ='300'!H106 -> 0 | H40: ='1000'!H106 -> 0 | I40: =DÁLKA!H106 -> 708.396 | J40: =VÝŠKA!H106 -> 639.8 | K40: =MÍČEK!H106 -> 525.75 | L40: =KOULE!H106 -> 550 | M40: =ČLUNEK!H106 -> 721.4266008 | N40: =LEHSED!H106 -> 400 | O40: =ODBÍJENÍ!H106 -> 56 | P40: =PLAVÁNÍ!H106 -> 631.0219036 | Q40: =ŠPLH!H106 -> 0 | R40: =ŠVIHADLO!H106 -> 493.75 | S40: ='Z MÍSTA'!H106 -> 714.4 | T40: =REPRE!E9 -> 50 | U40: 6140.014174 | W40: 3
B41: ='60'!B107 -> SKRBEK | C41: ='60'!C107 -> Richard | D41: ='60'!D107 -> 6.A | F41: ='60'!H107 -> 649.4696698 | G41: ='300'!H107 -> 0 | H41: ='1000'!H107 -> 0 | I41: =DÁLKA!H107 -> 580.944 | J41: =VÝŠKA!H107 -> 468.2 | K41: =MÍČEK!H107 -> 0 | L41: =KOULE!H107 -> 490 | M41: =ČLUNEK!H107 -> 603.039864 | N41: =LEHSED!H107 -> 325 | O41: =ODBÍJENÍ!H107 -> 0 | P41: =PLAVÁNÍ!H107 -> 0 | Q41: =ŠPLH!H107 -> 0 | R41: =ŠVIHADLO!H107 -> 193.75 | S41: ='Z MÍSTA'!H107 -> 0 | T41: =REPRE!E10 -> 0 | U41: 3310.403534 | W41: 7
B42: ='60'!B108 -> ŠIMEK | C42: ='60'!C108 -> Erik | D42: ='60'!D108 -> 6.A | F42: ='60'!H108 -> 705.3569685 | G42: ='300'!H108 -> 0 | H42: ='1000'!H108 -> 0 | I42: =DÁLKA!H108 -> 0 | J42: =VÝŠKA!H108 -> 697 | K42: =MÍČEK!H108 -> 462.5 | L42: =KOULE!H108 -> 590 | M42: =ČLUNEK!H108 -> 705.9736758 | N42: =LEHSED!H108 -> 537.5 | O42: =ODBÍJENÍ!H108 -> 0 | P42: =PLAVÁNÍ!H108 -> 0 | Q42: =ŠPLH!H108 -> 449.3409575 | R42: =ŠVIHADLO!H108 -> 506.25 | S42: ='Z MÍSTA'!H108 -> 0 | T42: =REPRE!E11 -> 0 | U42: 4653.921602 | W42: 6
B43: ='60'!B109 -> ŠÍR | C43: ='60'!C109 -> Jan | D43: ='60'!D109 -> 6.A | F43: ='60'!H109 -> 678.5680154 | G43: ='300'!H109 -> 0 | H43: ='1000'!H109 -> 0 | I43: =DÁLKA!H109 -> 583.908 | J43: =VÝŠKA!H109 -> 611.2 | K43: =MÍČEK!H109 -> 325 | L43: =KOULE!H109 -> 483.3333333 | M43: =ČLUNEK!H109 -> 650.9598483 | N43: =LEHSED!H109 -> 375 | O43: =ODBÍJENÍ!H109 -> 0 | P43: =PLAVÁNÍ!H109 -> 0 | Q43: =ŠPLH!H109 -> 341.4940926 | R43: =ŠVIHADLO!H109 -> 587.5 | S43: ='Z MÍSTA'!H109 -> 0 | T43: =REPRE!E12 -> 0 | U43: 4636.96329 | W43: 5
B44: ='60'!B110 -> ŠÍR | C44: ='60'!C110 -> Stanislav | D44: ='60'!D110 -> 6.A | F44: ='60'!H110 -> 654.1085365 | G44: ='300'!H110 -> 0 | H44: ='1000'!H110 -> 0 | I44: =DÁLKA!H110 -> 0 | J44: =VÝŠKA!H110 -> 525.4 | K44: =MÍČEK!H110 -> 425 | L44: =KOULE!H110 -> 404.4444444 | M44: =ČLUNEK!H110 -> 669.791402 | N44: =LEHSED!H110 -> 425 | O44: =ODBÍJENÍ!H110 -> 0 | P44: =PLAVÁNÍ!H110 -> 0 | Q44: =ŠPLH!H110 -> 437.1859101 | R44: =ŠVIHADLO!H110 -> 468.75 | S44: ='Z MÍSTA'!H110 -> 0 | T44: =REPRE!E13 -> 0 | U44: 4009.680293 | W44: 6
B45: ='60'!B111 -> ŠPINAR | C45: ='60'!C111 -> František | D45: ='60'!D111 -> 6.A | F45: ='60'!H111 -> 592.0190899 | G45: ='300'!H111 -> 0 | H45: ='1000'!H111 -> 0 | I45: =DÁLKA!H111 -> 499.434 | J45: =VÝŠKA!H111 -> 525.4 | K45: =MÍČEK!H111 -> 337.5 | L45: =KOULE!H111 -> 486.1111111 | M45: =ČLUNEK!H111 -> 538.9251969 | N45: =LEHSED!H111 -> 0 | O45: =ODBÍJENÍ!H111 -> 0 | P45: =PLAVÁNÍ!H111 -> 457.6656969 | Q45: =ŠPLH!H111 -> 0 | R45: =ŠVIHADLO!H111 -> 0 | S45: ='Z MÍSTA'!H111 -> 0 | T45: =REPRE!E14 -> 0 | U45: 3437.055095 | W45: 7
B46: ='60'!B112 -> TOTH | C46: ='60'!C112 -> Mikuláš | D46: ='60'!D112 -> 6.A | F46: ='60'!H112 -> 615.0522717 | G46: ='300'!H112 -> 0 | H46: ='1000'!H112 -> 0 | I46: =DÁLKA!H112 -> 0 | J46: =VÝŠKA!H112 -> 525.4 | K46: =MÍČEK!H112 -> 356.25 | L46: =KOULE!H112 -> 0 | M46: =ČLUNEK!H112 -> 571.2839842 | N46: =LEHSED!H112 -> 537.5 | O46: =ODBÍJENÍ!H112 -> 0 | P46: =PLAVÁNÍ!H112 -> 0 | Q46: =ŠPLH!H112 -> 0 | R46: =ŠVIHADLO!H112 -> 568.75 | S46: ='Z MÍSTA'!H112 -> 0 | T46: =REPRE!E15 -> 0 | U46: 3174.236256 | W46: 8
B47: ='60'!B113 -> WEISZLEMLEIN | C47: ='60'!C113 -> Adam | D47: ='60'!D113 -> 6.A | F47: ='60'!H113 -> 631.6873474 | G47: ='300'!H113 -> 0 | H47: ='1000'!H113 -> 0 | I47: =DÁLKA!H113 -> 466.83 | J47: =VÝŠKA!H113 -> 0 | K47: =MÍČEK!H113 -> 0 | L47: =KOULE!H113 -> 0 | M47: =ČLUNEK!H113 -> 587.8343291 | N47: =LEHSED!H113 -> 0 | O47: =ODBÍJENÍ!H113 -> 0 | P47: =PLAVÁNÍ!H113 -> 0 | Q47: =ŠPLH!H113 -> 0 | R47: =ŠVIHADLO!H113 -> 0 | S47: ='Z MÍSTA'!H113 -> 596.6 | T47: =REPRE!E16 -> 0 | U47: 2282.951677 | W47: 10 | X47: =SUM(V35:W47) -> 91
B48: ='60'!B114 -> ČERNÝ | C48: ='60'!C114 -> Filip | D48: ='60'!D114 -> 6.B | F48: ='60'!H114 -> 0 | G48: ='300'!H114 -> 0 | H48: ='1000'!H114 -> 0 | I48: =DÁLKA!H114 -> 0 | J48: =VÝŠKA!H114 -> 0 | K48: =MÍČEK!H114 -> 0 | L48: =KOULE!H114 -> 0 | M48: =ČLUNEK!H114 -> 0 | N48: =LEHSED!H114 -> 0 | O48: =ODBÍJENÍ!H114 -> 0 | P48: =PLAVÁNÍ!H114 -> 0 | Q48: =ŠPLH!H114 -> 0 | R48: =ŠVIHADLO!H114 -> 0 | S48: ='Z MÍSTA'!H114 -> 0 | T48: =REPRE!E17 -> 0 | U48: 0 | W48: 14
B49: ='60'!B115 -> GINGAL | C49: ='60'!C115 -> Patrik | D49: ='60'!D115 -> 6.B | F49: ='60'!H115 -> 688.9859416 | G49: ='300'!H115 -> 0 | H49: ='1000'!H115 -> 0 | I49: =DÁLKA!H115 -> 0 | J49: =VÝŠKA!H115 -> 0 | K49: =MÍČEK!H115 -> 406.25 | L49: =KOULE!H115 -> 0 | M49: =ČLUNEK!H115 -> 650.1129288 | N49: =LEHSED!H115 -> 375 | O49: =ODBÍJENÍ!H115 -> 0 | P49: =PLAVÁNÍ!H115 -> 0 | Q49: =ŠPLH!H115 -> 0 | R49: =ŠVIHADLO!H115 -> 0 | S49: ='Z MÍSTA'!H115 -> 0 | T49: =REPRE!E18 -> 0 | U49: 2120.34887 | W49: 10
B50: ='60'!B116 -> HLAVÁČEK | C50: ='60'!C116 -> Josef | D50: ='60'!D116 -> 6.B | F50: ='60'!H116 -> 772.9265572 | G50: ='300'!H116 -> 0 | H50: ='1000'!H116 -> 0 | I50: =DÁLKA!H116 -> 680.238 | J50: =VÝŠKA!H116 -> 639.8 | K50: =MÍČEK!H116 -> 362.5 | L50: =KOULE!H116 -> 550 | M50: =ČLUNEK!H116 -> 717.7655108 | N50: =LEHSED!H116 -> 587.5 | O50: =ODBÍJENÍ!H116 -> 0 | P50: =PLAVÁNÍ!H116 -> 0 | Q50: =ŠPLH!H116 -> 476.4444097 | R50: =ŠVIHADLO!H116 -> 937.5 | S50: ='Z MÍSTA'!H116 -> 0 | T50: =REPRE!E19 -> 75 | U50: 5799.674478 | W50: 5
B51: ='60'!B117 -> KHUDA | C51: ='60'!C117 -> Ivan | D51: ='60'!D117 -> 6.B | F51: ='60'!H117 -> 523.1215901 | G51: ='300'!H117 -> 0 | H51: ='1000'!H117 -> 0 | I51: =DÁLKA!H117 -> 0 | J51: =VÝŠKA!H117 -> 468.2 | K51: =MÍČEK!H117 -> 287.5 | L51: =KOULE!H117 -> 516.6666667 | M51: =ČLUNEK!H117 -> 491.2911203 | N51: =LEHSED!H117 -> 0 | O51: =ODBÍJENÍ!H117 -> 0 | P51: =PLAVÁNÍ!H117 -> 0 | Q51: =ŠPLH!H117 -> 0 | R51: =ŠVIHADLO!H117 -> 0 | S51: ='Z MÍSTA'!H117 -> 0 | T51: =REPRE!E20 -> 0 | U51: 2286.779377 | W51: 9
B52: ='60'!B118 -> KRESAN | C52: ='60'!C118 -> Matěj | D52: ='60'!D118 -> 6.B | F52: ='60'!H118 -> 531.3186691 | G52: ='300'!H118 -> 0 | H52: ='1000'!H118 -> 0 | I52: =DÁLKA!H118 -> 0 | J52: =VÝŠKA!H118 -> 525.4 | K52: =MÍČEK!H118 -> 212.5 | L52: =KOULE!H118 -> 433.3333333 | M52: =ČLUNEK!H118 -> 498.6132255 | N52: =LEHSED!H118 -> 250 | O52: =ODBÍJENÍ!H118 -> 0 | P52: =PLAVÁNÍ!H118 -> 0 | Q52: =ŠPLH!H118 -> 0 | R52: =ŠVIHADLO!H118 -> 156.25 | S52: ='Z MÍSTA'!H118 -> 0 | T52: =REPRE!E21 -> 0 | U52: 2607.415228 | W52: 7
B53: ='60'!B119 -> RYCHTR | C53: ='60'!C119 -> Vojtěch | D53: ='60'!D119 -> 6.B | F53: ='60'!H119 -> 595.7091604 | G53: ='300'!H119 -> 0 | H53: ='1000'!H119 -> 0 | I53: =DÁLKA!H119 -> 0 | J53: =VÝŠKA!H119 -> 554 | K53: =MÍČEK!H119 -> 400 | L53: =KOULE!H119 -> 0 | M53: =ČLUNEK!H119 -> 643.3650492 | N53: =LEHSED!H119 -> 487.5 | O53: =ODBÍJENÍ!H119 -> 0 | P53: =PLAVÁNÍ!H119 -> 0 | Q53: =ŠPLH!H119 -> 0 | R53: =ŠVIHADLO!H119 -> 668.75 | S53: ='Z MÍSTA'!H119 -> 0 | T53: =REPRE!E22 -> 25 | U53: 3374.32421 | W53: 8
B54: ='60'!B120 -> ŠTAJER | C54: ='60'!C120 -> David | D54: ='60'!D120 -> 6.B | F54: ='60'!H120 -> 678.5680154 | G54: ='300'!H120 -> 0 | H54: ='1000'!H120 -> 0 | I54: =DÁLKA!H120 -> 0 | J54: =VÝŠKA!H120 -> 668.4 | K54: =MÍČEK!H120 -> 312.5 | L54: =KOULE!H120 -> 606.6666667 | M54: =ČLUNEK!H120 -> 670.6566667 | N54: =LEHSED!H120 -> 0 | O54: =ODBÍJENÍ!H120 -> 0 | P54: =PLAVÁNÍ!H120 -> 0 | Q54: =ŠPLH!H120 -> 0 | R54: =ŠVIHADLO!H120 -> 0 | S54: ='Z MÍSTA'!H120 -> 0 | T54: =REPRE!E23 -> 25 | U54: 2961.791349 | W54: 9
B55: ='60'!B121 -> TKACHUK | C55: ='60'!C121 -> Dzvenyslav | D55: ='60'!D121 -> 6.B | F55: ='60'!H121 -> 0 | G55: ='300'!H121 -> 0 | H55: ='1000'!H121 -> 0 | I55: =DÁLKA!H121 -> 0 | J55: =VÝŠKA!H121 -> 0 | K55: =MÍČEK!H121 -> 0 | L55: =KOULE!H121 -> 0 | M55: =ČLUNEK!H121 -> 0 | N55: =LEHSED!H121 -> 0 | O55: =ODBÍJENÍ!H121 -> 0 | P55: =PLAVÁNÍ!H121 -> 0 | Q55: =ŠPLH!H121 -> 0 | R55: =ŠVIHADLO!H121 -> 0 | S55: ='Z MÍSTA'!H121 -> 0 | T55: =REPRE!E24 -> 0 | U55: 0 | W55: 14
B56: ='60'!B122 -> VELIKOVSKÝ | C56: ='60'!C122 -> Dominik | D56: ='60'!D122 -> 6.B | F56: ='60'!H122 -> 592.0190899 | G56: ='300'!H122 -> 0 | H56: ='1000'!H122 -> 0 | I56: =DÁLKA!H122 -> 0 | J56: =VÝŠKA!H122 -> 496.8 | K56: =MÍČEK!H122 -> 262.5 | L56: =KOULE!H122 -> 383.3333333 | M56: =ČLUNEK!H122 -> 566.6023924 | N56: =LEHSED!H122 -> 350 | O56: =ODBÍJENÍ!H122 -> 0 | P56: =PLAVÁNÍ!H122 -> 0 | Q56: =ŠPLH!H122 -> 0 | R56: =ŠVIHADLO!H122 -> 162.5 | S56: ='Z MÍSTA'!H122 -> 0 | T56: =REPRE!E25 -> 25 | U56: 2838.754816 | W56: 7 | X56: =SUM(W48:W56) -> 83
B57: ='60'!B123 -> EXNER | C57: ='60'!C123 -> Tomáš | D57: ='60'!D123 -> 7.A | F57: ='60'!H123 -> 756.6054005 | G57: ='300'!H123 -> 600.529855 | H57: ='1000'!H123 -> 516.1688005 | I57: =DÁLKA!H123 -> 677.274 | J57: =VÝŠKA!H123 -> 611.2 | K57: =MÍČEK!H123 -> 300 | L57: =KOULE!H123 -> 652.7777778 | M57: =ČLUNEK!H123 -> 792.2266635 | N57: =LEHSED!H123 -> 550 | O57: =ODBÍJENÍ!H123 -> 64 | P57: =PLAVÁNÍ!H123 -> 0 | Q57: =ŠPLH!H123 -> 0 | R57: =ŠVIHADLO!H123 -> 400 | S57: ='Z MÍSTA'!H123 -> 881.6 | T57: =REPRE!E26 -> 0 | U57: 6802.382497 | W57: 2
B58: ='60'!B124 -> JANATA | C58: ='60'!C124 -> Denis | D58: ='60'!D124 -> 7.A | F58: ='60'!H124 -> 698.6975677 | G58: ='300'!H124 -> 556.1476027 | H58: ='1000'!H124 -> 477.3735206 | I58: =DÁLKA!H124 -> 666.9 | J58: =VÝŠKA!H124 -> 525.4 | K58: =MÍČEK!H124 -> 268.75 | L58: =KOULE!H124 -> 441.1111111 | M58: =ČLUNEK!H124 -> 769.5604759 | N58: =LEHSED!H124 -> 487.5 | O58: =ODBÍJENÍ!H124 -> 128 | P58: =PLAVÁNÍ!H124 -> 0 | Q58: =ŠPLH!H124 -> 0 | R58: =ŠVIHADLO!H124 -> 306.25 | S58: ='Z MÍSTA'!H124 -> 570 | T58: =REPRE!E27 -> 0 | U58: 5895.690278 | W58: 2
B59: ='60'!B125 -> JINDŘIŠEK | C59: ='60'!C125 -> Alex Jiří | D59: ='60'!D125 -> 7.A | F59: ='60'!H125 -> 784.9998021 | G59: ='300'!H125 -> 612.4682188 | H59: ='1000'!H125 -> 0 | I59: =DÁLKA!H125 -> 646.152 | J59: =VÝŠKA!H125 -> 0 | K59: =MÍČEK!H125 -> 368.75 | L59: =KOULE!H125 -> 655 | M59: =ČLUNEK!H125 -> 766.6501962 | N59: =LEHSED!H125 -> 612.5 | O59: =ODBÍJENÍ!H125 -> 88 | P59: =PLAVÁNÍ!H125 -> 0 | Q59: =ŠPLH!H125 -> 0 | R59: =ŠVIHADLO!H125 -> 262.5 | S59: ='Z MÍSTA'!H125 -> 558.6 | T59: =REPRE!E28 -> 125 | U59: 5480.620217 | W59: 4
B60: ='60'!B126 -> KAZLEPKA | C60: ='60'!C126 -> Miroslav | D60: ='60'!D126 -> 7.A | F60: ='60'!H126 -> 0 | G60: ='300'!H126 -> 0 | H60: ='1000'!H126 -> 0 | I60: =DÁLKA!H126 -> 0 | J60: =VÝŠKA!H126 -> 0 | K60: =MÍČEK!H126 -> 256.25 | L60: =KOULE!H126 -> 0 | M60: =ČLUNEK!H126 -> 505.2395959 | N60: =LEHSED!H126 -> 387.5 | O60: =ODBÍJENÍ!H126 -> 0 | P60: =PLAVÁNÍ!H126 -> 0 | Q60: =ŠPLH!H126 -> 0 | R60: =ŠVIHADLO!H126 -> 0 | S60: ='Z MÍSTA'!H126 -> 600.4 | T60: =REPRE!E29 -> 0 | U60: 1749.389596 | W60: 10
B61: ='60'!B127 -> MARŠÁLEK | C61: ='60'!C127 -> Ondřej | D61: ='60'!D127 -> 7.A | F61: ='60'!H127 -> 720.3211103 | G61: ='300'!H127 -> 504.021687 | H61: ='1000'!H127 -> 539.2998671 | I61: =DÁLKA!H127 -> 511.29 | J61: =VÝŠKA!H127 -> 496.8 | K61: =MÍČEK!H127 -> 325 | L61: =KOULE!H127 -> 621.6666667 | M61: =ČLUNEK!H127 -> 744.6741655 | N61: =LEHSED!H127 -> 0 | O61: =ODBÍJENÍ!H127 -> 104 | P61: =PLAVÁNÍ!H127 -> 0 | Q61: =ŠPLH!H127 -> 0 | R61: =ŠVIHADLO!H127 -> 175 | S61: ='Z MÍSTA'!H127 -> 0 | T61: =REPRE!E30 -> 0 | U61: 4742.073497 | W61: 4
B62: ='60'!B128 -> MLATEČEK | C62: ='60'!C128 -> Patrik | D62: ='60'!D128 -> 7.A | F62: ='60'!H128 -> 704.7962102 | G62: ='300'!H128 -> 387.5009154 | H62: ='1000'!H128 -> 531.5918628 | I62: =DÁLKA!H128 -> 646.152 | J62: =VÝŠKA!H128 -> 582.6 | K62: =MÍČEK!H128 -> 362.5 | L62: =KOULE!H128 -> 539.4444444 | M62: =ČLUNEK!H128 -> 697.0110275 | N62: =LEHSED!H128 -> 475 | O62: =ODBÍJENÍ!H128 -> 176 | P62: =PLAVÁNÍ!H128 -> 0 | Q62: =ŠPLH!H128 -> 228.5441775 | R62: =ŠVIHADLO!H128 -> 0 | S62: ='Z MÍSTA'!H128 -> 604.2 | T62: =REPRE!E31 -> 0 | U62: 5935.340638 | W62: 2
B63: ='60'!B129 -> SCHOLZ | C63: ='60'!C129 -> Matyáš | D63: ='60'!D129 -> 7.A | F63: ='60'!H129 -> 707.6107236 | G63: ='300'!H129 -> 509.3068586 | H63: ='1000'!H129 -> 0 | I63: =DÁLKA!H129 -> 659.49 | J63: =VÝŠKA!H129 -> 611.2 | K63: =MÍČEK!H129 -> 400 | L63: =KOULE!H129 -> 595 | M63: =ČLUNEK!H129 -> 738.0998099 | N63: =LEHSED!H129 -> 362.5 | O63: =ODBÍJENÍ!H129 -> 128 | P63: =PLAVÁNÍ!H129 -> 0 | Q63: =ŠPLH!H129 -> 0 | R63: =ŠVIHADLO!H129 -> 331.25 | S63: ='Z MÍSTA'!H129 -> 684 | T63: =REPRE!E32 -> 125 | U63: 5851.457392 | W63: 3
B64: ='60'!B130 -> TOMÁŠ | C64: ='60'!C130 -> Jakub | D64: ='60'!D130 -> 7.A | F64: ='60'!H130 -> 725.6796226 | G64: ='300'!H130 -> 628.1260631 | H64: ='1000'!H130 -> 658.9087004 | I64: =DÁLKA!H130 -> 577.98 | J64: =VÝŠKA!H130 -> 639.8 | K64: =MÍČEK!H130 -> 331.25 | L64: =KOULE!H130 -> 581.6666667 | M64: =ČLUNEK!H130 -> 811.4467362 | N64: =LEHSED!H130 -> 562.5 | O64: =ODBÍJENÍ!H130 -> 176 | P64: =PLAVÁNÍ!H130 -> 0 | Q64: =ŠPLH!H130 -> 259.867707 | R64: =ŠVIHADLO!H130 -> 537.5 | S64: ='Z MÍSTA'!H130 -> 703 | T64: =REPRE!E33 -> 0 | U64: 7193.725496 | W64: 1
B65: ='60'!B131 -> VÁCLAVÍK | C65: ='60'!C131 -> Jan | D65: ='60'!D131 -> 7.A | F65: ='60'!H131 -> 733.5896376 | G65: ='300'!H131 -> 620.8703206 | H65: ='1000'!H131 -> 682.1885589 | I65: =DÁLKA!H131 -> 643.188 | J65: =VÝŠKA!H131 -> 639.8 | K65: =MÍČEK!H131 -> 337.5 | L65: =KOULE!H131 -> 510.5555556 | M65: =ČLUNEK!H131 -> 799.2538592 | N65: =LEHSED!H131 -> 550 | O65: =ODBÍJENÍ!H131 -> 88 | P65: =PLAVÁNÍ!H131 -> 0 | Q65: =ŠPLH!H131 -> 333.0905541 | R65: =ŠVIHADLO!H131 -> 493.75 | S65: ='Z MÍSTA'!H131 -> 718.2 | T65: =REPRE!E34 -> 225 | U65: 7374.986486 | W65: 1
B66: ='60'!B132 -> VEČEŘA | C66: ='60'!C132 -> David | D66: ='60'!D132 -> 7.A | F66: ='60'!H132 -> 683.7291898 | G66: ='300'!H132 -> 497.721362 | H66: ='1000'!H132 -> 548.4440869 | I66: =DÁLKA!H132 -> 600.21 | J66: =VÝŠKA!H132 -> 554 | K66: =MÍČEK!H132 -> 275 | L66: =KOULE!H132 -> 548.3333333 | M66: =ČLUNEK!H132 -> 683.7363573 | N66: =LEHSED!H132 -> 400 | O66: =ODBÍJENÍ!H132 -> 56 | P66: =PLAVÁNÍ!H132 -> 0 | Q66: =ŠPLH!H132 -> 0 | R66: =ŠVIHADLO!H132 -> 200 | S66: ='Z MÍSTA'!H132 -> 547.2 | T66: =REPRE!E35 -> 0 | U66: 5594.374329 | W66: 2
B67: ='60'!B133 -> VYBÍRAL | C67: ='60'!C133 -> Radim | D67: ='60'!D133 -> 7.A | F67: ='60'!H133 -> 820.0100306 | G67: ='300'!H133 -> 724.2062343 | H67: ='1000'!H133 -> 736.2663263 | I67: =DÁLKA!H133 -> 770.64 | J67: =VÝŠKA!H133 -> 679.84 | K67: =MÍČEK!H133 -> 443.75 | L67: =KOULE!H133 -> 592.2222222 | M67: =ČLUNEK!H133 -> 862.2066446 | N67: =LEHSED!H133 -> 787.5 | O67: =ODBÍJENÍ!H133 -> 788.4 | P67: =PLAVÁNÍ!H133 -> 0 | Q67: =ŠPLH!H133 -> 510.5621531 | R67: =ŠVIHADLO!H133 -> 687.5 | S67: ='Z MÍSTA'!H133 -> 760 | T67: =REPRE!E36 -> 225 | U67: =SUM(F67:T67) -> 9388.103611 | W67: 1 | X67: =SUM(W57:W67) -> 32
B68: ='60'!B134 -> BERISHA | C68: ='60'!C134 -> David | D68: ='60'!D134 -> 7.B | F68: ='60'!H134 -> 0 | G68: ='300'!H134 -> 0 | H68: ='1000'!H134 -> 0 | I68: =DÁLKA!H134 -> 0 | J68: =VÝŠKA!H134 -> 0 | K68: =MÍČEK!H134 -> 225 | L68: =KOULE!H134 -> 0 | M68: =ČLUNEK!H134 -> 501.5539513 | N68: =LEHSED!H134 -> 0 | O68: =ODBÍJENÍ!H134 -> 0 | P68: =PLAVÁNÍ!H134 -> 0 | Q68: =ŠPLH!H134 -> 0 | R68: =ŠVIHADLO!H134 -> 0 | S68: ='Z MÍSTA'!H134 -> 0 | T68: =REPRE!E37 -> 0 | U68: 726.5539513 | W68: 12
B69: ='60'!B135 -> EFENBERK | C69: ='60'!C135 -> Šimon | D69: ='60'!D135 -> 7.B | F69: ='60'!H135 -> 793.7927896 | G69: ='300'!H135 -> 659.7119968 | H69: ='1000'!H135 -> 571.90759 | I69: =DÁLKA!H135 -> 615.03 | J69: =VÝŠKA!H135 -> 639.8 | K69: =MÍČEK!H135 -> 331.25 | L69: =KOULE!H135 -> 663.8888889 | M69: =ČLUNEK!H135 -> 811.4467362 | N69: =LEHSED!H135 -> 575 | O69: =ODBÍJENÍ!H135 -> 48 | P69: =PLAVÁNÍ!H135 -> 451.6340756 | Q69: =ŠPLH!H135 -> 357.1207348 | R69: =ŠVIHADLO!H135 -> 350 | S69: ='Z MÍSTA'!H135 -> 817 | T69: =REPRE!E38 -> 50 | U69: 7735.582812 | W69: 0
B70: ='60'!B136 -> FEJKL | C70: ='60'!C136 -> Antonín | D70: ='60'!D136 -> 7.B | F70: ='60'!H136 -> 856.2210729 | G70: ='300'!H136 -> 749.3238373 | H70: ='1000'!H136 -> 795.1222199 | I70: =DÁLKA!H136 -> 815.1 | J70: =VÝŠKA!H136 -> 822.84 | K70: =MÍČEK!H136 -> 612.5 | L70: =KOULE!H136 -> 687.2222222 | M70: =ČLUNEK!H136 -> 850.2778021 | N70: =LEHSED!H136 -> 762.5 | O70: =ODBÍJENÍ!H136 -> 788.4 | P70: =PLAVÁNÍ!H136 -> 465.6177492 | Q70: =ŠPLH!H136 -> 476.4444097 | R70: =ŠVIHADLO!H136 -> 893.75 | S70: ='Z MÍSTA'!H136 -> 877.8 | T70: =REPRE!E39 -> 225 | U70: 10678.11931 | W70: 0
B71: ='60'!B137 -> GOTTSTEIN | C71: ='60'!C137 -> Matouš | D71: ='60'!D137 -> 7.B | F71: ='60'!H137 -> 856.2210729 | G71: ='300'!H137 -> 861.8677166 | H71: ='1000'!H137 -> 894.1739288 | I71: =DÁLKA!H137 -> 800.28 | J71: =VÝŠKA!H137 -> 697 | K71: =MÍČEK!H137 -> 525 | L71: =KOULE!H137 -> 699.4444444 | M71: =ČLUNEK!H137 -> 875.4345744 | N71: =LEHSED!H137 -> 712.5 | O71: =ODBÍJENÍ!H137 -> 784 | P71: =PLAVÁNÍ!H137 -> 452.0394761 | Q71: =ŠPLH!H137 -> 555.390842 | R71: =ŠVIHADLO!H137 -> 875 | S71: ='Z MÍSTA'!H137 -> 889.2 | T71: =REPRE!E40 -> 275 | U71: 10752.55206 | W71: 0
B72: ='60'!B138 -> MAŘAS | C72: ='60'!C138 -> Dominik | D72: ='60'!D138 -> 7.B | F72: ='60'!H138 -> 496.815272 | G72: ='300'!H138 -> 311.8361931 | H72: ='1000'!H138 -> 649.7265791 | I72: =DÁLKA!H138 -> 570.57 | J72: =VÝŠKA!H138 -> 725.6 | K72: =MÍČEK!H138 -> 412.5 | L72: =KOULE!H138 -> 682.7777778 | M72: =ČLUNEK!H138 -> 763.7502482 | N72: =LEHSED!H138 -> 237.5 | O72: =ODBÍJENÍ!H138 -> 0 | P72: =PLAVÁNÍ!H138 -> 0 | Q72: =ŠPLH!H138 -> 0 | R72: =ŠVIHADLO!H138 -> 187.5 | S72: ='Z MÍSTA'!H138 -> 805.6 | T72: =REPRE!E41 -> 0 | U72: 5844.17607 | W72: 3
B73: ='60'!B139 -> POVAŽANEC | C73: ='60'!C139 -> Lukáš | D73: ='60'!D139 -> 7.B | F73: ='60'!H139 -> 716.2180571 | G73: ='300'!H139 -> 566.9361644 | H73: ='1000'!H139 -> 585.5516767 | I73: =DÁLKA!H139 -> 631.332 | J73: =VÝŠKA!H139 -> 0 | K73: =MÍČEK!H139 -> 562.5 | L73: =KOULE!H139 -> 726.6666667 | M73: =ČLUNEK!H139 -> 668.0633446 | N73: =LEHSED!H139 -> 375 | O73: =ODBÍJENÍ!H139 -> 784 | P73: =PLAVÁNÍ!H139 -> 0 | Q73: =ŠPLH!H139 -> 0 | R73: =ŠVIHADLO!H139 -> 356.25 | S73: ='Z MÍSTA'!H139 -> 661.2 | T73: =REPRE!E42 -> 275 | U73: 6908.717909 | W73: 3
B74: ='60'!B140 -> VANCL | C74: ='60'!C140 -> Jakub | D74: ='60'!D140 -> 7.B | F74: ='60'!H140 -> 686.3454534 | G74: ='300'!H140 -> 502.1941463 | H74: ='1000'!H140 -> 534.1420068 | I74: =DÁLKA!H140 -> 536.484 | J74: =VÝŠKA!H140 -> 525.4 | K74: =MÍČEK!H140 -> 275 | L74: =KOULE!H140 -> 536.1111111 | M74: =ČLUNEK!H140 -> 611.1356474 | N74: =LEHSED!H140 -> 500 | O74: =ODBÍJENÍ!H140 -> 64 | P74: =PLAVÁNÍ!H140 -> 0 | Q74: =ŠPLH!H140 -> 0 | R74: =ŠVIHADLO!H140 -> 312.5 | S74: ='Z MÍSTA'!H140 -> 589 | T74: =REPRE!E43 -> 75 | U74: 5747.312365 | W74: 2
B75: ='60'!B141 -> VANCL | C75: ='60'!C141 -> Miroslav | D75: ='60'!D141 -> 7.B | F75: ='60'!H141 -> 0 | G75: ='300'!H141 -> 248.287452 | H75: ='1000'!H141 -> 391.0477891 | I75: =DÁLKA!H141 -> 632.814 | J75: =VÝŠKA!H141 -> 496.8 | K75: =MÍČEK!H141 -> 312.5 | L75: =KOULE!H141 -> 535.5555556 | M75: =ČLUNEK!H141 -> 673.2574349 | N75: =LEHSED!H141 -> 0 | O75: =ODBÍJENÍ!H141 -> 56 | P75: =PLAVÁNÍ!H141 -> 0 | Q75: =ŠPLH!H141 -> 0 | R75: =ŠVIHADLO!H141 -> 0 | S75: ='Z MÍSTA'!H141 -> 668.8 | T75: =REPRE!E44 -> 0 | U75: 4015.062232 | W75: 5
B76: ='60'!B142 -> VOTOČEK | C76: ='60'!C142 -> Michal | D76: ='60'!D142 -> 7.B | F76: ='60'!H142 -> 681.1368191 | G76: ='300'!H142 -> 460.7949325 | H76: ='1000'!H142 -> 584.412983 | I76: =DÁLKA!H142 -> 647.634 | J76: =VÝŠKA!H142 -> 0 | K76: =MÍČEK!H142 -> 350 | L76: =KOULE!H142 -> 608.3333333 | M76: =ČLUNEK!H142 -> 668.9269622 | N76: =LEHSED!H142 -> 600 | O76: =ODBÍJENÍ!H142 -> 48 | P76: =PLAVÁNÍ!H142 -> 0 | Q76: =ŠPLH!H142 -> 0 | R76: =ŠVIHADLO!H142 -> 362.5 | S76: ='Z MÍSTA'!H142 -> 573.8 | T76: =REPRE!E45 -> 50 | U76: 5635.53903 | W76: 3 | X76: =SUM(W68:W76) -> 28
B77: ='60'!B143 -> DEMČUK | C77: ='60'!C143 -> Ilja | D77: ='60'!D143 -> 8.A | F77: ='60'!H143 -> 781.4030289 | G77: ='300'!H143 -> 697.0621837 | H77: ='1000'!H143 -> 622.8663351 | I77: =DÁLKA!H143 -> 663.936 | J77: =VÝŠKA!H143 -> 668.4 | K77: =MÍČEK!H143 -> 381.25 | L77: =KOULE!H143 -> 637.2222222 | M77: =ČLUNEK!H143 -> 788.2386569 | N77: =LEHSED!H143 -> 437.5 | O77: =ODBÍJENÍ!H143 -> 96 | P77: =PLAVÁNÍ!H143 -> 0 | Q77: =ŠPLH!H143 -> 0 | R77: =ŠVIHADLO!H143 -> 343.75 | S77: ='Z MÍSTA'!H143 -> 722 | T77: =REPRE!E46 -> 0 | U77: 6839.628427 | W77: 2
B78: ='60'!B144 -> FAISTAUER | C78: ='60'!C144 -> Kryštof | D78: ='60'!D144 -> 8.A | F78: ='60'!H144 -> 859.779828 | G78: ='300'!H144 -> 726.9819414 | H78: ='1000'!H144 -> 726.9052131 | I78: =DÁLKA!H144 -> 783.978 | J78: =VÝŠKA!H144 -> 811.4 | K78: =MÍČEK!H144 -> 500 | L78: =KOULE!H144 -> 739.4444444 | M78: =ČLUNEK!H144 -> 882.135289 | N78: =LEHSED!H144 -> 550 | O78: =ODBÍJENÍ!H144 -> 673.6 | P78: =PLAVÁNÍ!H144 -> 0 | Q78: =ŠPLH!H144 -> 562.8821007 | R78: =ŠVIHADLO!H144 -> 418.75 | S78: ='Z MÍSTA'!H144 -> 839.8 | T78: =REPRE!E47 -> 175 | U78: 9250.656817 | W78: 1
B79: ='60'!B145 -> FRK | C79: ='60'!C145 -> Matyáš | D79: ='60'!D145 -> 8.A | F79: ='60'!H145 -> 718.55581 | G79: ='300'!H145 -> 548.3318641 | H79: ='1000'!H145 -> 0 | I79: =DÁLKA!H145 -> 643.188 | J79: =VÝŠKA!H145 -> 582.6 | K79: =MÍČEK!H145 -> 0 | L79: =KOULE!H145 -> 0 | M79: =ČLUNEK!H145 -> 0 | N79: =LEHSED!H145 -> 475 | O79: =ODBÍJENÍ!H145 -> 0 | P79: =PLAVÁNÍ!H145 -> 0 | Q79: =ŠPLH!H145 -> 350.2930537 | R79: =ŠVIHADLO!H145 -> 431.25 | S79: ='Z MÍSTA'!H145 -> 684 | T79: =REPRE!E48 -> 0 | U79: 4433.218728 | W79: 6
B80: ='60'!B146 -> HUBÁLOVSKÝ | C80: ='60'!C146 -> Marek | D80: ='60'!D146 -> 8.A | F80: ='60'!H146 -> 782.8370872 | G80: ='300'!H146 -> 637.3159891 | H80: ='1000'!H146 -> 656.0538478 | I80: =DÁLKA!H146 -> 732.108 | J80: =VÝŠKA!H146 -> 611.2 | K80: =MÍČEK!H146 -> 431.25 | L80: =KOULE!H146 -> 558.3333333 | M80: =ČLUNEK!H146 -> 799.2538592 | N80: =LEHSED!H146 -> 587.5 | O80: =ODBÍJENÍ!H146 -> 184 | P80: =PLAVÁNÍ!H146 -> 0 | Q80: =ŠPLH!H146 -> 239.9126037 | R80: =ŠVIHADLO!H146 -> 425 | S80: ='Z MÍSTA'!H146 -> 722 | T80: =REPRE!E49 -> 0 | U80: 7366.76472 | W80: 1
B81: ='60'!B147 -> MAŤÁTKO | C81: ='60'!C147 -> Jakub | D81: ='60'!D147 -> 8.A | F81: ='60'!H147 -> 638.2150354 | G81: ='300'!H147 -> 422.4515242 | H81: ='1000'!H147 -> 0 | I81: =DÁLKA!H147 -> 0 | J81: =VÝŠKA!H147 -> 554 | K81: =MÍČEK!H147 -> 343.75 | L81: =KOULE!H147 -> 0 | M81: =ČLUNEK!H147 -> 642.5249641 | N81: =LEHSED!H147 -> 0 | O81: =ODBÍJENÍ!H147 -> 112 | P81: =PLAVÁNÍ!H147 -> 0 | Q81: =ŠPLH!H147 -> 0 | R81: =ŠVIHADLO!H147 -> 0 | S81: ='Z MÍSTA'!H147 -> 0 | T81: =REPRE!E50 -> 0 | U81: 2712.941524 | W81: 8
B82: ='60'!B148 -> MERY | C82: ='60'!C148 -> Luboš | D82: ='60'!D148 -> 8.A | F82: ='60'!H148 -> 684.2505206 | G82: ='300'!H148 -> 498.4433038 | H82: ='1000'!H148 -> 514.8055966 | I82: =DÁLKA!H148 -> 589.836 | J82: =VÝŠKA!H148 -> 468.2 | K82: =MÍČEK!H148 -> 268.75 | L82: =KOULE!H148 -> 509.4444444 | M82: =ČLUNEK!H148 -> 701.4808307 | N82: =LEHSED!H148 -> 400 | O82: =ODBÍJENÍ!H148 -> 96 | P82: =PLAVÁNÍ!H148 -> 0 | Q82: =ŠPLH!H148 -> 0 | R82: =ŠVIHADLO!H148 -> 318.75 | S82: ='Z MÍSTA'!H148 -> 608 | T82: =REPRE!E51 -> 0 | U82: 5657.960696 | W82: 2
B83: ='60'!B149 -> NOVOTNÝ | C83: ='60'!C149 -> Matěj | D83: ='60'!D149 -> 8.A | F83: ='60'!H149 -> 664.6035611 | G83: ='300'!H149 -> 430.031142 | H83: ='1000'!H149 -> 509.3941937 | I83: =DÁLKA!H149 -> 577.98 | J83: =VÝŠKA!H149 -> 525.4 | K83: =MÍČEK!H149 -> 500 | L83: =KOULE!H149 -> 628.3333333 | M83: =ČLUNEK!H149 -> 732.5054134 | N83: =LEHSED!H149 -> 537.5 | O83: =ODBÍJENÍ!H149 -> 96 | P83: =PLAVÁNÍ!H149 -> 0 | Q83: =ŠPLH!H149 -> 0 | R83: =ŠVIHADLO!H149 -> 331.25 | S83: ='Z MÍSTA'!H149 -> 570 | T83: =REPRE!E52 -> 0 | U83: 6102.997643 | W83: 2
B84: ='60'!B150 -> ŘEHOŘEK | C84: ='60'!C150 -> Vojtěch | D84: ='60'!D150 -> 8.A | F84: ='60'!H150 -> 763.3062938 | G84: ='300'!H150 -> 586.8157994 | H84: ='1000'!H150 -> 648.9381285 | I84: =DÁLKA!H150 -> 666.9 | J84: =VÝŠKA!H150 -> 0 | K84: =MÍČEK!H150 -> 662.5 | L84: =KOULE!H150 -> 727.7777778 | M84: =ČLUNEK!H150 -> 0 | N84: =LEHSED!H150 -> 462.5 | O84: =ODBÍJENÍ!H150 -> 673.6 | P84: =PLAVÁNÍ!H150 -> 0 | Q84: =ŠPLH!H150 -> 0 | R84: =ŠVIHADLO!H150 -> 850 | S84: ='Z MÍSTA'!H150 -> 718.2 | T84: =REPRE!E53 -> 175 | U84: 6935.538 | W84: 4
B85: ='60'!B151 -> ŠÍR | C85: ='60'!C151 -> Matyáš | D85: ='60'!D151 -> 8.A | F85: ='60'!H151 -> 688.9859416 | G85: ='300'!H151 -> 554.4902951 | H85: ='1000'!H151 -> 0 | I85: =DÁLKA!H151 -> 616.512 | J85: =VÝŠKA!H151 -> 582.6 | K85: =MÍČEK!H151 -> 368.75 | L85: =KOULE!H151 -> 473.8888889 | M85: =ČLUNEK!H151 -> 673.2574349 | N85: =LEHSED!H151 -> 587.5 | O85: =ODBÍJENÍ!H151 -> 64 | P85: =PLAVÁNÍ!H151 -> 0 | Q85: =ŠPLH!H151 -> 0 | R85: =ŠVIHADLO!H151 -> 625 | S85: ='Z MÍSTA'!H151 -> 573.8 | T85: =REPRE!E54 -> 50 | U85: 5858.78456 | W85: 3
B86: ='60'!B152 -> TORÁČ | C86: ='60'!C152 -> Tomáš | D86: ='60'!D152 -> 8.A | F86: ='60'!H152 -> 472.877057 | G86: ='300'!H152 -> 114.5947141 | H86: ='1000'!H152 -> 0 | I86: =DÁLKA!H152 -> 0 | J86: =VÝŠKA!H152 -> 525.4 | K86: =MÍČEK!H152 -> 250 | L86: =KOULE!H152 -> 0 | M86: =ČLUNEK!H152 -> 350.7134588 | N86: =LEHSED!H152 -> 512.5 | O86: =ODBÍJENÍ!H152 -> 112 | P86: =PLAVÁNÍ!H152 -> 0 | Q86: =ŠPLH!H152 -> 0 | R86: =ŠVIHADLO!H152 -> 218.75 | S86: ='Z MÍSTA'!H152 -> 0 | T86: =REPRE!E55 -> 0 | U86: 2556.83523 | W86: 6
B87: ='60'!B153 -> VÁCLAVÍK | C87: ='60'!C153 -> Ondřej | D87: ='60'!D153 -> 8.A | F87: ='60'!H153 -> 816.0280734 | G87: ='300'!H153 -> 0 | H87: ='1000'!H153 -> 778.3147977 | I87: =DÁLKA!H153 -> 760.266 | J87: =VÝŠKA!H153 -> 668.4 | K87: =MÍČEK!H153 -> 612.5 | L87: =KOULE!H153 -> 585 | M87: =ČLUNEK!H153 -> 865.4923011 | N87: =LEHSED!H153 -> 587.5 | O87: =ODBÍJENÍ!H153 -> 96 | P87: =PLAVÁNÍ!H153 -> 0 | Q87: =ŠPLH!H153 -> 659.2439917 | R87: =ŠVIHADLO!H153 -> 406.25 | S87: ='Z MÍSTA'!H153 -> 805.6 | T87: =REPRE!E56 -> 0 | U87: 7640.595164 | W87: 2 | X87: =SUM(W77:W87) -> 37
B88: ='60'!B154 -> AUERSWALD | C88: ='60'!C154 -> Daniel | D88: ='60'!D154 -> 8.B | F88: ='60'!H154 -> 744.8870091 | G88: ='300'!H154 -> 580.918343 | H88: ='1000'!H154 -> 0 | I88: =DÁLKA!H154 -> 686.166 | J88: =VÝŠKA!H154 -> 0 | K88: =MÍČEK!H154 -> 400 | L88: =KOULE!H154 -> 542.2222222 | M88: =ČLUNEK!H154 -> 782.2935152 | N88: =LEHSED!H154 -> 525 | O88: =ODBÍJENÍ!H154 -> 416 | P88: =PLAVÁNÍ!H154 -> 0 | Q88: =ŠPLH!H154 -> 461.0465137 | R88: =ŠVIHADLO!H154 -> 781.25 | S88: ='Z MÍSTA'!H154 -> 703 | T88: =REPRE!E57 -> 0 | U88: 6622.783603 | W88: 3
B89: ='60'!B155 -> BOUKAL | C89: ='60'!C155 -> Jakub | D89: ='60'!D155 -> 8.B | F89: ='60'!H155 -> 0 | G89: ='300'!H155 -> 0 | H89: ='1000'!H155 -> 0 | I89: =DÁLKA!H155 -> 0 | J89: =VÝŠKA!H155 -> 0 | K89: =MÍČEK!H155 -> 0 | L89: =KOULE!H155 -> 0 | M89: =ČLUNEK!H155 -> 0 | N89: =LEHSED!H155 -> 0 | O89: =ODBÍJENÍ!H155 -> 0 | P89: =PLAVÁNÍ!H155 -> 0 | Q89: =ŠPLH!H155 -> 0 | R89: =ŠVIHADLO!H155 -> 0 | S89: ='Z MÍSTA'!H155 -> 0 | T89: =REPRE!E58 -> 0 | U89: 0 | W89: 14
B90: ='60'!B156 -> BUDÍN | C90: ='60'!C156 -> Martin | D90: ='60'!D156 -> 8.B | F90: ='60'!H156 -> 777.1376249 | G90: ='300'!H156 -> 699.5047031 | H90: ='1000'!H156 -> 846.931508 | I90: =DÁLKA!H156 -> 733.59 | J90: =VÝŠKA!H156 -> 639.8 | K90: =MÍČEK!H156 -> 525 | L90: =KOULE!H156 -> 570 | M90: =ČLUNEK!H156 -> 866.5906512 | N90: =LEHSED!H156 -> 525 | O90: =ODBÍJENÍ!H156 -> 112 | P90: =PLAVÁNÍ!H156 -> 0 | Q90: =ŠPLH!H156 -> 507.1376516 | R90: =ŠVIHADLO!H156 -> 812.5 | S90: ='Z MÍSTA'!H156 -> 760 | T90: =REPRE!E59 -> 0 | U90: 8375.192139 | W90: 1
B91: ='60'!B157 -> DVOŘÁK | C91: ='60'!C157 -> Dominik | D91: ='60'!D157 -> 8.B | F91: ='60'!H157 -> 757.9344574 | G91: ='300'!H157 -> 0 | H91: ='1000'!H157 -> 593.9167711 | I91: =DÁLKA!H157 -> 637.26 | J91: =VÝŠKA!H157 -> 582.6 | K91: =MÍČEK!H157 -> 425 | L91: =KOULE!H157 -> 660 | M91: =ČLUNEK!H157 -> 759.899553 | N91: =LEHSED!H157 -> 462.5 | O91: =ODBÍJENÍ!H157 -> 0 | P91: =PLAVÁNÍ!H157 -> 0 | Q91: =ŠPLH!H157 -> 405.8026914 | R91: =ŠVIHADLO!H157 -> 462.5 | S91: ='Z MÍSTA'!H157 -> 722 | T91: =REPRE!E60 -> 0 | U91: 6469.413473 | W91: 3
B92: ='60'!B158 -> FIŠERA | C92: ='60'!C158 -> Vojtěch | D92: ='60'!D158 -> 8.B | F92: ='60'!H158 -> 711.0238624 | G92: ='300'!H158 -> 559.4814887 | H92: ='1000'!H158 -> 600.7711807 | I92: =DÁLKA!H158 -> 561.678 | J92: =VÝŠKA!H158 -> 582.6 | K92: =MÍČEK!H158 -> 281.25 | L92: =KOULE!H158 -> 562.2222222 | M92: =ČLUNEK!H158 -> 750.3509132 | N92: =LEHSED!H158 -> 650 | O92: =ODBÍJENÍ!H158 -> 80 | P92: =PLAVÁNÍ!H158 -> 0 | Q92: =ŠPLH!H158 -> 246.9550933 | R92: =ŠVIHADLO!H158 -> 381.25 | S92: ='Z MÍSTA'!H158 -> 589 | T92: =REPRE!E61 -> 0 | U92: 6556.582761 | W92: 1
B93: ='60'!B159 -> JINDŘIŠEK | C93: ='60'!C159 -> Vít | D93: ='60'!D159 -> 8.B | F93: ='60'!H159 -> 887.6020161 | G93: ='300'!H159 -> 958.7934786 | H93: ='1000'!H159 -> 904.9355248 | I93: =DÁLKA!H159 -> 841.776 | J93: =VÝŠKA!H159 -> 754.2 | K93: =MÍČEK!H159 -> 700 | L93: =KOULE!H159 -> 787.2222222 | M93: =ČLUNEK!H159 -> 950.1618469 | N93: =LEHSED!H159 -> 612.5 | O93: =ODBÍJENÍ!H159 -> 432 | P93: =PLAVÁNÍ!H159 -> 0 | Q93: =ŠPLH!H159 -> 755.2283877 | R93: =ŠVIHADLO!H159 -> 875 | S93: ='Z MÍSTA'!H159 -> 893 | T93: =REPRE!E62 -> 175 | U93: 10527.41948 | W93: 1
B94: ='60'!B160 -> JIROUŠ | C94: ='60'!C160 -> Matouš | D94: ='60'!D160 -> 8.B | F94: ='60'!H160 -> 763.9841015 | G94: ='300'!H160 -> 656.5954452 | H94: ='1000'!H160 -> 0 | I94: =DÁLKA!H160 -> 692.094 | J94: =VÝŠKA!H160 -> 0 | K94: =MÍČEK!H160 -> 512.5 | L94: =KOULE!H160 -> 602.7777778 | M94: =ČLUNEK!H160 -> 810.423469 | N94: =LEHSED!H160 -> 687.5 | O94: =ODBÍJENÍ!H160 -> 0 | P94: =PLAVÁNÍ!H160 -> 503.4852411 | Q94: =ŠPLH!H160 -> 323.1151214 | R94: =ŠVIHADLO!H160 -> 831.25 | S94: ='Z MÍSTA'!H160 -> 798 | T94: =REPRE!E63 -> 50 | U94: 7231.725156 | W94: 3
B95: ='60'!B161 -> KERLE | C95: ='60'!C161 -> Marek | D95: ='60'!D161 -> 8.B | F95: ='60'!H161 -> 825.6614873 | G95: ='300'!H161 -> 885.4702766 | H95: ='1000'!H161 -> 785.6878403 | I95: =DÁLKA!H161 -> 810.654 | J95: =VÝŠKA!H161 -> 840 | K95: =MÍČEK!H161 -> 612.5 | L95: =KOULE!H161 -> 787.2222222 | M95: =ČLUNEK!H161 -> 869.8951687 | N95: =LEHSED!H161 -> 650 | O95: =ODBÍJENÍ!H161 -> 256 | P95: =PLAVÁNÍ!H161 -> 0 | Q95: =ŠPLH!H161 -> 675.2495727 | R95: =ŠVIHADLO!H161 -> 706.25 | S95: ='Z MÍSTA'!H161 -> 824.6 | T95: =REPRE!E64 -> 100 | U95: 9629.190568 | W95: 1
B96: ='60'!B162 -> LUKEŠ | C96: ='60'!C162 -> Jakub | D96: ='60'!D162 -> 8.B | F96: ='60'!H162 -> 844.0291964 | G96: ='300'!H162 -> 805.9585848 | H96: ='1000'!H162 -> 816.5206562 | I96: =DÁLKA!H162 -> 781.014 | J96: =VÝŠKA!H162 -> 840 | K96: =MÍČEK!H162 -> 375 | L96: =KOULE!H162 -> 569.4444444 | M96: =ČLUNEK!H162 -> 901.4473257 | N96: =LEHSED!H162 -> 625 | O96: =ODBÍJENÍ!H162 -> 112 | P96: =PLAVÁNÍ!H162 -> 0 | Q96: =ŠPLH!H162 -> 702.7432103 | R96: =ŠVIHADLO!H162 -> 718.75 | S96: ='Z MÍSTA'!H162 -> 919.6 | T96: =REPRE!E65 -> 100 | U96: 9111.507418 | W96: 1
B97: ='60'!B163 -> OTT | C97: ='60'!C163 -> Matyáš | D97: ='60'!D163 -> 8.B | F97: ='60'!H163 -> 849.2047594 | G97: ='300'!H163 -> 904.5597962 | H97: ='1000'!H163 -> 847.856687 | I97: =DÁLKA!H163 -> 763.23 | J97: =VÝŠKA!H163 -> 697 | K97: =MÍČEK!H163 -> 512.5 | L97: =KOULE!H163 -> 663.8888889 | M97: =ČLUNEK!H163 -> 909.5445498 | N97: =LEHSED!H163 -> 537.5 | O97: =ODBÍJENÍ!H163 -> 432 | P97: =PLAVÁNÍ!H163 -> 717.5827685 | Q97: =ŠPLH!H163 -> 457.7180843 | R97: =ŠVIHADLO!H163 -> 912.5 | S97: ='Z MÍSTA'!H163 -> 817 | T97: =REPRE!E66 -> 100 | U97: 10122.08553 | W97: 0
B98: ='60'!B164 -> POKORNÝ | C98: ='60'!C164 -> Matyáš | D98: ='60'!D164 -> 8.B | F98: ='60'!H164 -> 850.9463384 | G98: ='300'!H164 -> 843.8466527 | H98: ='1000'!H164 -> 822.2995069 | I98: =DÁLKA!H164 -> 783.978 | J98: =VÝŠKA!H164 -> 857.16 | K98: =MÍČEK!H164 -> 687.5 | L98: =KOULE!H164 -> 628.3333333 | M98: =ČLUNEK!H164 -> 941.617889 | N98: =LEHSED!H164 -> 837.5 | O98: =ODBÍJENÍ!H164 -> 0 | P98: =PLAVÁNÍ!H164 -> 0 | Q98: =ŠPLH!H164 -> 511.4270009 | R98: =ŠVIHADLO!H164 -> 912.5 | S98: ='Z MÍSTA'!H164 -> 874 | T98: =REPRE!E67 -> 150 | U98: 9701.108721 | W98: 2
B99: ='60'!B165 -> POLÁČEK | C99: ='60'!C165 -> Matyáš | D99: ='60'!D165 -> 8.B | F99: ='60'!H165 -> 725.0795442 | G99: ='300'!H165 -> 0 | H99: ='1000'!H165 -> 533.1621013 | I99: =DÁLKA!H165 -> 597.246 | J99: =VÝŠKA!H165 -> 554 | K99: =MÍČEK!H165 -> 525 | L99: =KOULE!H165 -> 649.4444444 | M99: =ČLUNEK!H165 -> 0 | N99: =LEHSED!H165 -> 462.5 | O99: =ODBÍJENÍ!H165 -> 416 | P99: =PLAVÁNÍ!H165 -> 0 | Q99: =ŠPLH!H165 -> 0 | R99: =ŠVIHADLO!H165 -> 593.75 | S99: ='Z MÍSTA'!H165 -> 611.8 | T99: =REPRE!E68 -> 125 | U99: =SUM(F99:T99) -> 5792.98209 | W99: =FREQUENCY(F99:S99,0) -> 4
B100: ='60'!B166 -> ULLMAN | C100: ='60'!C166 -> Šimon | D100: ='60'!D166 -> 8.B | F100: ='60'!H166 -> 805.882739 | G100: ='300'!H166 -> 701.3916901 | H100: ='1000'!H166 -> 556.9627523 | I100: =DÁLKA!H166 -> 801.762 | J100: =VÝŠKA!H166 -> 725.6 | K100: =MÍČEK!H166 -> 331.25 | L100: =KOULE!H166 -> 526.6666667 | M100: =ČLUNEK!H166 -> 817.6143477 | N100: =LEHSED!H166 -> 625 | O100: =ODBÍJENÍ!H166 -> 184 | P100: =PLAVÁNÍ!H166 -> 0 | Q100: =ŠPLH!H166 -> 483.1202422 | R100: =ŠVIHADLO!H166 -> 362.5 | S100: ='Z MÍSTA'!H166 -> 931 | T100: =REPRE!E69 -> 0 | U100: 7852.750438 | W100: 1
B101: ='60'!B167 -> VALENTA | C101: ='60'!C167 -> Jakub | D101: ='60'!D167 -> 8.B | F101: ='60'!H167 -> 781.4030289 | G101: ='300'!H167 -> 760.0142375 | H101: ='1000'!H167 -> 734.2738407 | I101: =DÁLKA!H167 -> 714.324 | J101: =VÝŠKA!H167 -> 782.8 | K101: =MÍČEK!H167 -> 350 | L101: =KOULE!H167 -> 528.3333333 | M101: =ČLUNEK!H167 -> 886.6353619 | N101: =LEHSED!H167 -> 862.5 | O101: =ODBÍJENÍ!H167 -> 0 | P101: =PLAVÁNÍ!H167 -> 0 | Q101: =ŠPLH!H167 -> 495.5758956 | R101: =ŠVIHADLO!H167 -> 693.75 | S101: ='Z MÍSTA'!H167 -> 752.4 | T101: =REPRE!E70 -> 50 | U101: 8392.009698 | W101: 2
B102: ='60'!B168 -> VRBATA | C102: ='60'!C168 -> Dominik | D102: ='60'!D168 -> 8.B | F102: ='60'!H168 -> 777.844724 | G102: ='300'!H168 -> 666.3582519 | H102: ='1000'!H168 -> 717.3584729 | I102: =DÁLKA!H168 -> 0 | J102: =VÝŠKA!H168 -> 697 | K102: =MÍČEK!H168 -> 500 | L102: =KOULE!H168 -> 558.3333333 | M102: =ČLUNEK!H168 -> 857.8474937 | N102: =LEHSED!H168 -> 537.5 | O102: =ODBÍJENÍ!H168 -> 256 | P102: =PLAVÁNÍ!H168 -> 676.0663129 | Q102: =ŠPLH!H168 -> 779.1680171 | R102: =ŠVIHADLO!H168 -> 600 | S102: ='Z MÍSTA'!H168 -> 729.6 | T102: =REPRE!E71 -> 0 | U102: 8353.076606 | W102: 1 | X102: =SUM(W88:W102) -> 38
B103: ='60'!B169 -> FEJKL | C103: ='60'!C169 -> Jan | D103: ='60'!D169 -> 9.A | F103: ='60'!H169 -> 869.7452094 | G103: ='300'!H169 -> 870.8339207 | H103: ='1000'!H169 -> 788.2980081 | I103: =DÁLKA!H169 -> 883.272 | J103: =VÝŠKA!H169 -> 880.04 | K103: =MÍČEK!H169 -> 762.5 | L103: =KOULE!H169 -> 721.6666667 | M103: =ČLUNEK!H169 -> 933.1702617 | N103: =LEHSED!H169 -> 0 | O103: =ODBÍJENÍ!H169 -> 700.8 | P103: =PLAVÁNÍ!H169 -> 0 | Q103: =ŠPLH!H169 -> 742.832621 | R103: =ŠVIHADLO!H169 -> 0 | S103: ='Z MÍSTA'!H169 -> 953.8 | T103: =REPRE!E72 -> 225 | U103: 9331.958688 | W103: 3
B104: ='60'!B170 -> KOTYK | C104: ='60'!C170 -> Tadeáš | D104: ='60'!D170 -> 9.A | F104: ='60'!H170 -> 705.9187959 | G104: ='300'!H170 -> 0 | H104: ='1000'!H170 -> 0 | I104: =DÁLKA!H170 -> 665.418 | J104: =VÝŠKA!H170 -> 639.8 | K104: =MÍČEK!H170 -> 331.25 | L104: =KOULE!H170 -> 670.5555556 | M104: =ČLUNEK!H170 -> 771.5064511 | N104: =LEHSED!H170 -> 0 | O104: =ODBÍJENÍ!H170 -> 88 | P104: =PLAVÁNÍ!H170 -> 0 | Q104: =ŠPLH!H170 -> 0 | R104: =ŠVIHADLO!H170 -> 0 | S104: ='Z MÍSTA'!H170 -> 0 | T104: =REPRE!E73 -> 0 | U104: 3872.448803 | W104: 7
B105: ='60'!B171 -> KRAUSE | C105: ='60'!C171 -> Tadeáš | D105: ='60'!D171 -> 9.A | F105: ='60'!H171 -> 845.7462464 | G105: ='300'!H171 -> 0 | H105: ='1000'!H171 -> 885.5915666 | I105: =DÁLKA!H171 -> 804.726 | J105: =VÝŠKA!H171 -> 868.6 | K105: =MÍČEK!H171 -> 552.5 | L105: =KOULE!H171 -> 612.2222222 | M105: =ČLUNEK!H171 -> 892.2981301 | N105: =LEHSED!H171 -> 0 | O105: =ODBÍJENÍ!H171 -> 520 | P105: =PLAVÁNÍ!H171 -> 0 | Q105: =ŠPLH!H171 -> 530.4370915 | R105: =ŠVIHADLO!H171 -> 0 | S105: ='Z MÍSTA'!H171 -> 855 | T105: =REPRE!E74 -> 150 | U105: 7517.121257 | W105: 4
B106: ='60'!B172 -> LEŠÁK | C106: ='60'!C172 -> Martin | D106: ='60'!D172 -> 9.A | F106: ='60'!H172 -> 737.9344894 | G106: ='300'!H172 -> 0 | H106: ='1000'!H172 -> 0 | I106: =DÁLKA!H172 -> 665.418 | J106: =VÝŠKA!H172 -> 725.6 | K106: =MÍČEK!H172 -> 418.75 | L106: =KOULE!H172 -> 635.5555556 | M106: =ČLUNEK!H172 -> 758.939695 | N106: =LEHSED!H172 -> 0 | O106: =ODBÍJENÍ!H172 -> 128 | P106: =PLAVÁNÍ!H172 -> 0 | Q106: =ŠPLH!H172 -> 0 | R106: =ŠVIHADLO!H172 -> 0 | S106: ='Z MÍSTA'!H172 -> 0 | T106: =REPRE!E75 -> 0 | U106: 4070.19774 | W106: 7
B107: ='60'!B173 -> NECHANICKÝ | C107: ='60'!C173 -> David | D107: ='60'!D173 -> 9.A | F107: ='60'!H173 -> 883.7727257 | G107: ='300'!H173 -> 778.7604512 | H107: ='1000'!H173 -> 761.5943622 | I107: =DÁLKA!H173 -> 914.394 | J107: =VÝŠKA!H173 -> 788.52 | K107: =MÍČEK!H173 -> 562.5 | L107: =KOULE!H173 -> 694.4444444 | M107: =ČLUNEK!H173 -> 989.2205315 | N107: =LEHSED!H173 -> 650 | O107: =ODBÍJENÍ!H173 -> 700.8 | P107: =PLAVÁNÍ!H173 -> 0 | Q107: =ŠPLH!H173 -> 0 | R107: =ŠVIHADLO!H173 -> 781.25 | S107: ='Z MÍSTA'!H173 -> 965.2 | T107: =REPRE!E76 -> 225 | U107: 9695.456515 | W107: 2
B108: ='60'!B174 -> ŘEHOŘEK | C108: ='60'!C174 -> Jan | D108: ='60'!D174 -> 9.A | F108: ='60'!H174 -> 0 | G108: ='300'!H174 -> 737.0187107 | H108: ='1000'!H174 -> 0 | I108: =DÁLKA!H174 -> 785.46 | J108: =VÝŠKA!H174 -> 817.12 | K108: =MÍČEK!H174 -> 643.75 | L108: =KOULE!H174 -> 615.5555556 | M108: =ČLUNEK!H174 -> 0 | N108: =LEHSED!H174 -> 0 | O108: =ODBÍJENÍ!H174 -> 812.8 | P108: =PLAVÁNÍ!H174 -> 0 | Q108: =ŠPLH!H174 -> 0 | R108: =ŠVIHADLO!H174 -> 0 | S108: ='Z MÍSTA'!H174 -> 893 | T108: =REPRE!E77 -> 125 | U108: 5429.704266 | W108: 7
B109: ='60'!B175 -> SOUKUP | C109: ='60'!C175 -> Ondřej | D109: ='60'!D175 -> 9.A | F109: ='60'!H175 -> 0 | G109: ='300'!H175 -> 0 | H109: ='1000'!H175 -> 0 | I109: =DÁLKA!H175 -> 736.554 | J109: =VÝŠKA!H175 -> 788.52 | K109: =MÍČEK!H175 -> 0 | L109: =KOULE!H175 -> 723.3333333 | M109: =ČLUNEK!H175 -> 0 | N109: =LEHSED!H175 -> 0 | O109: =ODBÍJENÍ!H175 -> 0 | P109: =PLAVÁNÍ!H175 -> 0 | Q109: =ŠPLH!H175 -> 0 | R109: =ŠVIHADLO!H175 -> 0 | S109: ='Z MÍSTA'!H175 -> 0 | T109: =REPRE!E78 -> 0 | U109: 2248.407333 | W109: 11 | X109: =SUM(V103:W109) -> 41
B110: ='60'!B176 -> SPANILÝ | C110: ='60'!C176 -> David | D110: ='60'!D176 -> 9.A | F110: ='60'!H176 -> 876.2270478 | G110: ='300'!H176 -> 863.3950476 | H110: ='1000'!H176 -> 816.1694962 | I110: =DÁLKA!H176 -> 844.74 | J110: =VÝŠKA!H176 -> 788.52 | K110: =MÍČEK!H176 -> 762.5 | L110: =KOULE!H176 -> 765 | M110: =ČLUNEK!H176 -> 976.3959819 | N110: =LEHSED!H176 -> 612.5 | O110: =ODBÍJENÍ!H176 -> 812.8 | P110: =PLAVÁNÍ!H176 -> 0 | Q110: =ŠPLH!H176 -> 636.7621573 | R110: =ŠVIHADLO!H176 -> 825 | S110: ='Z MÍSTA'!H176 -> 1037.4 | T110: =REPRE!E79 -> 225 | U110: 10842.40973 | W110: 1
B111: ='60'!B177 -> ČERNÝ | C111: ='60'!C177 -> Michal | D111: ='60'!D177 -> 9.B | F111: ='60'!H177 -> 755.9429337 | G111: ='300'!H177 -> 602.0626882 | H111: ='1000'!H177 -> 0 | I111: =DÁLKA!H177 -> 684.684 | J111: =VÝŠKA!H177 -> 668.4 | K111: =MÍČEK!H177 -> 637.5 | L111: =KOULE!H177 -> 638.3333333 | M111: =ČLUNEK!H177 -> 806.3435791 | N111: =LEHSED!H177 -> 0 | O111: =ODBÍJENÍ!H177 -> 288 | P111: =PLAVÁNÍ!H177 -> 0 | Q111: =ŠPLH!H177 -> 0 | R111: =ŠVIHADLO!H177 -> 0 | S111: ='Z MÍSTA'!H177 -> 691.6 | T111: =REPRE!E80 -> 0 | U111: 5772.866534 | W111: 5
B112: ='60'!B178 -> DOLEJŠÍ | C112: ='60'!C178 -> David | D112: ='60'!D178 -> 9.B | F112: ='60'!H178 -> 790.8362235 | G112: ='300'!H178 -> 716.3573699 | H112: ='1000'!H178 -> 0 | I112: =DÁLKA!H178 -> 736.554 | J112: =VÝŠKA!H178 -> 697 | K112: =MÍČEK!H178 -> 300 | L112: =KOULE!H178 -> 600.5555556 | M112: =ČLUNEK!H178 -> 861.1145396 | N112: =LEHSED!H178 -> 0 | O112: =ODBÍJENÍ!H178 -> 216 | P112: =PLAVÁNÍ!H178 -> 0 | Q112: =ŠPLH!H178 -> 297.0296806 | R112: =ŠVIHADLO!H178 -> 0 | S112: ='Z MÍSTA'!H178 -> 771.4 | T112: =REPRE!E81 -> 0 | U112: 5986.847369 | W112: 4
B113: ='60'!B179 -> POVAŽANEC | C113: ='60'!C179 -> Martin | D113: ='60'!D179 -> 9.B | F113: ='60'!H179 -> 831.4044126 | G113: ='300'!H179 -> 0 | H113: ='1000'!H179 -> 632.81367 | I113: =DÁLKA!H179 -> 815.1 | J113: =VÝŠKA!H179 -> 782.8 | K113: =MÍČEK!H179 -> 762.5 | L113: =KOULE!H179 -> 778.8888889 | M113: =ČLUNEK!H179 -> 855.6771362 | N113: =LEHSED!H179 -> 0 | O113: =ODBÍJENÍ!H179 -> 646.4 | P113: =PLAVÁNÍ!H179 -> 0 | Q113: =ŠPLH!H179 -> 455.7498965 | R113: =ŠVIHADLO!H179 -> 0 | S113: ='Z MÍSTA'!H179 -> 779 | T113: =REPRE!E82 -> 100 | U113: 7440.334004 | W113: 4
B114: ='60'!B180 -> RICHTER | C114: ='60'!C180 -> Jakub | D114: ='60'!D180 -> 9.B | F114: ='60'!H180 -> 740.4448203 | G114: ='300'!H180 -> 619.9114141 | H114: ='1000'!H180 -> 0 | I114: =DÁLKA!H180 -> 677.274 | J114: =VÝŠKA!H180 -> 639.8 | K114: =MÍČEK!H180 -> 375 | L114: =KOULE!H180 -> 592.2222222 | M114: =ČLUNEK!H180 -> 779.3373061 | N114: =LEHSED!H180 -> 0 | O114: =ODBÍJENÍ!H180 -> 128 | P114: =PLAVÁNÍ!H180 -> 0 | Q114: =ŠPLH!H180 -> 0 | R114: =ŠVIHADLO!H180 -> 0 | S114: ='Z MÍSTA'!H180 -> 0 | T114: =REPRE!E83 -> 0 | U114: 4551.989763 | W114: 6
B115: ='60'!B181 -> ROZUMEK | C115: ='60'!C181 -> Adam | D115: ='60'!D181 -> 9.B | F115: ='60'!H181 -> 787.176591 | G115: ='300'!H181 -> 650.4224256 | H115: ='1000'!H181 -> 0 | I115: =DÁLKA!H181 -> 681.72 | J115: =VÝŠKA!H181 -> 611.2 | K115: =MÍČEK!H181 -> 625 | L115: =KOULE!H181 -> 793.8888889 | M115: =ČLUNEK!H181 -> 868.7920797 | N115: =LEHSED!H181 -> 0 | O115: =ODBÍJENÍ!H181 -> 642.4 | P115: =PLAVÁNÍ!H181 -> 0 | Q115: =ŠPLH!H181 -> 335.8172166 | R115: =ŠVIHADLO!H181 -> 0 | S115: ='Z MÍSTA'!H181 -> 722 | T115: =REPRE!E84 -> 0 | U115: 6718.417202 | W115: 4
B116: ='60'!B182 -> VALENTA | C116: ='60'!C182 -> František | D116: ='60'!D182 -> 9.B | F116: ='60'!H182 -> 766.7095867 | G116: ='300'!H182 -> 650.4224256 | H116: ='1000'!H182 -> 0 | I116: =DÁLKA!H182 -> 588.354 | J116: =VÝŠKA!H182 -> 639.8 | K116: =MÍČEK!H182 -> 362.5 | L116: =KOULE!H182 -> 615 | M116: =ČLUNEK!H182 -> 837.4709983 | N116: =LEHSED!H182 -> 0 | O116: =ODBÍJENÍ!H182 -> 488 | P116: =PLAVÁNÍ!H182 -> 0 | Q116: =ŠPLH!H182 -> 0 | R116: =ŠVIHADLO!H182 -> 0 | S116: ='Z MÍSTA'!H182 -> 0 | T116: =REPRE!E85 -> 0 | U116: 4948.257011 | W116: 6
B117: ='60'!B183 -> ZAPLATÍLEK | C117: ='60'!C183 -> Josef | D117: ='60'!D183 -> 9.B | F117: ='60'!H183 -> 808.1977818 | G117: ='300'!H183 -> 716.3573699 | H117: ='1000'!H183 -> 0 | I117: =DÁLKA!H183 -> 723.216 | J117: =VÝŠKA!H183 -> 639.8 | K117: =MÍČEK!H183 -> 612.5 | L117: =KOULE!H183 -> 662.2222222 | M117: =ČLUNEK!H183 -> 879.8951758 | N117: =LEHSED!H183 -> 0 | O117: =ODBÍJENÍ!H183 -> 642.4 | P117: =PLAVÁNÍ!H183 -> 0 | Q117: =ŠPLH!H183 -> 0 | R117: =ŠVIHADLO!H183 -> 0 | S117: ='Z MÍSTA'!H183 -> 858.8 | T117: =REPRE!E86 -> 50 | U117: 6593.38855 | W117: 5 | X117: =SUM(W110:W117) -> 35

Sheet ROČ
C1: CELKOVÉ VÝSLEDKY | W1: =TODAY() -> 2023-06-26
B3: 6. ročník | F3: 60 m | G3: 300m | H3: 1000m | I3: dálka | J3: výška | K3: míček | L3: koule | M3: oštěp | N3: člunek | O3: lehsed | P3: odbíjení | Q3: plavání | R3: shyby | S3: šplh | T3: švihadlo | U3: z místa | V3: REPRE | W3: CELKEM
A5: 1. | B5: =B121 -> HONCŮ | C5: =C121 -> Filip | D5: 6.A | E5: 0 | F5: 13.4 | G5: 00:00:00 | H5: 00:00:00 | I5: 302 | J5: 95 | K5: 0 | L5: 4.07 | M5: 0 | N5: =N121 -> 12.4 | O5: 35 | P5: 0 | Q5: 0 | R5: 0 | S5: 0 | T5: 0 | U5: 0 | V5: 25 | W5: 3164.778116
A6: 2. | B6: =B122 -> JÍLEK | C6: Lukáš | D6: 6.A | E6: 0 | F6: 0 | G6: 00:00:00 | H6: 00:00:00 | I6: 0 | J6: 0 | K6: 0 | L6: 0 | M6: 0 | N6: =N122 -> 0 | O6: 0 | P6: 0 | Q6: 0 | R6: 0 | S6: 0 | T6: 0 | U6: 0 | V6: 0 | W6: 0
A7: 3. | B7: =B123 -> KUČERA | C7: Tadeáš | D7: 6.A | E7: 0 | F7: 11.9 | G7: 00:00:00 | H7: 00:04:13.760 | I7: 308 | J7: 95 | K7: 16 | L7: 4.69 | M7: 0 | N7: =N123 -> 11.64 | O7: 40 | P7: 7 | Q7: 0 | R7: 0 | S7: 9.8 | T7: 64 | U7: 149 | V7: 75 | W7: 5648.082402
A8: 4. | B8: =B124 -> ROZUMEK | C8: Lukáš | D8: 6.A | E8: 0 | F8: 13 | G8: 00:00:00 | H8: 00:00:00 | I8: 225 | J8: 0 | K8: 31 | L8: 6.16 | M8: 0 | N8: =N124 -> 13.18 | O8: 30 | P8: 0 | Q8: 0 | R8: 0 | S8: 0 | T8: 80 | U8: 0 | V8: 0 | W8: 3391.87798
A9: 5. | B9: =B125 -> ŘEHOŘEK | C9: Marek | D9: 6.A | E9: 0 | F9: 12.1 | G9: 00:00:00 | H9: 00:00:00 | I9: 0 | J9: 80 | K9: 23 | L9: 0 | M9: 0 | N9: =N125 -> 0 | O9: 25 | P9: 0 | Q9: 0 | R9: 0 | S9: 0 | T9: 62 | U9: 160 | V9: 25 | W9: 2687.525469
A10: 6. | B10: =B126 -> ŘÍHA | C10: Tadeáš | D10: 6.A | E10: 0 | F10: 11.6 | G10: 00:00:00 | H10: 00:00:00 | I10: 403 | J10: 115 | K10: 42.06 | L10: 6.9 | M10: 0 | N10: =N126 -> 11.56 | O10: 32 | P10: 7 | Q10: 19.77 | R10: 0 | S10: 0 | T10: 79 | U10: 188 | V10: 50 | W10: 6140.014174
A11: 7. | B11: =B127 -> SKRBEK | C11: Richard | D11: 6.A | E11: 0 | F11: 11.6 | G11: 00:00:00 | H11: 00:00:00 | I11: 317 | J11: 85 | K11: 0 | L11: 5.82 | M11: 0 | N11: =N127 -> 12.94 | O11: 26 | P11: 0 | Q11: 0 | R11: 0 | S11: 0 | T11: 31 | U11: 0 | V11: 0 | W11: 3310.403534
A12: 8. | B12: =B128 -> ŠIMEK | C12: Erik | D12: 6.A | E12: 0 | F12: 10.5 | G12: 00:00:00 | H12: 00:00:00 | I12: 0 | J12: 125 | K12: 37 | L12: 7.62 | M12: 0 | N12: =N128 -> 11.73 | O12: 43 | P12: 0 | Q12: 0 | R12: 0 | S12: 6 | T12: 81 | U12: 0 | V12: 0 | W12: 4653.921602
A13: 9. | B13: =B129 -> ŠÍR | C13: Jan | D13: 6.A | E13: 0 | F13: 11 | G13: 00:00:00 | H13: 00:00:00 | I13: 319 | J13: 110 | K13: 26 | L13: 5.7 | M13: 0 | N13: =N129 -> 12.36 | O13: 30 | P13: 0 | Q13: 0 | R13: 0 | S13: 8.5 | T13: 94 | U13: 0 | V13: 0 | W13: 4636.96329
A14: 10. | B14: =B130 -> ŠÍR | C14: Stanislav | D14: 6.A | E14: 0 | F14: 11.5 | G14: 00:00:00 | H14: 00:00:00 | I14: 0 | J14: 95 | K14: 34 | L14: 4.28 | M14: 0 | N14: =N130 -> 12.14 | O14: 34 | P14: 0 | Q14: 0 | R14: 0 | S14: 6.2 | T14: 75 | U14: 0 | V14: 0 | W14: 4009.680293
A15: 11. | B15: =B131 -> ŠPINAR | C15: František | D15: 6.A | E15: 0 | F15: 13 | G15: 00:00:00 | H15: 00:00:00 | I15: 262 | J15: 95 | K15: 27 | L15: 5.75 | M15: 0 | N15: =N131 -> 13.76 | O15: 0 | P15: 0 | Q15: 28.43 | R15: 0 | S15: 0 | T15: 0 | U15: 0 | V15: 0 | W15: 3437.055095
A16: 12. | B16: =B132 -> TOTH | C16: Mikuláš | D16: 6.A | E16: 0 | F16: 12.4 | G16: 00:00:00 | H16: 00:00:00 | I16: 0 | J16: 95 | K16: 28.5 | L16: 0 | M16: 0 | N16: =N132 -> 13.34 | O16: 43 | P16: 0 | Q16: 0 | R16: 0 | S16: 0 | T16: 91 | U16: 0 | V16: 0 | W16: 3174.236256
A17: 13. | B17: =B133 -> WEISZLEMLEIN | C17: Adam | D17: 6.A | E17: 0 | F17: 12 | G17: 00:00:00 | H17: 00:00:00 | I17: 240 | J17: 0 | K17: 0 | L17: 0 | M17: 0 | N17: =N133 -> 13.13 | O17: 0 | P17: 0 | Q17: 0 | R17: 0 | S17: 0 | T17: 0 | U17: 157 | V17: 0 | W17: 2282.951677
A18: 14. | B18: =B134 -> ČERNÝ | C18: Filip | D18: 6.B | E18: 0 | F18: 0 | G18: 00:00:00 | H18: 00:00:00 | I18: 0 | J18: 0 | K18: 0 | L18: 0 | M18: 0 | N18: =N134 -> 0 | O18: 0 | P18: 0 | Q18: 0 | R18: 0 | S18: 0 | T18: 0 | U18: 0 | V18: 0 | W18: 0
A19: 15. | B19: =B135 -> GINGAL | C19: Patrik | D19: 6.B | E19: 0 | F19: 10.8 | G19: 00:00:00 | H19: 00:00:00 | I19: 0 | J19: 0 | K19: 32.5 | L19: 0 | M19: 0 | N19: =N135 -> 12.37 | O19: 30 | P19: 0 | Q19: 0 | R19: 0 | S19: 0 | T19: 0 | U19: 0 | V19: 0 | W19: 2120.34887
A20: 16. | B20: =B136 -> HLAVÁČEK | C20: Josef | D20: 6.B | E20: 0 | F20: 9.42 | G20: 00:00:00 | H20: 00:00:00 | I20: 384 | J20: 115 | K20: 29 | L20: 6.9 | M20: 0 | N20: =N136 -> 11.6 | O20: 47 | P20: 0 | Q20: 0 | R20: 0 | S20: 5.6 | T20: 150 | U20: 0 | V20: 75 | W20: 5799.674478
A21: 17. | B21: =B137 -> KHUDA | C21: Ivan | D21: 6.B | E21: 0 | F21: 15.2 | G21: 00:00:00 | H21: 00:00:00 | I21: 0 | J21: 85 | K21: 23 | L21: 6.3 | M21: 0 | N21: =N137 -> 14.4 | O21: 0 | P21: 0 | Q21: 0 | R21: 0 | S21: 0 | T21: 0 | U21: 0 | V21: 0 | W21: 2286.779377
A22: 18. | B22: =B138 -> KRESAN | C22: Matěj | D22: 6.B | E22: 0 | F22: 14.9 | G22: 00:00:00 | H22: 00:00:00 | I22: 0 | J22: 95 | K22: 17 | L22: 4.8 | M22: 0 | N22: =N138 -> 14.3 | O22: 20 | P22: 0 | Q22: 0 | R22: 0 | S22: 0 | T22: 25 | U22: 0 | V22: 0 | W22: 2607.415228
A23: 19. | B23: =B139 -> RYCHTR | C23: Vojtěch | D23: 6.B | E23: 0 | F23: 12.9 | G23: 00:00:00 | H23: 00:00:00 | I23: 0 | J23: 100 | K23: 32 | L23: 0 | M23: 0 | N23: =N139 -> 12.45 | O23: 39 | P23: 0 | Q23: 0 | R23: 0 | S23: 0 | T23: 107 | U23: 0 | V23: 25 | W23: 3374.32421
A24: 20. | B24: =B140 -> ŠTAJER | C24: David | D24: 6.B | E24: 0 | F24: 11 | G24: 00:00:00 | H24: 00:00:00 | I24: 0 | J24: 120 | K24: 25 | L24: 7.92 | M24: 0 | N24: =N140 -> 12.13 | O24: 0 | P24: 0 | Q24: 0 | R24: 0 | S24: 0 | T24: 0 | U24: 0 | V24: 25 | W24: 2961.791349
A25: 21. | B25: =B141 -> TKACHUK | C25: Dzvenyslav | D25: 6.B | E25: 0 | F25: 0 | G25: 00:00:00 | H25: 00:00:00 | I25: 0 | J25: 0 | K25: 0 | L25: 0 | M25: 0 | N25: =N141 -> 0 | O25: 0 | P25: 0 | Q25: 0 | R25: 0 | S25: 0 | T25: 0 | U25: 0 | V25: 0 | W25: 0
A26: 22. | B26: =B142 -> VELIKOVSKÝ | C26: Dominik | D26: 6.B | E26: 0 | F26: 13 | G26: 00:00:00 | H26: 00:00:00 | I26: 0 | J26: 90 | K26: 21 | L26: 3.9 | M26: 0 | N26: 13.4 | O26: 28 | P26: 0 | Q26: 0 | R26: 0 | S26: 0 | T26: 26 | U26: 0 | V26: 25 | W26: 2838.754816
C30: CELKOVÉ VÝSLEDKY | W30: =TODAY() -> 2023-06-26
B32: 7. ročník | F32: 60 m | G32: 300m | H32: 1000m | I32: dálka | J32: výška | K32: míček | L32: koule | M32: oštěp | N32: člunek | O32: lehsed | P32: odbíjení | Q32: plavání | R32: shyby | S32: šplh | T32: švihadlo | U32: z místa | V32: REPRE | W32: CELKEM
A34: 1. | B34: =B143 -> EXNER | C34: =C143 -> Tomáš | D34: 7.A | E34: 0 | F34: 9.66 | G34: 00:00:59.110 | H34: 00:05:30.390 | I34: 382 | J34: 110 | K34: 24 | L34: 8.75 | M34: 0 | N34: 10.82 | O34: 44 | P34: 8 | Q34: 0 | R34: 3 | S34: 0 | T34: 64 | U34: 232 | V34: 0 | W34: 7027.382497
A35: 2. | B35: =B144 -> JANATA | C35: Denis | D35: 7.A | E35: 0 | F35: 10.62 | G35: 00:01:02.160 | H35: 00:05:57.410 | I35: 375 | J35: 95 | K35: 21.5 | L35: 4.94 | M35: 0 | N35: 11.05 | O35: 39 | P35: 16 | Q35: 0 | R35: 0 | S35: 0 | T35: 49 | U35: 150 | V35: 0 | W35: 5895.690278
A36: 3. | B36: =B145 -> JINDŘIŠEK | C36: Alex Jiří | D36: 7.A | E36: 0 | F36: 9.25 | G36: 00:00:58.340 | H36: 00:00:00 | I36: 361 | J36: 0 | K36: 29.5 | L36: 8.79 | M36: 0 | N36: 11.08 | O36: 49 | P36: 11 | Q36: 0 | R36: 0 | S36: 0 | T36: 42 | U36: 147 | V36: 125 | W36: 5480.620217
A37: 4. | B37: =B146 -> KAZLEPKA | C37: Miroslav | D37: 7.A | E37: 0 | F37: 0 | G37: 00:00:00 | H37: 00:00:00 | I37: 0 | J37: 0 | K37: 20.5 | L37: 0 | M37: 0 | N37: 14.21 | O37: 31 | P37: 0 | Q37: 0 | R37: 0 | S37: 0 | T37: 0 | U37: 158 | V37: 0 | W37: 1749.389596
A38: 5. | B38: =B147 -> MARŠÁLEK | C38: Ondřej | D38: 7.A | E38: 0 | F38: 10.24 | G38: 00:01:06.170 | H38: 00:05:16.140 | I38: 270 | J38: 90 | K38: 26 | L38: 8.19 | M38: 0 | N38: 11.31 | O38: 0 | P38: 13 | Q38: 0 | R38: 0 | S38: 0 | T38: 28 | U38: 0 | V38: 0 | W38: 4742.073497
A39: 6. | B39: =B148 -> MLATEČEK | C39: Patrik | D39: 7.A | E39: 0 | F39: 10.51 | G39: 00:01:17.320 | H39: 00:05:20.750 | I39: 361 | J39: 105 | K39: 29 | L39: 6.71 | M39: 0 | N39: 11.83 | O39: 38 | P39: 22 | Q39: 0 | R39: 0 | S39: 19.75 | T39: 0 | U39: 159 | V39: 0 | W39: 5935.340638
A40: 7. | B40: =B149 -> SCHOLZ | C40: Matyáš | D40: 7.A | E40: 0 | F40: 10.46 | G40: 00:01:05.740 | H40: 00:00:00 | I40: 370 | J40: 110 | K40: 32 | L40: 7.71 | M40: 0 | N40: 11.38 | O40: 29 | P40: 16 | Q40: 0 | R40: 1 | S40: 0 | T40: 53 | U40: 180 | V40: 125 | W40: 5926.457392
A41: 8. | B41: =B150 -> TOMÁŠ | C41: Jakub | D41: 7.A | E41: 0 | F41: 10.15 | G41: 00:00:57.360 | H41: 00:04:18.490 | I41: 315 | J41: 115 | K41: 26.5 | L41: 7.47 | M41: 0 | N41: 10.63 | O41: 45 | P41: 22 | Q41: 0 | R41: 0 | S41: 13.28 | T41: 86 | U41: 185 | V41: 0 | W41: 7193.725496
A42: 9. | B42: =B151 -> VÁCLAVÍK | C42: Jan | D42: 7.A | E42: 0 | F42: 10.02 | G42: 00:00:57.810 | H42: 00:04:09.630 | I42: 359 | J42: 115 | K42: 27 | L42: 6.19 | M42: 0 | N42: 10.75 | O42: 44 | P42: 11 | Q42: 0 | R42: 6 | S42: 8.8 | T42: 79 | U42: 189 | V42: 225 | W42: 7824.986486
A43: 10. | B43: =B152 -> VEČEŘA | C43: David | D43: 7.A | E43: 0 | F43: 10.9 | G43: 00:01:06.690 | H43: 00:05:10.840 | I43: 330 | J43: 100 | K43: 22 | L43: 6.87 | M43: 0 | N43: 11.98 | O43: 32 | P43: 7 | Q43: 0 | R43: 0 | S43: 0 | T43: 32 | U43: 144 | V43: 0 | W43: 5594.374329
A44: 11. | B44: =B153 -> VYBÍRAL | C44: Radim | D44: 7.A | E44: 0 | F44: 8.79 | G44: 00:00:52 | H44: 00:03:51.220 | I44: 445 | J44: 122 | K44: 35.5 | L44: 7.66 | M44: 0 | N44: 10.15 | O44: 63 | P44: 451 | Q44: 0 | R44: 6 | S44: 5.17 | T44: 110 | U44: 200 | V44: 225 | W44: 9838.103611
A45: 12. | B45: =B154 -> BERISHA | C45: David | D45: 7.B | E45: 0 | F45: 0 | G45: 00:00:00 | H45: 00:00:00 | I45: 0 | J45: 0 | K45: 18 | L45: 0 | M45: 0 | N45: 14.26 | O45: 0 | P45: 0 | Q45: 0 | R45: 0 | S45: 0 | T45: 0 | U45: 0 | V45: 0 | W45: 726.5539513
A46: 13. | B46: =B155 -> EFENBERK | C46: Šimon | D46: 7.B | E46: 0 | F46: 9.13 | G46: 00:00:55.480 | H46: 00:04:58.020 | I46: 340 | J46: 115 | K46: 26.5 | L46: 8.95 | M46: 0 | N46: 10.63 | O46: 46 | P46: 6 | Q46: 28.87 | R46: 2 | S46: 8 | T46: 56 | U46: 215 | V46: 50 | W46: 7885.582812
A47: 14. | B47: =B156 -> FEJKL | C47: Antonín | D47: 7.B | E47: 0 | F47: 8.36 | G47: 00:00:50.760 | H47: 00:03:34.040 | I47: 475 | J47: 147 | K47: 49 | L47: 9.37 | M47: 0 | N47: 10.26 | O47: 61 | P47: 451 | Q47: 27.87 | R47: 1 | S47: 5.6 | T47: 143 | U47: 231 | V47: 225 | W47: 10753.11931
A48: 15. | B48: =B157 -> GOTTSTEIN | C48: Matouš | D48: 7.B | E48: 0 | F48: 8.36 | G48: 00:00:45.860 | H48: 00:03:10.250 | I48: 465 | J48: 125 | K48: 42 | L48: 9.59 | M48: 0 | N48: 10.03 | O48: 57 | P48: 440 | Q48: 28.84 | R48: 6 | S48: 4.7 | T48: 140 | U48: 234 | V48: 275 | W48: 11202.55206
A49: 16. | B49: =B158 -> MAŘAS | C49: Dominik | D49: 7.B | E49: 0 | F49: 16.25 | G49: 00:01:26.820 | H49: 00:04:22.160 | I49: 310 | J49: 130 | K49: 33 | L49: 9.29 | M49: 0 | N49: 11.11 | O49: 19 | P49: 0 | Q49: 0 | R49: 1 | S49: 0 | T49: 30 | U49: 212 | V49: 0 | W49: 5919.17607
A50: 17. | B50: =B159 -> POVAŽANEC | C50: Lukáš | D50: 7.B | E50: 0 | F50: 10.31 | G50: 00:01:01.390 | H50: 00:04:51.040 | I50: 351 | J50: 0 | K50: 45 | L50: 10.08 | M50: 0 | N50: 12.16 | O50: 30 | P50: 440 | Q50: 0 | R50: 0 | S50: 0 | T50: 57 | U50: 174 | V50: 275 | W50: 6908.717909
A51: 18. | B51: =B160 -> VANCL | C51: Jakub | D51: 7.B | E51: 0 | F51: 10.85 | G51: 00:01:06.320 | H51: 00:05:19.210 | I51: 287 | J51: 95 | K51: 22 | L51: 6.65 | M51: 0 | N51: 12.84 | O51: 40 | P51: 8 | Q51: 0 | R51: 0 | S51: 0 | T51: 50 | U51: 155 | V51: 75 | W51: 5747.312365
A52: 19. | B52: =B161 -> VANCL | C52: Miroslav | D52: 7.B | E52: 0 | F52: 0 | G52: 00:01:36.810 | H52: 00:07:16.920 | I52: 352 | J52: 90 | K52: 25 | L52: 6.64 | M52: 0 | N52: 12.1 | O52: 0 | P52: 7 | Q52: 0 | R52: 0 | S52: 0 | T52: 0 | U52: 176 | V52: 0 | W52: 4015.062232
A53: 20. | B53: =B162 -> VOTOČEK | C53: Michal | D53: 7.B | E53: 0 | F53: 10.95 | G53: 00:01:09.910 | H53: 00:04:51.610 | I53: 362 | J53: 0 | K53: 28 | L53: 7.95 | M53: 0 | N53: 12.15 | O53: 48 | P53: 6 | Q53: 0 | R53: 0 | S53: 0 | T53: 58 | U53: 151 | V53: 50 | W53: 5635.53903
C56: CELKOVÉ VÝSLEDKY | W56: =W30 -> 2023-06-26
B58: 8. ročník | F58: 60 m | G58: 300m | H58: 1000m | I58: dálka | J58: výška | K58: míček | L58: koule | M58: oštěp | N58: člunek | O58: lehsed | P58: odbíjení | Q58: plavání | R58: shyby | S58: šplh | T58: švihadlo | U58: z místa | V58: REPRE | W58: CELKEM
A60: 1. | B60: =B163 -> DEMČUK | C60: =C163 -> Ilja | D60: 8.A | E60: 0 | F60: 9.3 | G60: 00:00:53.410 | H60: 00:04:33.520 | I60: 373 | J60: 120 | K60: 30.5 | L60: 8.47 | M60: 0 | N60: 10.86 | O60: 35 | P60: 12 | Q60: 0 | R60: 1 | S60: 0 | T60: 55 | U60: 190 | V60: 0 | W60: 6914.628427
A61: 2. | B61: =B164 -> FAISTAUER | C61: Kryštof | D61: 8.A | E61: 0 | F61: 8.32 | G61: 00:00:51.860 | H61: 00:03:54.210 | I61: 454 | J61: 145 | K61: 40 | L61: 10.31 | M61: 0 | N61: 9.97 | O61: 44 | P61: 164 | Q61: 0 | R61: 5 | S61: 4.63 | T61: 67 | U61: 221 | V61: 175 | W61: 9625.656817
A62: 3. | B62: =B165 -> FRK | C62: Matyáš | D62: 8.A | E62: 0 | F62: 10.27 | G62: 00:01:02.730 | H62: 00:00:00 | I62: 359 | J62: 105 | K62: 0 | L62: 0 | M62: 0 | N62: 0 | O62: 38 | P62: 0 | Q62: 0 | R62: 3 | S62: 8.21 | T62: 69 | U62: 180 | V62: 0 | W62: 4658.218728
A63: 4. | B63: =B166 -> HUBÁLOVSKÝ | C63: Marek | D63: 8.A | E63: 0 | F63: 9.28 | G63: 00:00:56.800 | H63: 00:04:19.620 | I63: 419 | J63: 110 | K63: 34.5 | L63: 7.05 | M63: 0 | N63: 10.75 | O63: 47 | P63: 23 | Q63: 0 | R63: 2 | S63: 16.18 | T63: 68 | U63: 190 | V63: 0 | W63: 7516.76472
A64: 5. | B64: =B167 -> MAŤÁTKO | C64: Jakub | D64: 8.A | E64: 0 | F64: 11.85 | G64: 00:01:13.600 | H64: 00:00:00 | I64: 0 | J64: 100 | K64: 27.5 | L64: 0 | M64: 0 | N64: 12.46 | O64: 0 | P64: 14 | Q64: 0 | R64: 0 | S64: 0 | T64: 0 | U64: 0 | V64: 0 | W64: 2712.941524
A65: 6. | B65: =B168 -> MERY | C65: Luboš | D65: 8.A | E65: 0 | F65: 10.89 | G65: 00:01:06.630 | H65: 00:05:31.270 | I65: 323 | J65: 85 | K65: 21.5 | L65: 6.17 | M65: 0 | N65: 11.78 | O65: 32 | P65: 12 | Q65: 0 | R65: 0 | S65: 0 | T65: 51 | U65: 160 | V65: 0 | W65: 5657.960696
A66: 7. | B66: =B169 -> NOVOTNÝ | C66: Matěj | D66: 8.A | E66: 0 | F66: 11.28 | G66: 00:01:12.840 | H66: 00:05:34.810 | I66: 315 | J66: 95 | K66: 40 | L66: 8.31 | M66: 0 | N66: 11.44 | O66: 43 | P66: 12 | Q66: 0 | R66: 0 | S66: 0 | T66: 53 | U66: 150 | V66: 0 | W66: 6102.997643
A67: 8. | B67: =B170 -> ŘEHOŘEK | C67: Vojtěch | D67: 8.A | E67: 0 | F67: 9.56 | G67: 00:01:00.020 | H67: 00:04:22.480 | I67: 375 | J67: 0 | K67: 53 | L67: 10.1 | M67: 0 | N67: 0 | O67: 37 | P67: 164 | Q67: 0 | R67: 0 | S67: 0 | T67: 136 | U67: 189 | V67: 175 | W67: 6935.538
A68: 9. | B68: =B171 -> ŠÍR | C68: Matyáš | D68: 8.A | E68: 0 | F68: 10.8 | G68: 00:01:02.280 | H68: 00:00:00 | I68: 341 | J68: 105 | K68: 29.5 | L68: 5.53 | M68: 0 | N68: 12.1 | O68: 47 | P68: 8 | Q68: 0 | R68: 0 | S68: 0 | T68: 100 | U68: 151 | V68: 50 | W68: 5858.78456
A69: 10. | B69: =B172 -> TORÁČ | C69: Tomáš | D69: 8.A | E69: 0 | F69: 17.34 | G69: 00:02:07.730 | H69: 00:00:00 | I69: 0 | J69: 95 | K69: 20 | L69: 0 | M69: 0 | N69: 16.42 | O69: 41 | P69: 14 | Q69: 0 | R69: 0 | S69: 0 | T69: 35 | U69: 0 | V69: 0 | W69: 2556.83523
A70: 11. | B70: =B173 -> VÁCLAVÍK | C70: Ondřej | D70: 8.A | E70: 0 | F70: 8.84 | G70: 00:00:00 | H70: 00:03:38.680 | I70: 438 | J70: 120 | K70: 49 | L70: 7.53 | M70: 0 | N70: 10.12 | O70: 47 | P70: 12 | Q70: 0 | R70: 14 | S70: 3.89 | T70: 65 | U70: 212 | V70: 0 | W70: 8690.595164
A71: 12. | B71: =B174 -> AUERSWALD | C71: Daniel | D71: 8.B | E71: 0 | F71: 9.84 | G71: 00:01:00.420 | H71: 00:00:00 | I71: 388 | J71: 0 | K71: 32 | L71: 6.76 | M71: 0 | N71: 10.92 | O71: 42 | P71: 52 | Q71: 0 | R71: 5 | S71: 5.82 | T71: 125 | U71: 185 | V71: 0 | W71: 6997.783603
A72: 13. | B72: =B175 -> BOUKAL | C72: Jakub | D72: 8.B | E72: 0 | F72: 0 | G72: 00:00:00 | H72: 00:00:00 | I72: 0 | J72: 0 | K72: 0 | L72: 0 | M72: 0 | N72: 0 | O72: 0 | P72: 0 | Q72: 0 | R72: 0 | S72: 0 | T72: 0 | U72: 0 | V72: 0 | W72: 0
A73: 14. | B73: =B176 -> BUDÍN | C73: Martin | D73: 8.B | E73: 0 | F73: 9.36 | G73: 00:00:53.280 | H73: 00:03:20.900 | I73: 420 | J73: 115 | K73: 42 | L73: 7.26 | M73: 0 | N73: 10.11 | O73: 42 | P73: 14 | Q73: 0 | R73: 9 | S73: 5.21 | T73: 130 | U73: 200 | V73: 0 | W73: 9050.192139
A74: 15. | B74: =B177 -> DVOŘÁK | C74: Dominik | D74: 8.B | E74: 0 | F74: 9.64 | G74: 00:00:00 | H74: 00:04:46.920 | I74: 355 | J74: 105 | K74: 34 | L74: 8.88 | M74: 0 | N74: 11.15 | O74: 37 | P74: 0 | Q74: 0 | R74: 3 | S74: 6.79 | T74: 74 | U74: 190 | V74: 0 | W74: 6694.413473
A75: 16. | B75: =B178 -> FIŠERA | C75: Vojtěch | D75: 8.B | E75: 0 | F75: 10.4 | G75: 00:01:01.920 | H75: 00:04:43.630 | I75: 304 | J75: 105 | K75: 22.5 | L75: 7.12 | M75: 0 | N75: 11.25 | O75: 52 | P75: 10 | Q75: 0 | R75: 0 | S75: 14.93 | T75: 61 | U75: 155 | V75: 0 | W75: 6556.582761
A76: 17. | B76: =B179 -> JINDŘIŠEK | C76: Vít | D76: 8.B | E76: 0 | F76: 8.02 | G76: 00:00:42.340 | H76: 00:03:07.980 | I76: 493 | J76: 135 | K76: 56 | L76: 11.17 | M76: 0 | N76: 9.39 | O76: 49 | P76: 54 | Q76: 0 | R76: 20 | S76: 3.36 | T76: 140 | U76: 235 | V76: 175 | W76: 12027.41948
A77: 18. | B77: =B180 -> JIROUŠ | C77: Matouš | D77: 8.B | E77: 0 | F77: 9.55 | G77: 00:00:55.660 | H77: 00:00:00 | I77: 392 | J77: 0 | K77: 41 | L77: 7.85 | M77: 0 | N77: 10.64 | O77: 55 | P77: 0 | Q77: 25.48 | R77: 2 | S77: 9.19 | T77: 133 | U77: 210 | V77: 50 | W77: 7381.725156
A78: 19. | B78: =B181 -> KERLE | C78: Marek | D78: 8.B | E78: 0 | F78: 8.72 | G78: 00:00:44.950 | H78: 00:03:36.620 | I78: 472 | J78: 150 | K78: 49 | L78: 11.17 | M78: 0 | N78: 10.08 | O78: 52 | P78: 32 | Q78: 0 | R78: 14 | S78: 3.79 | T78: 113 | U78: 217 | V78: 100 | W78: 10679.19057
A79: 20. | B79: =B182 -> LUKEŠ | C79: Jakub | D79: 8.B | E79: 0 | F79: 8.5 | G79: 00:00:48.170 | H79: 00:03:28.410 | I79: 452 | J79: 150 | K79: 30 | L79: 7.25 | M79: 0 | N79: 9.8 | O79: 50 | P79: 14 | Q79: 0 | R79: 5 | S79: 3.63 | T79: 115 | U79: 242 | V79: 100 | W79: 9486.507418
A80: 21. | B80: =B183 -> OTT | C80: Matyáš | D80: 8.B | E80: 0 | F80: 8.44 | G80: 00:00:44.240 | H80: 00:03:20.680 | I80: 440 | J80: 125 | K80: 41 | L80: 8.95 | M80: 0 | N80: 9.73 | O80: 43 | P80: 54 | Q80: 17.16 | R80: 15 | S80: 5.87 | T80: 146 | U80: 215 | V80: 100 | W80: 11247.08553
A81: 22. | B81: =B184 -> POKORNÝ | C81: Matyáš | D81: 8.B | E81: 0 | F81: 8.42 | G81: 00:00:46.580 | H81: 00:03:26.940 | I81: 454 | J81: 153 | K81: 55 | L81: 8.31 | M81: 0 | N81: 9.46 | O81: 67 | P81: 0 | Q81: 0 | R81: 6 | S81: 5.16 | T81: 146 | U81: 230 | V81: 150 | W81: 10151.10872
A82: 23. | B82: =B185 -> POLÁČEK | C82: Matyáš | D82: 8.B | E82: 0 | F82: 10.16 | G82: 00:00:00 | H82: 00:05:19.800 | I82: 328 | J82: 100 | K82: 42 | L82: 8.69 | M82: 0 | N82: 0 | O82: 37 | P82: 52 | Q82: 0 | R82: 0 | S82: 0 | T82: 95 | U82: 161 | V82: 125 | W82: 5792.98209
A83: 24. | B83: =B186 -> ULLMAN | C83: Šimon | D83: 8.B | E83: 0 | F83: 8.97 | G83: 00:00:53.180 | H83: 00:05:06.060 | I83: 466 | J83: 130 | K83: 26.5 | L83: 6.48 | M83: 0 | N83: 10.57 | O83: 50 | P83: 23 | Q83: 0 | R83: 9 | S83: 5.51 | T83: 58 | U83: 245 | V83: 0 | W83: 8527.750438
A84: 25. | B84: =B187 -> VALENTA | C84: Jakub | D84: 8.B | E84: 0 | F84: 9.3 | G84: 00:00:50.250 | H84: 00:03:51.850 | I84: 407 | J84: 140 | K84: 28 | L84: 6.51 | M84: 0 | N84: 9.93 | O84: 69 | P84: 0 | Q84: 0 | R84: 6 | S84: 5.35 | T84: 111 | U84: 198 | V84: 50 | W84: 8842.009698
A85: 26. | B85: =B188 -> VRBATA | C85: Dominik | D85: 8.B | E85: 0 | F85: 9.35 | G85: 00:00:55.100 | H85: 00:03:57.340 | I85: 0 | J85: 125 | K85: 40 | L85: 7.05 | M85: 0 | N85: 10.19 | O85: 43 | P85: 32 | Q85: 18.32 | R85: 7 | S85: 3.25 | T85: 96 | U85: 192 | V85: 0 | W85: 8878.076606
C88: CELKOVÉ VÝSLEDKY
B90: 9. ročník | F90: 60 m | G90: 300m | H90: 1000m | I90: dálka | J90: výška | K90: míček | L90: koule | M90: oštěp | N90: člunek | O90: lehsed | P90: odbíjení | Q90: plavání | R90: shyby | S90: šplh | T90: švihadlo | U90: z místa | V90: REPRE | W90: CELKEM
A92: 1. | B92: =B189 -> FEJKL | C92: =C189 -> Jan | D92: 9.A | E92: 0 | F92: 8.21 | G92: 00:00:45.510 | H92: 00:03:35.900 | I92: 521 | J92: 157 | K92: 61 | L92: 9.99 | M92: 0 | N92: 9.53 | O92: 0 | P92: 232 | Q92: 0 | R92: 10 | S92: 3.42 | T92: 0 | U92: 251 | V92: 225 | W92: 10081.95869
A93: 2. | B93: =B190 -> KOTYK | C93: Tadeáš | D93: 9.A | E93: 0 | F93: 10.49 | G93: 00:00:00 | H93: 00:00:00 | I93: 374 | J93: 115 | K93: 26.5 | L93: 9.07 | M93: 0 | N93: 11.03 | O93: 0 | P93: 11 | Q93: 0 | R93: 1 | S93: 0 | T93: 0 | U93: 0 | V93: 0 | W93: 3947.448803
A94: 3. | B94: =B191 -> KRAUSE | C94: Tadeáš | D94: 9.A | E94: 0 | F94: 8.48 | G94: 00:00:00 | H94: 00:03:12.100 | I94: 468 | J94: 155 | K94: 44.2 | L94: 8.02 | M94: 0 | N94: 9.88 | O94: 0 | P94: 65 | Q94: 0 | R94: 12 | S94: 4.95 | T94: 0 | U94: 225 | V94: 150 | W94: 8417.121257
A95: 4. | B95: =B192 -> LEŠÁK | C95: Martin | D95: 9.A | E95: 0 | F95: 9.95 | G95: 00:00:00 | H95: 00:00:00 | I95: 374 | J95: 130 | K95: 33.5 | L95: 8.44 | M95: 0 | N95: 11.16 | O95: 0 | P95: 16 | Q95: 0 | R95: 0 | S95: 0 | T95: 0 | U95: 0 | V95: 0 | W95: 4070.19774
A96: 5. | B96: =B193 -> NECHANICKÝ | C96: David | D96: 9.A | E96: 0 | F96: 8.06 | G96: 00:00:49.380 | H96: 00:03:43.500 | I96: 542 | J96: 141 | K96: 45 | L96: 9.5 | M96: 0 | N96: 9.08 | O96: 52 | P96: 232 | Q96: 0 | R96: 6 | S96: 0 | T96: 125 | U96: 254 | V96: 225 | W96: 10145.45652
A97: 6. | B97: =B194 -> ŘEHOŘEK | C97: Jan | D97: 9.A | E97: 0 | F97: 0 | G97: 00:00:51.360 | H97: 00:00:00 | I97: 455 | J97: 146 | K97: 51.5 | L97: 8.08 | M97: 0 | N97: 0 | O97: 0 | P97: 512 | Q97: 0 | R97: 3 | S97: 0 | T97: 0 | U97: 235 | V97: 125 | W97: 5654.704266
A98: 7. | B98: =B195 -> SOUKUP | C98: Ondřej | D98: 9.A | E98: 0 | F98: 0 | G98: 00:00:00 | H98: 00:00:00 | I98: 422 | J98: 141 | K98: 0 | L98: 10.02 | M98: 0 | N98: 0 | O98: 0 | P98: 0 | Q98: 0 | R98: 0 | S98: 0 | T98: 0 | U98: 0 | V98: 0 | W98: 2248.407333
A99: 8. | B99: =B196 -> SPANILÝ | C99: David | D99: 9.A | E99: 0 | F99: 8.14 | G99: 00:00:45.800 | H99: 00:03:28.500 | I99: 495 | J99: 141 | K99: 61 | L99: 10.77 | M99: 0 | N99: 9.18 | O99: 49 | P99: 512 | Q99: 0 | R99: 7 | S99: 4.04 | T99: 132 | U99: 273 | V99: 225 | W99: 11367.40973
A100: 9. | B100: =B197 -> ČERNÝ | C100: Michal | D100: 9.B | E100: 0 | F100: 9.67 | G100: 00:00:59.010 | H100: 00:00:00 | I100: 387 | J100: 120 | K100: 51 | L100: 8.49 | M100: 0 | N100: 10.68 | O100: 0 | P100: 36 | Q100: 0 | R100: 1 | S100: 0 | T100: 0 | U100: 182 | V100: 0 | W100: 5847.866534
A101: 10. | B101: =B198 -> DOLEJŠÍ | C101: David | D101: 9.B | E101: 0 | F101: 9.17 | G101: 00:00:52.400 | H101: 00:00:00 | I101: 422 | J101: 125 | K101: 24 | L101: 7.81 | M101: 0 | N101: 10.16 | O101: 0 | P101: 27 | Q101: 0 | R101: 2 | S101: 10.44 | T101: 0 | U101: 203 | V101: 0 | W101: 6136.847369
A102: 11. | B102: =B199 -> POVAŽANEC | C102: Martin | D102: 9.B | E102: 0 | F102: 8.65 | G102: 00:00:00 | H102: 00:04:29.200 | I102: 475 | J102: 140 | K102: 61 | L102: 11.02 | M102: 0 | N102: 10.21 | O102: 0 | P102: 96 | Q102: 0 | R102: 2 | S102: 5.9 | T102: 0 | U102: 205 | V102: 100 | W102: 7590.334004
A103: 12. | B103: =B200 -> RICHTER | C103: Jakub | D103: 9.B | E103: 0 | F103: 9.91 | G103: 00:00:57.870 | H103: 00:00:00 | I103: 382 | J103: 115 | K103: 30 | L103: 7.66 | M103: 0 | N103: 10.95 | O103: 0 | P103: 16 | Q103: 0 | R103: 0 | S103: 0 | T103: 0 | U103: 0 | V103: 0 | W103: 4551.989763
A104: 13. | B104: =B201 -> ROZUMEK | C104: Adam | D104: 9.B | E104: 0 | F104: 9.22 | G104: 00:00:56.020 | H104: 00:00:00 | I104: 385 | J104: 110 | K104: 50 | L104: 11.29 | M104: 0 | N104: 10.09 | O104: 0 | P104: 86 | Q104: 0 | R104: 2 | S104: 8.7 | T104: 0 | U104: 190 | V104: 0 | W104: 6868.417202
A105: 14. | B105: =B202 -> VALENTA | C105: František | D105: 9.B | E105: 0 | F105: 9.51 | G105: 00:00:56.020 | H105: 00:00:00 | I105: 322 | J105: 115 | K105: 29 | L105: 8.07 | M105: 0 | N105: 10.38 | O105: 0 | P105: 61 | Q105: 0 | R105: 1 | S105: 0 | T105: 0 | U105: 0 | V105: 0 | W105: 5023.257011
A106: 15. | B106: =B203 -> ZAPLATÍLEK | C106: Josef | D106: 9.B | E106: 0 | F106: 8.94 | G106: 00:00:52.400 | H106: 00:00:00 | I106: 413 | J106: 115 | K106: 49 | L106: 8.92 | M106: 0 | N106: 9.99 | O106: 0 | P106: 86 | Q106: 0 | R106: 3 | S106: 0 | T106: 0 | U106: 226 | V106: 50 | W106: 6818.38855
B121: ='60'!B101 -> HONCŮ | C121: ='60'!C101 -> Filip | D121: ='60'!D101 -> 6.A | F121: ='60'!E101 -> 13.4 | G121: ='300'!E101 -> 00:00:00 | H121: ='1000'!E101 -> 00:00:00 | I121: =DÁLKA!E101 -> 302 | J121: =VÝŠKA!E101 -> 95 | K121: =MÍČEK!E101 -> 0 | L121: =KOULE!E101 -> 4.07 | M121: =OŠTĚP!E101 -> 0 | N121: =ČLUNEK!E101 -> 12.4 | O121: =LEHSED!E101 -> 35 | P121: =ODBÍJENÍ!E101 -> 0 | Q121: =PLAVÁNÍ!E101 -> 0 | R121: =SHYBY!E101 -> 0 | S121: =ŠPLH!E101 -> 0 | T121: =ŠVIHADLO!E101 -> 0 | U121: ='Z MÍSTA'!E101 -> 0 | V121: =REPRE!E4 -> 25 | W121: ='60'!H101+'300'!H101+'1000'!H101+DÁLKA!H101+VÝŠKA!H101+MÍČEK!H101+KOULE!H101+OŠTĚP!H101+ČLUNEK!H101+LEHSED!H101+ODBÍJENÍ!H101+PLAVÁNÍ!H101+SHYBY!H101+ŠPLH!H101+ŠVIHADLO!H101+'Z MÍSTA'!H101+REPRE!E4 -> 3164.778116
B122: ='60'!B102 -> JÍLEK | C122: ='60'!C102 -> Lukáš | D122: ='60'!D102 -> 6.A | F122: ='60'!E102 -> 0 | G122: ='300'!E102 -> 00:00:00 | H122: ='1000'!E102 -> 00:00:00 | I122: =DÁLKA!E102 -> 0 | J122: =VÝŠKA!E102 -> 0 | K122: =MÍČEK!E102 -> 0 | L122: =KOULE!E102 -> 0 | M122: =OŠTĚP!E102 -> 0 | N122: =ČLUNEK!E102 -> 0 | O122: =LEHSED!E102 -> 0 | P122: =ODBÍJENÍ!E102 -> 0 | Q122: =PLAVÁNÍ!E102 -> 0 | R122: =SHYBY!E102 -> 0 | S122: =ŠPLH!E102 -> 0 | T122: =ŠVIHADLO!E102 -> 0 | U122: ='Z MÍSTA'!E102 -> 0 | V122: =REPRE!E5 -> 0 | W122: ='60'!H102+'300'!H102+'1000'!H102+DÁLKA!H102+VÝŠKA!H102+MÍČEK!H102+KOULE!H102+OŠTĚP!H102+ČLUNEK!H102+LEHSED!H102+ODBÍJENÍ!H102+PLAVÁNÍ!H102+SHYBY!H102+ŠPLH!H102+ŠVIHADLO!H102+'Z MÍSTA'!H102+REPRE!E5 -> 0
B123: ='60'!B103 -> KUČERA | C123: ='60'!C103 -> Tadeáš | D123: ='60'!D103 -> 6.A | F123: ='60'!E103 -> 11.9 | G123: ='300'!E103 -> 00:00:00 | H123: ='1000'!E103 -> 00:04:13.760 | I123: =DÁLKA!E103 -> 308 | J123: =VÝŠKA!E103 -> 95 | K123: =MÍČEK!E103 -> 16 | L123: =KOULE!E103 -> 4.69 | M123: =OŠTĚP!E103 -> 0 | N123: =ČLUNEK!E103 -> 11.64 | O123: =LEHSED!E103 -> 40 | P123: =ODBÍJENÍ!E103 -> 7 | Q123: =PLAVÁNÍ!E103 -> 0 | R123: =SHYBY!E103 -> 0 | S123: =ŠPLH!E103 -> 9.8 | T123: =ŠVIHADLO!E103 -> 64 | U123: ='Z MÍSTA'!E103 -> 149 | V123: =REPRE!E6 -> 75 | W123: ='60'!H103+'300'!H103+'1000'!H103+DÁLKA!H103+VÝŠKA!H103+MÍČEK!H103+KOULE!H103+OŠTĚP!H103+ČLUNEK!H103+LEHSED!H103+ODBÍJENÍ!H103+PLAVÁNÍ!H103+SHYBY!H103+ŠPLH!H103+ŠVIHADLO!H103+'Z MÍSTA'!H103+REPRE!E6 -> 5648.082402
B124: ='60'!B104 -> ROZUMEK | C124: ='60'!C104 -> Lukáš | D124: ='60'!D104 -> 6.A | F124: ='60'!E104 -> 13 | G124: ='300'!E104 -> 00:00:00 | H124: ='1000'!E104 -> 00:00:00 | I124: =DÁLKA!E104 -> 225 | J124: =VÝŠKA!E104 -> 0 | K124: =MÍČEK!E104 -> 31 | L124: =KOULE!E104 -> 6.16 | M124: =OŠTĚP!E104 -> 0 | N124: =ČLUNEK!E104 -> 13.18 | O124: =LEHSED!E104 -> 30 | P124: =ODBÍJENÍ!E104 -> 0 | Q124: =PLAVÁNÍ!E104 -> 0 | R124: =SHYBY!E104 -> 0 | S124: =ŠPLH!E104 -> 0 | T124: =ŠVIHADLO!E104 -> 80 | U124: ='Z MÍSTA'!E104 -> 0 | V124: =REPRE!E7 -> 0 | W124: ='60'!H104+'300'!H104+'1000'!H104+DÁLKA!H104+VÝŠKA!H104+MÍČEK!H104+KOULE!H104+OŠTĚP!H104+ČLUNEK!H104+LEHSED!H104+ODBÍJENÍ!H104+PLAVÁNÍ!H104+SHYBY!H104+ŠPLH!H104+ŠVIHADLO!H104+'Z MÍSTA'!H104+REPRE!E7 -> 3391.87798
B125: ='60'!B105 -> ŘEHOŘEK | C125: ='60'!C105 -> Marek | D125: ='60'!D105 -> 6.A | F125: ='60'!E105 -> 12.1 | G125: ='300'!E105 -> 00:00:00 | H125: ='1000'!E105 -> 00:00:00 | I125: =DÁLKA!E105 -> 0 | J125: =VÝŠKA!E105 -> 80 | K125: =MÍČEK!E105 -> 23 | L125: =KOULE!E105 -> 0 | M125: =OŠTĚP!E105 -> 0 | N125: =ČLUNEK!E105 -> 0 | O125: =LEHSED!E105 -> 25 | P125: =ODBÍJENÍ!E105 -> 0 | Q125: =PLAVÁNÍ!E105 -> 0 | R125: =SHYBY!E105 -> 0 | S125: =ŠPLH!E105 -> 0 | T125: =ŠVIHADLO!E105 -> 62 | U125: ='Z MÍSTA'!E105 -> 160 | V125: =REPRE!E8 -> 25 | W125: ='60'!H105+'300'!H105+'1000'!H105+DÁLKA!H105+VÝŠKA!H105+MÍČEK!H105+KOULE!H105+OŠTĚP!H105+ČLUNEK!H105+LEHSED!H105+ODBÍJENÍ!H105+PLAVÁNÍ!H105+SHYBY!H105+ŠPLH!H105+ŠVIHADLO!H105+'Z MÍSTA'!H105+REPRE!E8 -> 2687.525469
B126: ='60'!B106 -> ŘÍHA | C126: ='60'!C106 -> Tadeáš | D126: ='60'!D106 -> 6.A | F126: ='60'!E106 -> 11.6 | G126: ='300'!E106 -> 00:00:00 | H126: ='1000'!E106 -> 00:00:00 | I126: =DÁLKA!E106 -> 403 | J126: =VÝŠKA!E106 -> 115 | K126: =MÍČEK!E106 -> 42.06 | L126: =KOULE!E106 -> 6.9 | M126: =OŠTĚP!E106 -> 0 | N126: =ČLUNEK!E106 -> 11.56 | O126: =LEHSED!E106 -> 32 | P126: =ODBÍJENÍ!E106 -> 7 | Q126: =PLAVÁNÍ!E106 -> 19.77 | R126: =SHYBY!E106 -> 0 | S126: =ŠPLH!E106 -> 0 | T126: =ŠVIHADLO!E106 -> 79 | U126: ='Z MÍSTA'!E106 -> 188 | V126: =REPRE!E9 -> 50 | W126: ='60'!H106+'300'!H106+'1000'!H106+DÁLKA!H106+VÝŠKA!H106+MÍČEK!H106+KOULE!H106+OŠTĚP!H106+ČLUNEK!H106+LEHSED!H106+ODBÍJENÍ!H106+PLAVÁNÍ!H106+SHYBY!H106+ŠPLH!H106+ŠVIHADLO!H106+'Z MÍSTA'!H106+REPRE!E9 -> 6140.014174
B127: ='60'!B107 -> SKRBEK | C127: ='60'!C107 -> Richard | D127: ='60'!D107 -> 6.A | F127: ='60'!E107 -> 11.6 | G127: ='300'!E107 -> 00:00:00 | H127: ='1000'!E107 -> 00:00:00 | I127: =DÁLKA!E107 -> 317 | J127: =VÝŠKA!E107 -> 85 | K127: =MÍČEK!E107 -> 0 | L127: =KOULE!E107 -> 5.82 | M127: =OŠTĚP!E107 -> 0 | N127: =ČLUNEK!E107 -> 12.94 | O127: =LEHSED!E107 -> 26 | P127: =ODBÍJENÍ!E107 -> 0 | Q127: =PLAVÁNÍ!E107 -> 0 | R127: =SHYBY!E107 -> 0 | S127: =ŠPLH!E107 -> 0 | T127: =ŠVIHADLO!E107 -> 31 | U127: ='Z MÍSTA'!E107 -> 0 | V127: =REPRE!E10 -> 0 | W127: ='60'!H107+'300'!H107+'1000'!H107+DÁLKA!H107+VÝŠKA!H107+MÍČEK!H107+KOULE!H107+OŠTĚP!H107+ČLUNEK!H107+LEHSED!H107+ODBÍJENÍ!H107+PLAVÁNÍ!H107+SHYBY!H107+ŠPLH!H107+ŠVIHADLO!H107+'Z MÍSTA'!H107+REPRE!E10 -> 3310.403534
B128: ='60'!B108 -> ŠIMEK | C128: ='60'!C108 -> Erik | D128: ='60'!D108 -> 6.A | F128: ='60'!E108 -> 10.5 | G128: ='300'!E108 -> 00:00:00 | H128: ='1000'!E108 -> 00:00:00 | I128: =DÁLKA!E108 -> 0 | J128: =VÝŠKA!E108 -> 125 | K128: =MÍČEK!E108 -> 37 | L128: =KOULE!E108 -> 7.62 | M128: =OŠTĚP!E108 -> 0 | N128: =ČLUNEK!E108 -> 11.73 | O128: =LEHSED!E108 -> 43 | P128: =ODBÍJENÍ!E108 -> 0 | Q128: =PLAVÁNÍ!E108 -> 0 | R128: =SHYBY!E108 -> 0 | S128: =ŠPLH!E108 -> 6 | T128: =ŠVIHADLO!E108 -> 81 | U128: ='Z MÍSTA'!E108 -> 0 | V128: =REPRE!E11 -> 0 | W128: ='60'!H108+'300'!H108+'1000'!H108+DÁLKA!H108+VÝŠKA!H108+MÍČEK!H108+KOULE!H108+OŠTĚP!H108+ČLUNEK!H108+LEHSED!H108+ODBÍJENÍ!H108+PLAVÁNÍ!H108+SHYBY!H108+ŠPLH!H108+ŠVIHADLO!H108+'Z MÍSTA'!H108+REPRE!E11 -> 4653.921602
B129: ='60'!B109 -> ŠÍR | C129: ='60'!C109 -> Jan | D129: ='60'!D109 -> 6.A | F129: ='60'!E109 -> 11 | G129: ='300'!E109 -> 00:00:00 | H129: ='1000'!E109 -> 00:00:00 | I129: =DÁLKA!E109 -> 319 | J129: =VÝŠKA!E109 -> 110 | K129: =MÍČEK!E109 -> 26 | L129: =KOULE!E109 -> 5.7 | M129: =OŠTĚP!E109 -> 0 | N129: =ČLUNEK!E109 -> 12.36 | O129: =LEHSED!E109 -> 30 | P129: =ODBÍJENÍ!E109 -> 0 | Q129: =PLAVÁNÍ!E109 -> 0 | R129: =SHYBY!E109 -> 0 | S129: =ŠPLH!E109 -> 8.5 | T129: =ŠVIHADLO!E109 -> 94 | U129: ='Z MÍSTA'!E109 -> 0 | V129: =REPRE!E12 -> 0 | W129: ='60'!H109+'300'!H109+'1000'!H109+DÁLKA!H109+VÝŠKA!H109+MÍČEK!H109+KOULE!H109+OŠTĚP!H109+ČLUNEK!H109+LEHSED!H109+ODBÍJENÍ!H109+PLAVÁNÍ!H109+SHYBY!H109+ŠPLH!H109+ŠVIHADLO!H109+'Z MÍSTA'!H109+REPRE!E12 -> 4636.96329
B130: ='60'!B110 -> ŠÍR | C130: ='60'!C110 -> Stanislav | D130: ='60'!D110 -> 6.A | F130: ='60'!E110 -> 11.5 | G130: ='300'!E110 -> 00:00:00 | H130: ='1000'!E110 -> 00:00:00 | I130: =DÁLKA!E110 -> 0 | J130: =VÝŠKA!E110 -> 95 | K130: =MÍČEK!E110 -> 34 | L130: =KOULE!E110 -> 4.28 | M130: =OŠTĚP!E110 -> 0 | N130: =ČLUNEK!E110 -> 12.14 | O130: =LEHSED!E110 -> 34 | P130: =ODBÍJENÍ!E110 -> 0 | Q130: =PLAVÁNÍ!E110 -> 0 | R130: =SHYBY!E110 -> 0 | S130: =ŠPLH!E110 -> 6.2 | T130: =ŠVIHADLO!E110 -> 75 | U130: ='Z MÍSTA'!E110 -> 0 | V130: =REPRE!E13 -> 0 | W130: ='60'!H110+'300'!H110+'1000'!H110+DÁLKA!H110+VÝŠKA!H110+MÍČEK!H110+KOULE!H110+OŠTĚP!H110+ČLUNEK!H110+LEHSED!H110+ODBÍJENÍ!H110+PLAVÁNÍ!H110+SHYBY!H110+ŠPLH!H110+ŠVIHADLO!H110+'Z MÍSTA'!H110+REPRE!E13 -> 4009.680293
B131: ='60'!B111 -> ŠPINAR | C131: ='60'!C111 -> František | D131: ='60'!D111 -> 6.A | F131: ='60'!E111 -> 13 | G131: ='300'!E111 -> 00:00:00 | H131: ='1000'!E111 -> 00:00:00 | I131: =DÁLKA!E111 -> 262 | J131: =VÝŠKA!E111 -> 95 | K131: =MÍČEK!E111 -> 27 | L131: =KOULE!E111 -> 5.75 | M131: =OŠTĚP!E111 -> 0 | N131: =ČLUNEK!E111 -> 13.76 | O131: =LEHSED!E111 -> 0 | P131: =ODBÍJENÍ!E111 -> 0 | Q131: =PLAVÁNÍ!E111 -> 28.43 | R131: =SHYBY!E111 -> 0 | S131: =ŠPLH!E111 -> 0 | T131: =ŠVIHADLO!E111 -> 0 | U131: ='Z MÍSTA'!E111 -> 0 | V131: =REPRE!E14 -> 0 | W131: ='60'!H111+'300'!H111+'1000'!H111+DÁLKA!H111+VÝŠKA!H111+MÍČEK!H111+KOULE!H111+OŠTĚP!H111+ČLUNEK!H111+LEHSED!H111+ODBÍJENÍ!H111+PLAVÁNÍ!H111+SHYBY!H111+ŠPLH!H111+ŠVIHADLO!H111+'Z MÍSTA'!H111+REPRE!E14 -> 3437.055095
B132: ='60'!B112 -> TOTH | C132: ='60'!C112 -> Mikuláš | D132: ='60'!D112 -> 6.A | F132: ='60'!E112 -> 12.4 | G132: ='300'!E112 -> 00:00:00 | H132: ='1000'!E112 -> 00:00:00 | I132: =DÁLKA!E112 -> 0 | J132: =VÝŠKA!E112 -> 95 | K132: =MÍČEK!E112 -> 28.5 | L132: =KOULE!E112 -> 0 | M132: =OŠTĚP!E112 -> 0 | N132: =ČLUNEK!E112 -> 13.34 | O132: =LEHSED!E112 -> 43 | P132: =ODBÍJENÍ!E112 -> 0 | Q132: =PLAVÁNÍ!E112 -> 0 | R132: =SHYBY!E112 -> 0 | S132: =ŠPLH!E112 -> 0 | T132: =ŠVIHADLO!E112 -> 91 | U132: ='Z MÍSTA'!E112 -> 0 | V132: =REPRE!E15 -> 0 | W132: ='60'!H112+'300'!H112+'1000'!H112+DÁLKA!H112+VÝŠKA!H112+MÍČEK!H112+KOULE!H112+OŠTĚP!H112+ČLUNEK!H112+LEHSED!H112+ODBÍJENÍ!H112+PLAVÁNÍ!H112+SHYBY!H112+ŠPLH!H112+ŠVIHADLO!H112+'Z MÍSTA'!H112+REPRE!E15 -> 3174.236256
B133: ='60'!B113 -> WEISZLEMLEIN | C133: ='60'!C113 -> Adam | D133: ='60'!D113 -> 6.A | F133: ='60'!E113 -> 12 | G133: ='300'!E113 -> 00:00:00 | H133: ='1000'!E113 -> 00:00:00 | I133: =DÁLKA!E113 -> 240 | J133: =VÝŠKA!E113 -> 0 | K133: =MÍČEK!E113 -> 0 | L133: =KOULE!E113 -> 0 | M133: =OŠTĚP!E113 -> 0 | N133: =ČLUNEK!E113 -> 13.13 | O133: =LEHSED!E113 -> 0 | P133: =ODBÍJENÍ!E113 -> 0 | Q133: =PLAVÁNÍ!E113 -> 0 | R133: =SHYBY!E113 -> 0 | S133: =ŠPLH!E113 -> 0 | T133: =ŠVIHADLO!E113 -> 0 | U133: ='Z MÍSTA'!E113 -> 157 | V133: =REPRE!E16 -> 0 | W133: ='60'!H113+'300'!H113+'1000'!H113+DÁLKA!H113+VÝŠKA!H113+MÍČEK!H113+KOULE!H113+OŠTĚP!H113+ČLUNEK!H113+LEHSED!H113+ODBÍJENÍ!H113+PLAVÁNÍ!H113+SHYBY!H113+ŠPLH!H113+ŠVIHADLO!H113+'Z MÍSTA'!H113+REPRE!E16 -> 2282.951677
B134: ='60'!B114 -> ČERNÝ | C134: ='60'!C114 -> Filip | D134: ='60'!D114 -> 6.B | F134: ='60'!E114 -> 0 | G134: ='300'!E114 -> 00:00:00 | H134: ='1000'!E114 -> 00:00:00 | I134: =DÁLKA!E114 -> 0 | J134: =VÝŠKA!E114 -> 0 | K134: =MÍČEK!E114 -> 0 | L134: =KOULE!E114 -> 0 | M134: =OŠTĚP!E114 -> 0 | N134: =ČLUNEK!E114 -> 0 | O134: =LEHSED!E114 -> 0 | P134: =ODBÍJENÍ!E114 -> 0 | Q134: =PLAVÁNÍ!E114 -> 0 | R134: =SHYBY!E114 -> 0 | S134: =ŠPLH!E114 -> 0 | T134: =ŠVIHADLO!E114 -> 0 | U134: ='Z MÍSTA'!E114 -> 0 | V134: =REPRE!E17 -> 0 | W134: ='60'!H114+'300'!H114+'1000'!H114+DÁLKA!H114+VÝŠKA!H114+MÍČEK!H114+KOULE!H114+OŠTĚP!H114+ČLUNEK!H114+LEHSED!H114+ODBÍJENÍ!H114+PLAVÁNÍ!H114+SHYBY!H114+ŠPLH!H114+ŠVIHADLO!H114+'Z MÍSTA'!H114+REPRE!E17 -> 0
B135: ='60'!B115 -> GINGAL | C135: ='60'!C115 -> Patrik | D135: ='60'!D115 -> 6.B | F135: ='60'!E115 -> 10.8 | G135: ='300'!E115 -> 00:00:00 | H135: ='1000'!E115 -> 00:00:00 | I135: =DÁLKA!E115 -> 0 | J135: =VÝŠKA!E115 -> 0 | K135: =MÍČEK!E115 -> 32.5 | L135: =KOULE!E115 -> 0 | M135: =OŠTĚP!E115 -> 0 | N135: =ČLUNEK!E115 -> 12.37 | O135: =LEHSED!E115 -> 30 | P135: =ODBÍJENÍ!E115 -> 0 | Q135: =PLAVÁNÍ!E115 -> 0 | R135: =SHYBY!E115 -> 0 | S135: =ŠPLH!E115 -> 0 | T135: =ŠVIHADLO!E115 -> 0 | U135: ='Z MÍSTA'!E115 -> 0 | V135: =REPRE!E18 -> 0 | W135: ='60'!H115+'300'!H115+'1000'!H115+DÁLKA!H115+VÝŠKA!H115+MÍČEK!H115+KOULE!H115+OŠTĚP!H115+ČLUNEK!H115+LEHSED!H115+ODBÍJENÍ!H115+PLAVÁNÍ!H115+SHYBY!H115+ŠPLH!H115+ŠVIHADLO!H115+'Z MÍSTA'!H115+REPRE!E18 -> 2120.34887
B136: ='60'!B116 -> HLAVÁČEK | C136: ='60'!C116 -> Josef | D136: ='60'!D116 -> 6.B | F136: ='60'!E116 -> 9.42 | G136: ='300'!E116 -> 00:00:00 | H136: ='1000'!E116 -> 00:00:00 | I136: =DÁLKA!E116 -> 384 | J136: =VÝŠKA!E116 -> 115 | K136: =MÍČEK!E116 -> 29 | L136: =KOULE!E116 -> 6.9 | M136: =OŠTĚP!E116 -> 0 | N136: =ČLUNEK!E116 -> 11.6 | O136: =LEHSED!E116 -> 47 | P136: =ODBÍJENÍ!E116 -> 0 | Q136: =PLAVÁNÍ!E116 -> 0 | R136: =SHYBY!E116 -> 0 | S136: =ŠPLH!E116 -> 5.6 | T136: =ŠVIHADLO!E116 -> 150 | U136: ='Z MÍSTA'!E116 -> 0 | V136: =REPRE!E19 -> 75 | W136: ='60'!H116+'300'!H116+'1000'!H116+DÁLKA!H116+VÝŠKA!H116+MÍČEK!H116+KOULE!H116+OŠTĚP!H116+ČLUNEK!H116+LEHSED!H116+ODBÍJENÍ!H116+PLAVÁNÍ!H116+SHYBY!H116+ŠPLH!H116+ŠVIHADLO!H116+'Z MÍSTA'!H116+REPRE!E19 -> 5799.674478
B137: ='60'!B117 -> KHUDA | C137: ='60'!C117 -> Ivan | D137: ='60'!D117 -> 6.B | F137: ='60'!E117 -> 15.2 | G137: ='300'!E117 -> 00:00:00 | H137: ='1000'!E117 -> 00:00:00 | I137: =DÁLKA!E117 -> 0 | J137: =VÝŠKA!E117 -> 85 | K137: =MÍČEK!E117 -> 23 | L137: =KOULE!E117 -> 6.3 | M137: =OŠTĚP!E117 -> 0 | N137: =ČLUNEK!E117 -> 14.4 | O137: =LEHSED!E117 -> 0 | P137: =ODBÍJENÍ!E117 -> 0 | Q137: =PLAVÁNÍ!E117 -> 0 | R137: =SHYBY!E117 -> 0 | S137: =ŠPLH!E117 -> 0 | T137: =ŠVIHADLO!E117 -> 0 | U137: ='Z MÍSTA'!E117 -> 0 | V137: =REPRE!E20 -> 0 | W137: ='60'!H117+'300'!H117+'1000'!H117+DÁLKA!H117+VÝŠKA!H117+MÍČEK!H117+KOULE!H117+OŠTĚP!H117+ČLUNEK!H117+LEHSED!H117+ODBÍJENÍ!H117+PLAVÁNÍ!H117+SHYBY!H117+ŠPLH!H117+ŠVIHADLO!H117+'Z MÍSTA'!H117+REPRE!E20 -> 2286.779377
B138: ='60'!B118 -> KRESAN | C138: ='60'!C118 -> Matěj | D138: ='60'!D118 -> 6.B | F138: ='60'!E118 -> 14.9 | G138: ='300'!E118 -> 00:00:00 | H138: ='1000'!E118 -> 00:00:00 | I138: =DÁLKA!E118 -> 0 | J138: =VÝŠKA!E118 -> 95 | K138: =MÍČEK!E118 -> 17 | L138: =KOULE!E118 -> 4.8 | M138: =OŠTĚP!E118 -> 0 | N138: =ČLUNEK!E118 -> 14.3 | O138: =LEHSED!E118 -> 20 | P138: =ODBÍJENÍ!E118 -> 0 | Q138: =PLAVÁNÍ!E118 -> 0 | R138: =SHYBY!E118 -> 0 | S138: =ŠPLH!E118 -> 0 | T138: =ŠVIHADLO!E118 -> 25 | U138: ='Z MÍSTA'!E118 -> 0 | V138: =REPRE!E21 -> 0 | W138: ='60'!H118+'300'!H118+'1000'!H118+DÁLKA!H118+VÝŠKA!H118+MÍČEK!H118+KOULE!H118+OŠTĚP!H118+ČLUNEK!H118+LEHSED!H118+ODBÍJENÍ!H118+PLAVÁNÍ!H118+SHYBY!H118+ŠPLH!H118+ŠVIHADLO!H118+'Z MÍSTA'!H118+REPRE!E21 -> 2607.415228
B139: ='60'!B119 -> RYCHTR | C139: ='60'!C119 -> Vojtěch | D139: ='60'!D119 -> 6.B | F139: ='60'!E119 -> 12.9 | G139: ='300'!E119 -> 00:00:00 | H139: ='1000'!E119 -> 00:00:00 | I139: =DÁLKA!E119 -> 0 | J139: =VÝŠKA!E119 -> 100 | K139: =MÍČEK!E119 -> 32 | L139: =KOULE!E119 -> 0 | M139: =OŠTĚP!E119 -> 0 | N139: =ČLUNEK!E119 -> 12.45 | O139: =LEHSED!E119 -> 39 | P139: =ODBÍJENÍ!E119 -> 0 | Q139: =PLAVÁNÍ!E119 -> 0 | R139: =SHYBY!E119 -> 0 | S139: =ŠPLH!E119 -> 0 | T139: =ŠVIHADLO!E119 -> 107 | U139: ='Z MÍSTA'!E119 -> 0 | V139: =REPRE!E22 -> 25 | W139: ='60'!H119+'300'!H119+'1000'!H119+DÁLKA!H119+VÝŠKA!H119+MÍČEK!H119+KOULE!H119+OŠTĚP!H119+ČLUNEK!H119+LEHSED!H119+ODBÍJENÍ!H119+PLAVÁNÍ!H119+SHYBY!H119+ŠPLH!H119+ŠVIHADLO!H119+'Z MÍSTA'!H119+REPRE!E22 -> 3374.32421
B140: ='60'!B120 -> ŠTAJER | C140: ='60'!C120 -> David | D140: ='60'!D120 -> 6.B | F140: ='60'!E120 -> 11 | G140: ='300'!E120 -> 00:00:00 | H140: ='1000'!E120 -> 00:00:00 | I140: =DÁLKA!E120 -> 0 | J140: =VÝŠKA!E120 -> 120 | K140: =MÍČEK!E120 -> 25 | L140: =KOULE!E120 -> 7.92 | M140: =OŠTĚP!E120 -> 0 | N140: =ČLUNEK!E120 -> 12.13 | O140: =LEHSED!E120 -> 0 | P140: =ODBÍJENÍ!E120 -> 0 | Q140: =PLAVÁNÍ!E120 -> 0 | R140: =SHYBY!E120 -> 0 | S140: =ŠPLH!E120 -> 0 | T140: =ŠVIHADLO!E120 -> 0 | U140: ='Z MÍSTA'!E120 -> 0 | V140: =REPRE!E23 -> 25 | W140: ='60'!H120+'300'!H120+'1000'!H120+DÁLKA!H120+VÝŠKA!H120+MÍČEK!H120+KOULE!H120+OŠTĚP!H120+ČLUNEK!H120+LEHSED!H120+ODBÍJENÍ!H120+PLAVÁNÍ!H120+SHYBY!H120+ŠPLH!H120+ŠVIHADLO!H120+'Z MÍSTA'!H120+REPRE!E23 -> 2961.791349
B141: ='60'!B121 -> TKACHUK | C141: ='60'!C121 -> Dzvenyslav | D141: ='60'!D121 -> 6.B | F141: ='60'!E121 -> 0 | G141: ='300'!E121 -> 00:00:00 | H141: ='1000'!E121 -> 00:00:00 | I141: =DÁLKA!E121 -> 0 | J141: =VÝŠKA!E121 -> 0 | K141: =MÍČEK!E121 -> 0 | L141: =KOULE!E121 -> 0 | M141: =OŠTĚP!E121 -> 0 | N141: =ČLUNEK!E121 -> 0 | O141: =LEHSED!E121 -> 0 | P141: =ODBÍJENÍ!E121 -> 0 | Q141: =PLAVÁNÍ!E121 -> 0 | R141: =SHYBY!E121 -> 0 | S141: =ŠPLH!E121 -> 0 | T141: =ŠVIHADLO!E121 -> 0 | U141: ='Z MÍSTA'!E121 -> 0 | V141: =REPRE!E24 -> 0 | W141: ='60'!H121+'300'!H121+'1000'!H121+DÁLKA!H121+VÝŠKA!H121+MÍČEK!H121+KOULE!H121+OŠTĚP!H121+ČLUNEK!H121+LEHSED!H121+ODBÍJENÍ!H121+PLAVÁNÍ!H121+SHYBY!H121+ŠPLH!H121+ŠVIHADLO!H121+'Z MÍSTA'!H121+REPRE!E24 -> 0
B142: ='60'!B122 -> VELIKOVSKÝ | C142: ='60'!C122 -> Dominik | D142: ='60'!D122 -> 6.B | F142: ='60'!E122 -> 13 | G142: ='300'!E122 -> 00:00:00 | H142: ='1000'!E122 -> 00:00:00 | I142: =DÁLKA!E122 -> 0 | J142: =VÝŠKA!E122 -> 90 | K142: =MÍČEK!E122 -> 21 | L142: =KOULE!E122 -> 3.9 | M142: =OŠTĚP!E122 -> 0 | N142: =ČLUNEK!E122 -> 13.4 | O142: =LEHSED!E122 -> 28 | P142: =ODBÍJENÍ!E122 -> 0 | Q142: =PLAVÁNÍ!E122 -> 0 | R142: =SHYBY!E122 -> 0 | S142: =ŠPLH!E122 -> 0 | T142: =ŠVIHADLO!E122 -> 26 | U142: ='Z MÍSTA'!E122 -> 0 | V142: =REPRE!E25 -> 25 | W142: ='60'!H122+'300'!H122+'1000'!H122+DÁLKA!H122+VÝŠKA!H122+MÍČEK!H122+KOULE!H122+OŠTĚP!H122+ČLUNEK!H122+LEHSED!H122+ODBÍJENÍ!H122+PLAVÁNÍ!H122+SHYBY!H122+ŠPLH!H122+ŠVIHADLO!H122+'Z MÍSTA'!H122+REPRE!E25 -> 2838.754816
B143: ='60'!B123 -> EXNER | C143: ='60'!C123 -> Tomáš | D143: ='60'!D123 -> 7.A | F143: ='60'!E123 -> 9.66 | G143: ='300'!E123 -> 00:00:59.110 | H143: ='1000'!E123 -> 00:05:30.390 | I143: =DÁLKA!E123 -> 382 | J143: =VÝŠKA!E123 -> 110 | K143: =MÍČEK!E123 -> 24 | L143: =KOULE!E123 -> 8.75 | M143: =OŠTĚP!E123 -> 0 | N143: =ČLUNEK!E123 -> 10.82 | O143: =LEHSED!E123 -> 44 | P143: =ODBÍJENÍ!E123 -> 8 | Q143: =PLAVÁNÍ!E123 -> 0 | R143: =SHYBY!E123 -> 3 | S143: =ŠPLH!E123 -> 0 | T143: =ŠVIHADLO!E123 -> 64 | U143: ='Z MÍSTA'!E123 -> 232 | V143: =REPRE!E26 -> 0 | W143: ='60'!H123+'300'!H123+'1000'!H123+DÁLKA!H123+VÝŠKA!H123+MÍČEK!H123+KOULE!H123+OŠTĚP!H123+ČLUNEK!H123+LEHSED!H123+ODBÍJENÍ!H123+PLAVÁNÍ!H123+SHYBY!H123+ŠPLH!H123+ŠVIHADLO!H123+'Z MÍSTA'!H123+REPRE!E26 -> 7027.382497
B144: ='60'!B124 -> JANATA | C144: ='60'!C124 -> Denis | D144: ='60'!D124 -> 7.A | F144: ='60'!E124 -> 10.62 | G144: ='300'!E124 -> 00:01:02.160 | H144: ='1000'!E124 -> 00:05:57.410 | I144: =DÁLKA!E124 -> 375 | J144: =VÝŠKA!E124 -> 95 | K144: =MÍČEK!E124 -> 21.5 | L144: =KOULE!E124 -> 4.94 | M144: =OŠTĚP!E124 -> 0 | N144: =ČLUNEK!E124 -> 11.05 | O144: =LEHSED!E124 -> 39 | P144: =ODBÍJENÍ!E124 -> 16 | Q144: =PLAVÁNÍ!E124 -> 0 | R144: =SHYBY!E124 -> 0 | S144: =ŠPLH!E124 -> 0 | T144: =ŠVIHADLO!E124 -> 49 | U144: ='Z MÍSTA'!E124 -> 150 | V144: =REPRE!E27 -> 0 | W144: ='60'!H124+'300'!H124+'1000'!H124+DÁLKA!H124+VÝŠKA!H124+MÍČEK!H124+KOULE!H124+OŠTĚP!H124+ČLUNEK!H124+LEHSED!H124+ODBÍJENÍ!H124+PLAVÁNÍ!H124+SHYBY!H124+ŠPLH!H124+ŠVIHADLO!H124+'Z MÍSTA'!H124+REPRE!E27 -> 5895.690278
B145: ='60'!B125 -> JINDŘIŠEK | C145: ='60'!C125 -> Alex Jiří | D145: ='60'!D125 -> 7.A | F145: ='60'!E125 -> 9.25 | G145: ='300'!E125 -> 00:00:58.340 | H145: ='1000'!E125 -> 00:00:00 | I145: =DÁLKA!E125 -> 361 | J145: =VÝŠKA!E125 -> 0 | K145: =MÍČEK!E125 -> 29.5 | L145: =KOULE!E125 -> 8.79 | M145: =OŠTĚP!E125 -> 0 | N145: =ČLUNEK!E125 -> 11.08 | O145: =LEHSED!E125 -> 49 | P145: =ODBÍJENÍ!E125 -> 11 | Q145: =PLAVÁNÍ!E125 -> 0 | R145: =SHYBY!E125 -> 0 | S145: =ŠPLH!E125 -> 0 | T145: =ŠVIHADLO!E125 -> 42 | U145: ='Z MÍSTA'!E125 -> 147 | V145: =REPRE!E28 -> 125 | W145: ='60'!H125+'300'!H125+'1000'!H125+DÁLKA!H125+VÝŠKA!H125+MÍČEK!H125+KOULE!H125+OŠTĚP!H125+ČLUNEK!H125+LEHSED!H125+ODBÍJENÍ!H125+PLAVÁNÍ!H125+SHYBY!H125+ŠPLH!H125+ŠVIHADLO!H125+'Z MÍSTA'!H125+REPRE!E28 -> 5480.620217
B146: ='60'!B126 -> KAZLEPKA | C146: ='60'!C126 -> Miroslav | D146: ='60'!D126 -> 7.A | F146: ='60'!E126 -> 0 | G146: ='300'!E126 -> 00:00:00 | H146: ='1000'!E126 -> 00:00:00 | I146: =DÁLKA!E126 -> 0 | J146: =VÝŠKA!E126 -> 0 | K146: =MÍČEK!E126 -> 20.5 | L146: =KOULE!E126 -> 0 | M146: =OŠTĚP!E126 -> 0 | N146: =ČLUNEK!E126 -> 14.21 | O146: =LEHSED!E126 -> 31 | P146: =ODBÍJENÍ!E126 -> 0 | Q146: =PLAVÁNÍ!E126 -> 0 | R146: =SHYBY!E126 -> 0 | S146: =ŠPLH!E126 -> 0 | T146: =ŠVIHADLO!E126 -> 0 | U146: ='Z MÍSTA'!E126 -> 158 | V146: =REPRE!E29 -> 0 | W146: ='60'!H126+'300'!H126+'1000'!H126+DÁLKA!H126+VÝŠKA!H126+MÍČEK!H126+KOULE!H126+OŠTĚP!H126+ČLUNEK!H126+LEHSED!H126+ODBÍJENÍ!H126+PLAVÁNÍ!H126+SHYBY!H126+ŠPLH!H126+ŠVIHADLO!H126+'Z MÍSTA'!H126+REPRE!E29 -> 1749.389596
B147: ='60'!B127 -> MARŠÁLEK | C147: ='60'!C127 -> Ondřej | D147: ='60'!D127 -> 7.A | F147: ='60'!E127 -> 10.24 | G147: ='300'!E127 -> 00:01:06.170 | H147: ='1000'!E127 -> 00:05:16.140 | I147: =DÁLKA!E127 -> 270 | J147: =VÝŠKA!E127 -> 90 | K147: =MÍČEK!E127 -> 26 | L147: =KOULE!E127 -> 8.19 | M147: =OŠTĚP!E127 -> 0 | N147: =ČLUNEK!E127 -> 11.31 | O147: =LEHSED!E127 -> 0 | P147: =ODBÍJENÍ!E127 -> 13 | Q147: =PLAVÁNÍ!E127 -> 0 | R147: =SHYBY!E127 -> 0 | S147: =ŠPLH!E127 -> 0 | T147: =ŠVIHADLO!E127 -> 28 | U147: ='Z MÍSTA'!E127 -> 0 | V147: =REPRE!E30 -> 0 | W147: ='60'!H127+'300'!H127+'1000'!H127+DÁLKA!H127+VÝŠKA!H127+MÍČEK!H127+KOULE!H127+OŠTĚP!H127+ČLUNEK!H127+LEHSED!H127+ODBÍJENÍ!H127+PLAVÁNÍ!H127+SHYBY!H127+ŠPLH!H127+ŠVIHADLO!H127+'Z MÍSTA'!H127+REPRE!E30 -> 4742.073497
B148: ='60'!B128 -> MLATEČEK | C148: ='60'!C128 -> Patrik | D148: ='60'!D128 -> 7.A | F148: ='60'!E128 -> 10.51 | G148: ='300'!E128 -> 00:01:17.320 | H148: ='1000'!E128 -> 00:05:20.750 | I148: =DÁLKA!E128 -> 361 | J148: =VÝŠKA!E128 -> 105 | K148: =MÍČEK!E128 -> 29 | L148: =KOULE!E128 -> 6.71 | M148: =OŠTĚP!E128 -> 0 | N148: =ČLUNEK!E128 -> 11.83 | O148: =LEHSED!E128 -> 38 | P148: =ODBÍJENÍ!E128 -> 22 | Q148: =PLAVÁNÍ!E128 -> 0 | R148: =SHYBY!E128 -> 0 | S148: =ŠPLH!E128 -> 19.75 | T148: =ŠVIHADLO!E128 -> 0 | U148: ='Z MÍSTA'!E128 -> 159 | V148: =REPRE!E31 -> 0 | W148: ='60'!H128+'300'!H128+'1000'!H128+DÁLKA!H128+VÝŠKA!H128+MÍČEK!H128+KOULE!H128+OŠTĚP!H128+ČLUNEK!H128+LEHSED!H128+ODBÍJENÍ!H128+PLAVÁNÍ!H128+SHYBY!H128+ŠPLH!H128+ŠVIHADLO!H128+'Z MÍSTA'!H128+REPRE!E31 -> 5935.340638
B149: ='60'!B129 -> SCHOLZ | C149: ='60'!C129 -> Matyáš | D149: ='60'!D129 -> 7.A | F149: ='60'!E129 -> 10.46 | G149: ='300'!E129 -> 00:01:05.740 | H149: ='1000'!E129 -> 00:00:00 | I149: =DÁLKA!E129 -> 370 | J149: =VÝŠKA!E129 -> 110 | K149: =MÍČEK!E129 -> 32 | L149: =KOULE!E129 -> 7.71 | M149: =OŠTĚP!E129 -> 0 | N149: =ČLUNEK!E129 -> 11.38 | O149: =LEHSED!E129 -> 29 | P149: =ODBÍJENÍ!E129 -> 16 | Q149: =PLAVÁNÍ!E129 -> 0 | R149: =SHYBY!E129 -> 1 | S149: =ŠPLH!E129 -> 0 | T149: =ŠVIHADLO!E129 -> 53 | U149: ='Z MÍSTA'!E129 -> 180 | V149: =REPRE!E32 -> 125 | W149: ='60'!H129+'300'!H129+'1000'!H129+DÁLKA!H129+VÝŠKA!H129+MÍČEK!H129+KOULE!H129+OŠTĚP!H129+ČLUNEK!H129+LEHSED!H129+ODBÍJENÍ!H129+PLAVÁNÍ!H129+SHYBY!H129+ŠPLH!H129+ŠVIHADLO!H129+'Z MÍSTA'!H129+REPRE!E32 -> 5926.457392
B150: ='60'!B130 -> TOMÁŠ | C150: ='60'!C130 -> Jakub | D150: ='60'!D130 -> 7.A | F150: ='60'!E130 -> 10.15 | G150: ='300'!E130 -> 00:00:57.360 | H150: ='1000'!E130 -> 00:04:18.490 | I150: =DÁLKA!E130 -> 315 | J150: =VÝŠKA!E130 -> 115 | K150: =MÍČEK!E130 -> 26.5 | L150: =KOULE!E130 -> 7.47 | M150: =OŠTĚP!E130 -> 0 | N150: =ČLUNEK!E130 -> 10.63 | O150: =LEHSED!E130 -> 45 | P150: =ODBÍJENÍ!E130 -> 22 | Q150: =PLAVÁNÍ!E130 -> 0 | R150: =SHYBY!E130 -> 0 | S150: =ŠPLH!E130 -> 13.28 | T150: =ŠVIHADLO!E130 -> 86 | U150: ='Z MÍSTA'!E130 -> 185 | V150: =REPRE!E33 -> 0 | W150: ='60'!H130+'300'!H130+'1000'!H130+DÁLKA!H130+VÝŠKA!H130+MÍČEK!H130+KOULE!H130+OŠTĚP!H130+ČLUNEK!H130+LEHSED!H130+ODBÍJENÍ!H130+PLAVÁNÍ!H130+SHYBY!H130+ŠPLH!H130+ŠVIHADLO!H130+'Z MÍSTA'!H130+REPRE!E33 -> 7193.725496
B151: ='60'!B131 -> VÁCLAVÍK | C151: ='60'!C131 -> Jan | D151: ='60'!D131 -> 7.A | F151: ='60'!E131 -> 10.02 | G151: ='300'!E131 -> 00:00:57.810 | H151: ='1000'!E131 -> 00:04:09.630 | I151: =DÁLKA!E131 -> 359 | J151: =VÝŠKA!E131 -> 115 | K151: =MÍČEK!E131 -> 27 | L151: =KOULE!E131 -> 6.19 | M151: =OŠTĚP!E131 -> 0 | N151: =ČLUNEK!E131 -> 10.75 | O151: =LEHSED!E131 -> 44 | P151: =ODBÍJENÍ!E131 -> 11 | Q151: =PLAVÁNÍ!E131 -> 0 | R151: =SHYBY!E131 -> 6 | S151: =ŠPLH!E131 -> 8.8 | T151: =ŠVIHADLO!E131 -> 79 | U151: ='Z MÍSTA'!E131 -> 189 | V151: =REPRE!E34 -> 225 | W151: ='60'!H131+'300'!H131+'1000'!H131+DÁLKA!H131+VÝŠKA!H131+MÍČEK!H131+KOULE!H131+OŠTĚP!H131+ČLUNEK!H131+LEHSED!H131+ODBÍJENÍ!H131+PLAVÁNÍ!H131+SHYBY!H131+ŠPLH!H131+ŠVIHADLO!H131+'Z MÍSTA'!H131+REPRE!E34 -> 7824.986486
B152: ='60'!B132 -> VEČEŘA | C152: ='60'!C132 -> David | D152: ='60'!D132 -> 7.A | F152: ='60'!E132 -> 10.9 | G152: ='300'!E132 -> 00:01:06.690 | H152: ='1000'!E132 -> 00:05:10.840 | I152: =DÁLKA!E132 -> 330 | J152: =VÝŠKA!E132 -> 100 | K152: =MÍČEK!E132 -> 22 | L152: =KOULE!E132 -> 6.87 | M152: =OŠTĚP!E132 -> 0 | N152: =ČLUNEK!E132 -> 11.98 | O152: =LEHSED!E132 -> 32 | P152: =ODBÍJENÍ!E132 -> 7 | Q152: =PLAVÁNÍ!E132 -> 0 | R152: =SHYBY!E132 -> 0 | S152: =ŠPLH!E132 -> 0 | T152: =ŠVIHADLO!E132 -> 32 | U152: ='Z MÍSTA'!E132 -> 144 | V152: =REPRE!E35 -> 0 | W152: ='60'!H132+'300'!H132+'1000'!H132+DÁLKA!H132+VÝŠKA!H132+MÍČEK!H132+KOULE!H132+OŠTĚP!H132+ČLUNEK!H132+LEHSED!H132+ODBÍJENÍ!H132+PLAVÁNÍ!H132+SHYBY!H132+ŠPLH!H132+ŠVIHADLO!H132+'Z MÍSTA'!H132+REPRE!E35 -> 5594.374329
B153: ='60'!B133 -> VYBÍRAL | C153: ='60'!C133 -> Radim | D153: ='60'!D133 -> 7.A | F153: ='60'!E133 -> 8.79 | G153: ='300'!E133 -> 00:00:52 | H153: ='1000'!E133 -> 00:03:51.220 | I153: =DÁLKA!E133 -> 445 | J153: =VÝŠKA!E133 -> 122 | K153: =MÍČEK!E133 -> 35.5 | L153: =KOULE!E133 -> 7.66 | M153: =OŠTĚP!E133 -> 0 | N153: =ČLUNEK!E133 -> 10.15 | O153: =LEHSED!E133 -> 63 | P153: =ODBÍJENÍ!E133 -> 451 | Q153: =PLAVÁNÍ!E133 -> 0 | R153: =SHYBY!E133 -> 6 | S153: =ŠPLH!E133 -> 5.17 | T153: =ŠVIHADLO!E133 -> 110 | U153: ='Z MÍSTA'!E133 -> 200 | V153: =REPRE!E36 -> 225 | W153: ='60'!H133+'300'!H133+'1000'!H133+DÁLKA!H133+VÝŠKA!H133+MÍČEK!H133+KOULE!H133+OŠTĚP!H133+ČLUNEK!H133+LEHSED!H133+ODBÍJENÍ!H133+PLAVÁNÍ!H133+SHYBY!H133+ŠPLH!H133+ŠVIHADLO!H133+'Z MÍSTA'!H133+REPRE!E36 -> 9838.103611
B154: ='60'!B134 -> BERISHA | C154: ='60'!C134 -> David | D154: ='60'!D134 -> 7.B | F154: ='60'!E134 -> 0 | G154: ='300'!E134 -> 00:00:00 | H154: ='1000'!E134 -> 00:00:00 | I154: =DÁLKA!E134 -> 0 | J154: =VÝŠKA!E134 -> 0 | K154: =MÍČEK!E134 -> 18 | L154: =KOULE!E134 -> 0 | M154: =OŠTĚP!E134 -> 0 | N154: =ČLUNEK!E134 -> 14.26 | O154: =LEHSED!E134 -> 0 | P154: =ODBÍJENÍ!E134 -> 0 | Q154: =PLAVÁNÍ!E134 -> 0 | R154: =SHYBY!E134 -> 0 | S154: =ŠPLH!E134 -> 0 | T154: =ŠVIHADLO!E134 -> 0 | U154: ='Z MÍSTA'!E134 -> 0 | V154: =REPRE!E37 -> 0 | W154: ='60'!H134+'300'!H134+'1000'!H134+DÁLKA!H134+VÝŠKA!H134+MÍČEK!H134+KOULE!H134+OŠTĚP!H134+ČLUNEK!H134+LEHSED!H134+ODBÍJENÍ!H134+PLAVÁNÍ!H134+SHYBY!H134+ŠPLH!H134+ŠVIHADLO!H134+'Z MÍSTA'!H134+REPRE!E37 -> 726.5539513
B155: ='60'!B135 -> EFENBERK | C155: ='60'!C135 -> Šimon | D155: ='60'!D135 -> 7.B | F155: ='60'!E135 -> 9.13 | G155: ='300'!E135 -> 00:00:55.480 | H155: ='1000'!E135 -> 00:04:58.020 | I155: =DÁLKA!E135 -> 340 | J155: =VÝŠKA!E135 -> 115 | K155: =MÍČEK!E135 -> 26.5 | L155: =KOULE!E135 -> 8.95 | M155: =OŠTĚP!E135 -> 0 | N155: =ČLUNEK!E135 -> 10.63 | O155: =LEHSED!E135 -> 46 | P155: =ODBÍJENÍ!E135 -> 6 | Q155: =PLAVÁNÍ!E135 -> 28.87 | R155: =SHYBY!E135 -> 2 | S155: =ŠPLH!E135 -> 8 | T155: =ŠVIHADLO!E135 -> 56 | U155: ='Z MÍSTA'!E135 -> 215 | V155: =REPRE!E38 -> 50 | W155: ='60'!H135+'300'!H135+'1000'!H135+DÁLKA!H135+VÝŠKA!H135+MÍČEK!H135+KOULE!H135+OŠTĚP!H135+ČLUNEK!H135+LEHSED!H135+ODBÍJENÍ!H135+PLAVÁNÍ!H135+SHYBY!H135+ŠPLH!H135+ŠVIHADLO!H135+'Z MÍSTA'!H135+REPRE!E38 -> 7885.582812
B156: ='60'!B136 -> FEJKL | C156: ='60'!C136 -> Antonín | D156: ='60'!D136 -> 7.B | F156: ='60'!E136 -> 8.36 | G156: ='300'!E136 -> 00:00:50.760 | H156: ='1000'!E136 -> 00:03:34.040 | I156: =DÁLKA!E136 -> 475 | J156: =VÝŠKA!E136 -> 147 | K156: =MÍČEK!E136 -> 49 | L156: =KOULE!E136 -> 9.37 | M156: =OŠTĚP!E136 -> 0 | N156: =ČLUNEK!E136 -> 10.26 | O156: =LEHSED!E136 -> 61 | P156: =ODBÍJENÍ!E136 -> 451 | Q156: =PLAVÁNÍ!E136 -> 27.87 | R156: =SHYBY!E136 -> 1 | S156: =ŠPLH!E136 -> 5.6 | T156: =ŠVIHADLO!E136 -> 143 | U156: ='Z MÍSTA'!E136 -> 231 | V156: =REPRE!E39 -> 225 | W156: ='60'!H136+'300'!H136+'1000'!H136+DÁLKA!H136+VÝŠKA!H136+MÍČEK!H136+KOULE!H136+OŠTĚP!H136+ČLUNEK!H136+LEHSED!H136+ODBÍJENÍ!H136+PLAVÁNÍ!H136+SHYBY!H136+ŠPLH!H136+ŠVIHADLO!H136+'Z MÍSTA'!H136+REPRE!E39 -> 10753.11931
B157: ='60'!B137 -> GOTTSTEIN | C157: ='60'!C137 -> Matouš | D157: ='60'!D137 -> 7.B | F157: ='60'!E137 -> 8.36 | G157: ='300'!E137 -> 00:00:45.860 | H157: ='1000'!E137 -> 00:03:10.250 | I157: =DÁLKA!E137 -> 465 | J157: =VÝŠKA!E137 -> 125 | K157: =MÍČEK!E137 -> 42 | L157: =KOULE!E137 -> 9.59 | M157: =OŠTĚP!E137 -> 0 | N157: =ČLUNEK!E137 -> 10.03 | O157: =LEHSED!E137 -> 57 | P157: =ODBÍJENÍ!E137 -> 440 | Q157: =PLAVÁNÍ!E137 -> 28.84 | R157: =SHYBY!E137 -> 6 | S157: =ŠPLH!E137 -> 4.7 | T157: =ŠVIHADLO!E137 -> 140 | U157: ='Z MÍSTA'!E137 -> 234 | V157: =REPRE!E40 -> 275 | W157: ='60'!H137+'300'!H137+'1000'!H137+DÁLKA!H137+VÝŠKA!H137+MÍČEK!H137+KOULE!H137+OŠTĚP!H137+ČLUNEK!H137+LEHSED!H137+ODBÍJENÍ!H137+PLAVÁNÍ!H137+SHYBY!H137+ŠPLH!H137+ŠVIHADLO!H137+'Z MÍSTA'!H137+REPRE!E40 -> 11202.55206
B158: ='60'!B138 -> MAŘAS | C158: ='60'!C138 -> Dominik | D158: ='60'!D138 -> 7.B | F158: ='60'!E138 -> 16.25 | G158: ='300'!E138 -> 00:01:26.820 | H158: ='1000'!E138 -> 00:04:22.160 | I158: =DÁLKA!E138 -> 310 | J158: =VÝŠKA!E138 -> 130 | K158: =MÍČEK!E138 -> 33 | L158: =KOULE!E138 -> 9.29 | M158: =OŠTĚP!E138 -> 0 | N158: =ČLUNEK!E138 -> 11.11 | O158: =LEHSED!E138 -> 19 | P158: =ODBÍJENÍ!E138 -> 0 | Q158: =PLAVÁNÍ!E138 -> 0 | R158: =SHYBY!E138 -> 1 | S158: =ŠPLH!E138 -> 0 | T158: =ŠVIHADLO!E138 -> 30 | U158: ='Z MÍSTA'!E138 -> 212 | V158: =REPRE!E41 -> 0 | W158: ='60'!H138+'300'!H138+'1000'!H138+DÁLKA!H138+VÝŠKA!H138+MÍČEK!H138+KOULE!H138+OŠTĚP!H138+ČLUNEK!H138+LEHSED!H138+ODBÍJENÍ!H138+PLAVÁNÍ!H138+SHYBY!H138+ŠPLH!H138+ŠVIHADLO!H138+'Z MÍSTA'!H138+REPRE!E41 -> 5919.17607
B159: ='60'!B139 -> POVAŽANEC | C159: ='60'!C139 -> Lukáš | D159: ='60'!D139 -> 7.B | F159: ='60'!E139 -> 10.31 | G159: ='300'!E139 -> 00:01:01.390 | H159: ='1000'!E139 -> 00:04:51.040 | I159: =DÁLKA!E139 -> 351 | J159: =VÝŠKA!E139 -> 0 | K159: =MÍČEK!E139 -> 45 | L159: =KOULE!E139 -> 10.08 | M159: =OŠTĚP!E139 -> 0 | N159: =ČLUNEK!E139 -> 12.16 | O159: =LEHSED!E139 -> 30 | P159: =ODBÍJENÍ!E139 -> 440 | Q159: =PLAVÁNÍ!E139 -> 0 | R159: =SHYBY!E139 -> 0 | S159: =ŠPLH!E139 -> 0 | T159: =ŠVIHADLO!E139 -> 57 | U159: ='Z MÍSTA'!E139 -> 174 | V159: =REPRE!E42 -> 275 | W159: ='60'!H139+'300'!H139+'1000'!H139+DÁLKA!H139+VÝŠKA!H139+MÍČEK!H139+KOULE!H139+OŠTĚP!H139+ČLUNEK!H139+LEHSED!H139+ODBÍJENÍ!H139+PLAVÁNÍ!H139+SHYBY!H139+ŠPLH!H139+ŠVIHADLO!H139+'Z MÍSTA'!H139+REPRE!E42 -> 6908.717909
B160: ='60'!B140 -> VANCL | C160: ='60'!C140 -> Jakub | D160: ='60'!D140 -> 7.B | F160: ='60'!E140 -> 10.85 | G160: ='300'!E140 -> 00:01:06.320 | H160: ='1000'!E140 -> 00:05:19.210 | I160: =DÁLKA!E140 -> 287 | J160: =VÝŠKA!E140 -> 95 | K160: =MÍČEK!E140 -> 22 | L160: =KOULE!E140 -> 6.65 | M160: =OŠTĚP!E140 -> 0 | N160: =ČLUNEK!E140 -> 12.84 | O160: =LEHSED!E140 -> 40 | P160: =ODBÍJENÍ!E140 -> 8 | Q160: =PLAVÁNÍ!E140 -> 0 | R160: =SHYBY!E140 -> 0 | S160: =ŠPLH!E140 -> 0 | T160: =ŠVIHADLO!E140 -> 50 | U160: ='Z MÍSTA'!E140 -> 155 | V160: =REPRE!E43 -> 75 | W160: ='60'!H140+'300'!H140+'1000'!H140+DÁLKA!H140+VÝŠKA!H140+MÍČEK!H140+KOULE!H140+OŠTĚP!H140+ČLUNEK!H140+LEHSED!H140+ODBÍJENÍ!H140+PLAVÁNÍ!H140+SHYBY!H140+ŠPLH!H140+ŠVIHADLO!H140+'Z MÍSTA'!H140+REPRE!E43 -> 5747.312365
B161: ='60'!B141 -> VANCL | C161: ='60'!C141 -> Miroslav | D161: ='60'!D141 -> 7.B | F161: ='60'!E141 -> 0 | G161: ='300'!E141 -> 00:01:36.810 | H161: ='1000'!E141 -> 00:07:16.920 | I161: =DÁLKA!E141 -> 352 | J161: =VÝŠKA!E141 -> 90 | K161: =MÍČEK!E141 -> 25 | L161: =KOULE!E141 -> 6.64 | M161: =OŠTĚP!E141 -> 0 | N161: =ČLUNEK!E141 -> 12.1 | O161: =LEHSED!E141 -> 0 | P161: =ODBÍJENÍ!E141 -> 7 | Q161: =PLAVÁNÍ!E141 -> 0 | R161: =SHYBY!E141 -> 0 | S161: =ŠPLH!E141 -> 0 | T161: =ŠVIHADLO!E141 -> 0 | U161: ='Z MÍSTA'!E141 -> 176 | V161: =REPRE!E44 -> 0 | W161: ='60'!H141+'300'!H141+'1000'!H141+DÁLKA!H141+VÝŠKA!H141+MÍČEK!H141+KOULE!H141+OŠTĚP!H141+ČLUNEK!H141+LEHSED!H141+ODBÍJENÍ!H141+PLAVÁNÍ!H141+SHYBY!H141+ŠPLH!H141+ŠVIHADLO!H141+'Z MÍSTA'!H141+REPRE!E44 -> 4015.062232
B162: ='60'!B142 -> VOTOČEK | C162: ='60'!C142 -> Michal | D162: ='60'!D142 -> 7.B | F162: ='60'!E142 -> 10.95 | G162: ='300'!E142 -> 00:01:09.910 | H162: ='1000'!E142 -> 00:04:51.610 | I162: =DÁLKA!E142 -> 362 | J162: =VÝŠKA!E142 -> 0 | K162: =MÍČEK!E142 -> 28 | L162: =KOULE!E142 -> 7.95 | M162: =OŠTĚP!E142 -> 0 | N162: =ČLUNEK!E142 -> 12.15 | O162: =LEHSED!E142 -> 48 | P162: =ODBÍJENÍ!E142 -> 6 | Q162: =PLAVÁNÍ!E142 -> 0 | R162: =SHYBY!E142 -> 0 | S162: =ŠPLH!E142 -> 0 | T162: =ŠVIHADLO!E142 -> 58 | U162: ='Z MÍSTA'!E142 -> 151 | V162: =REPRE!E45 -> 50 | W162: ='60'!H142+'300'!H142+'1000'!H142+DÁLKA!H142+VÝŠKA!H142+MÍČEK!H142+KOULE!H142+OŠTĚP!H142+ČLUNEK!H142+LEHSED!H142+ODBÍJENÍ!H142+PLAVÁNÍ!H142+SHYBY!H142+ŠPLH!H142+ŠVIHADLO!H142+'Z MÍSTA'!H142+REPRE!E45 -> 5635.53903
B163: ='60'!B143 -> DEMČUK | C163: ='60'!C143 -> Ilja | D163: ='60'!D143 -> 8.A | F163: ='60'!E143 -> 9.3 | G163: ='300'!E143 -> 00:00:53.410 | H163: ='1000'!E143 -> 00:04:33.520 | I163: =DÁLKA!E143 -> 373 | J163: =VÝŠKA!E143 -> 120 | K163: =MÍČEK!E143 -> 30.5 | L163: =KOULE!E143 -> 8.47 | M163: =OŠTĚP!E143 -> 0 | N163: =ČLUNEK!E143 -> 10.86 | O163: =LEHSED!E143 -> 35 | P163: =ODBÍJENÍ!E143 -> 12 | Q163: =PLAVÁNÍ!E143 -> 0 | R163: =SHYBY!E143 -> 1 | S163: =ŠPLH!E143 -> 0 | T163: =ŠVIHADLO!E143 -> 55 | U163: ='Z MÍSTA'!E143 -> 190 | V163: =REPRE!E46 -> 0 | W163: ='60'!H143+'300'!H143+'1000'!H143+DÁLKA!H143+VÝŠKA!H143+MÍČEK!H143+KOULE!H143+OŠTĚP!H143+ČLUNEK!H143+LEHSED!H143+ODBÍJENÍ!H143+PLAVÁNÍ!H143+SHYBY!H143+ŠPLH!H143+ŠVIHADLO!H143+'Z MÍSTA'!H143+REPRE!E46 -> 6914.628427
B164: ='60'!B144 -> FAISTAUER | C164: ='60'!C144 -> Kryštof | D164: ='60'!D144 -> 8.A | F164: ='60'!E144 -> 8.32 | G164: ='300'!E144 -> 00:00:51.860 | H164: ='1000'!E144 -> 00:03:54.210 | I164: =DÁLKA!E144 -> 454 | J164: =VÝŠKA!E144 -> 145 | K164: =MÍČEK!E144 -> 40 | L164: =KOULE!E144 -> 10.31 | M164: =OŠTĚP!E144 -> 0 | N164: =ČLUNEK!E144 -> 9.97 | O164: =LEHSED!E144 -> 44 | P164: =ODBÍJENÍ!E144 -> 164 | Q164: =PLAVÁNÍ!E144 -> 0 | R164: =SHYBY!E144 -> 5 | S164: =ŠPLH!E144 -> 4.63 | T164: =ŠVIHADLO!E144 -> 67 | U164: ='Z MÍSTA'!E144 -> 221 | V164: =REPRE!E47 -> 175 | W164: ='60'!H144+'300'!H144+'1000'!H144+DÁLKA!H144+VÝŠKA!H144+MÍČEK!H144+KOULE!H144+OŠTĚP!H144+ČLUNEK!H144+LEHSED!H144+ODBÍJENÍ!H144+PLAVÁNÍ!H144+SHYBY!H144+ŠPLH!H144+ŠVIHADLO!H144+'Z MÍSTA'!H144+REPRE!E47 -> 9625.656817
B165: ='60'!B145 -> FRK | C165: ='60'!C145 -> Matyáš | D165: ='60'!D145 -> 8.A | F165: ='60'!E145 -> 10.27 | G165: ='300'!E145 -> 00:01:02.730 | H165: ='1000'!E145 -> 00:00:00 | I165: =DÁLKA!E145 -> 359 | J165: =VÝŠKA!E145 -> 105 | K165: =MÍČEK!E145 -> 0 | L165: =KOULE!E145 -> 0 | M165: =OŠTĚP!E145 -> 0 | N165: =ČLUNEK!E145 -> 0 | O165: =LEHSED!E145 -> 38 | P165: =ODBÍJENÍ!E145 -> 0 | Q165: =PLAVÁNÍ!E145 -> 0 | R165: =SHYBY!E145 -> 3 | S165: =ŠPLH!E145 -> 8.21 | T165: =ŠVIHADLO!E145 -> 69 | U165: ='Z MÍSTA'!E145 -> 180 | V165: =REPRE!E48 -> 0 | W165: ='60'!H145+'300'!H145+'1000'!H145+DÁLKA!H145+VÝŠKA!H145+MÍČEK!H145+KOULE!H145+OŠTĚP!H145+ČLUNEK!H145+LEHSED!H145+ODBÍJENÍ!H145+PLAVÁNÍ!H145+SHYBY!H145+ŠPLH!H145+ŠVIHADLO!H145+'Z MÍSTA'!H145+REPRE!E48 -> 4658.218728
B166: ='60'!B146 -> HUBÁLOVSKÝ | C166: ='60'!C146 -> Marek | D166: ='60'!D146 -> 8.A | F166: ='60'!E146 -> 9.28 | G166: ='300'!E146 -> 00:00:56.800 | H166: ='1000'!E146 -> 00:04:19.620 | I166: =DÁLKA!E146 -> 419 | J166: =VÝŠKA!E146 -> 110 | K166: =MÍČEK!E146 -> 34.5 | L166: =KOULE!E146 -> 7.05 | M166: =OŠTĚP!E146 -> 0 | N166: =ČLUNEK!E146 -> 10.75 | O166: =LEHSED!E146 -> 47 | P166: =ODBÍJENÍ!E146 -> 23 | Q166: =PLAVÁNÍ!E146 -> 0 | R166: =SHYBY!E146 -> 2 | S166: =ŠPLH!E146 -> 16.18 | T166: =ŠVIHADLO!E146 -> 68 | U166: ='Z MÍSTA'!E146 -> 190 | V166: =REPRE!E49 -> 0 | W166: ='60'!H146+'300'!H146+'1000'!H146+DÁLKA!H146+VÝŠKA!H146+MÍČEK!H146+KOULE!H146+OŠTĚP!H146+ČLUNEK!H146+LEHSED!H146+ODBÍJENÍ!H146+PLAVÁNÍ!H146+SHYBY!H146+ŠPLH!H146+ŠVIHADLO!H146+'Z MÍSTA'!H146+REPRE!E49 -> 7516.76472
B167: ='60'!B147 -> MAŤÁTKO | C167: ='60'!C147 -> Jakub | D167: ='60'!D147 -> 8.A | F167: ='60'!E147 -> 11.85 | G167: ='300'!E147 -> 00:01:13.600 | H167: ='1000'!E147 -> 00:00:00 | I167: =DÁLKA!E147 -> 0 | J167: =VÝŠKA!E147 -> 100 | K167: =MÍČEK!E147 -> 27.5 | L167: =KOULE!E147 -> 0 | M167: =OŠTĚP!E147 -> 0 | N167: =ČLUNEK!E147 -> 12.46 | O167: =LEHSED!E147 -> 0 | P167: =ODBÍJENÍ!E147 -> 14 | Q167: =PLAVÁNÍ!E147 -> 0 | R167: =SHYBY!E147 -> 0 | S167: =ŠPLH!E147 -> 0 | T167: =ŠVIHADLO!E147 -> 0 | U167: ='Z MÍSTA'!E147 -> 0 | V167: =REPRE!E50 -> 0 | W167: ='60'!H147+'300'!H147+'1000'!H147+DÁLKA!H147+VÝŠKA!H147+MÍČEK!H147+KOULE!H147+OŠTĚP!H147+ČLUNEK!H147+LEHSED!H147+ODBÍJENÍ!H147+PLAVÁNÍ!H147+SHYBY!H147+ŠPLH!H147+ŠVIHADLO!H147+'Z MÍSTA'!H147+REPRE!E50 -> 2712.941524
B168: ='60'!B148 -> MERY | C168: ='60'!C148 -> Luboš | D168: ='60'!D148 -> 8.A | F168: ='60'!E148 -> 10.89 | G168: ='300'!E148 -> 00:01:06.630 | H168: ='1000'!E148 -> 00:05:31.270 | I168: =DÁLKA!E148 -> 323 | J168: =VÝŠKA!E148 -> 85 | K168: =MÍČEK!E148 -> 21.5 | L168: =KOULE!E148 -> 6.17 | M168: =OŠTĚP!E148 -> 0 | N168: =ČLUNEK!E148 -> 11.78 | O168: =LEHSED!E148 -> 32 | P168: =ODBÍJENÍ!E148 -> 12 | Q168: =PLAVÁNÍ!E148 -> 0 | R168: =SHYBY!E148 -> 0 | S168: =ŠPLH!E148 -> 0 | T168: =ŠVIHADLO!E148 -> 51 | U168: ='Z MÍSTA'!E148 -> 160 | V168: =REPRE!E51 -> 0 | W168: ='60'!H148+'300'!H148+'1000'!H148+DÁLKA!H148+VÝŠKA!H148+MÍČEK!H148+KOULE!H148+OŠTĚP!H148+ČLUNEK!H148+LEHSED!H148+ODBÍJENÍ!H148+PLAVÁNÍ!H148+SHYBY!H148+ŠPLH!H148+ŠVIHADLO!H148+'Z MÍSTA'!H148+REPRE!E51 -> 5657.960696
B169: ='60'!B149 -> NOVOTNÝ | C169: ='60'!C149 -> Matěj | D169: ='60'!D149 -> 8.A | F169: ='60'!E149 -> 11.28 | G169: ='300'!E149 -> 00:01:12.840 | H169: ='1000'!E149 -> 00:05:34.810 | I169: =DÁLKA!E149 -> 315 | J169: =VÝŠKA!E149 -> 95 | K169: =MÍČEK!E149 -> 40 | L169: =KOULE!E149 -> 8.31 | M169: =OŠTĚP!E149 -> 0 | N169: =ČLUNEK!E149 -> 11.44 | O169: =LEHSED!E149 -> 43 | P169: =ODBÍJENÍ!E149 -> 12 | Q169: =PLAVÁNÍ!E149 -> 0 | R169: =SHYBY!E149 -> 0 | S169: =ŠPLH!E149 -> 0 | T169: =ŠVIHADLO!E149 -> 53 | U169: ='Z MÍSTA'!E149 -> 150 | V169: =REPRE!E52 -> 0 | W169: ='60'!H149+'300'!H149+'1000'!H149+DÁLKA!H149+VÝŠKA!H149+MÍČEK!H149+KOULE!H149+OŠTĚP!H149+ČLUNEK!H149+LEHSED!H149+ODBÍJENÍ!H149+PLAVÁNÍ!H149+SHYBY!H149+ŠPLH!H149+ŠVIHADLO!H149+'Z MÍSTA'!H149+REPRE!E52 -> 6102.997643
B170: ='60'!B150 -> ŘEHOŘEK | C170: ='60'!C150 -> Vojtěch | D170: ='60'!D150 -> 8.A | F170: ='60'!E150 -> 9.56 | G170: ='300'!E150 -> 00:01:00.020 | H170: ='1000'!E150 -> 00:04:22.480 | I170: =DÁLKA!E150 -> 375 | J170: =VÝŠKA!E150 -> 0 | K170: =MÍČEK!E150 -> 53 | L170: =KOULE!E150 -> 10.1 | M170: =OŠTĚP!E150 -> 0 | N170: =ČLUNEK!E150 -> 0 | O170: =LEHSED!E150 -> 37 | P170: =ODBÍJENÍ!E150 -> 164 | Q170: =PLAVÁNÍ!E150 -> 0 | R170: =SHYBY!E150 -> 0 | S170: =ŠPLH!E150 -> 0 | T170: =ŠVIHADLO!E150 -> 136 | U170: ='Z MÍSTA'!E150 -> 189 | V170: =REPRE!E53 -> 175 | W170: ='60'!H150+'300'!H150+'1000'!H150+DÁLKA!H150+VÝŠKA!H150+MÍČEK!H150+KOULE!H150+OŠTĚP!H150+ČLUNEK!H150+LEHSED!H150+ODBÍJENÍ!H150+PLAVÁNÍ!H150+SHYBY!H150+ŠPLH!H150+ŠVIHADLO!H150+'Z MÍSTA'!H150+REPRE!E53 -> 6935.538
B171: ='60'!B151 -> ŠÍR | C171: ='60'!C151 -> Matyáš | D171: ='60'!D151 -> 8.A | F171: ='60'!E151 -> 10.8 | G171: ='300'!E151 -> 00:01:02.280 | H171: ='1000'!E151 -> 00:00:00 | I171: =DÁLKA!E151 -> 341 | J171: =VÝŠKA!E151 -> 105 | K171: =MÍČEK!E151 -> 29.5 | L171: =KOULE!E151 -> 5.53 | M171: =OŠTĚP!E151 -> 0 | N171: =ČLUNEK!E151 -> 12.1 | O171: =LEHSED!E151 -> 47 | P171: =ODBÍJENÍ!E151 -> 8 | Q171: =PLAVÁNÍ!E151 -> 0 | R171: =SHYBY!E151 -> 0 | S171: =ŠPLH!E151 -> 0 | T171: =ŠVIHADLO!E151 -> 100 | U171: ='Z MÍSTA'!E151 -> 151 | V171: =REPRE!E54 -> 50 | W171: ='60'!H151+'300'!H151+'1000'!H151+DÁLKA!H151+VÝŠKA!H151+MÍČEK!H151+KOULE!H151+OŠTĚP!H151+ČLUNEK!H151+LEHSED!H151+ODBÍJENÍ!H151+PLAVÁNÍ!H151+SHYBY!H151+ŠPLH!H151+ŠVIHADLO!H151+'Z MÍSTA'!H151+REPRE!E54 -> 5858.78456
B172: ='60'!B152 -> TORÁČ | C172: ='60'!C152 -> Tomáš | D172: ='60'!D152 -> 8.A | F172: ='60'!E152 -> 17.34 | G172: ='300'!E152 -> 00:02:07.730 | H172: ='1000'!E152 -> 00:00:00 | I172: =DÁLKA!E152 -> 0 | J172: =VÝŠKA!E152 -> 95 | K172: =MÍČEK!E152 -> 20 | L172: =KOULE!E152 -> 0 | M172: =OŠTĚP!E152 -> 0 | N172: =ČLUNEK!E152 -> 16.42 | O172: =LEHSED!E152 -> 41 | P172: =ODBÍJENÍ!E152 -> 14 | Q172: =PLAVÁNÍ!E152 -> 0 | R172: =SHYBY!E152 -> 0 | S172: =ŠPLH!E152 -> 0 | T172: =ŠVIHADLO!E152 -> 35 | U172: ='Z MÍSTA'!E152 -> 0 | V172: =REPRE!E55 -> 0 | W172: ='60'!H152+'300'!H152+'1000'!H152+DÁLKA!H152+VÝŠKA!H152+MÍČEK!H152+KOULE!H152+OŠTĚP!H152+ČLUNEK!H152+LEHSED!H152+ODBÍJENÍ!H152+PLAVÁNÍ!H152+SHYBY!H152+ŠPLH!H152+ŠVIHADLO!H152+'Z MÍSTA'!H152+REPRE!E55 -> 2556.83523
B173: ='60'!B153 -> VÁCLAVÍK | C173: ='60'!C153 -> Ondřej | D173: ='60'!D153 -> 8.A | F173: ='60'!E153 -> 8.84 | G173: ='300'!E153 -> 00:00:00 | H173: ='1000'!E153 -> 00:03:38.680 | I173: =DÁLKA!E153 -> 438 | J173: =VÝŠKA!E153 -> 120 | K173: =MÍČEK!E153 -> 49 | L173: =KOULE!E153 -> 7.53 | M173: =OŠTĚP!E153 -> 0 | N173: =ČLUNEK!E153 -> 10.12 | O173: =LEHSED!E153 -> 47 | P173: =ODBÍJENÍ!E153 -> 12 | Q173: =PLAVÁNÍ!E153 -> 0 | R173: =SHYBY!E153 -> 14 | S173: =ŠPLH!E153 -> 3.89 | T173: =ŠVIHADLO!E153 -> 65 | U173: ='Z MÍSTA'!E153 -> 212 | V173: =REPRE!E56 -> 0 | W173: ='60'!H153+'300'!H153+'1000'!H153+DÁLKA!H153+VÝŠKA!H153+MÍČEK!H153+KOULE!H153+OŠTĚP!H153+ČLUNEK!H153+LEHSED!H153+ODBÍJENÍ!H153+PLAVÁNÍ!H153+SHYBY!H153+ŠPLH!H153+ŠVIHADLO!H153+'Z MÍSTA'!H153+REPRE!E56 -> 8690.595164
B174: ='60'!B154 -> AUERSWALD | C174: ='60'!C154 -> Daniel | D174: ='60'!D154 -> 8.B | F174: ='60'!E154 -> 9.84 | G174: ='300'!E154 -> 00:01:00.420 | H174: ='1000'!E154 -> 00:00:00 | I174: =DÁLKA!E154 -> 388 | J174: =VÝŠKA!E154 -> 0 | K174: =MÍČEK!E154 -> 32 | L174: =KOULE!E154 -> 6.76 | M174: =OŠTĚP!E154 -> 0 | N174: =ČLUNEK!E154 -> 10.92 | O174: =LEHSED!E154 -> 42 | P174: =ODBÍJENÍ!E154 -> 52 | Q174: =PLAVÁNÍ!E154 -> 0 | R174: =SHYBY!E154 -> 5 | S174: =ŠPLH!E154 -> 5.82 | T174: =ŠVIHADLO!E154 -> 125 | U174: ='Z MÍSTA'!E154 -> 185 | V174: =REPRE!E57 -> 0 | W174: ='60'!H154+'300'!H154+'1000'!H154+DÁLKA!H154+VÝŠKA!H154+MÍČEK!H154+KOULE!H154+OŠTĚP!H154+ČLUNEK!H154+LEHSED!H154+ODBÍJENÍ!H154+PLAVÁNÍ!H154+SHYBY!H154+ŠPLH!H154+ŠVIHADLO!H154+'Z MÍSTA'!H154+REPRE!E57 -> 6997.783603
B175: ='60'!B155 -> BOUKAL | C175: ='60'!C155 -> Jakub | D175: ='60'!D155 -> 8.B | F175: ='60'!E155 -> 0 | G175: ='300'!E155 -> 00:00:00 | H175: ='1000'!E155 -> 00:00:00 | I175: =DÁLKA!E155 -> 0 | J175: =VÝŠKA!E155 -> 0 | K175: =MÍČEK!E155 -> 0 | L175: =KOULE!E155 -> 0 | M175: =OŠTĚP!E155 -> 0 | N175: =ČLUNEK!E155 -> 0 | O175: =LEHSED!E155 -> 0 | P175: =ODBÍJENÍ!E155 -> 0 | Q175: =PLAVÁNÍ!E155 -> 0 | R175: =SHYBY!E155 -> 0 | S175: =ŠPLH!E155 -> 0 | T175: =ŠVIHADLO!E155 -> 0 | U175: ='Z MÍSTA'!E155 -> 0 | V175: =REPRE!E58 -> 0 | W175: ='60'!H155+'300'!H155+'1000'!H155+DÁLKA!H155+VÝŠKA!H155+MÍČEK!H155+KOULE!H155+OŠTĚP!H155+ČLUNEK!H155+LEHSED!H155+ODBÍJENÍ!H155+PLAVÁNÍ!H155+SHYBY!H155+ŠPLH!H155+ŠVIHADLO!H155+'Z MÍSTA'!H155+REPRE!E58 -> 0
B176: ='60'!B156 -> BUDÍN | C176: ='60'!C156 -> Martin | D176: ='60'!D156 -> 8.B | F176: ='60'!E156 -> 9.36 | G176: ='300'!E156 -> 00:00:53.280 | H176: ='1000'!E156 -> 00:03:20.900 | I176: =DÁLKA!E156 -> 420 | J176: =VÝŠKA!E156 -> 115 | K176: =MÍČEK!E156 -> 42 | L176: =KOULE!E156 -> 7.26 | M176: =OŠTĚP!E156 -> 0 | N176: =ČLUNEK!E156 -> 10.11 | O176: =LEHSED!E156 -> 42 | P176: =ODBÍJENÍ!E156 -> 14 | Q176: =PLAVÁNÍ!E156 -> 0 | R176: =SHYBY!E156 -> 9 | S176: =ŠPLH!E156 -> 5.21 | T176: =ŠVIHADLO!E156 -> 130 | U176: ='Z MÍSTA'!E156 -> 200 | V176: =REPRE!E59 -> 0 | W176: ='60'!H156+'300'!H156+'1000'!H156+DÁLKA!H156+VÝŠKA!H156+MÍČEK!H156+KOULE!H156+OŠTĚP!H156+ČLUNEK!H156+LEHSED!H156+ODBÍJENÍ!H156+PLAVÁNÍ!H156+SHYBY!H156+ŠPLH!H156+ŠVIHADLO!H156+'Z MÍSTA'!H156+REPRE!E59 -> 9050.192139
B177: ='60'!B157 -> DVOŘÁK | C177: ='60'!C157 -> Dominik | D177: ='60'!D157 -> 8.B | F177: ='60'!E157 -> 9.64 | G177: ='300'!E157 -> 00:00:00 | H177: ='1000'!E157 -> 00:04:46.920 | I177: =DÁLKA!E157 -> 355 | J177: =VÝŠKA!E157 -> 105 | K177: =MÍČEK!E157 -> 34 | L177: =KOULE!E157 -> 8.88 | M177: =OŠTĚP!E157 -> 0 | N177: =ČLUNEK!E157 -> 11.15 | O177: =LEHSED!E157 -> 37 | P177: =ODBÍJENÍ!E157 -> 0 | Q177: =PLAVÁNÍ!E157 -> 0 | R177: =SHYBY!E157 -> 3 | S177: =ŠPLH!E157 -> 6.79 | T177: =ŠVIHADLO!E157 -> 74 | U177: ='Z MÍSTA'!E157 -> 190 | V177: =REPRE!E60 -> 0 | W177: ='60'!H157+'300'!H157+'1000'!H157+DÁLKA!H157+VÝŠKA!H157+MÍČEK!H157+KOULE!H157+OŠTĚP!H157+ČLUNEK!H157+LEHSED!H157+ODBÍJENÍ!H157+PLAVÁNÍ!H157+SHYBY!H157+ŠPLH!H157+ŠVIHADLO!H157+'Z MÍSTA'!H157+REPRE!E60 -> 6694.413473
B178: ='60'!B158 -> FIŠERA | C178: ='60'!C158 -> Vojtěch | D178: ='60'!D158 -> 8.B | F178: ='60'!E158 -> 10.4 | G178: ='300'!E158 -> 00:01:01.920 | H178: ='1000'!E158 -> 00:04:43.630 | I178: =DÁLKA!E158 -> 304 | J178: =VÝŠKA!E158 -> 105 | K178: =MÍČEK!E158 -> 22.5 | L178: =KOULE!E158 -> 7.12 | M178: =OŠTĚP!E158 -> 0 | N178: =ČLUNEK!E158 -> 11.25 | O178: =LEHSED!E158 -> 52 | P178: =ODBÍJENÍ!E158 -> 10 | Q178: =PLAVÁNÍ!E158 -> 0 | R178: =SHYBY!E158 -> 0 | S178: =ŠPLH!E158 -> 14.93 | T178: =ŠVIHADLO!E158 -> 61 | U178: ='Z MÍSTA'!E158 -> 155 | V178: =REPRE!E61 -> 0 | W178: ='60'!H158+'300'!H158+'1000'!H158+DÁLKA!H158+VÝŠKA!H158+MÍČEK!H158+KOULE!H158+OŠTĚP!H158+ČLUNEK!H158+LEHSED!H158+ODBÍJENÍ!H158+PLAVÁNÍ!H158+SHYBY!H158+ŠPLH!H158+ŠVIHADLO!H158+'Z MÍSTA'!H158+REPRE!E61 -> 6556.582761
B179: ='60'!B159 -> JINDŘIŠEK | C179: ='60'!C159 -> Vít | D179: ='60'!D159 -> 8.B | F179: ='60'!E159 -> 8.02 | G179: ='300'!E159 -> 00:00:42.340 | H179: ='1000'!E159 -> 00:03:07.980 | I179: =DÁLKA!E159 -> 493 | J179: =VÝŠKA!E159 -> 135 | K179: =MÍČEK!E159 -> 56 | L179: =KOULE!E159 -> 11.17 | M179: =OŠTĚP!E159 -> 0 | N179: =ČLUNEK!E159 -> 9.39 | O179: =LEHSED!E159 -> 49 | P179: =ODBÍJENÍ!E159 -> 54 | Q179: =PLAVÁNÍ!E159 -> 0 | R179: =SHYBY!E159 -> 20 | S179: =ŠPLH!E159 -> 3.36 | T179: =ŠVIHADLO!E159 -> 140 | U179: ='Z MÍSTA'!E159 -> 235 | V179: =REPRE!E62 -> 175 | W179: ='60'!H159+'300'!H159+'1000'!H159+DÁLKA!H159+VÝŠKA!H159+MÍČEK!H159+KOULE!H159+OŠTĚP!H159+ČLUNEK!H159+LEHSED!H159+ODBÍJENÍ!H159+PLAVÁNÍ!H159+SHYBY!H159+ŠPLH!H159+ŠVIHADLO!H159+'Z MÍSTA'!H159+REPRE!E62 -> 12027.41948
B180: ='60'!B160 -> JIROUŠ | C180: ='60'!C160 -> Matouš | D180: ='60'!D160 -> 8.B | F180: ='60'!E160 -> 9.55 | G180: ='300'!E160 -> 00:00:55.660 | H180: ='1000'!E160 -> 00:00:00 | I180: =DÁLKA!E160 -> 392 | J180: =VÝŠKA!E160 -> 0 | K180: =MÍČEK!E160 -> 41 | L180: =KOULE!E160 -> 7.85 | M180: =OŠTĚP!E160 -> 0 | N180: =ČLUNEK!E160 -> 10.64 | O180: =LEHSED!E160 -> 55 | P180: =ODBÍJENÍ!E160 -> 0 | Q180: =PLAVÁNÍ!E160 -> 25.48 | R180: =SHYBY!E160 -> 2 | S180: =ŠPLH!E160 -> 9.19 | T180: =ŠVIHADLO!E160 -> 133 | U180: ='Z MÍSTA'!E160 -> 210 | V180: =REPRE!E63 -> 50 | W180: ='60'!H160+'300'!H160+'1000'!H160+DÁLKA!H160+VÝŠKA!H160+MÍČEK!H160+KOULE!H160+OŠTĚP!H160+ČLUNEK!H160+LEHSED!H160+ODBÍJENÍ!H160+PLAVÁNÍ!H160+SHYBY!H160+ŠPLH!H160+ŠVIHADLO!H160+'Z MÍSTA'!H160+REPRE!E63 -> 7381.725156
B181: ='60'!B161 -> KERLE | C181: ='60'!C161 -> Marek | D181: ='60'!D161 -> 8.B | F181: ='60'!E161 -> 8.72 | G181: ='300'!E161 -> 00:00:44.950 | H181: ='1000'!E161 -> 00:03:36.620 | I181: =DÁLKA!E161 -> 472 | J181: =VÝŠKA!E161 -> 150 | K181: =MÍČEK!E161 -> 49 | L181: =KOULE!E161 -> 11.17 | M181: =OŠTĚP!E161 -> 0 | N181: =ČLUNEK!E161 -> 10.08 | O181: =LEHSED!E161 -> 52 | P181: =ODBÍJENÍ!E161 -> 32 | Q181: =PLAVÁNÍ!E161 -> 0 | R181: =SHYBY!E161 -> 14 | S181: =ŠPLH!E161 -> 3.79 | T181: =ŠVIHADLO!E161 -> 113 | U181: ='Z MÍSTA'!E161 -> 217 | V181: =REPRE!E64 -> 100 | W181: ='60'!H161+'300'!H161+'1000'!H161+DÁLKA!H161+VÝŠKA!H161+MÍČEK!H161+KOULE!H161+OŠTĚP!H161+ČLUNEK!H161+LEHSED!H161+ODBÍJENÍ!H161+PLAVÁNÍ!H161+SHYBY!H161+ŠPLH!H161+ŠVIHADLO!H161+'Z MÍSTA'!H161+REPRE!E64 -> 10679.19057
B182: ='60'!B162 -> LUKEŠ | C182: ='60'!C162 -> Jakub | D182: ='60'!D162 -> 8.B | F182: ='60'!E162 -> 8.5 | G182: ='300'!E162 -> 00:00:48.170 | H182: ='1000'!E162 -> 00:03:28.410 | I182: =DÁLKA!E162 -> 452 | J182: =VÝŠKA!E162 -> 150 | K182: =MÍČEK!E162 -> 30 | L182: =KOULE!E162 -> 7.25 | M182: =OŠTĚP!E162 -> 0 | N182: =ČLUNEK!E162 -> 9.8 | O182: =LEHSED!E162 -> 50 | P182: =ODBÍJENÍ!E162 -> 14 | Q182: =PLAVÁNÍ!E162 -> 0 | R182: =SHYBY!E162 -> 5 | S182: =ŠPLH!E162 -> 3.63 | T182: =ŠVIHADLO!E162 -> 115 | U182: ='Z MÍSTA'!E162 -> 242 | V182: =REPRE!E65 -> 100 | W182: ='60'!H162+'300'!H162+'1000'!H162+DÁLKA!H162+VÝŠKA!H162+MÍČEK!H162+KOULE!H162+OŠTĚP!H162+ČLUNEK!H162+LEHSED!H162+ODBÍJENÍ!H162+PLAVÁNÍ!H162+SHYBY!H162+ŠPLH!H162+ŠVIHADLO!H162+'Z MÍSTA'!H162+REPRE!E65 -> 9486.507418
B183: ='60'!B163 -> OTT | C183: ='60'!C163 -> Matyáš | D183: ='60'!D163 -> 8.B | F183: ='60'!E163 -> 8.44 | G183: ='300'!E163 -> 00:00:44.240 | H183: ='1000'!E163 -> 00:03:20.680 | I183: =DÁLKA!E163 -> 440 | J183: =VÝŠKA!E163 -> 125 | K183: =MÍČEK!E163 -> 41 | L183: =KOULE!E163 -> 8.95 | M183: =OŠTĚP!E163 -> 0 | N183: =ČLUNEK!E163 -> 9.73 | O183: =LEHSED!E163 -> 43 | P183: =ODBÍJENÍ!E163 -> 54 | Q183: =PLAVÁNÍ!E163 -> 17.16 | R183: =SHYBY!E163 -> 15 | S183: =ŠPLH!E163 -> 5.87 | T183: =ŠVIHADLO!E163 -> 146 | U183: ='Z MÍSTA'!E163 -> 215 | V183: =REPRE!E66 -> 100 | W183: ='60'!H163+'300'!H163+'1000'!H163+DÁLKA!H163+VÝŠKA!H163+MÍČEK!H163+KOULE!H163+OŠTĚP!H163+ČLUNEK!H163+LEHSED!H163+ODBÍJENÍ!H163+PLAVÁNÍ!H163+SHYBY!H163+ŠPLH!H163+ŠVIHADLO!H163+'Z MÍSTA'!H163+REPRE!E66 -> 11247.08553
B184: ='60'!B164 -> POKORNÝ | C184: ='60'!C164 -> Matyáš | D184: ='60'!D164 -> 8.B | F184: ='60'!E164 -> 8.42 | G184: ='300'!E164 -> 00:00:46.580 | H184: ='1000'!E164 -> 00:03:26.940 | I184: =DÁLKA!E164 -> 454 | J184: =VÝŠKA!E164 -> 153 | K184: =MÍČEK!E164 -> 55 | L184: =KOULE!E164 -> 8.31 | M184: =OŠTĚP!E164 -> 0 | N184: =ČLUNEK!E164 -> 9.46 | O184: =LEHSED!E164 -> 67 | P184: =ODBÍJENÍ!E164 -> 0 | Q184: =PLAVÁNÍ!E164 -> 0 | R184: =SHYBY!E164 -> 6 | S184: =ŠPLH!E164 -> 5.16 | T184: =ŠVIHADLO!E164 -> 146 | U184: ='Z MÍSTA'!E164 -> 230 | V184: =REPRE!E67 -> 150 | W184: ='60'!H164+'300'!H164+'1000'!H164+DÁLKA!H164+VÝŠKA!H164+MÍČEK!H164+KOULE!H164+OŠTĚP!H164+ČLUNEK!H164+LEHSED!H164+ODBÍJENÍ!H164+PLAVÁNÍ!H164+SHYBY!H164+ŠPLH!H164+ŠVIHADLO!H164+'Z MÍSTA'!H164+REPRE!E67 -> 10151.10872
B185: ='60'!B165 -> POLÁČEK | C185: ='60'!C165 -> Matyáš | D185: ='60'!D165 -> 8.B | F185: ='60'!E165 -> 10.16 | G185: ='300'!E165 -> 00:00:00 | H185: ='1000'!E165 -> 00:05:19.800 | I185: =DÁLKA!E165 -> 328 | J185: =VÝŠKA!E165 -> 100 | K185: =MÍČEK!E165 -> 42 | L185: =KOULE!E165 -> 8.69 | M185: =OŠTĚP!E165 -> 0 | N185: =ČLUNEK!E165 -> 0 | O185: =LEHSED!E165 -> 37 | P185: =ODBÍJENÍ!E165 -> 52 | Q185: =PLAVÁNÍ!E165 -> 0 | R185: =SHYBY!E165 -> 0 | S185: =ŠPLH!E165 -> 0 | T185: =ŠVIHADLO!E165 -> 95 | U185: ='Z MÍSTA'!E165 -> 161 | V185: =REPRE!E68 -> 125 | W185: ='60'!H165+'300'!H165+'1000'!H165+DÁLKA!H165+VÝŠKA!H165+MÍČEK!H165+KOULE!H165+OŠTĚP!H165+ČLUNEK!H165+LEHSED!H165+ODBÍJENÍ!H165+PLAVÁNÍ!H165+SHYBY!H165+ŠPLH!H165+ŠVIHADLO!H165+'Z MÍSTA'!H165+REPRE!E68 -> 5792.98209
B186: ='60'!B166 -> ULLMAN | C186: ='60'!C166 -> Šimon | D186: ='60'!D166 -> 8.B | F186: ='60'!E166 -> 8.97 | G186: ='300'!E166 -> 00:00:53.180 | H186: ='1000'!E166 -> 00:05:06.060 | I186: =DÁLKA!E166 -> 466 | J186: =VÝŠKA!E166 -> 130 | K186: =MÍČEK!E166 -> 26.5 | L186: =KOULE!E166 -> 6.48 | M186: =OŠTĚP!E166 -> 0 | N186: =ČLUNEK!E166 -> 10.57 | O186: =LEHSED!E166 -> 50 | P186: =ODBÍJENÍ!E166 -> 23 | Q186: =PLAVÁNÍ!E166 -> 0 | R186: =SHYBY!E166 -> 9 | S186: =ŠPLH!E166 -> 5.51 | T186: =ŠVIHADLO!E166 -> 58 | U186: ='Z MÍSTA'!E166 -> 245 | V186: =REPRE!E69 -> 0 | W186: ='60'!H166+'300'!H166+'1000'!H166+DÁLKA!H166+VÝŠKA!H166+MÍČEK!H166+KOULE!H166+OŠTĚP!H166+ČLUNEK!H166+LEHSED!H166+ODBÍJENÍ!H166+PLAVÁNÍ!H166+SHYBY!H166+ŠPLH!H166+ŠVIHADLO!H166+'Z MÍSTA'!H166+REPRE!E69 -> 8527.750438
B187: ='60'!B167 -> VALENTA | C187: ='60'!C167 -> Jakub | D187: ='60'!D167 -> 8.B | F187: ='60'!E167 -> 9.3 | G187: ='300'!E167 -> 00:00:50.250 | H187: ='1000'!E167 -> 00:03:51.850 | I187: =DÁLKA!E167 -> 407 | J187: =VÝŠKA!E167 -> 140 | K187: =MÍČEK!E167 -> 28 | L187: =KOULE!E167 -> 6.51 | M187: =OŠTĚP!E167 -> 0 | N187: =ČLUNEK!E167 -> 9.93 | O187: =LEHSED!E167 -> 69 | P187: =ODBÍJENÍ!E167 -> 0 | Q187: =PLAVÁNÍ!E167 -> 0 | R187: =SHYBY!E167 -> 6 | S187: =ŠPLH!E167 -> 5.35 | T187: =ŠVIHADLO!E167 -> 111 | U187: ='Z MÍSTA'!E167 -> 198 | V187: =REPRE!E70 -> 50 | W187: ='60'!H167+'300'!H167+'1000'!H167+DÁLKA!H167+VÝŠKA!H167+MÍČEK!H167+KOULE!H167+OŠTĚP!H167+ČLUNEK!H167+LEHSED!H167+ODBÍJENÍ!H167+PLAVÁNÍ!H167+SHYBY!H167+ŠPLH!H167+ŠVIHADLO!H167+'Z MÍSTA'!H167+REPRE!E70 -> 8842.009698
B188: ='60'!B168 -> VRBATA | C188: ='60'!C168 -> Dominik | D188: ='60'!D168 -> 8.B | F188: ='60'!E168 -> 9.35 | G188: ='300'!E168 -> 00:00:55.100 | H188: ='1000'!E168 -> 00:03:57.340 | I188: =DÁLKA!E168 -> 0 | J188: =VÝŠKA!E168 -> 125 | K188: =MÍČEK!E168 -> 40 | L188: =KOULE!E168 -> 7.05 | M188: =OŠTĚP!E168 -> 0 | N188: =ČLUNEK!E168 -> 10.19 | O188: =LEHSED!E168 -> 43 | P188: =ODBÍJENÍ!E168 -> 32 | Q188: =PLAVÁNÍ!E168 -> 18.32 | R188: =SHYBY!E168 -> 7 | S188: =ŠPLH!E168 -> 3.25 | T188: =ŠVIHADLO!E168 -> 96 | U188: ='Z MÍSTA'!E168 -> 192 | V188: =REPRE!E71 -> 0 | W188: ='60'!H168+'300'!H168+'1000'!H168+DÁLKA!H168+VÝŠKA!H168+MÍČEK!H168+KOULE!H168+OŠTĚP!H168+ČLUNEK!H168+LEHSED!H168+ODBÍJENÍ!H168+PLAVÁNÍ!H168+SHYBY!H168+ŠPLH!H168+ŠVIHADLO!H168+'Z MÍSTA'!H168+REPRE!E71 -> 8878.076606
B189: ='60'!B169 -> FEJKL | C189: ='60'!C169 -> Jan | D189: ='60'!D169 -> 9.A | F189: ='60'!E169 -> 8.21 | G189: ='300'!E169 -> 00:00:45.510 | H189: ='1000'!E169 -> 00:03:35.900 | I189: =DÁLKA!E169 -> 521 | J189: =VÝŠKA!E169 -> 157 | K189: =MÍČEK!E169 -> 61 | L189: =KOULE!E169 -> 9.99 | M189: =OŠTĚP!E169 -> 0 | N189: =ČLUNEK!E169 -> 9.53 | O189: =LEHSED!E169 -> 0 | P189: =ODBÍJENÍ!E169 -> 232 | Q189: =PLAVÁNÍ!E169 -> 0 | R189: =SHYBY!E169 -> 10 | S189: =ŠPLH!E169 -> 3.42 | T189: =ŠVIHADLO!E169 -> 0 | U189: ='Z MÍSTA'!E169 -> 251 | V189: =REPRE!E72 -> 225 | W189: ='60'!H169+'300'!H169+'1000'!H169+DÁLKA!H169+VÝŠKA!H169+MÍČEK!H169+KOULE!H169+OŠTĚP!H169+ČLUNEK!H169+LEHSED!H169+ODBÍJENÍ!H169+PLAVÁNÍ!H169+SHYBY!H169+ŠPLH!H169+ŠVIHADLO!H169+'Z MÍSTA'!H169+REPRE!E72 -> 10081.95869
B190: ='60'!B170 -> KOTYK | C190: ='60'!C170 -> Tadeáš | D190: ='60'!D170 -> 9.A | F190: ='60'!E170 -> 10.49 | G190: ='300'!E170 -> 00:00:00 | H190: ='1000'!E170 -> 00:00:00 | I190: =DÁLKA!E170 -> 374 | J190: =VÝŠKA!E170 -> 115 | K190: =MÍČEK!E170 -> 26.5 | L190: =KOULE!E170 -> 9.07 | M190: =OŠTĚP!E170 -> 0 | N190: =ČLUNEK!E170 -> 11.03 | O190: =LEHSED!E170 -> 0 | P190: =ODBÍJENÍ!E170 -> 11 | Q190: =PLAVÁNÍ!E170 -> 0 | R190: =SHYBY!E170 -> 1 | S190: =ŠPLH!E170 -> 0 | T190: =ŠVIHADLO!E170 -> 0 | U190: ='Z MÍSTA'!E170 -> 0 | V190: =REPRE!E73 -> 0 | W190: ='60'!H170+'300'!H170+'1000'!H170+DÁLKA!H170+VÝŠKA!H170+MÍČEK!H170+KOULE!H170+OŠTĚP!H170+ČLUNEK!H170+LEHSED!H170+ODBÍJENÍ!H170+PLAVÁNÍ!H170+SHYBY!H170+ŠPLH!H170+ŠVIHADLO!H170+'Z MÍSTA'!H170+REPRE!E73 -> 3947.448803
B191: ='60'!B171 -> KRAUSE | C191: ='60'!C171 -> Tadeáš | D191: ='60'!D171 -> 9.A | F191: ='60'!E171 -> 8.48 | G191: ='300'!E171 -> 00:00:00 | H191: ='1000'!E171 -> 00:03:12.100 | I191: =DÁLKA!E171 -> 468 | J191: =VÝŠKA!E171 -> 155 | K191: =MÍČEK!E171 -> 44.2 | L191: =KOULE!E171 -> 8.02 | M191: =OŠTĚP!E171 -> 0 | N191: =ČLUNEK!E171 -> 9.88 | O191: =LEHSED!E171 -> 0 | P191: =ODBÍJENÍ!E171 -> 65 | Q191: =PLAVÁNÍ!E171 -> 0 | R191: =SHYBY!E171 -> 12 | S191: =ŠPLH!E171 -> 4.95 | T191: =ŠVIHADLO!E171 -> 0 | U191: ='Z MÍSTA'!E171 -> 225 | V191: =REPRE!E74 -> 150 | W191: ='60'!H171+'300'!H171+'1000'!H171+DÁLKA!H171+VÝŠKA!H171+MÍČEK!H171+KOULE!H171+OŠTĚP!H171+ČLUNEK!H171+LEHSED!H171+ODBÍJENÍ!H171+PLAVÁNÍ!H171+SHYBY!H171+ŠPLH!H171+ŠVIHADLO!H171+'Z MÍSTA'!H171+REPRE!E74 -> 8417.121257
B192: ='60'!B172 -> LEŠÁK | C192: ='60'!C172 -> Martin | D192: ='60'!D172 -> 9.A | F192: ='60'!E172 -> 9.95 | G192: ='300'!E172 -> 00:00:00 | H192: ='1000'!E172 -> 00:00:00 | I192: =DÁLKA!E172 -> 374 | J192: =VÝŠKA!E172 -> 130 | K192: =MÍČEK!E172 -> 33.5 | L192: =KOULE!E172 -> 8.44 | M192: =OŠTĚP!E172 -> 0 | N192: =ČLUNEK!E172 -> 11.16 | O192: =LEHSED!E172 -> 0 | P192: =ODBÍJENÍ!E172 -> 16 | Q192: =PLAVÁNÍ!E172 -> 0 | R192: =SHYBY!E172 -> 0 | S192: =ŠPLH!E172 -> 0 | T192: =ŠVIHADLO!E172 -> 0 | U192: ='Z MÍSTA'!E172 -> 0 | V192: =REPRE!E75 -> 0 | W192: ='60'!H172+'300'!H172+'1000'!H172+DÁLKA!H172+VÝŠKA!H172+MÍČEK!H172+KOULE!H172+OŠTĚP!H172+ČLUNEK!H172+LEHSED!H172+ODBÍJENÍ!H172+PLAVÁNÍ!H172+SHYBY!H172+ŠPLH!H172+ŠVIHADLO!H172+'Z MÍSTA'!H172+REPRE!E75 -> 4070.19774
B193: ='60'!B173 -> NECHANICKÝ | C193: ='60'!C173 -> David | D193: ='60'!D173 -> 9.A | F193: ='60'!E173 -> 8.06 | G193: ='300'!E173 -> 00:00:49.380 | H193: ='1000'!E173 -> 00:03:43.500 | I193: =DÁLKA!E173 -> 542 | J193: =VÝŠKA!E173 -> 141 | K193: =MÍČEK!E173 -> 45 | L193: =KOULE!E173 -> 9.5 | M193: =OŠTĚP!E173 -> 0 | N193: =ČLUNEK!E173 -> 9.08 | O193: =LEHSED!E173 -> 52 | P193: =ODBÍJENÍ!E173 -> 232 | Q193: =PLAVÁNÍ!E173 -> 0 | R193: =SHYBY!E173 -> 6 | S193: =ŠPLH!E173 -> 0 | T193: =ŠVIHADLO!E173 -> 125 | U193: ='Z MÍSTA'!E173 -> 254 | V193: =REPRE!E76 -> 225 | W193: ='60'!H173+'300'!H173+'1000'!H173+DÁLKA!H173+VÝŠKA!H173+MÍČEK!H173+KOULE!H173+OŠTĚP!H173+ČLUNEK!H173+LEHSED!H173+ODBÍJENÍ!H173+PLAVÁNÍ!H173+SHYBY!H173+ŠPLH!H173+ŠVIHADLO!H173+'Z MÍSTA'!H173+REPRE!E76 -> 10145.45652
B194: ='60'!B174 -> ŘEHOŘEK | C194: ='60'!C174 -> Jan | D194: ='60'!D174 -> 9.A | F194: ='60'!E174 -> 0 | G194: ='300'!E174 -> 00:00:51.360 | H194: ='1000'!E174 -> 00:00:00 | I194: =DÁLKA!E174 -> 455 | J194: =VÝŠKA!E174 -> 146 | K194: =MÍČEK!E174 -> 51.5 | L194: =KOULE!E174 -> 8.08 | M194: =OŠTĚP!E174 -> 0 | N194: =ČLUNEK!E174 -> 0 | O194: =LEHSED!E174 -> 0 | P194: =ODBÍJENÍ!E174 -> 512 | Q194: =PLAVÁNÍ!E174 -> 0 | R194: =SHYBY!E174 -> 3 | S194: =ŠPLH!E174 -> 0 | T194: =ŠVIHADLO!E174 -> 0 | U194: ='Z MÍSTA'!E174 -> 235 | V194: =REPRE!E77 -> 125 | W194: ='60'!H174+'300'!H174+'1000'!H174+DÁLKA!H174+VÝŠKA!H174+MÍČEK!H174+KOULE!H174+OŠTĚP!H174+ČLUNEK!H174+LEHSED!H174+ODBÍJENÍ!H174+PLAVÁNÍ!H174+SHYBY!H174+ŠPLH!H174+ŠVIHADLO!H174+'Z MÍSTA'!H174+REPRE!E77 -> 5654.704266
B195: ='60'!B175 -> SOUKUP | C195: ='60'!C175 -> Ondřej | D195: ='60'!D175 -> 9.A | F195: ='60'!E175 -> 0 | G195: ='300'!E175 -> 00:00:00 | H195: ='1000'!E175 -> 00:00:00 | I195: =DÁLKA!E175 -> 422 | J195: =VÝŠKA!E175 -> 141 | K195: =MÍČEK!E175 -> 0 | L195: =KOULE!E175 -> 10.02 | M195: =OŠTĚP!E175 -> 0 | N195: =ČLUNEK!E175 -> 0 | O195: =LEHSED!E175 -> 0 | P195: =ODBÍJENÍ!E175 -> 0 | Q195: =PLAVÁNÍ!E175 -> 0 | R195: =SHYBY!E175 -> 0 | S195: =ŠPLH!E175 -> 0 | T195: =ŠVIHADLO!E175 -> 0 | U195: ='Z MÍSTA'!E175 -> 0 | V195: =REPRE!E78 -> 0 | W195: ='60'!H175+'300'!H175+'1000'!H175+DÁLKA!H175+VÝŠKA!H175+MÍČEK!H175+KOULE!H175+OŠTĚP!H175+ČLUNEK!H175+LEHSED!H175+ODBÍJENÍ!H175+PLAVÁNÍ!H175+SHYBY!H175+ŠPLH!H175+ŠVIHADLO!H175+'Z MÍSTA'!H175+REPRE!E78 -> 2248.407333
B196: ='60'!B176 -> SPANILÝ | C196: ='60'!C176 -> David | D196: ='60'!D176 -> 9.A | F196: ='60'!E176 -> 8.14 | G196: ='300'!E176 -> 00:00:45.800 | H196: ='1000'!E176 -> 00:03:28.500 | I196: =DÁLKA!E176 -> 495 | J196: =VÝŠKA!E176 -> 141 | K196: =MÍČEK!E176 -> 61 | L196: =KOULE!E176 -> 10.77 | M196: =OŠTĚP!E176 -> 0 | N196: =ČLUNEK!E176 -> 9.18 | O196: =LEHSED!E176 -> 49 | P196: =ODBÍJENÍ!E176 -> 512 | Q196: =PLAVÁNÍ!E176 -> 0 | R196: =SHYBY!E176 -> 7 | S196: =ŠPLH!E176 -> 4.04 | T196: =ŠVIHADLO!E176 -> 132 | U196: ='Z MÍSTA'!E176 -> 273 | V196: =REPRE!E79 -> 225 | W196: ='60'!H176+'300'!H176+'1000'!H176+DÁLKA!H176+VÝŠKA!H176+MÍČEK!H176+KOULE!H176+OŠTĚP!H176+ČLUNEK!H176+LEHSED!H176+ODBÍJENÍ!H176+PLAVÁNÍ!H176+SHYBY!H176+ŠPLH!H176+ŠVIHADLO!H176+'Z MÍSTA'!H176+REPRE!E79 -> 11367.40973
B197: ='60'!B177 -> ČERNÝ | C197: ='60'!C177 -> Michal | D197: ='60'!D177 -> 9.B | F197: ='60'!E177 -> 9.67 | G197: ='300'!E177 -> 00:00:59.010 | H197: ='1000'!E177 -> 00:00:00 | I197: =DÁLKA!E177 -> 387 | J197: =VÝŠKA!E177 -> 120 | K197: =MÍČEK!E177 -> 51 | L197: =KOULE!E177 -> 8.49 | M197: =OŠTĚP!E177 -> 0 | N197: =ČLUNEK!E177 -> 10.68 | O197: =LEHSED!E177 -> 0 | P197: =ODBÍJENÍ!E177 -> 36 | Q197: =PLAVÁNÍ!E177 -> 0 | R197: =SHYBY!E177 -> 1 | S197: =ŠPLH!E177 -> 0 | T197: =ŠVIHADLO!E177 -> 0 | U197: ='Z MÍSTA'!E177 -> 182 | V197: =REPRE!E80 -> 0 | W197: ='60'!H177+'300'!H177+'1000'!H177+DÁLKA!H177+VÝŠKA!H177+MÍČEK!H177+KOULE!H177+OŠTĚP!H177+ČLUNEK!H177+LEHSED!H177+ODBÍJENÍ!H177+PLAVÁNÍ!H177+SHYBY!H177+ŠPLH!H177+ŠVIHADLO!H177+'Z MÍSTA'!H177+REPRE!E80 -> 5847.866534
B198: ='60'!B178 -> DOLEJŠÍ | C198: ='60'!C178 -> David | D198: ='60'!D178 -> 9.B | F198: ='60'!E178 -> 9.17 | G198: ='300'!E178 -> 00:00:52.400 | H198: ='1000'!E178 -> 00:00:00 | I198: =DÁLKA!E178 -> 422 | J198: =VÝŠKA!E178 -> 125 | K198: =MÍČEK!E178 -> 24 | L198: =KOULE!E178 -> 7.81 | M198: =OŠTĚP!E178 -> 0 | N198: =ČLUNEK!E178 -> 10.16 | O198: =LEHSED!E178 -> 0 | P198: =ODBÍJENÍ!E178 -> 27 | Q198: =PLAVÁNÍ!E178 -> 0 | R198: =SHYBY!E178 -> 2 | S198: =ŠPLH!E178 -> 10.44 | T198: =ŠVIHADLO!E178 -> 0 | U198: ='Z MÍSTA'!E178 -> 203 | V198: =REPRE!E81 -> 0 | W198: ='60'!H178+'300'!H178+'1000'!H178+DÁLKA!H178+VÝŠKA!H178+MÍČEK!H178+KOULE!H178+OŠTĚP!H178+ČLUNEK!H178+LEHSED!H178+ODBÍJENÍ!H178+PLAVÁNÍ!H178+SHYBY!H178+ŠPLH!H178+ŠVIHADLO!H178+'Z MÍSTA'!H178+REPRE!E81 -> 6136.847369
B199: ='60'!B179 -> POVAŽANEC | C199: ='60'!C179 -> Martin | D199: ='60'!D179 -> 9.B | F199: ='60'!E179 -> 8.65 | G199: ='300'!E179 -> 00:00:00 | H199: ='1000'!E179 -> 00:04:29.200 | I199: =DÁLKA!E179 -> 475 | J199: =VÝŠKA!E179 -> 140 | K199: =MÍČEK!E179 -> 61 | L199: =KOULE!E179 -> 11.02 | M199: =OŠTĚP!E179 -> 0 | N199: =ČLUNEK!E179 -> 10.21 | O199: =LEHSED!E179 -> 0 | P199: =ODBÍJENÍ!E179 -> 96 | Q199: =PLAVÁNÍ!E179 -> 0 | R199: =SHYBY!E179 -> 2 | S199: =ŠPLH!E179 -> 5.9 | T199: =ŠVIHADLO!E179 -> 0 | U199: ='Z MÍSTA'!E179 -> 205 | V199: =REPRE!E82 -> 100 | W199: ='60'!H179+'300'!H179+'1000'!H179+DÁLKA!H179+VÝŠKA!H179+MÍČEK!H179+KOULE!H179+OŠTĚP!H179+ČLUNEK!H179+LEHSED!H179+ODBÍJENÍ!H179+PLAVÁNÍ!H179+SHYBY!H179+ŠPLH!H179+ŠVIHADLO!H179+'Z MÍSTA'!H179+REPRE!E82 -> 7590.334004
B200: ='60'!B180 -> RICHTER | C200: ='60'!C180 -> Jakub | D200: ='60'!D180 -> 9.B | F200: ='60'!E180 -> 9.91 | G200: ='300'!E180 -> 00:00:57.870 | H200: ='1000'!E180 -> 00:00:00 | I200: =DÁLKA!E180 -> 382 | J200: =VÝŠKA!E180 -> 115 | K200: =MÍČEK!E180 -> 30 | L200: =KOULE!E180 -> 7.66 | M200: =OŠTĚP!E180 -> 0 | N200: =ČLUNEK!E180 -> 10.95 | O200: =LEHSED!E180 -> 0 | P200: =ODBÍJENÍ!E180 -> 16 | Q200: =PLAVÁNÍ!E180 -> 0 | R200: =SHYBY!E180 -> 0 | S200: =ŠPLH!E180 -> 0 | T200: =ŠVIHADLO!E180 -> 0 | U200: ='Z MÍSTA'!E180 -> 0 | V200: =REPRE!E83 -> 0 | W200: ='60'!H180+'300'!H180+'1000'!H180+DÁLKA!H180+VÝŠKA!H180+MÍČEK!H180+KOULE!H180+OŠTĚP!H180+ČLUNEK!H180+LEHSED!H180+ODBÍJENÍ!H180+PLAVÁNÍ!H180+SHYBY!H180+ŠPLH!H180+ŠVIHADLO!H180+'Z MÍSTA'!H180+REPRE!E83 -> 4551.989763
B201: ='60'!B181 -> ROZUMEK | C201: ='60'!C181 -> Adam | D201: ='60'!D181 -> 9.B | F201: ='60'!E181 -> 9.22 | G201: ='300'!E181 -> 00:00:56.020 | H201: ='1000'!E181 -> 00:00:00 | I201: =DÁLKA!E181 -> 385 | J201: =VÝŠKA!E181 -> 110 | K201: =MÍČEK!E181 -> 50 | L201: =KOULE!E181 -> 11.29 | M201: =OŠTĚP!E181 -> 0 | N201: =ČLUNEK!E181 -> 10.09 | O201: =LEHSED!E181 -> 0 | P201: =ODBÍJENÍ!E181 -> 86 | Q201: =PLAVÁNÍ!E181 -> 0 | R201: =SHYBY!E181 -> 2 | S201: =ŠPLH!E181 -> 8.7 | T201: =ŠVIHADLO!E181 -> 0 | U201: ='Z MÍSTA'!E181 -> 190 | V201: =REPRE!E84 -> 0 | W201: ='60'!H181+'300'!H181+'1000'!H181+DÁLKA!H181+VÝŠKA!H181+MÍČEK!H181+KOULE!H181+OŠTĚP!H181+ČLUNEK!H181+LEHSED!H181+ODBÍJENÍ!H181+PLAVÁNÍ!H181+SHYBY!H181+ŠPLH!H181+ŠVIHADLO!H181+'Z MÍSTA'!H181+REPRE!E84 -> 6868.417202
B202: ='60'!B182 -> VALENTA | C202: ='60'!C182 -> František | D202: ='60'!D182 -> 9.B | F202: ='60'!E182 -> 9.51 | G202: ='300'!E182 -> 00:00:56.020 | H202: ='1000'!E182 -> 00:00:00 | I202: =DÁLKA!E182 -> 322 | J202: =VÝŠKA!E182 -> 115 | K202: =MÍČEK!E182 -> 29 | L202: =KOULE!E182 -> 8.07 | M202: =OŠTĚP!E182 -> 0 | N202: =ČLUNEK!E182 -> 10.38 | O202: =LEHSED!E182 -> 0 | P202: =ODBÍJENÍ!E182 -> 61 | Q202: =PLAVÁNÍ!E182 -> 0 | R202: =SHYBY!E182 -> 1 | S202: =ŠPLH!E182 -> 0 | T202: =ŠVIHADLO!E182 -> 0 | U202: ='Z MÍSTA'!E182 -> 0 | V202: =REPRE!E85 -> 0 | W202: ='60'!H182+'300'!H182+'1000'!H182+DÁLKA!H182+VÝŠKA!H182+MÍČEK!H182+KOULE!H182+OŠTĚP!H182+ČLUNEK!H182+LEHSED!H182+ODBÍJENÍ!H182+PLAVÁNÍ!H182+SHYBY!H182+ŠPLH!H182+ŠVIHADLO!H182+'Z MÍSTA'!H182+REPRE!E85 -> 5023.257011
B203: ='60'!B183 -> ZAPLATÍLEK | C203: ='60'!C183 -> Josef | D203: ='60'!D183 -> 9.B | F203: ='60'!E183 -> 8.94 | G203: ='300'!E183 -> 00:00:52.400 | H203: ='1000'!E183 -> 00:00:00 | I203: =DÁLKA!E183 -> 413 | J203: =VÝŠKA!E183 -> 115 | K203: =MÍČEK!E183 -> 49 | L203: =KOULE!E183 -> 8.92 | M203: =OŠTĚP!E183 -> 0 | N203: =ČLUNEK!E183 -> 9.99 | O203: =LEHSED!E183 -> 0 | P203: =ODBÍJENÍ!E183 -> 86 | Q203: =PLAVÁNÍ!E183 -> 0 | R203: =SHYBY!E183 -> 3 | S203: =ŠPLH!E183 -> 0 | T203: =ŠVIHADLO!E183 -> 0 | U203: ='Z MÍSTA'!E183 -> 226 | V203: =REPRE!E86 -> 50 | W203: ='60'!H183+'300'!H183+'1000'!H183+DÁLKA!H183+VÝŠKA!H183+MÍČEK!H183+KOULE!H183+OŠTĚP!H183+ČLUNEK!H183+LEHSED!H183+ODBÍJENÍ!H183+PLAVÁNÍ!H183+SHYBY!H183+ŠPLH!H183+ŠVIHADLO!H183+'Z MÍSTA'!H183+REPRE!E86 -> 6818.38855

Sheet 60
C1: VÝKONY 2022 - 2023 | G1: 60 M | H1: CHLAPCI 6. - 9. ROČ.
B2: stav k | C2: =TODAY() -> 2023-06-26
H3: body | J3: 21 - 22 | K3: 20 - 21 | L3: 19 - 20
A4: 1. | B4: =B101 -> HONCŮ | C4: =C101 -> Filip | D4: 6.A | E4: 13.4 | G4: Jilemnice 25.05.23 | H4: 577.8095649 | J4: 0 | K4: 0 | L4: 0
A5: 2. | B5: =B102 -> JÍLEK | C5: Lukáš | D5: 6.A | E5: 0 | G5: =G102 -> 0 | H5: 0 | J5: =J102 -> 0 | K5: 0 | L5: 0
A6: 3. | B6: =B103 -> KUČERA | C6: Tadeáš | D6: 6.A | E6: 11.9 | G6: =G103 -> Jilemnice 25.05.23 | H6: 636.0208546 | J6: =J103 -> 0 | K6: 0 | L6: 0
A7: 4. | B7: =B104 -> ROZUMEK | C7: Lukáš | D7: 6.A | E7: 13 | G7: =G104 -> Jilemnice 25.05.23 | H7: 592.0190899 | J7: =J104 -> 0 | K7: 0 | L7: 0
A8: 5. | B8: =B105 -> ŘEHOŘEK | C8: Marek | D8: 6.A | E8: 12.1 | G8: =G105 -> Jilemnice 25.05.23 | H8: 627.4254685 | J8: =J105 -> 0 | K8: 0 | L8: 0
A9: 6. | B9: =B106 -> ŘÍHA | C9: Tadeáš | D9: 6.A | E9: 11.6 | G9: =G106 -> Jilemnice 25.05.23 | H9: 649.4696698 | J9: =J106 -> 0 | K9: 0 | L9: 0
A10: 7. | B10: =B107 -> SKRBEK | C10: Richard | D10: 6.A | E10: 11.6 | G10: =G107 -> Jilemnice 25.05.23 | H10: 649.4696698 | J10: =J107 -> 0 | K10: 0 | L10: 0
A11: 8. | B11: =B108 -> ŠIMEK | C11: Erik | D11: 6.A | E11: 10.5 | G11: =G108 -> Jilemnice 25.05.23 | H11: 705.3569685 | J11: =J108 -> 0 | K11: 0 | L11: 0
A12: 9. | B12: =B109 -> ŠÍR | C12: Jan | D12: 6.A | E12: 11 | G12: =G109 -> Jilemnice 25.05.23 | H12: 678.5680154 | J12: =J109 -> 0 | K12: 0 | L12: 0
A13: 10. | B13: =B110 -> ŠÍR | C13: Stanislav | D13: 6.A | E13: 11.5 | G13: =G110 -> Jilemnice 25.05.23 | H13: 654.1085365 | J13: =J110 -> 0 | K13: 0 | L13: 0
A14: 11. | B14: =B111 -> ŠPINAR | C14: František | D14: 6.A | E14: 13 | G14: =G111 -> Jilemnice 25.05.23 | H14: 592.0190899 | J14: =J111 -> 0 | K14: 0 | L14: 0
A15: 12. | B15: =B112 -> TOTH | C15: Mikuláš | D15: 6.A | E15: 12.4 | G15: =G112 -> Jilemnice 25.05.23 | H15: 615.0522717 | J15: =J112 -> 0 | K15: 0 | L15: 0
A16: 13. | B16: =B113 -> WEISZLEMLEIN | C16: Adam | D16: 6.A | E16: 12 | G16: =G113 -> Jilemnice 25.05.23 | H16: 631.6873474 | J16: =J113 -> 0 | K16: 0 | L16: 0
A17: 14. | B17: =B114 -> ČERNÝ | C17: Filip | D17: 6.B | E17: 0 | G17: =G114 -> 0 | H17: 0 | J17: =J114 -> 0 | K17: 0 | L17: 0
A18: 15. | B18: =B115 -> GINGAL | C18: Patrik | D18: 6.B | E18: 10.8 | G18: =G115 -> Jilemnice 25.05.23 | H18: 688.9859416 | J18: =J115 -> 0 | K18: 0 | L18: 0
A19: 16. | B19: =B116 -> HLAVÁČEK | C19: Josef | D19: 6.B | E19: 9.42 | G19: =G116 -> Turnov 16.05.23 | H19: 772.9265572 | J19: =J116 -> 0 | K19: 0 | L19: 0
A20: 17. | B20: =B117 -> KHUDA | C20: Ivan | D20: 6.B | E20: 15.2 | G20: =G117 -> Jilemnice 25.05.23 | H20: 523.1215901 | J20: =J117 -> 0 | K20: 0 | L20: 0
A21: 18. | B21: =B118 -> KRESAN | C21: Matěj | D21: 6.B | E21: 14.9 | G21: =G118 -> Jilemnice 25.05.23 | H21: 531.3186691 | J21: =J118 -> 0 | K21: 0 | L21: 0
A22: 19. | B22: =B119 -> RYCHTR | C22: Vojtěch | D22: 6.B | E22: 12.9 | G22: =G119 -> Jilemnice 25.05.23 | H22: 595.7091604 | J22: =J119 -> 0 | K22: 0 | L22: 0
A23: 20. | B23: =B120 -> ŠTAJER | C23: David | D23: 6.B | E23: 11 | G23: =G120 -> Jilemnice 25.05.23 | H23: 678.5680154 | J23: =J120 -> 0 | K23: 0 | L23: 0
A24: 21. | B24: =B121 -> TKACHUK | C24: Dzvenyslav | D24: 6.B | E24: 0 | G24: =G121 -> Jilemnice 25.05.23 | H24: 0 | J24: =J121 -> 0 | K24: 0 | L24: 0
A25: 22. | B25: =B122 -> VELIKOVSKÝ | C25: Dominik | D25: 6.B | E25: 13 | G25: =G122 -> Jilemnice 25.05.23 | H25: 592.0190899 | J25: =J122 -> 0 | K25: 0 | L25: 0
A26: 23. | B26: =B123 -> EXNER | C26: Tomáš | D26: 7.A | E26: 9.66 | G26: =G123 -> Jilemnice 10.10.22 | H26: 756.6054005 | J26: =J123 -> 9.1 | K26: 0 | L26: 0
A27: 24. | B27: =B124 -> JANATA | C27: Denis | D27: 7.A | E27: 10.62 | G27: =G124 -> Jilemnice 10.10.22 | H27: 698.6975677 | J27: =J124 -> 9.92 | K27: 0 | L27: 0
A28: 25. | B28: =B125 -> JINDŘIŠEK | C28: Alex Jiří | D28: 7.A | E28: 9.25 | G28: =G125 -> Jilemnice 10.10.22 | H28: 784.9998021 | J28: =J125 -> 9.67 | K28: 0 | L28: 0
A29: 26. | B29: =B126 -> KAZLEPKA | C29: Miroslav | D29: 7.A | E29: 0 | G29: =G126 -> 0 | H29: 0 | J29: =J126 -> 0 | K29: 0 | L29: 0
A30: 27. | B30: =B127 -> MARŠÁLEK | C30: Ondřej | D30: 7.A | E30: 10.24 | G30: =G127 -> Jilemnice 10.10.22 | H30: 720.3211103 | J30: =J127 -> 9.99 | K30: 0 | L30: 0
A31: 28. | B31: =B128 -> MLATEČEK | C31: Patrik | D31: 7.A | E31: 10.51 | G31: =G128 -> Jilemnice 10.10.22 | H31: 704.7962102 | J31: =J128 -> 11.26 | K31: 0 | L31: 0
A32: 29. | B32: =B129 -> SCHOLZ | C32: Matyáš | D32: 7.A | E32: 10.46 | G32: =G129 -> Turnov 11.05.23 | H32: 707.6107236 | J32: =J129 -> 10.46 | K32: 0 | L32: 0
A33: 30. | B33: =B130 -> TOMÁŠ | C33: Jakub | D33: 7.A | E33: 10.15 | G33: =G130 -> Jilemnice 10.10.22 | H33: 725.6796226 | J33: =J130 -> 10.2 | K33: 0 | L33: 0
A34: 31. | B34: =B131 -> VÁCLAVÍK | C34: Jan | D34: 7.A | E34: 10.02 | G34: =G131 -> Jilemnice 10.10.22 | H34: 733.5896376 | J34: =J131 -> 10.12 | K34: 0 | L34: 0
A35: 32. | B35: =B132 -> VEČEŘA | C35: David | D35: 7.A | E35: 10.9 | G35: =G132 -> Jilemnice 10.10.22 | H35: 683.7291898 | J35: =J132 -> 12.1 | K35: 0 | L35: 0
A36: 33. | B36: =B133 -> VYBÍRAL | C36: Radim | D36: 7.A | E36: 8.79 | G36: =G133 -> Jilemnice 19.06.23 | H36: 820.0100306 | J36: =J133 -> 8.95 | K36: 0 | L36: 0
A37: 34. | B37: =B134 -> BERISHA | C37: David | D37: 7.B | E37: 0 | G37: =G134 -> 0 | H37: 0 | J37: =J134 -> 13.54 | K37: 0 | L37: 0
A38: 35. | B38: =B135 -> EFENBERK | C38: Šimon | D38: 7.B | E38: 9.13 | G38: =G135 -> Jilemnice 19.06.23 | H38: 793.7927896 | J38: =J135 -> 9.82 | K38: 0 | L38: 0
A39: 36. | B39: =B136 -> FEJKL | C39: Antonín | D39: 7.B | E39: 8.36 | G39: =G136 -> Jilemnice 19.06.23 | H39: 856.2210729 | J39: =J136 -> 9.48 | K39: 0 | L39: 0
A40: 37. | B40: =B137 -> GOTTSTEIN | C40: Matouš | D40: 7.B | E40: 8.36 | G40: =G137 -> Jilemnice 19.06.23 | H40: 856.2210729 | J40: =J137 -> 8.8 | K40: 0 | L40: 0
A41: 38. | B41: =B138 -> MAŘAS | C41: Dominik | D41: 7.B | E41: 16.25 | G41: =G138 -> Jilemnice 10.10.22 | H41: 496.815272 | J41: =J138 -> 0 | K41: 11.64 | L41: 0
A42: 39. | B42: =B139 -> POVAŽANEC | C42: Lukáš | D42: 7.B | E42: 10.31 | G42: =G139 -> Jilemnice 12.06.23 | H42: 716.2180571 | J42: =J139 -> 10.1 | K42: 0 | L42: 0
A43: 40. | B43: =B140 -> VANCL | C43: Jakub | D43: 7.B | E43: 10.85 | G43: =G140 -> Jilemnice 10.10.22 | H43: 686.3454534 | J43: =J140 -> 11.09 | K43: 0 | L43: 0
A44: 41. | B44: =B141 -> VANCL | C44: Miroslav | D44: 7.B | E44: 0 | G44: =G141 -> 0 | H44: 0 | J44: =J141 -> 11.3 | K44: 0 | L44: 0
A45: 42. | B45: =B142 -> VOTOČEK | C45: Michal | D45: 7.B | E45: 10.95 | G45: =G142 -> Jilemnice 10.10.22 | H45: 681.1368191 | J45: =J142 -> 10.78 | K45: 0 | L45: 0
A46: 43. | B46: =B143 -> DEMČUK | C46: Ilja | D46: 8.A | E46: 9.3 | G46: =G143 -> Jilemnice 10.10.22 | H46: 781.4030289 | J46: =J143 -> 9.66 | K46: 10.85 | L46: 0
A47: 44. | B47: =B144 -> FAISTAUER | C47: Kryštof | D47: 8.A | E47: 8.32 | G47: =G144 -> Jilemnice 10.10.22 | H47: 859.779828 | J47: =J144 -> 8.89 | K47: 9.5 | L47: 0
A48: 45. | B48: =B145 -> FRK | C48: Matyáš | D48: 8.A | E48: 10.27 | G48: =G145 -> Jilemnice 10.10.22 | H48: 718.55581 | J48: =J145 -> 12.22 | K48: 12.72 | L48: 0
A49: 46. | B49: =B146 -> HUBÁLOVSKÝ | C49: Marek | D49: 8.A | E49: 9.28 | G49: =G146 -> Jilemnice 10.10.22 | H49: 782.8370872 | J49: =J146 -> 10.84 | K49: 11.43 | L49: 0
A50: 47. | B50: =B147 -> MAŤÁTKO | C50: Jakub | D50: 8.A | E50: 11.85 | G50: =G147 -> Jilemnice 16.09.22 | H50: 638.2150354 | J50: =J147 -> 0 | K50: 13.19 | L50: 0
A51: 48. | B51: =B148 -> MERY | C51: Luboš | D51: 8.A | E51: 10.89 | G51: =G148 -> Jilemnice 10.10.22 | H51: 684.2505206 | J51: =J148 -> 10.94 | K51: 11.43 | L51: 0
A52: 49. | B52: =B149 -> NOVOTNÝ | C52: Matěj | D52: 8.A | E52: 11.28 | G52: =G149 -> Jilemnice 10.10.22 | H52: 664.6035611 | J52: =J149 -> 10.98 | K52: 10.96 | L52: 0
A53: 50. | B53: =B150 -> ŘEHOŘEK | C53: Vojtěch | D53: 8.A | E53: 9.56 | G53: =G150 -> Jilemnice 10.10.22 | H53: 763.3062938 | J53: =J150 -> 10.43 | K53: 11.92 | L53: 0
A54: 51. | B54: =B151 -> ŠÍR | C54: Matyáš | D54: 8.A | E54: 10.8 | G54: =G151 -> Jilemnice 10.10.22 | H54: 688.9859416 | J54: =J151 -> 10.82 | K54: 11.48 | L54: 0
A55: 52. | B55: =B152 -> TORÁČ | C55: Tomáš | D55: 8.A | E55: 17.34 | G55: =G152 -> Jilemnice 16.09.22 | H55: 472.877057 | J55: =J152 -> 0 | K55: 22.77 | L55: 0
A56: 53. | B56: =B153 -> VÁCLAVÍK | C56: Ondřej | D56: 8.A | E56: 8.84 | G56: =G153 -> Jilemnice 10.10.22 | H56: 816.0280734 | J56: =J153 -> 9.14 | K56: 10.94 | L56: 0
A57: 54. | B57: =B154 -> AUERSWALD | C57: Daniel | D57: 8.B | E57: 9.84 | G57: =G154 -> Jilemnice 12.09.22 | H57: 744.8870091 | J57: =J154 -> 9.61 | K57: 9.89 | L57: 0
A58: 55. | B58: =B155 -> BOUKAL | C58: Jakub | D58: 8.B | E58: 0 | G58: =G155 -> 0 | H58: 0 | J58: =J155 -> 0 | K58: 12.56 | L58: 0
A59: 56. | B59: =B156 -> BUDÍN | C59: Martin | D59: 8.B | E59: 9.36 | G59: =G156 -> Jilemnice 12.09.22 | H59: 777.1376249 | J59: =J156 -> 9.67 | K59: 10.46 | L59: 0
A60: 57. | B60: =B157 -> DVOŘÁK | C60: Dominik | D60: 8.B | E60: 9.64 | G60: =G157 -> Jilemnice 12.09.22 | H60: 757.9344574 | J60: =J157 -> 11.05 | K60: 11.56 | L60: 0
A61: 58. | B61: =B158 -> FIŠERA | C61: Vojtěch | D61: 8.B | E61: 10.4 | G61: =G158 -> Jilemnice 12.09.22 | H61: 711.0238624 | J61: =J158 -> 10.24 | K61: 10.44 | L61: 0
A62: 59. | B62: =B159 -> JINDŘIŠEK | C62: Vít | D62: 8.B | E62: 8.02 | G62: =G159 -> Jilemnice 12.09.22 | H62: 887.6020161 | J62: =J159 -> 8.24 | K62: 8.77 | L62: 0
A63: 60. | B63: =B160 -> JIROUŠ | C63: Matouš | D63: 8.B | E63: 9.55 | G63: =G160 -> Jilemnice 10.10.22 | H63: 763.9841015 | J63: =J160 -> 9.55 | K63: 10.08 | L63: 0
A64: 61. | B64: =B161 -> KERLE | C64: Marek | D64: 8.B | E64: 8.72 | G64: =G161 -> Jilemnice 12.09.22 | H64: 825.6614873 | J64: =J161 -> 8.84 | K64: 10.64 | L64: 0
A65: 62. | B65: =B162 -> LUKEŠ | C65: Jakub | D65: 8.B | E65: 8.5 | G65: =G162 -> Turnov 16.05.23 | H65: 844.0291964 | J65: =J162 -> 8.73 | K65: 10.26 | L65: 0
A66: 63. | B66: =B163 -> OTT | C66: Matyáš | D66: 8.B | E66: 8.44 | G66: =G163 -> Turnov 16.05.23 | H66: 849.2047594 | J66: =J163 -> 8.69 | K66: 11 | L66: 0
A67: 64. | B67: =B164 -> POKORNÝ | C67: Matyáš | D67: 8.B | E67: 8.42 | G67: =G164 -> Jilemnice 12.09.22 | H67: 850.9463384 | J67: =J164 -> 8.58 | K67: 8.94 | L67: 0
A68: 65. | B68: =B165 -> POLÁČEK | C68: Matyáš | D68: 8.B | E68: 10.16 | G68: =G165 -> Jilemnice 12.09.22 | H68: 725.0795442 | J68: =J165 -> 10.99 | K68: 11.49 | L68: 0
A69: 66. | B69: =B166 -> ULLMAN | C69: Šimon | D69: 8.B | E69: 8.97 | G69: =G166 -> Jilemnice 12.09.22 | H69: 805.882739 | J69: =J166 -> 8.38 | K69: 9.18 | L69: 0
A70: 67. | B70: =B167 -> VALENTA | C70: Jakub | D70: 8.B | E70: 9.3 | G70: =G167 -> Jilemnice 12.09.22 | H70: 781.4030289 | J70: =J167 -> 9.87 | K70: 10.24 | L70: 0
A71: 68. | B71: =B168 -> VRBATA | C71: Dominik | D71: 8.B | E71: 9.35 | G71: =G168 -> Jilemnice 12.09.22 | H71: 777.844724 | J71: =J168 -> 9.74 | K71: 10.25 | L71: 0
A72: 69. | B72: =B169 -> FEJKL | C72: Jan | D72: 9.A | E72: 8.21 | G72: =G169 -> Jilemnice 09.09.22 | H72: 869.7452094 | J72: =J169 -> 7.92 | K72: 9.14 | L72: 9.45
A73: 70. | B73: =B170 -> KOTYK | C73: Tadeáš | D73: 9.A | E73: 10.49 | G73: =G170 -> Jilemnice 09.09.22 | H73: 705.9187959 | J73: =J170 -> 10.72 | K73: 10.7 | L73: 10.7
A74: 71. | B74: =B171 -> KRAUSE | C74: Tadeáš | D74: 9.A | E74: 8.48 | G74: =G171 -> Turnov 11.05.23 | H74: 845.7462464 | J74: =J171 -> 8.69 | K74: 10.13 | L74: 10.34
A75: 72. | B75: =B172 -> LEŠÁK | C75: Martin | D75: 9.A | E75: 9.95 | G75: =G172 -> Jilemnice 09.09.22 | H75: 737.9344894 | J75: =J172 -> 10.38 | K75: 10.87 | L75: 10.54
A76: 73. | B76: =B173 -> NECHANICKÝ | C76: David | D76: 9.A | E76: 8.06 | G76: =G173 -> Turnov 11.05.23 | H76: 883.7727257 | J76: =J173 -> 7.89 | K76: 9.65 | L76: 9.42
A77: 74. | B77: =B174 -> ŘEHOŘEK | C77: Jan | D77: 9.A | E77: 0 | G77: =G174 -> 0 | H77: 0 | J77: =J174 -> 8.66 | K77: 9.55 | L77: 9.74
A78: 75. | B78: =B175 -> SOUKUP | C78: Ondřej | D78: 9.A | E78: 0 | G78: =G175 -> 0 | H78: 0 | J78: =J175 -> 9.62 | K78: 10 | L78: 10.91
A79: 76. | B79: =B176 -> SPANILÝ | C79: David | D79: 9.A | E79: 8.14 | G79: =G176 -> Turnov 11.05.23 | H79: 876.2270478 | J79: =J176 -> 8.42 | K79: 9.8 | L79: 10.22
A80: 77. | B80: =B177 -> ČERNÝ | C80: Michal | D80: 9.B | E80: 9.67 | G80: =G177 -> Jilemnice 09.09.22 | H80: 755.9429337 | J80: =J177 -> 9.65 | K80: 10.36 | L80: 11.28
A81: 78. | B81: =B178 -> DOLEJŠÍ | C81: David | D81: 9.B | E81: 9.17 | G81: =G178 -> Jilemnice 09.09.22 | H81: 790.8362235 | J81: =J178 -> 8.86 | K81: 11.1 | L81: 10.8
A82: 79. | B82: =B179 -> POVAŽANEC | C82: Martin | D82: 9.B | E82: 8.65 | G82: =G179 -> Jilemnice 09.09.22 | H82: 831.4044126 | J82: =J179 -> 8.45 | K82: 9.86 | L82: 11.89
A83: 80. | B83: =B180 -> RICHTER | C83: =C180 -> Jakub | D83: 9.B | E83: 9.91 | G83: =G180 -> Jilemnice 09.09.22 | H83: 740.4448203 | J83: =J180 -> 9.81 | K83: 0 | L83: 11.66
A84: 81. | B84: =B181 -> ROZUMEK | C84: Adam | D84: 9.B | E84: 9.22 | G84: =G181 -> Jilemnice 09.09.22 | H84: 787.176591 | J84: =J181 -> 9.44 | K84: 0 | L84: 0
A85: 82. | B85: =B182 -> VALENTA | C85: František | D85: 9.B | E85: 9.51 | G85: =G182 -> Jilemnice 09.09.22 | H85: 766.7095867 | J85: =J182 -> 9.08 | K85: 10.92 | L85: 11.6
A86: 83. | B86: =B183 -> ZAPLATÍLEK | C86: Josef | D86: 9.B | E86: 8.94 | G86: =G183 -> Jilemnice 09.09.22 | H86: 808.1977818 | J86: =J183 -> 9.63 | K86: 10.02 | L86: 10.04
B100: PŘÍJMENÍ | C100: JMÉNO | D100: TŘÍDA | E100: VÝKON | G100: MÍSTO | J100: 21 - 22 | K100: 20 - 21 | L100: 19 - 20
B101: HONCŮ | C101: Filip | D101: 6.A | E101: 13.4 | G101: Jilemnice 25.05.23 | H101: =IF(E101=0,0,(1000000000 - 313216 / E101 + 34538300 / E101*2 - 1698600000 / E101*3 + 32198000000 / E101*4)/20000000+66) -> 577.8095649
B102: JÍLEK | C102: Lukáš | D102: 6.A | H102: 0
B103: KUČERA | C103: Tadeáš | D103: 6.A | E103: 11.9 | G103: Jilemnice 25.05.23 | H103: 636.0208546
B104: ROZUMEK | C104: Lukáš | D104: 6.A | E104: 13 | G104: Jilemnice 25.05.23 | H104: 592.0190899
B105: ŘEHOŘEK | C105: Marek | D105: 6.A | E105: 12.1 | G105: Jilemnice 25.05.23 | H105: 627.4254685
B106: ŘÍHA | C106: Tadeáš | D106: 6.A | E106: 11.6 | G106: Jilemnice 25.05.23 | H106: 649.4696698
B107: SKRBEK | C107: Richard | D107: 6.A | E107: 11.6 | G107: Jilemnice 25.05.23 | H107: 649.4696698
B108: ŠIMEK | C108: Erik | D108: 6.A | E108: 10.5 | G108: Jilemnice 25.05.23 | H108: 705.3569685
B109: ŠÍR | C109: Jan | D109: 6.A | E109: 11 | G109: Jilemnice 25.05.23 | H109: 678.5680154
B110: ŠÍR | C110: Stanislav | D110: 6.A | E110: 11.5 | G110: Jilemnice 25.05.23 | H110: 654.1085365
B111: ŠPINAR | C111: František | D111: 6.A | E111: 13 | G111: Jilemnice 25.05.23 | H111: 592.0190899
B112: TOTH | C112: Mikuláš | D112: 6.A | E112: 12.4 | G112: Jilemnice 25.05.23 | H112: 615.0522717
B113: WEISZLEMLEIN | C113: Adam | D113: 6.A | E113: 12 | G113: Jilemnice 25.05.23 | H113: 631.6873474
B114: ČERNÝ | C114: Filip | D114: 6.B | H114: 0
B115: GINGAL | C115: Patrik | D115: 6.B | E115: 10.8 | G115: Jilemnice 25.05.23 | H115: 688.9859416
B116: HLAVÁČEK | C116: Josef | D116: 6.B | E116: 9.42 | G116: Turnov 16.05.23 | H116: 772.9265572
B117: KHUDA | C117: Ivan | D117: 6.B | E117: 15.2 | G117: Jilemnice 25.05.23 | H117: 523.1215901
B118: KRESAN | C118: Matěj | D118: 6.B | E118: 14.9 | G118: Jilemnice 25.05.23 | H118: 531.3186691
B119: RYCHTR | C119: Vojtěch | D119: 6.B | E119: 12.9 | G119: Jilemnice 25.05.23 | H119: 595.7091604
B120: ŠTAJER | C120: David | D120: 6.B | E120: 11 | G120: Jilemnice 25.05.23 | H120: 678.5680154
B121: TKACHUK | C121: Dzvenyslav | D121: 6.B | G121: Jilemnice 25.05.23 | H121: 0
B122: VELIKOVSKÝ | C122: Dominik | D122: 6.B | E122: 13 | G122: Jilemnice 25.05.23 | H122: 592.0190899
B123: EXNER | C123: Tomáš | D123: 7.A | E123: 9.66 | G123: Jilemnice 10.10.22 | H123: 756.6054005 | J123: 9.1
B124: JANATA | C124: Denis | D124: 7.A | E124: 10.62 | G124: Jilemnice 10.10.22 | H124: 698.6975677 | J124: 9.92
B125: JINDŘIŠEK | C125: Alex Jiří | D125: 7.A | E125: 9.25 | G125: Jilemnice 10.10.22 | H125: 784.9998021 | J125: 9.67
B126: KAZLEPKA | C126: Miroslav | D126: 7.A | H126: 0
B127: MARŠÁLEK | C127: Ondřej | D127: 7.A | E127: 10.24 | G127: Jilemnice 10.10.22 | H127: 720.3211103 | J127: 9.99
B128: MLATEČEK | C128: Patrik | D128: 7.A | E128: 10.51 | G128: Jilemnice 10.10.22 | H128: 704.7962102 | J128: 11.26
B129: SCHOLZ | C129: Matyáš | D129: 7.A | E129: 10.46 | G129: Turnov 11.05.23 | H129: 707.6107236 | J129: 10.46
B130: TOMÁŠ | C130: Jakub | D130: 7.A | E130: 10.15 | G130: Jilemnice 10.10.22 | H130: 725.6796226 | J130: 10.2
B131: VÁCLAVÍK | C131: Jan | D131: 7.A | E131: 10.02 | G131: Jilemnice 10.10.22 | H131: 733.5896376 | J131: 10.12
B132: VEČEŘA | C132: David | D132: 7.A | E132: 10.9 | G132: Jilemnice 10.10.22 | H132: 683.7291898 | J132: 12.1
B133: VYBÍRAL | C133: Radim | D133: 7.A | E133: 8.79 | G133: Jilemnice 19.06.23 | H133: =IF(E133=0,0,(1000000000 - 313216 / E133 + 34538300 / E133*2 - 1698600000 / E133*3 + 32198000000 / E133*4)/20000000+66) -> 820.0100306 | J133: 8.95
B134: BERISHA | C134: David | D134: 7.B | H134: 0 | J134: 13.54
B135: EFENBERK | C135: Šimon | D135: 7.B | E135: 9.13 | G135: Jilemnice 19.06.23 | H135: 793.7927896 | J135: 9.82
B136: FEJKL | C136: Antonín | D136: 7.B | E136: 8.36 | G136: Jilemnice 19.06.23 | H136: 856.2210729 | J136: 9.48
B137: GOTTSTEIN | C137: Matouš | D137: 7.B | E137: 8.36 | G137: Jilemnice 19.06.23 | H137: 856.2210729 | J137: 8.8
B138: MAŘAS | C138: Dominik | D138: 7.B | E138: 16.25 | G138: Jilemnice 10.10.22 | H138: 496.815272 | K138: 11.64
B139: POVAŽANEC | C139: Lukáš | D139: 7.B | E139: 10.31 | G139: Jilemnice 12.06.23 | H139: 716.2180571 | J139: 10.1
B140: VANCL | C140: Jakub | D140: 7.B | E140: 10.85 | G140: Jilemnice 10.10.22 | H140: 686.3454534 | J140: 11.09
B141: VANCL | C141: Miroslav | D141: 7.B | H141: 0 | J141: 11.3
B142: VOTOČEK | C142: Michal | D142: 7.B | E142: 10.95 | G142: Jilemnice 10.10.22 | H142: 681.1368191 | J142: 10.78
B143: DEMČUK | C143: Ilja | D143: 8.A | E143: 9.3 | G143: Jilemnice 10.10.22 | H143: 781.4030289 | J143: 9.66 | K143: 10.85
B144: FAISTAUER | C144: Kryštof | D144: 8.A | E144: 8.32 | G144: Jilemnice 10.10.22 | H144: 859.779828 | J144: 8.89 | K144: 9.5
B145: FRK | C145: Matyáš | D145: 8.A | E145: 10.27 | G145: Jilemnice 10.10.22 | H145: 718.55581 | J145: 12.22 | K145: 12.72
B146: HUBÁLOVSKÝ | C146: Marek | D146: 8.A | E146: 9.28 | G146: Jilemnice 10.10.22 | H146: 782.8370872 | J146: 10.84 | K146: 11.43
B147: MAŤÁTKO | C147: Jakub | D147: 8.A | E147: 11.85 | G147: Jilemnice 16.09.22 | H147: 638.2150354 | K147: 13.19
B148: MERY | C148: Luboš | D148: 8.A | E148: 10.89 | G148: Jilemnice 10.10.22 | H148: 684.2505206 | J148: 10.94 | K148: 11.43
B149: NOVOTNÝ | C149: Matěj | D149: 8.A | E149: 11.28 | G149: Jilemnice 10.10.22 | H149: 664.6035611 | J149: 10.98 | K149: 10.96
B150: ŘEHOŘEK | C150: Vojtěch | D150: 8.A | E150: 9.56 | G150: Jilemnice 10.10.22 | H150: 763.3062938 | J150: 10.43 | K150: 11.92
B151: ŠÍR | C151: Matyáš | D151: 8.A | E151: 10.8 | G151: Jilemnice 10.10.22 | H151: 688.9859416 | J151: 10.82 | K151: 11.48
B152: TORÁČ | C152: Tomáš | D152: 8.A | E152: 17.34 | G152: Jilemnice 16.09.22 | H152: 472.877057 | K152: 22.77
B153: VÁCLAVÍK | C153: Ondřej | D153: 8.A | E153: 8.84 | G153: Jilemnice 10.10.22 | H153: 816.0280734 | J153: 9.14 | K153: 10.94
B154: AUERSWALD | C154: Daniel | D154: 8.B | E154: 9.84 | G154: Jilemnice 12.09.22 | H154: 744.8870091 | J154: 9.61 | K154: 9.89
B155: BOUKAL | C155: Jakub | D155: 8.B | H155: 0 | K155: 12.56
B156: BUDÍN | C156: Martin | D156: 8.B | E156: 9.36 | G156: Jilemnice 12.09.22 | H156: 777.1376249 | J156: 9.67 | K156: 10.46
B157: DVOŘÁK | C157: Dominik | D157: 8.B | E157: 9.64 | G157: Jilemnice 12.09.22 | H157: 757.9344574 | J157: 11.05 | K157: 11.56
B158: FIŠERA | C158: Vojtěch | D158: 8.B | E158: 10.4 | G158: Jilemnice 12.09.22 | H158: 711.0238624 | J158: 10.24 | K158: 10.44
B159: JINDŘIŠEK | C159: Vít | D159: 8.B | E159: 8.02 | G159: Jilemnice 12.09.22 | H159: 887.6020161 | J159: 8.24 | K159: 8.77
B160: JIROUŠ | C160: Matouš | D160: 8.B | E160: 9.55 | G160: Jilemnice 10.10.22 | H160: 763.9841015 | J160: 9.55 | K160: 10.08
B161: KERLE | C161: Marek | D161: 8.B | E161: 8.72 | G161: Jilemnice 12.09.22 | H161: 825.6614873 | J161: 8.84 | K161: 10.64
B162: LUKEŠ | C162: Jakub | D162: 8.B | E162: 8.5 | G162: Turnov 16.05.23 | H162: 844.0291964 | J162: 8.73 | K162: 10.26
B163: OTT | C163: Matyáš | D163: 8.B | E163: 8.44 | G163: Turnov 16.05.23 | H163: 849.2047594 | J163: 8.69 | K163: 11
B164: POKORNÝ | C164: Matyáš | D164: 8.B | E164: 8.42 | G164: Jilemnice 12.09.22 | H164: 850.9463384 | J164: 8.58 | K164: 8.94
B165: POLÁČEK | C165: Matyáš | D165: 8.B | E165: 10.16 | G165: Jilemnice 12.09.22 | H165: =IF(E165=0,0,(1000000000 - 313216 / E165 + 34538300 / E165*2 - 1698600000 / E165*3 + 32198000000 / E165*4)/20000000+66) -> 725.0795442 | J165: 10.99 | K165: 11.49
B166: ULLMAN | C166: Šimon | D166: 8.B | E166: 8.97 | G166: Jilemnice 12.09.22 | H166: 805.882739 | J166: 8.38 | K166: 9.18
B167: VALENTA | C167: Jakub | D167: 8.B | E167: 9.3 | G167: Jilemnice 12.09.22 | H167: 781.4030289 | J167: 9.87 | K167: 10.24
B168: VRBATA | C168: Dominik | D168: 8.B | E168: 9.35 | G168: Jilemnice 12.09.22 | H168: 777.844724 | J168: 9.74 | K168: 10.25
B169: FEJKL | C169: Jan | D169: 9.A | E169: 8.21 | G169: Jilemnice 09.09.22 | H169: 869.7452094 | J169: 7.92 | K169: 9.14 | L169: 9.45
B170: KOTYK | C170: Tadeáš | D170: 9.A | E170: 10.49 | G170: Jilemnice 09.09.22 | H170: 705.9187959 | J170: 10.72 | K170: 10.7 | L170: 10.7
B171: KRAUSE | C171: Tadeáš | D171: 9.A | E171: 8.48 | G171: Turnov 11.05.23 | H171: 845.7462464 | J171: 8.69 | K171: 10.13 | L171: 10.34
B172: LEŠÁK | C172: Martin | D172: 9.A | E172: 9.95 | G172: Jilemnice 09.09.22 | H172: 737.9344894 | J172: 10.38 | K172: 10.87 | L172: 10.54
B173: NECHANICKÝ | C173: David | D173: 9.A | E173: 8.06 | G173: Turnov 11.05.23 | H173: 883.7727257 | J173: 7.89 | K173: 9.65 | L173: 9.42
B174: ŘEHOŘEK | C174: Jan | D174: 9.A | H174: 0 | J174: 8.66 | K174: 9.55 | L174: 9.74
B175: SOUKUP | C175: Ondřej | D175: 9.A | H175: 0 | J175: 9.62 | K175: 10 | L175: 10.91
B176: SPANILÝ | C176: David | D176: 9.A | E176: 8.14 | G176: Turnov 11.05.23 | H176: 876.2270478 | J176: 8.42 | K176: 9.8 | L176: 10.22
B177: ČERNÝ | C177: Michal | D177: 9.B | E177: 9.67 | G177: Jilemnice 09.09.22 | H177: 755.9429337 | J177: 9.65 | K177: 10.36 | L177: 11.28
B178: DOLEJŠÍ | C178: David | D178: 9.B | E178: 9.17 | G178: Jilemnice 09.09.22 | H178: 790.8362235 | J178: 8.86 | K178: 11.1 | L178: 10.8
B179: POVAŽANEC | C179: Martin | D179: 9.B | E179: 8.65 | G179: Jilemnice 09.09.22 | H179: 831.4044126 | J179: 8.45 | K179: 9.86 | L179: 11.89
B180: RICHTER | C180: Jakub | D180: 9.B | E180: 9.91 | G180: Jilemnice 09.09.22 | H180: 740.4448203 | J180: 9.81 | L180: 11.66
B181: ROZUMEK | C181: Adam | D181: 9.B | E181: 9.22 | G181: Jilemnice 09.09.22 | H181: 787.176591 | J181: 9.44
B182: VALENTA | C182: František | D182: 9.B | E182: 9.51 | G182: Jilemnice 09.09.22 | H182: 766.7095867 | J182: 9.08 | K182: 10.92 | L182: 11.6
B183: ZAPLATÍLEK | C183: Josef | D183: 9.B | E183: 8.94 | G183: Jilemnice 09.09.22 | H183: 808.1977818 | J183: 9.63 | K183: 10.02 | L183: 10.04

Sheet 300
C1: VÝKONY 2022 - 2023 | G1: 300 M | H1: CHLAPCI 6. - 9. ROČ.
B2: stav k | C2: =TODAY() -> 2023-06-26 | J2: 21 - 22 | K2: 20 - 21 | L2: 19 - 20
A4: 1. | B4: =B101 -> HONCŮ | C4: =C101 -> Filip | D4: 6.A | E4: 00:00:00 | G4: 0 | H4: 0 | J4: 00:00:00 | K4: 00:00:00 | L4: 00:00:00
A5: 2. | B5: =B102 -> JÍLEK | C5: Lukáš | D5: 6.A | E5: 00:00:00 | G5: =G102 -> 0 | H5: 0 | J5: =J102 -> 00:00:00 | K5: 00:00:00 | L5: 00:00:00
A6: 3. | B6: =B103 -> KUČERA | C6: Tadeáš | D6: 6.A | E6: 00:00:00 | G6: =G103 -> 0 | H6: 0 | J6: =J103 -> 00:00:00 | K6: 00:00:00 | L6: 00:00:00
A7: 4. | B7: =B104 -> ROZUMEK | C7: Lukáš | D7: 6.A | E7: 00:00:00 | G7: =G104 -> 0 | H7: 0 | J7: =J104 -> 00:00:00 | K7: 00:00:00 | L7: 00:00:00
A8: 5. | B8: =B105 -> ŘEHOŘEK | C8: Marek | D8: 6.A | E8: 00:00:00 | G8: =G105 -> 0 | H8: 0 | J8: =J105 -> 00:00:00 | K8: 00:00:00 | L8: 00:00:00
A9: 6. | B9: =B106 -> ŘÍHA | C9: Tadeáš | D9: 6.A | E9: 00:00:00 | G9: =G106 -> 0 | H9: 0 | J9: =J106 -> 00:00:00 | K9: 00:00:00 | L9: 00:00:00
A10: 7. | B10: =B107 -> SKRBEK | C10: Richard | D10: 6.A | E10: 00:00:00 | G10: =G107 -> 0 | H10: 0 | J10: =J107 -> 00:00:00 | K10: 00:00:00 | L10: 00:00:00
A11: 8. | B11: =B108 -> ŠIMEK | C11: Erik | D11: 6.A | E11: 00:00:00 | G11: =G108 -> 0 | H11: 0 | J11: =J108 -> 00:00:00 | K11: 00:00:00 | L11: 00:00:00
A12: 9. | B12: =B109 -> ŠÍR | C12: Jan | D12: 6.A | E12: 00:00:00 | G12: =G109 -> 0 | H12: 0 | J12: =J109 -> 00:00:00 | K12: 00:00:00 | L12: 00:00:00
A13: 10. | B13: =B110 -> ŠÍR | C13: Stanislav | D13: 6.A | E13: 00:00:00 | G13: =G110 -> 0 | H13: 0 | J13: =J110 -> 00:00:00 | K13: 00:00:00 | L13: 00:00:00
A14: 11. | B14: =B111 -> ŠPINAR | C14: František | D14: 6.A | E14: 00:00:00 | G14: =G111 -> 0 | H14: 0 | J14: =J111 -> 00:00:00 | K14: 00:00:00 | L14: 00:00:00
A15: 12. | B15: =B112 -> TOTH | C15: Mikuláš | D15: 6.A | E15: 00:00:00 | G15: =G112 -> 0 | H15: 0 | J15: =J112 -> 00:00:00 | K15: 00:00:00 | L15: 00:00:00
A16: 13. | B16: =B113 -> WEISZLEMLEIN | C16: Adam | D16: 6.A | E16: 00:00:00 | G16: =G113 -> 0 | H16: 0 | J16: =J113 -> 00:00:00 | K16: 00:00:00 | L16: 00:00:00
A17: 14. | B17: =B114 -> ČERNÝ | C17: Filip | D17: 6.B | E17: 00:00:00 | G17: =G114 -> 0 | H17: 0 | J17: =J114 -> 00:00:00 | K17: 00:00:00 | L17: 00:00:00
A18: 15. | B18: =B115 -> GINGAL | C18: Patrik | D18: 6.B | E18: 00:00:00 | G18: =G115 -> 0 | H18: 0 | J18: =J115 -> 00:00:00 | K18: 00:00:00 | L18: 00:00:00
A19: 16. | B19: =B116 -> HLAVÁCEK | C19: Josef | D19: 6.B | E19: 00:00:00 | G19: =G116 -> 0 | H19: 0 | J19: =J116 -> 00:00:00 | K19: 00:00:00 | L19: 00:00:00
A20: 17. | B20: =B117 -> KHUDA | C20: Ivan | D20: 6.B | E20: 00:00:00 | G20: =G117 -> 0 | H20: 0 | J20: =J117 -> 00:00:00 | K20: 00:00:00 | L20: 00:00:00
A21: 18. | B21: =B118 -> KRESAN | C21: Matěj | D21: 6.B | E21: 00:00:00 | G21: =G118 -> 0 | H21: 0 | J21: =J118 -> 00:00:00 | K21: 00:00:00 | L21: 00:00:00
A22: 19. | B22: =B119 -> RYCHTR | C22: Vojtěch | D22: 6.B | E22: 00:00:00 | G22: =G119 -> 0 | H22: 0 | J22: =J119 -> 00:00:00 | K22: 00:00:00 | L22: 00:00:00
A23: 20. | B23: =B120 -> ŠTAJER | C23: David | D23: 6.B | E23: 00:00:00 | G23: =G120 -> 0 | H23: 0 | J23: =J120 -> 00:00:00 | K23: 00:00:00 | L23: 00:00:00
A24: 21. | B24: =B121 -> TKACHUK | C24: Dzvenyslav | D24: 6.B | E24: 00:00:00 | G24: =G121 -> 0 | H24: 0 | J24: =J121 -> 00:00:00 | K24: 00:00:00 | L24: 00:00:00
A25: 22. | B25: =B122 -> VELIKOVSKÝ | C25: Dominik | D25: 6.B | E25: 00:00:00 | G25: =G122 -> 0 | H25: 0 | J25: =J122 -> 00:00:00 | K25: 00:00:00 | L25: 00:00:00
A26: 23. | B26: =B123 -> EXNER | C26: Tomáš | D26: 7.A | E26: 00:00:59.110 | G26: =G123 -> Jilemnice 17.10.22 | H26: 600.529855 | J26: =J123 -> 00:01:00.640 | K26: 00:00:00 | L26: 00:00:00
A27: 24. | B27: =B124 -> JANATA | C27: Denis | D27: 7.A | E27: 00:01:02.160 | G27: =G124 -> Jilemnice 17.10.22 | H27: 556.1476027 | J27: =J124 -> 00:01:01.020 | K27: 00:00:00 | L27: 00:00:00
A28: 25. | B28: =B125 -> JINDŘIŠEK | C28: Alex Jiří | D28: 7.A | E28: 00:00:58.340 | G28: =G125 -> Jilemnice 17.10.22 | H28: 612.4682188 | J28: =J125 -> 00:01:01.350 | K28: 00:00:00 | L28: 00:00:00
A29: 26. | B29: =B126 -> KAZLEPKA | C29: Miroslav | D29: 7.A | E29: 00:00:00 | G29: =G126 -> 0 | H29: 0 | J29: =J126 -> 00:00:00 | K29: 00:00:00 | L29: 00:00:00
A30: 27. | B30: =B127 -> MARŠÁLEK | C30: Ondřej | D30: 7.A | E30: 00:01:06.170 | G30: =G127 -> Jilemnice 17.10.22 | H30: 504.021687 | J30: =J127 -> 00:01:09.950 | K30: 00:00:00 | L30: 00:00:00
A31: 28. | B31: =B128 -> MLATEČEK | C31: Patrik | D31: 7.A | E31: 00:01:17.320 | G31: =G128 -> Jilemnice 17.10.22 | H31: 387.5009154 | J31: =J128 -> 00:01:14.240 | K31: 00:00:00 | L31: 00:00:00
A32: 29. | B32: =B129 -> SCHOLZ | C32: Matyáš | D32: 7.A | E32: 00:01:05.740 | G32: =G129 -> Jilemnice 17.10.22 | H32: 509.3068586 | J32: =J129 -> 00:01:03.540 | K32: 00:00:00 | L32: 00:00:00
A33: 30. | B33: =B130 -> TOMÁŠ | C33: Jakub | D33: 7.A | E33: 00:00:57.360 | G33: =G130 -> Jilemnice 17.10.22 | H33: 628.1260631 | J33: =J130 -> 00:00:56.510 | K33: 00:00:00 | L33: 00:00:00
A34: 31. | B34: =B131 -> VÁCLAVÍK | C34: Jan | D34: 7.A | E34: 00:00:57.810 | G34: =G131 -> Jilemnice 17.10.22 | H34: 620.8703206 | J34: =J131 -> 00:00:56.400 | K34: 00:00:00 | L34: 00:00:00
A35: 32. | B35: =B132 -> VEČEŘA | C35: David | D35: 7.A | E35: 00:01:06.690 | G35: =G132 -> Jilemnice 17.10.22 | H35: 497.721362 | J35: =J132 -> 00:01:15.100 | K35: 00:00:00 | L35: 00:00:00
A36: 33. | B36: =B133 -> VYBÍRAL | C36: Radim | D36: 7.A | E36: 00:00:52 | G36: =G133 -> Jilemnice 05.06.23 | H36: 724.2062343 | J36: =J133 -> 00:00:50.300 | K36: 00:00:00 | L36: 00:00:00
A37: 34. | B37: =B134 -> BERISHA | C37: David | D37: 7.B | E37: 00:00:00 | G37: =G134 ->  | H37: 0 | J37: =J134 -> 00:00:00 | K37: 00:00:00 | L37: 00:00:00
A38: 35. | B38: =B135 -> EFENBERK | C38: Šimon | D38: 7.B | E38: 00:00:55.480 | G38: =G135 -> Jilemnice 05.06.23 | H38: 659.7119968 | J38: =J135 -> 00:01:04.360 | K38: 00:00:00 | L38: 00:00:00
A39: 36. | B39: =B136 -> FEJKL | C39: Antonín | D39: 7.B | E39: 00:00:50.760 | G39: =G136 -> Jilemnice 19.06.23 | H39: 749.3238373 | J39: =J136 -> 00:00:51.010 | K39: 00:00:00 | L39: 00:00:00
A40: 37. | B40: =B137 -> GOTTSTEIN | C40: Matouš | D40: 7.B | E40: 00:00:45.860 | G40: =G137 -> Jilemnice 19.06.23 | H40: 861.8677166 | J40: =J137 -> 00:00:47.930 | K40: 00:00:00 | L40: 00:00:00
A41: 38. | B41: =B138 -> MAŘAS | C41: Dominik | D41: 7.B | E41: 00:01:26.820 | G41: =G138 -> Jilemnice 17.10.22 | H41: 311.8361931 | J41: =J138 -> 00:01:20.670 | K41: 00:01:18.210 | L41: 00:00:00
A42: 39. | B42: =B139 -> POVAŽANEC | C42: Lukáš | D42: 7.B | E42: 00:01:01.390 | G42: =G139 -> Jilemnice 05.06.23 | H42: 566.9361644 | J42: =J139 -> 00:01:04.130 | K42: 00:00:00 | L42: 00:00:00
A43: 40. | B43: =B140 -> VANCL | C43: Jakub | D43: 7.B | E43: 00:01:06.320 | G43: =G140 -> Jilemnice 17.10.22 | H43: 502.1941463 | J43: =J140 -> 00:01:08.950 | K43: 00:00:00 | L43: 00:00:00
A44: 41. | B44: =B141 -> VANCL | C44: Miroslav | D44: 7.B | E44: 00:01:36.810 | G44: =G141 -> Jilemnice 17.10.22 | H44: 248.287452 | J44: =J141 -> 00:01:32.620 | K44: 00:00:00 | L44: 00:00:00
A45: 42. | B45: =B142 -> VOTOČEK | C45: Michal | D45: 7.B | E45: 00:01:09.910 | G45: =G142 -> Jilemnice 17.10.22 | H45: 460.7949325 | J45: =J142 -> 00:01:07.340 | K45: 00:00:00 | L45: 00:00:00
A46: 43. | B46: =B143 -> DEMČUK | C46: Ilja | D46: 8.A | E46: 00:00:53.410 | G46: =G143 -> Jilemnice 17.10.22 | H46: 697.0621837 | J46: =J143 -> 00:00:53.360 | K46: 00:01:00.280 | L46: 00:00:00
A47: 44. | B47: =B144 -> FAISTAUER | C47: Kryštof | D47: 8.A | E47: 00:00:51.860 | G47: =G144 -> Jilemnice 17.10.22 | H47: 726.9819414 | J47: =J144 -> 00:00:52.980 | K47: 00:00:54.880 | L47: 00:00:00
A48: 45. | B48: =B145 -> FRK | C48: Matyáš | D48: 8.A | E48: 00:01:02.730 | G48: =G145 -> Jilemnice 17.10.22 | H48: 548.3318641 | J48: =J145 -> 00:01:14.910 | K48: 00:01:21.540 | L48: 00:00:00
A49: 46. | B49: =B146 -> HUBÁLOVSKÝ | C49: Marek | D49: 8.A | E49: 00:00:56.800 | G49: =G146 -> Jilemnice 17.10.22 | H49: 637.3159891 | J49: =J146 -> 00:00:53.080 | K49: 00:01:11.580 | L49: 00:00:00
A50: 47. | B50: =B147 -> MAŤÁTKO | C50: Jakub | D50: 8.A | E50: 00:01:13.600 | G50: =G147 -> Jilemnice 17.10.22 | H50: 422.4515242 | J50: =J147 -> 00:01:29.020 | K50: 00:01:24.110 | L50: 00:00:00
A51: 48. | B51: =B148 -> MERY | C51: Luboš | D51: 8.A | E51: 00:01:06.630 | G51: =G148 -> Jilemnice 17.10.22 | H51: 498.4433038 | J51: =J148 -> 00:01:06.760 | K51: 00:01:15.180 | L51: 00:00:00
A52: 49. | B52: =B149 -> NOVOTNÝ | C52: Matěj | D52: 8.A | E52: 00:01:12.840 | G52: =G149 -> Jilemnice 17.10.22 | H52: 430.031142 | J52: =J149 -> 00:01:09.540 | K52: 00:00:00 | L52: 00:00:00
A53: 50. | B53: =B150 -> ŘEHOŘEK | C53: Vojtěch | D53: 8.A | E53: 00:01:00.020 | G53: =G150 -> Jilemnice 17.10.22 | H53: 586.8157994 | J53: =J150 -> 00:01:04.170 | K53: 00:01:11.820 | L53: 00:00:00
A54: 51. | B54: =B151 -> ŠÍR | C54: Matyáš | D54: 8.A | E54: 00:01:02.280 | G54: =G151 -> Jilemnice 17.10.22 | H54: 554.4902951 | J54: =J151 -> 00:00:00 | K54: 00:01:09.460 | L54: 00:00:00
A55: 52. | B55: =B152 -> TORÁČ | C55: Tomáš | D55: 8.A | E55: 00:02:07.730 | G55: =G152 -> Jilemnice 17.10.22 | H55: 114.5947141 | J55: =J152 -> 00:02:06.130 | K55: 00:02:09.100 | L55: 00:00:00
A56: 53. | B56: =B153 -> VÁCLAVÍK | C56: Ondřej | D56: 8.A | E56: 00:00:00 | G56: =G153 ->  | H56: 0 | J56: =J153 -> 00:01:16.350 | K56: 00:00:58.550 | L56: 00:00:00
A57: 54. | B57: =B154 -> AUERSWALD | C57: Daniel | D57: 8.B | E57: 00:01:00.420 | G57: =G154 -> Jilemnice 17.10.22 | H57: 580.918343 | J57: =J154 -> 00:00:54.880 | K57: 00:00:59.520 | L57: 00:00:00
A58: 55. | B58: =B155 -> BOUKAL | C58: Jakub | D58: 8.B | E58: 00:00:00 | G58: =G155 ->  | H58: 0 | J58: =J155 -> 00:00:00 | K58: 00:00:00 | L58: 00:00:00
A59: 56. | B59: =B156 -> BUDÍN | C59: Martin | D59: 8.B | E59: 00:00:53.280 | G59: =G156 -> Jilemnice 17.10.22 | H59: 699.5047031 | J59: =J156 -> 00:00:55.190 | K59: 00:00:58.300 | L59: 00:00:00
A60: 57. | B60: =B157 -> DVOŘÁK | C60: Dominik | D60: 8.B | E60: 00:00:00 | G60: =G157 ->  | H60: 0 | J60: =J157 -> 00:01:00.920 | K60: 00:00:00 | L60: 00:00:00
A61: 58. | B61: =B158 -> FIŠERA | C61: Vojtěch | D61: 8.B | E61: 00:01:01.920 | G61: =G158 -> Jilemnice 17.10.22 | H61: 559.4814887 | J61: =J158 -> 00:00:00 | K61: 00:00:57.070 | L61: 00:00:00
A62: 59. | B62: =B159 -> JINDŘIŠEK | C62: Vít | D62: 8.B | E62: 00:00:42.340 | G62: =G159 -> Jilemnice 05.06.23 | H62: 958.7934786 | J62: =J159 -> 00:00:43.530 | K62: 00:00:00 | L62: 00:00:00
A63: 60. | B63: =B160 -> JIROUŠ | C63: Matouš | D63: 8.B | E63: 00:00:55.660 | G63: =G160 -> Jilemnice 17.10.22 | H63: 656.5954452 | J63: =J160 -> 00:00:55.050 | K63: 00:00:00 | L63: 00:00:00
A64: 61. | B64: =B161 -> KERLE | C64: Marek | D64: 8.B | E64: 00:00:44.950 | G64: =G161 -> Jilemnice 05.06.23 | H64: 885.4702766 | J64: =J161 -> 00:00:48.020 | K64: 00:00:54.010 | L64: 00:00:00
A65: 62. | B65: =B162 -> LUKEŠ | C65: Jakub | D65: 8.B | E65: 00:00:48.170 | G65: =G162 -> Jilemnice 17.10.22 | H65: 805.9585848 | J65: =J162 -> 00:00:46.890 | K65: 00:00:54.300 | L65: 00:00:00
A66: 63. | B66: =B163 -> OTT | C66: Matyáš | D66: 8.B | E66: 00:00:44.240 | G66: =G163 -> Jilemnice 05.06.23 | H66: 904.5597962 | J66: =J163 -> 00:00:48.620 | K66: 00:01:08.290 | L66: 00:00:00
A67: 64. | B67: =B164 -> POKORNÝ | C67: Matyáš | D67: 8.B | E67: 00:00:46.580 | G67: =G164 -> Jilemnice 17.10.22 | H67: 843.8466527 | J67: =J164 -> 00:00:44.070 | K67: 00:00:48.010 | L67: 00:00:00
A68: 65. | B68: =B165 -> POLÁČEK | C68: Matyáš | D68: 8.B | E68: 00:00:00 | G68: =G165 ->  | H68: 0 | J68: =J165 -> 00:01:06.520 | K68: 00:01:13.650 | L68: 00:00:00
A69: 66. | B69: =B166 -> ULLMAN | C69: Šimon | D69: 8.B | E69: 00:00:53.180 | G69: =G166 -> Jilemnice 17.10.22 | H69: 701.3916901 | J69: =J166 -> 00:00:48.360 | K69: 00:00:53.770 | L69: 00:00:00
A70: 67. | B70: =B167 -> VALENTA | C70: Jakub | D70: 8.B | E70: 00:00:50.250 | G70: =G167 -> Jilemnice 17.10.22 | H70: 760.0142375 | J70: =J167 -> 00:00:48.980 | K70: 00:00:00 | L70: 00:00:00
A71: 68. | B71: =B168 -> VRBATA | C71: Dominik | D71: 8.B | E71: 00:00:55.100 | G71: =G168 -> Jilemnice 17.10.22 | H71: 666.3582519 | J71: =J168 -> 00:00:56.960 | K71: 00:00:57.790 | L71: 00:00:00
A72: 69. | B72: =B169 -> FEJKL | C72: Jan | D72: 9.A | E72: 00:00:45.510 | G72: =G169 -> Jilemnice 14.10.22 | H72: 870.8339207 | J72: =J169 -> 00:00:44.880 | K72: 00:00:00 | L72: 00:00:54.980
A73: 70. | B73: =B170 -> KOTYK | C73: Tadeáš | D73: 9.A | E73: 00:00:00 | G73: =G170 -> 0 | H73: 0 | J73: =J170 -> 00:01:09.690 | K73: 00:00:00 | L73: 00:01:18.780
A74: 71. | B74: =B171 -> KRAUSE | C74: Tadeáš | D74: 9.A | E74: 00:00:00 | G74: =G171 -> 0 | H74: 0 | J74: =J171 -> 00:00:46.380 | K74: 00:00:00 | L74: 00:00:59.500
A75: 72. | B75: =B172 -> LEŠÁK | C75: Martin | D75: 9.A | E75: 00:00:00 | G75: =G172 -> 0 | H75: 0 | J75: =J172 -> 00:00:57.910 | K75: 00:00:00 | L75: 00:01:15.530
A76: 73. | B76: =B173 -> NECHANICKÝ | C76: David | D76: 9.A | E76: 00:00:49.380 | G76: =G173 -> Jilemnice 14.10.22 | H76: 778.7604512 | J76: =J173 -> 00:00:46.990 | K76: 00:00:00 | L76: 00:00:57.540
A77: 74. | B77: =B174 -> ŘEHOŘEK | C77: Jan | D77: 9.A | E77: 00:00:51.360 | G77: =G174 -> Jilemnice 14.10.22 | H77: 737.0187107 | J77: =J174 -> 00:00:51.300 | K77: 00:00:00 | L77: 00:00:58.500
A78: 75. | B78: =B175 -> SOUKUP | C78: Ondřej | D78: 9.A | E78: 00:00:00 | G78: =G175 -> 0 | H78: 0 | J78: =J175 -> 00:00:00 | K78: 00:00:00 | L78: 00:01:04.170
A79: 76. | B79: =B176 -> SPANILÝ | C79: David | D79: 9.A | E79: 00:00:45.800 | G79: =G176 -> Jilemnice 14.10.22 | H79: 863.3950476 | J79: =J176 -> 00:00:45.790 | K79: 00:00:00 | L79: 00:01:00.950
A80: 77. | B80: =B177 -> ČERNÝ | C80: Michal | D80: 9.B | E80: 00:00:59.010 | G80: =G177 -> Jilemnice 14.10.22 | H80: 602.0626882 | J80: =J177 -> 00:00:58.820 | K80: 00:00:00 | L80: 00:01:13.500
A81: 78. | B81: =B178 -> DOLEJŠÍ | C81: David | D81: 9.B | E81: 00:00:52.400 | G81: =G178 -> Jilemnice 14.10.22 | H81: 716.3573699 | J81: =J178 -> 00:00:51.270 | K81: 00:00:00 | L81: 00:01:09.160
A82: 79. | B82: =B179 -> POVAŽANEC | C82: Martin | D82: 9.B | E82: 00:00:00 | G82: =G179 -> 0 | H82: 0 | J82: =J179 -> 00:00:50.120 | K82: 00:00:00 | L82: 00:01:22.800
A83: 80. | B83: =B180 -> RICHTER | C83: Jakub | D83: 9.B | E83: 00:00:57.870 | G83: =G180 -> Jilemnice 14.10.22 | H83: 619.9114141 | J83: =J180 -> 00:00:57.420 | K83: 00:00:00 | L83: 00:01:11.020
A84: 81. | B84: =B181 -> ROZUMEK | C84: Adam | D84: 9.B | E84: 00:00:56.020 | G84: =G181 -> Jilemnice 14.10.22 | H84: 650.4224256 | J84: =J181 -> 00:01:07.910 | K84: 00:00:00 | L84: 00:01:27.170
A85: 82. | B85: =B182 -> VALENTA | C85: František | D85: 9.B | E85: 00:00:56.020 | G85: =G182 -> Jilemnice 14.10.22 | H85: 650.4224256 | J85: =J182 -> 00:00:56.220 | K85: 00:00:00 | L85: 00:01:08.610
A86: 83. | B86: =B183 -> ZAPLATÍLEK | C86: Josef | D86: 9.B | E86: 00:00:52.400 | G86: =G183 -> Jilemnice 14.10.22 | H86: 716.3573699 | J86: =J183 -> 00:00:51.560 | K86: 00:00:00 | L86: 00:01:00.340
B101: HONCŮ | C101: Filip | D101: 6.A | H101: =IF(E101=0,0,(1000000000-313216/E101+34538300/E101*2-1698600000/E101*3+32198000000/E101*4)/200000000000-304) -> 0
B102: JÍLEK | C102: Lukáš | D102: 6.A | H102: 0
B103: KUČERA | C103: Tadeáš | D103: 6.A | H103: 0
B104: ROZUMEK | C104: Lukáš | D104: 6.A | H104: 0
B105: ŘEHOŘEK | C105: Marek | D105: 6.A | H105: 0
B106: ŘÍHA | C106: Tadeáš | D106: 6.A | H106: 0
B107: SKRBEK | C107: Richard | D107: 6.A | H107: 0
B108: ŠIMEK | C108: Erik | D108: 6.A | H108: 0
B109: ŠÍR | C109: Jan | D109: 6.A | H109: 0
B110: ŠÍR | C110: Stanislav | D110: 6.A | H110: 0
B111: ŠPINAR | C111: František | D111: 6.A | H111: 0
B112: TOTH | C112: Mikuláš | D112: 6.A | H112: 0
B113: WEISZLEMLEIN | C113: Adam | D113: 6.A | H113: 0
B114: ČERNÝ | C114: Filip | D114: 6.B | H114: 0
B115: GINGAL | C115: Patrik | D115: 6.B | H115: 0
B116: HLAVÁCEK | C116: Josef | D116: 6.B | H116: 0
B117: KHUDA | C117: Ivan | D117: 6.B | H117: 0
B118: KRESAN | C118: Matěj | D118: 6.B | H118: 0
B119: RYCHTR | C119: Vojtěch | D119: 6.B | H119: 0
B120: ŠTAJER | C120: David | D120: 6.B | H120: 0
B121: TKACHUK | C121: Dzvenyslav | D121: 6.B | H121: 0
B122: VELIKOVSKÝ | C122: Dominik | D122: 6.B | H122: 0
B123: EXNER | C123: Tomáš | D123: 7.A | E123: 00:00:59.110 | G123: Jilemnice 17.10.22 | H123: 600.529855 | J123: 00:01:00.640
B124: JANATA | C124: Denis | D124: 7.A | E124: 00:01:02.160 | G124: Jilemnice 17.10.22 | H124: 556.1476027 | J124: 00:01:01.020
B125: JINDŘIŠEK | C125: Alex Jiří | D125: 7.A | E125: 00:00:58.340 | G125: Jilemnice 17.10.22 | H125: 612.4682188 | J125: 00:01:01.350
B126: KAZLEPKA | C126: Miroslav | D126: 7.A | H126: 0
B127: MARŠÁLEK | C127: Ondřej | D127: 7.A | E127: 00:01:06.170 | G127: Jilemnice 17.10.22 | H127: 504.021687 | J127: 00:01:09.950
B128: MLATEČEK | C128: Patrik | D128: 7.A | E128: 00:01:17.320 | G128: Jilemnice 17.10.22 | H128: 387.5009154 | J128: 00:01:14.240
B129: SCHOLZ | C129: Matyáš | D129: 7.A | E129: 00:01:05.740 | G129: Jilemnice 17.10.22 | H129: 509.3068586 | J129: 00:01:03.540
B130: TOMÁŠ | C130: Jakub | D130: 7.A | E130: 00:00:57.360 | G130: Jilemnice 17.10.22 | H130: 628.1260631 | J130: 00:00:56.510
B131: VÁCLAVÍK | C131: Jan | D131: 7.A | E131: 00:00:57.810 | G131: Jilemnice 17.10.22 | H131: 620.8703206 | J131: 00:00:56.400
B132: VEČEŘA | C132: David | D132: 7.A | E132: 00:01:06.690 | G132: Jilemnice 17.10.22 | H132: 497.721362 | J132: 00:01:15.100
B133: VYBÍRAL | C133: Radim | D133: 7.A | E133: 00:00:52 | G133: Jilemnice 05.06.23 | H133: =IF(E133=0,0,(1000000000-313216/E133+34538300/E133*2-1698600000/E133*3+32198000000/E133*4)/200000000000-304) -> 724.2062343 | J133: 00:00:50.300
B134: BERISHA | C134: David | D134: 7.B | H134: 0
B135: EFENBERK | C135: Šimon | D135: 7.B | E135: 00:00:55.480 | G135: Jilemnice 05.06.23 | H135: 659.7119968 | J135: 00:01:04.360
B136: FEJKL | C136: Antonín | D136: 7.B | E136: 00:00:50.760 | G136: Jilemnice 19.06.23 | H136: 749.3238373 | J136: 00:00:51.010
B137: GOTTSTEIN | C137: Matouš | D137: 7.B | E137: 00:00:45.860 | G137: Jilemnice 19.06.23 | H137: 861.8677166 | J137: 00:00:47.930
B138: MAŘAS | C138: Dominik | D138: 7.B | E138: 00:01:26.820 | G138: Jilemnice 17.10.22 | H138: 311.8361931 | J138: 00:01:20.670 | K138: 00:01:18.210
B139: POVAŽANEC | C139: Lukáš | D139: 7.B | E139: 00:01:01.390 | G139: Jilemnice 05.06.23 | H139: 566.9361644 | J139: 00:01:04.130
B140: VANCL | C140: Jakub | D140: 7.B | E140: 00:01:06.320 | G140: Jilemnice 17.10.22 | H140: 502.1941463 | J140: 00:01:08.950
B141: VANCL | C141: Miroslav | D141: 7.B | E141: 00:01:36.810 | G141: Jilemnice 17.10.22 | H141: 248.287452 | J141: 00:01:32.620
B142: VOTOČEK | C142: Michal | D142: 7.B | E142: 00:01:09.910 | G142: Jilemnice 17.10.22 | H142: 460.7949325 | J142: 00:01:07.340
B143: DEMČUK | C143: Ilja | D143: 8.A | E143: 00:00:53.410 | G143: Jilemnice 17.10.22 | H143: 697.0621837 | J143: 00:00:53.360 | K143: 00:01:00.280
B144: FAISTAUER | C144: Kryštof | D144: 8.A | E144: 00:00:51.860 | G144: Jilemnice 17.10.22 | H144: 726.9819414 | J144: 00:00:52.980 | K144: 00:00:54.880
B145: FRK | C145: Matyáš | D145: 8.A | E145: 00:01:02.730 | G145: Jilemnice 17.10.22 | H145: 548.3318641 | J145: 00:01:14.910 | K145: 00:01:21.540
B146: HUBÁLOVSKÝ | C146: Marek | D146: 8.A | E146: 00:00:56.800 | G146: Jilemnice 17.10.22 | H146: 637.3159891 | J146: 00:00:53.080 | K146: 00:01:11.580
B147: MAŤÁTKO | C147: Jakub | D147: 8.A | E147: 00:01:13.600 | G147: Jilemnice 17.10.22 | H147: 422.4515242 | J147: 00:01:29.020 | K147: 00:01:24.110
B148: MERY | C148: Luboš | D148: 8.A | E148: 00:01:06.630 | G148: Jilemnice 17.10.22 | H148: 498.4433038 | J148: 00:01:06.760 | K148: 00:01:15.180
B149: NOVOTNÝ | C149: Matěj | D149: 8.A | E149: 00:01:12.840 | G149: Jilemnice 17.10.22 | H149: 430.031142 | J149: 00:01:09.540
B150: ŘEHOŘEK | C150: Vojtěch | D150: 8.A | E150: 00:01:00.020 | G150: Jilemnice 17.10.22 | H150: 586.8157994 | J150: 00:01:04.170 | K150: 00:01:11.820
B151: ŠÍR | C151: Matyáš | D151: 8.A | E151: 00:01:02.280 | G151: Jilemnice 17.10.22 | H151: 554.4902951 | K151: 00:01:09.460
B152: TORÁČ | C152: Tomáš | D152: 8.A | E152: 00:02:07.730 | G152: Jilemnice 17.10.22 | H152: 114.5947141 | J152: 00:02:06.130 | K152: 00:02:09.100
B153: VÁCLAVÍK | C153: Ondřej | D153: 8.A | H153: 0 | J153: 00:01:16.350 | K153: 00:00:58.550
B154: AUERSWALD | C154: Daniel | D154: 8.B | E154: 00:01:00.420 | G154: Jilemnice 17.10.22 | H154: 580.918343 | J154: 00:00:54.880 | K154: 00:00:59.520
B155: BOUKAL | C155: Jakub | D155: 8.B
B156: BUDÍN | C156: Martin | D156: 8.B | E156: 00:00:53.280 | G156: Jilemnice 17.10.22 | H156: =IF(E156=0,0,(1000000000-313216/E156+34538300/E156*2-1698600000/E156*3+32198000000/E156*4)/200000000000-304) -> 699.5047031 | J156: 00:00:55.190 | K156: 00:00:58.300
B157: DVOŘÁK | C157: Dominik | D157: 8.B | H157: 0 | J157: 00:01:00.920
B158: FIŠERA | C158: Vojtěch | D158: 8.B | E158: 00:01:01.920 | G158: Jilemnice 17.10.22 | H158: 559.4814887 | K158: 00:00:57.070
B159: JINDŘIŠEK | C159: Vít | D159: 8.B | E159: 00:00:42.340 | G159: Jilemnice 05.06.23 | H159: 958.7934786 | J159: 00:00:43.530
B160: JIROUŠ | C160: Matouš | D160: 8.B | E160: 00:00:55.660 | G160: Jilemnice 17.10.22 | H160: 656.5954452 | J160: 00:00:55.050
B161: KERLE | C161: Marek | D161: 8.B | E161: 00:00:44.950 | G161: Jilemnice 05.06.23 | H161: 885.4702766 | J161: 00:00:48.020 | K161: 00:00:54.010
B162: LUKEŠ | C162: Jakub | D162: 8.B | E162: 00:00:48.170 | G162: Jilemnice 17.10.22 | H162: 805.9585848 | J162: 00:00:46.890 | K162: 00:00:54.300
B163: OTT | C163: Matyáš | D163: 8.B | E163: 00:00:44.240 | G163: Jilemnice 05.06.23 | H163: 904.5597962 | J163: 00:00:48.620 | K163: 00:01:08.290
B164: POKORNÝ | C164: Matyáš | D164: 8.B | E164: 00:00:46.580 | G164: Jilemnice 17.10.22 | H164: 843.8466527 | J164: 00:00:44.070 | K164: 00:00:48.010
B165: POLÁČEK | C165: Matyáš | D165: 8.B | H165: 0 | J165: 00:01:06.520 | K165: 00:01:13.650
B166: ULLMAN | C166: Šimon | D166: 8.B | E166: 00:00:53.180 | G166: Jilemnice 17.10.22 | H166: 701.3916901 | J166: 00:00:48.360 | K166: 00:00:53.770
B167: VALENTA | C167: Jakub | D167: 8.B | E167: 00:00:50.250 | G167: Jilemnice 17.10.22 | H167: 760.0142375 | J167: 00:00:48.980
B168: VRBATA | C168: Dominik | D168: 8.B | E168: 00:00:55.100 | G168: Jilemnice 17.10.22 | H168: 666.3582519 | J168: 00:00:56.960 | K168: 00:00:57.790
B169: FEJKL | C169: Jan | D169: 9.A | E169: 00:00:45.510 | G169: Jilemnice 14.10.22 | H169: 870.8339207 | J169: 00:00:44.880 | L169: 00:00:54.980
B170: KOTYK | C170: Tadeáš | D170: 9.A | H170: 0 | J170: 00:01:09.690 | L170: 00:01:18.780
B171: KRAUSE | C171: Tadeáš | D171: 9.A | H171: 0 | J171: 00:00:46.380 | L171: 00:00:59.500
B172: LEŠÁK | C172: Martin | D172: 9.A | H172: 0 | J172: 00:00:57.910 | L172: 00:01:15.530
B173: NECHANICKÝ | C173: David | D173: 9.A | E173: 00:00:49.380 | G173: Jilemnice 14.10.22 | H173: 778.7604512 | J173: 00:00:46.990 | L173: 00:00:57.540
B174: ŘEHOŘEK | C174: Jan | D174: 9.A | E174: 00:00:51.360 | G174: Jilemnice 14.10.22 | H174: 737.0187107 | J174: 00:00:51.300 | L174: 00:00:58.500
B175: SOUKUP | C175: Ondřej | D175: 9.A | H175: 0 | L175: 00:01:04.170
B176: SPANILÝ | C176: David | D176: 9.A | E176: 00:00:45.800 | G176: Jilemnice 14.10.22 | H176: 863.3950476 | J176: 00:00:45.790 | L176: 00:01:00.950
B177: ČERNÝ | C177: Michal | D177: 9.B | E177: 00:00:59.010 | G177: Jilemnice 14.10.22 | H177: 602.0626882 | J177: 00:00:58.820 | L177: 00:01:13.500
B178: DOLEJŠÍ | C178: David | D178: 9.B | E178: 00:00:52.400 | G178: Jilemnice 14.10.22 | H178: 716.3573699 | J178: 00:00:51.270 | L178: 00:01:09.160
B179: POVAŽANEC | C179: Martin | D179: 9.B | H179: 0 | J179: 00:00:50.120 | L179: 00:01:22.800
B180: RICHTER | C180: Jakub | D180: 9.B | E180: 00:00:57.870 | G180: Jilemnice 14.10.22 | H180: 619.9114141 | J180: 00:00:57.420 | L180: 00:01:11.020
B181: ROZUMEK | C181: Adam | D181: 9.B | E181: 00:00:56.020 | G181: Jilemnice 14.10.22 | H181: 650.4224256 | J181: 00:01:07.910 | L181: 00:01:27.170
B182: VALENTA | C182: František | D182: 9.B | E182: 00:00:56.020 | G182: Jilemnice 14.10.22 | H182: =IF(E182=0,0,(1000000000-313216/E182+34538300/E182*2-1698600000/E182*3+32198000000/E182*4)/200000000000-304) -> 650.4224256 | J182: 00:00:56.220 | L182: 00:01:08.610
B183: ZAPLATÍLEK | C183: Josef | D183: 9.B | E183: 00:00:52.400 | G183: Jilemnice 14.10.22 | H183: =IF(E183=0,0,(1000000000-313216/E183+34538300/E183*2-1698600000/E183*3+32198000000/E183*4)/200000000000-304) -> 716.3573699 | J183: 00:00:51.560 | L183: 00:01:00.340
... 1 more rows

Sheet 1000
C1: VÝKONY 2022 - 2023 | G1: 1000 M | H1: CHLAPCI 6. - 9. ROČ.
B2: stav k | C2: =TODAY() -> 2023-06-26 | J2: 21 - 22 | K2: 20 - 21 | L2: 19 - 20
A4: 1. | B4: =B101 -> HONCŮ | C4: =C101 -> Filip | D4: 6.A | E4: 00:00:00 | G4: 0 | H4: 0 | J4: 00:00:00 | K4: 00:00:00 | L4: 00:00:00
A5: 2. | B5: =B102 -> JÍLEK | C5: Lukáš | D5: 6.A | E5: 00:00:00 | G5: =G102 -> 0 | H5: 0 | J5: =J102 -> 00:00:00 | K5: 00:00:00 | L5: 00:00:00
A6: 3. | B6: =B103 -> KUČERA | C6: Tadeáš | D6: 6.A | E6: 00:04:13.760 | G6: =G103 -> Turnov 16.05.23 | H6: 671.1346153 | J6: =J103 -> 00:00:00 | K6: 00:00:00 | L6: 00:00:00
A7: 4. | B7: =B104 -> ROZUMEK | C7: Lukáš | D7: 6.A | E7: 00:00:00 | G7: =G104 -> 0 | H7: 0 | J7: =J104 -> 00:00:00 | K7: 00:00:00 | L7: 00:00:00
A8: 5. | B8: =B105 -> ŘEHOŘEK | C8: Marek | D8: 6.A | E8: 00:00:00 | G8: =G105 -> 0 | H8: 0 | J8: =J105 -> 00:00:00 | K8: 00:00:00 | L8: 00:00:00
A9: 6. | B9: =B106 -> ŘÍHA | C9: Tadeáš | D9: 6.A | E9: 00:00:00 | G9: =G106 -> 0 | H9: 0 | J9: =J106 -> 00:00:00 | K9: 00:00:00 | L9: 00:00:00
A10: 7. | B10: =B107 -> SKRBEK | C10: Richard | D10: 6.A | E10: 00:00:00 | G10: =G107 -> 0 | H10: 0 | J10: =J107 -> 00:00:00 | K10: 00:00:00 | L10: 00:00:00
A11: 8. | B11: =B108 -> ŠIMEK | C11: Erik | D11: 6.A | E11: 00:00:00 | G11: =G108 -> 0 | H11: 0 | J11: =J108 -> 00:00:00 | K11: 00:00:00 | L11: 00:00:00
A12: 9. | B12: =B109 -> ŠÍR | C12: Jan | D12: 6.A | E12: 00:00:00 | G12: =G109 -> 0 | H12: 0 | J12: =J109 -> 00:00:00 | K12: 00:00:00 | L12: 00:00:00
A13: 10. | B13: =B110 -> ŠÍR | C13: Stanislav | D13: 6.A | E13: 00:00:00 | G13: =G110 -> 0 | H13: 0 | J13: =J110 -> 00:00:00 | K13: 00:00:00 | L13: 00:00:00
A14: 11. | B14: =B111 -> ŠPINAR | C14: František | D14: 6.A | E14: 00:00:00 | G14: =G111 -> 0 | H14: 0 | J14: =J111 -> 00:00:00 | K14: 00:00:00 | L14: 00:00:00
A15: 12. | B15: =B112 -> TOTH | C15: Mikuláš | D15: 6.A | E15: 00:00:00 | G15: =G112 -> 0 | H15: 0 | J15: =J112 -> 00:00:00 | K15: 00:00:00 | L15: 00:00:00
A16: 13. | B16: =B113 -> WEISZLEMLEIN | C16: Adam | D16: 6.A | E16: 00:00:00 | G16: =G113 -> 0 | H16: 0 | J16: =J113 -> 00:00:00 | K16: 00:00:00 | L16: 00:00:00
A17: 14. | B17: =B114 -> ČERNÝ | C17: Filip | D17: 6.B | E17: 00:00:00 | G17: =G114 -> 0 | H17: 0 | J17: =J114 -> 00:00:00 | K17: 00:00:00 | L17: 00:00:00
A18: 15. | B18: =B115 -> GINGAL | C18: Patrik | D18: 6.B | E18: 00:00:00 | G18: =G115 -> 0 | H18: 0 | J18: =J115 -> 00:00:00 | K18: 00:00:00 | L18: 00:00:00
A19: 16. | B19: =B116 -> HLAVÁCEK | C19: Josef | D19: 6.B | E19: 00:00:00 | G19: =G116 -> 0 | H19: 0 | J19: =J116 -> 00:00:00 | K19: 00:00:00 | L19: 00:00:00
A20: 17. | B20: =B117 -> KHUDA | C20: Ivan | D20: 6.B | E20: 00:00:00 | G20: =G117 -> 0 | H20: 0 | J20: =J117 -> 00:00:00 | K20: 00:00:00 | L20: 00:00:00
A21: 18. | B21: =B118 -> KRESAN | C21: Matěj | D21: 6.B | E21: 00:00:00 | G21: =G118 -> 0 | H21: 0 | J21: =J118 -> 00:00:00 | K21: 00:00:00 | L21: 00:00:00
A22: 19. | B22: =B119 -> RYCHTR | C22: Vojtěch | D22: 6.B | E22: 00:00:00 | G22: =G119 -> 0 | H22: 0 | J22: =J119 -> 00:00:00 | K22: 00:00:00 | L22: 00:00:00
A23: 20. | B23: =B120 -> ŠTAJER | C23: David | D23: 6.B | E23: 00:00:00 | G23: =G120 -> 0 | H23: 0 | J23: =J120 -> 00:00:00 | K23: 00:00:00 | L23: 00:00:00
A24: 21. | B24: =B121 -> TKACHUK | C24: Dzvenyslav | D24: 6.B | E24: 00:00:00 | G24: =G121 -> 0 | H24: 0 | J24: =J121 -> 00:00:00 | K24: 00:00:00 | L24: 00:00:00
A25: 22. | B25: =B122 -> VELIKOVSKÝ | C25: Dominik | D25: 6.B | E25: 00:00:00 | G25: =G122 -> 0 | H25: 0 | J25: =J122 -> 00:00:00 | K25: 00:00:00 | L25: 00:00:00
A26: 23. | B26: =B123 -> EXNER | C26: Tomáš | D26: 7.A | E26: 00:05:30.390 | G26: =G123 -> Jilemnice 29.05.23 | H26: 516.1688005 | J26: =J123 -> 00:06:05.110 | K26: 00:00:00 | L26: 00:00:00
A27: 24. | B27: =B124 -> JANATA | C27: Denis | D27: 7.A | E27: 00:05:57.410 | G27: =G124 -> Jilemnice 29.05.23 | H27: 477.3735206 | J27: =J124 -> 00:05:37.770 | K27: 00:00:00 | L27: 00:00:00
A28: 25. | B28: =B125 -> JINDŘIŠEK | C28: Alex Jiří | D28: 7.A | E28: 00:00:00 | G28: =G125 -> 0 | H28: 0 | J28: =J125 -> 00:05:50.550 | K28: 00:00:00 | L28: 00:00:00
A29: 26. | B29: =B126 -> KAZLEPKA | C29: Miroslav | D29: 7.A | E29: 00:00:00 | G29: =G126 -> 0 | H29: 0 | J29: =J126 -> 00:00:00 | K29: 00:00:00 | L29: 00:00:00
A30: 27. | B30: =B127 -> MARŠÁLEK | C30: Ondřej | D30: 7.A | E30: 00:05:16.140 | G30: =G127 -> Jilemnice 29.05.23 | H30: 539.2998671 | J30: =J127 -> 00:05:29.220 | K30: 00:00:00 | L30: 00:00:00
A31: 28. | B31: =B128 -> MLATEČEK | C31: Patrik | D31: 7.A | E31: 00:05:20.750 | G31: =G128 -> Jilemnice 29.05.23 | H31: 531.5918628 | J31: =J128 -> 00:05:47.140 | K31: 00:00:00 | L31: 00:00:00
A32: 29. | B32: =B129 -> SCHOLZ | C32: Matyáš | D32: 7.A | E32: 00:00:00 | G32: =G129 -> 0 | H32: 0 | J32: =J129 -> 00:06:27.230 | K32: 00:00:00 | L32: 00:00:00
A33: 30. | B33: =B130 -> TOMÁŠ | C33: Jakub | D33: 7.A | E33: 00:04:18.490 | G33: =G130 -> Jilemnice 29.05.23 | H33: 658.9087004 | J33: =J130 -> 00:04:08.320 | K33: 00:00:00 | L33: 00:00:00
A34: 31. | B34: =B131 -> VÁCLAVÍK | C34: Jan | D34: 7.A | E34: 00:04:09.630 | G34: =G131 -> Turnov 16.05.23 | H34: 682.1885589 | J34: =J131 -> 00:04:22.770 | K34: 00:00:00 | L34: 00:00:00
A35: 32. | B35: =B132 -> VEČEŘA | C35: David | D35: 7.A | E35: 00:05:10.840 | G35: =G132 -> Jilemnice 29.05.23 | H35: 548.4440869 | J35: =J132 -> 00:05:08.560 | K35: 00:00:00 | L35: 00:00:00
A36: 33. | B36: =B133 -> VYBÍRAL | C36: Radim | D36: 7.A | E36: 00:03:51.220 | G36: =G133 -> Jilemnice 29.05.23 | H36: 736.2663263 | J36: =J133 -> 00:03:37.520 | K36: 00:00:00 | L36: 00:00:00
A37: 34. | B37: =B134 -> BERISHA | C37: David | D37: 7.B | E37: 00:00:00 | G37: =G134 -> 0 | H37: 0 | J37: =J134 -> 00:10:22.160 | K37: 00:00:00 | L37: 00:00:00
A38: 35. | B38: =B135 -> EFENBERK | C38: Šimon | D38: 7.B | E38: 00:04:58.020 | G38: =G135 -> Jilemnice 29.05.23 | H38: 571.90759 | J38: =J135 -> 00:05:31.070 | K38: 00:00:00 | L38: 00:00:00
A39: 36. | B39: =B136 -> FEJKL | C39: Antonín | D39: 7.B | E39: 00:03:34.040 | G39: =G136 -> Jilemnice 05.06.23 | H39: 795.1222199 | J39: =J136 -> 00:03:57.680 | K39: 00:00:00 | L39: 00:00:00
A40: 37. | B40: =B137 -> GOTTSTEIN | C40: Matouš | D40: 7.B | E40: 00:03:10.250 | G40: =G137 -> Jilemnice 29.05.23 | H40: 894.1739288 | J40: =J137 -> 00:03:20.260 | K40: 00:00:00 | L40: 00:00:00
A41: 38. | B41: =B138 -> MAŘAS | C41: Dominik | D41: 7.B | E41: 00:04:22.160 | G41: =G138 -> Jilemnice 29.05.23 | H41: 649.7265791 | J41: =J138 -> 00:07:02.110 | K41: 00:00:00 | L41: 00:00:00
A42: 39. | B42: =B139 -> POVAŽANEC | C42: Lukáš | D42: 7.B | E42: 00:04:51.040 | G42: =G139 -> Jilemnice 29.05.23 | H42: 585.5516767 | J42: =J139 -> 00:05:26.550 | K42: 00:00:00 | L42: 00:00:00
A43: 40. | B43: =B140 -> VANCL | C43: Jakub | D43: 7.B | E43: 00:05:19.210 | G43: =G140 -> Jilemnice 29.05.23 | H43: 534.1420068 | J43: =J140 -> 00:05:08.040 | K43: 00:00:00 | L43: 00:00:00
A44: 41. | B44: =B141 -> VANCL | C44: Miroslav | D44: 7.B | E44: 00:07:16.920 | G44: =G141 -> Jilemnice 29.05.23 | H44: 391.0477891 | J44: =J141 -> 00:07:26.110 | K44: 00:00:00 | L44: 00:00:00
A45: 42. | B45: =B142 -> VOTOČEK | C45: Michal | D45: 7.B | E45: 00:04:51.610 | G45: =G142 -> Jilemnice 29.05.23 | H45: 584.412983 | J45: =J142 -> 00:05:26.920 | K45: 00:00:00 | L45: 00:00:00
A46: 43. | B46: =B143 -> DEMČUK | C46: Ilja | D46: 8.A | E46: 00:04:33.520 | G46: =G143 -> Jilemnice 29.05.23 | H46: 622.8663351 | J46: =J143 -> 00:04:08.480 | K46: 00:00:00 | L46: 00:00:00
A47: 44. | B47: =B144 -> FAISTAUER | C47: Kryštof | D47: 8.A | E47: 00:03:54.210 | G47: =G144 -> Jilemnice 29.05.23 | H47: 726.9052131 | J47: =J144 -> 00:04:01.820 | K47: 00:00:00 | L47: 00:00:00
A48: 45. | B48: =B145 -> FRK | C48: Matyáš | D48: 8.A | E48: 00:00:00 | G48: =G145 -> 0 | H48: 0 | J48: =J145 -> 00:07:03.570 | K48: 00:00:00 | L48: 00:00:00
A49: 46. | B49: =B146 -> HUBÁLOVSKÝ | C49: Marek | D49: 8.A | E49: 00:04:19.620 | G49: =G146 -> Jilemnice 29.05.23 | H49: 656.0538478 | J49: =J146 -> 00:04:33.040 | K49: 00:00:00 | L49: 00:00:00
A50: 47. | B50: =B147 -> MAŤÁTKO | C50: Jakub | D50: 8.A | E50: 00:00:00 | G50: =G147 -> 0 | H50: 0 | J50: =J147 -> 00:00:00 | K50: 00:00:00 | L50: 00:00:00
A51: 48. | B51: =B148 -> MERY | C51: Luboš | D51: 8.A | E51: 00:05:31.270 | G51: =G148 -> Jilemnice 29.05.23 | H51: 514.8055966 | J51: =J148 -> 00:04:45.950 | K51: 00:00:00 | L51: 00:00:00
A52: 49. | B52: =B149 -> NOVOTNÝ | C52: Matěj | D52: 8.A | E52: 00:05:34.810 | G52: =G149 -> Jilemnice 29.05.23 | H52: 509.3941937 | J52: =J149 -> 00:06:27.700 | K52: 00:00:00 | L52: 00:00:00
A53: 50. | B53: =B150 -> ŘEHOŘEK | C53: Vojtěch | D53: 8.A | E53: 00:04:22.480 | G53: =G150 -> Jilemnice 29.05.23 | H53: 648.9381285 | J53: =J150 -> 00:04:56.860 | K53: 00:00:00 | L53: 00:00:00
A54: 51. | B54: =B151 -> ŠÍR | C54: Matyáš | D54: 8.A | E54: 00:00:00 | G54: =G151 -> 0 | H54: 0 | J54: =J151 -> 00:04:37.540 | K54: 00:00:00 | L54: 00:00:00
A55: 52. | B55: =B152 -> TORÁČ | C55: Tomáš | D55: 8.A | E55: 00:00:00 | G55: =G152 -> 0 | H55: 0 | J55: =J152 -> 00:08:31.860 | K55: 00:00:00 | L55: 00:00:00
A56: 53. | B56: =B153 -> VÁCLAVÍK | C56: Ondřej | D56: 8.A | E56: 00:03:38.680 | G56: =G153 -> Jilemnice 29.05.23 | H56: 778.3147977 | J56: =J153 -> 00:04:04.290 | K56: 00:00:00 | L56: 00:00:00
A57: 54. | B57: =B154 -> AUERSWALD | C57: Daniel | D57: 8.B | E57: 00:00:00 | G57: =G154 -> 0 | H57: 0 | J57: =J154 -> 00:04:33.760 | K57: 00:00:00 | L57: 00:00:00
A58: 55. | B58: =B155 -> BOUKAL | C58: Jakub | D58: 8.B | E58: 00:00:00 | G58: =G155 -> 0 | H58: 0 | J58: =J155 -> 00:00:00 | K58: 00:00:00 | L58: 00:00:00
A59: 56. | B59: =B156 -> BUDÍN | C59: Martin | D59: 8.B | E59: 00:03:20.900 | G59: =G156 -> Jilemnice 05.06.23 | H59: 846.931508 | J59: =J156 -> 00:03:40.660 | K59: 00:00:00 | L59: 00:00:00
A60: 57. | B60: =B157 -> DVOŘÁK | C60: Dominik | D60: 8.B | E60: 00:04:46.920 | G60: =G157 -> Jilemnice 29.05.23 | H60: 593.9167711 | J60: =J157 -> 00:00:00 | K60: 00:00:00 | L60: 00:00:00
A61: 58. | B61: =B158 -> FIŠERA | C61: Vojtěch | D61: 8.B | E61: 00:04:43.630 | G61: =G158 -> Jilemnice 29.05.23 | H61: 600.7711807 | J61: =J158 -> 00:04:36.060 | K61: 00:00:00 | L61: 00:00:00
A62: 59. | B62: =B159 -> JINDŘIŠEK | C62: Vít | D62: 8.B | E62: 00:03:07.980 | G62: =G159 -> Jilemnice 29.05.23 | H62: 904.9355248 | J62: =J159 -> 00:03:18.470 | K62: 00:00:00 | L62: 00:00:00
A63: 60. | B63: =B160 -> JIROUŠ | C63: Matouš | D63: 8.B | E63: 00:00:00 | G63: =G160 -> 0 | H63: 0 | J63: =J160 -> 00:00:00 | K63: 00:00:00 | L63: 00:00:00
A64: 61. | B64: =B161 -> KERLE | C64: Marek | D64: 8.B | E64: 00:03:36.620 | G64: =G161 -> Jilemnice 29.05.23 | H64: 785.6878403 | J64: =J161 -> 00:03:57.050 | K64: 00:00:00 | L64: 00:00:00
A65: 62. | B65: =B162 -> LUKEŠ | C65: Jakub | D65: 8.B | E65: 00:03:28.410 | G65: =G162 -> Jilemnice 29.05.23 | H65: 816.5206562 | J65: =J162 -> 00:03:31.960 | K65: 00:00:00 | L65: 00:00:00
A66: 63. | B66: =B163 -> OTT | C66: Matyáš | D66: 8.B | E66: 00:03:20.680 | G66: =G163 -> Jilemnice 29.05.23 | H66: 847.856687 | J66: =J163 -> 00:03:24.090 | K66: 00:00:00 | L66: 00:00:00
A67: 64. | B67: =B164 -> POKORNÝ | C67: Matyáš | D67: 8.B | E67: 00:03:26.940 | G67: =G164 -> Turnov 16.05.23 | H67: 822.2995069 | J67: =J164 -> 00:03:14.690 | K67: 00:00:00 | L67: 00:00:00
A68: 65. | B68: =B165 -> POLÁČEK | C68: Matyáš | D68: 8.B | E68: 00:05:19.800 | G68: =G165 -> Jilemnice 29.05.23 | H68: 533.1621013 | J68: =J165 -> 00:00:00 | K68: 00:00:00 | L68: 00:00:00
A69: 66. | B69: =B166 -> ULLMAN | C69: Šimon | D69: 8.B | E69: 00:05:06.060 | G69: =G166 -> Jilemnice 29.05.23 | H69: 556.9627523 | J69: =J166 -> 00:04:09.990 | K69: 00:00:00 | L69: 00:00:00
A70: 67. | B70: =B167 -> VALENTA | C70: Jakub | D70: 8.B | E70: 00:03:51.850 | G70: =G167 -> Turnov 16.05.23 | H70: 734.2738407 | J70: =J167 -> 00:03:36.140 | K70: 00:00:00 | L70: 00:00:00
A71: 68. | B71: =B168 -> VRBATA | C71: Dominik | D71: 8.B | E71: 00:03:57.340 | G71: =G168 -> Jilemnice 29.05.23 | H71: 717.3584729 | J71: =J168 -> 00:04:05.640 | K71: 00:00:00 | L71: 00:00:00
A72: 69. | B72: =B169 -> FEJKL | C72: Jan | D72: 9.A | E72: 00:03:35.900 | G72: =G169 -> Turnov 13.09.22 | H72: 788.2980081 | J72: =J169 -> 00:03:31.980 | K72: 00:00:00 | L72: 00:00:00
A73: 70. | B73: =B170 -> KOTYK | C73: Tadeáš | D73: 9.A | E73: 00:00:00 | G73: =G170 -> 0 | H73: 0 | J73: =J170 -> 00:08:13.460 | K73: 00:00:00 | L73: 00:00:00
A74: 71. | B74: =B171 -> KRAUSE | C74: Tadeáš | D74: 9.A | E74: 00:03:12.100 | G74: =G171 -> Turnov 11.05.23 | H74: 885.5915666 | J74: =J171 -> 00:03:27 | K74: 00:00:00 | L74: 00:00:00
A75: 72. | B75: =B172 -> LEŠÁK | C75: Martin | D75: 9.A | E75: 00:00:00 | G75: =G172 -> 0 | H75: 0 | J75: =J172 -> 00:04:54.750 | K75: 00:00:00 | L75: 00:00:00
A76: 73. | B76: =B173 -> NECHANICKÝ | C76: David | D76: 9.A | E76: 00:03:43.500 | G76: =G173 -> Turnov 13.09.22 | H76: 761.5943622 | J76: =J173 -> 00:03:56 | K76: 00:00:00 | L76: 00:00:00
A77: 74. | B77: =B174 -> ŘEHOŘEK | C77: Jan | D77: 9.A | E77: 00:00:00 | G77: =G174 -> 0 | H77: 0 | J77: =J174 -> 00:04:13.920 | K77: 00:00:00 | L77: 00:00:00
A78: 75. | B78: =B175 -> SOUKUP | C78: Ondřej | D78: 9.A | E78: 00:00:00 | G78: =G175 -> 0 | H78: 0 | J78: =J175 -> 00:00:00 | K78: 00:00:00 | L78: 00:00:00
A79: 76. | B79: =B176 -> SPANILÝ | C79: David | D79: 9.A | E79: 00:03:28.500 | G79: =G176 -> Turnov 13.09.22 | H79: 816.1694962 | J79: =J176 -> 00:03:37 | K79: 00:00:00 | L79: 00:00:00
A80: 77. | B80: =B177 -> ČERNÝ | C80: Michal | D80: 9.B | E80: 00:00:00 | G80: =G177 -> 0 | H80: 0 | J80: =J177 -> 00:04:56.460 | K80: 00:00:00 | L80: 00:00:00
A81: 78. | B81: =B178 -> DOLEJŠÍ | C81: David | D81: 9.B | E81: 00:00:00 | G81: =G178 -> 0 | H81: 0 | J81: =J178 -> 00:03:58 | K81: 00:00:00 | L81: 00:00:00
A82: 79. | B82: =B179 -> POVAŽANEC | C82: Martin | D82: 9.B | E82: 00:04:29.200 | G82: =G179 -> Turnov 11.05.23 | H82: 632.81367 | J82: =J179 -> 00:04:07.770 | K82: 00:00:00 | L82: 00:00:00
A83: 80. | B83: =B180 -> RICHTER | C83: Jakub | D83: 9.B | E83: 00:00:00 | G83: =G180 -> 0 | H83: 0 | J83: =J180 -> 00:04:39.840 | K83: 00:00:00 | L83: 00:00:00
A84: 81. | B84: =B181 -> ROZUMEK | C84: Adam | D84: 9.B | E84: 00:00:00 | G84: =G181 -> 0 | H84: 0 | J84: =J181 -> 00:04:45.200 | K84: 00:00:00 | L84: 00:00:00
A85: 82. | B85: =B182 -> VALENTA | C85: František | D85: 9.B | E85: 00:00:00 | G85: =G182 -> 0 | H85: 0 | J85: =J182 -> 00:04:34.860 | K85: 00:00:00 | L85: 00:00:00
A86: 83. | B86: =B183 -> ZAPLATÍLEK | C86: Josef | D86: 9.B | E86: 00:00:00 | G86: =G183 -> 0 | H86: 0 | J86: =J183 -> 00:04:00.980 | K86: 00:00:00 | L86: 00:00:00
B101: HONCŮ | C101: Filip | D101: 6.A | H101: =IF(E101=0,0,(100 - 313216 / E101 + 3453830 / E101*2 - 169860000 / E101*3 + 321980000/ E101*4)/400000000+3) -> 0
B102: JÍLEK | C102: Lukáš | D102: 6.A | H102: 0
B103: KUČERA | C103: Tadeáš | D103: 6.A | E103: 00:04:13.760 | G103: Turnov 16.05.23 | H103: 671.1346153
B104: ROZUMEK | C104: Lukáš | D104: 6.A | H104: 0
B105: ŘEHOŘEK | C105: Marek | D105: 6.A | H105: 0
B106: ŘÍHA | C106: Tadeáš | D106: 6.A | H106: 0
B107: SKRBEK | C107: Richard | D107: 6.A | H107: 0
B108: ŠIMEK | C108: Erik | D108: 6.A | H108: 0
B109: ŠÍR | C109: Jan | D109: 6.A | H109: 0
B110: ŠÍR | C110: Stanislav | D110: 6.A | H110: 0
B111: ŠPINAR | C111: František | D111: 6.A | H111: 0
B112: TOTH | C112: Mikuláš | D112: 6.A | H112: 0
B113: WEISZLEMLEIN | C113: Adam | D113: 6.A | H113: 0
B114: ČERNÝ | C114: Filip | D114: 6.B | H114: 0
B115: GINGAL | C115: Patrik | D115: 6.B | H115: 0
B116: HLAVÁCEK | C116: Josef | D116: 6.B | H116: 0
B117: KHUDA | C117: Ivan | D117: 6.B | H117: 0
B118: KRESAN | C118: Matěj | D118: 6.B | H118: 0
B119: RYCHTR | C119: Vojtěch | D119: 6.B | H119: 0
B120: ŠTAJER | C120: David | D120: 6.B | H120: 0
B121: TKACHUK | C121: Dzvenyslav | D121: 6.B | H121: 0
B122: VELIKOVSKÝ | C122: Dominik | D122: 6.B | H122: 0
B123: EXNER | C123: Tomáš | D123: 7.A | E123: 00:05:30.390 | G123: Jilemnice 29.05.23 | H123: 516.1688005 | J123: 00:06:05.110
B124: JANATA | C124: Denis | D124: 7.A | E124: 00:05:57.410 | G124: Jilemnice 29.05.23 | H124: 477.3735206 | J124: 00:05:37.770
B125: JINDŘIŠEK | C125: Alex Jiří | D125: 7.A | H125: 0 | J125: 00:05:50.550
B126: KAZLEPKA | C126: Miroslav | D126: 7.A
B127: MARŠÁLEK | C127: Ondřej | D127: 7.A | E127: 00:05:16.140 | G127: Jilemnice 29.05.23 | H127: =IF(E127=0,0,(100 - 313216 / E127 + 3453830 / E127*2 - 169860000 / E127*3 + 321980000/ E127*4)/400000000+3) -> 539.2998671 | J127: 00:05:29.220
B128: MLATEČEK | C128: Patrik | D128: 7.A | E128: 00:05:20.750 | G128: Jilemnice 29.05.23 | H128: 531.5918628 | J128: 00:05:47.140
B129: SCHOLZ | C129: Matyáš | D129: 7.A | H129: 0 | J129: 00:06:27.230
B130: TOMÁŠ | C130: Jakub | D130: 7.A | E130: 00:04:18.490 | G130: Jilemnice 29.05.23 | H130: 658.9087004 | J130: 00:04:08.320
B131: VÁCLAVÍK | C131: Jan | D131: 7.A | E131: 00:04:09.630 | G131: Turnov 16.05.23 | H131: 682.1885589 | J131: 00:04:22.770
B132: VEČEŘA | C132: David | D132: 7.A | E132: 00:05:10.840 | G132: Jilemnice 29.05.23 | H132: 548.4440869 | J132: 00:05:08.560
B133: VYBÍRAL | C133: Radim | D133: 7.A | E133: 00:03:51.220 | G133: Jilemnice 29.05.23 | H133: 736.2663263 | J133: 00:03:37.520
B134: BERISHA | C134: David | D134: 7.B | H134: 0 | J134: 00:10:22.160
B135: EFENBERK | C135: Šimon | D135: 7.B | E135: 00:04:58.020 | G135: Jilemnice 29.05.23 | H135: 571.90759 | J135: 00:05:31.070
B136: FEJKL | C136: Antonín | D136: 7.B | E136: 00:03:34.040 | G136: Jilemnice 05.06.23 | H136: 795.1222199 | J136: 00:03:57.680
B137: GOTTSTEIN | C137: Matouš | D137: 7.B | E137: 00:03:10.250 | G137: Jilemnice 29.05.23 | H137: 894.1739288 | J137: 00:03:20.260
B138: MAŘAS | C138: Dominik | D138: 7.B | E138: 00:04:22.160 | G138: Jilemnice 29.05.23 | H138: 649.7265791 | J138: 00:07:02.110
B139: POVAŽANEC | C139: Lukáš | D139: 7.B | E139: 00:04:51.040 | G139: Jilemnice 29.05.23 | H139: 585.5516767 | J139: 00:05:26.550
B140: VANCL | C140: Jakub | D140: 7.B | E140: 00:05:19.210 | G140: Jilemnice 29.05.23 | H140: 534.1420068 | J140: 00:05:08.040
B141: VANCL | C141: Miroslav | D141: 7.B | E141: 00:07:16.920 | G141: Jilemnice 29.05.23 | H141: 391.0477891 | J141: 00:07:26.110
B142: VOTOČEK | C142: Michal | D142: 7.B | E142: 00:04:51.610 | G142: Jilemnice 29.05.23 | H142: 584.412983 | J142: 00:05:26.920
B143: DEMČUK | C143: Ilja | D143: 8.A | E143: 00:04:33.520 | G143: Jilemnice 29.05.23 | H143: 622.8663351 | J143: 00:04:08.480
B144: FAISTAUER | C144: Kryštof | D144: 8.A | E144: 00:03:54.210 | G144: Jilemnice 29.05.23 | H144: 726.9052131 | J144: 00:04:01.820
B145: FRK | C145: Matyáš | D145: 8.A | H145: 0 | J145: 00:07:03.570
B146: HUBÁLOVSKÝ | C146: Marek | D146: 8.A | E146: 00:04:19.620 | G146: Jilemnice 29.05.23 | H146: 656.0538478 | J146: 00:04:33.040
B147: MAŤÁTKO | C147: Jakub | D147: 8.A | H147: 0
B148: MERY | C148: Luboš | D148: 8.A | E148: 00:05:31.270 | G148: Jilemnice 29.05.23 | H148: 514.8055966 | J148: 00:04:45.950
B149: NOVOTNÝ | C149: Matěj | D149: 8.A | E149: 00:05:34.810 | G149: Jilemnice 29.05.23 | H149: 509.3941937 | J149: 00:06:27.700
B150: ŘEHOŘEK | C150: Vojtěch | D150: 8.A | E150: 00:04:22.480 | G150: Jilemnice 29.05.23 | H150: 648.9381285 | J150: 00:04:56.860
B151: ŠÍR | C151: Matyáš | D151: 8.A | H151: 0 | J151: 00:04:37.540
B152: TORÁČ | C152: Tomáš | D152: 8.A | H152: 0 | J152: 00:08:31.860
B153: VÁCLAVÍK | C153: Ondřej | D153: 8.A | E153: 00:03:38.680 | G153: Jilemnice 29.05.23 | H153: 778.3147977 | J153: 00:04:04.290
B154: AUERSWALD | C154: Daniel | D154: 8.B | H154: 0 | J154: 00:04:33.760
B155: BOUKAL | C155: Jakub | D155: 8.B | H155: 0
B156: BUDÍN | C156: Martin | D156: 8.B | E156: 00:03:20.900 | G156: Jilemnice 05.06.23 | H156: 846.931508 | J156: 00:03:40.660
B157: DVOŘÁK | C157: Dominik | D157: 8.B | E157: 00:04:46.920 | G157: Jilemnice 29.05.23 | H157: 593.9167711
B158: FIŠERA | C158: Vojtěch | D158: 8.B | E158: 00:04:43.630 | G158: Jilemnice 29.05.23 | H158: 600.7711807 | J158: 00:04:36.060
B159: JINDŘIŠEK | C159: Vít | D159: 8.B | E159: 00:03:07.980 | G159: Jilemnice 29.05.23 | H159: =IF(E159=0,0,(100 - 313216 / E159 + 3453830 / E159*2 - 169860000 / E159*3 + 321980000/ E159*4)/400000000+3) -> 904.9355248 | J159: 00:03:18.470
B160: JIROUŠ | C160: Matouš | D160: 8.B | H160: 0
B161: KERLE | C161: Marek | D161: 8.B | E161: 00:03:36.620 | G161: Jilemnice 29.05.23 | H161: 785.6878403 | J161: 00:03:57.050
B162: LUKEŠ | C162: Jakub | D162: 8.B | E162: 00:03:28.410 | G162: Jilemnice 29.05.23 | H162: 816.5206562 | J162: 00:03:31.960
B163: OTT | C163: Matyáš | D163: 8.B | E163: 00:03:20.680 | G163: Jilemnice 29.05.23 | H163: 847.856687 | J163: 00:03:24.090
B164: POKORNÝ | C164: Matyáš | D164: 8.B | E164: 00:03:26.940 | G164: Turnov 16.05.23 | H164: 822.2995069 | J164: 00:03:14.690
B165: POLÁČEK | C165: Matyáš | D165: 8.B | E165: 00:05:19.800 | G165: Jilemnice 29.05.23 | H165: 533.1621013
B166: ULLMAN | C166: Šimon | D166: 8.B | E166: 00:05:06.060 | G166: Jilemnice 29.05.23 | H166: 556.9627523 | J166: 00:04:09.990
B167: VALENTA | C167: Jakub | D167: 8.B | E167: 00:03:51.850 | G167: Turnov 16.05.23 | H167: 734.2738407 | J167: 00:03:36.140
B168: VRBATA | C168: Dominik | D168: 8.B | E168: 00:03:57.340 | G168: Jilemnice 29.05.23 | H168: 717.3584729 | J168: 00:04:05.640
B169: FEJKL | C169: Jan | D169: 9.A | E169: 00:03:35.900 | G169: Turnov 13.09.22 | H169: 788.2980081 | J169: 00:03:31.980
B170: KOTYK | C170: Tadeáš | D170: 9.A | H170: 0 | J170: 00:08:13.460
B171: KRAUSE | C171: Tadeáš | D171: 9.A | E171: 00:03:12.100 | G171: Turnov 11.05.23 | H171: 885.5915666 | J171: 00:03:27
B172: LEŠÁK | C172: Martin | D172: 9.A | H172: 0 | J172: 00:04:54.750
B173: NECHANICKÝ | C173: David | D173: 9.A | E173: 00:03:43.500 | G173: Turnov 13.09.22 | H173: 761.5943622 | J173: 00:03:56
B174: ŘEHOŘEK | C174: Jan | D174: 9.A | H174: 0 | J174: 00:04:13.920
B175: SOUKUP | C175: Ondřej | D175: 9.A | H175: 0
B176: SPANILÝ | C176: David | D176: 9.A | E176: 00:03:28.500 | G176: Turnov 13.09.22 | H176: 816.1694962 | J176: 00:03:37
B177: ČERNÝ | C177: Michal | D177: 9.B | H177: 0 | J177: 00:04:56.460
B178: DOLEJŠÍ | C178: David | D178: 9.B | H178: 0 | J178: 00:03:58
B179: POVAŽANEC | C179: Martin | D179: 9.B | E179: 00:04:29.200 | G179: Turnov 11.05.23 | H179: 632.81367 | J179: 00:04:07.770
B180: RICHTER | C180: Jakub | D180: 9.B | H180: 0 | J180: 00:04:39.840
B181: ROZUMEK | C181: Adam | D181: 9.B | H181: 0 | J181: 00:04:45.200
B182: VALENTA | C182: František | D182: 9.B | H182: 0 | J182: 00:04:34.860
B183: ZAPLATÍLEK | C183: Josef | D183: 9.B | H183: 0 | J183: 00:04:00.980

Sheet DÁLKA
C1: VÝKONY 2022 - 2023 | G1: DÁLKA | H1: CHLAPCI 6. - 9. ROČ.
B2: stav k | C2: =TODAY() -> 2023-06-26 | J2: 21 - 22 | K2: 20 - 21 | L2: 19 - 20
A4: 1. | B4: =B101 -> HONCŮ | C4: =C101 -> Filip | D4: 6.A | E4: 302 | G4: Jilemnice 16.06.23 | H4: 558.714 | J4: 0 | K4: 0 | L4: 0
A5: 2. | B5: =B102 -> JÍLEK | C5: Lukáš | D5: 6.A | E5: 0 | G5: =G102 -> 0 | H5: 0 | J5: =J102 -> 0 | K5: 0 | L5: 0
A6: 3. | B6: =B103 -> KUČERA | C6: Tadeáš | D6: 6.A | E6: 308 | G6: =G103 -> Jilemnice 16.06.23 | H6: 567.606 | J6: =J103 -> 0 | K6: 0 | L6: 0
A7: 4. | B7: =B104 -> ROZUMEK | C7: Lukáš | D7: 6.A | E7: 225 | G7: =G104 -> Jilemnice 16.06.23 | H7: 444.6 | J7: =J104 -> 0 | K7: 0 | L7: 0
A8: 5. | B8: =B105 -> ŘEHOŘEK | C8: Marek | D8: 6.A | E8: 0 | G8: =G105 -> 0 | H8: 0 | J8: =J105 -> 0 | K8: 0 | L8: 0
A9: 6. | B9: =B106 -> ŘÍHA | C9: Tadeáš | D9: 6.A | E9: 403 | G9: =G106 -> Jilemnice 16.06.23 | H9: 708.396 | J9: =J106 -> 0 | K9: 0 | L9: 0
A10: 7. | B10: =B107 -> SKRBEK | C10: Richard | D10: 6.A | E10: 317 | G10: =G107 -> Jilemnice 16.06.23 | H10: 580.944 | J10: =J107 -> 0 | K10: 0 | L10: 0
A11: 8. | B11: =B108 -> ŠIMEK | C11: Erik | D11: 6.A | E11: 0 | G11: =G108 -> 0 | H11: 0 | J11: =J108 -> 0 | K11: 0 | L11: 0
A12: 9. | B12: =B109 -> ŠÍR | C12: Jan | D12: 6.A | E12: 319 | G12: =G109 -> Jilemnice 16.06.23 | H12: 583.908 | J12: =J109 -> 0 | K12: 0 | L12: 0
A13: 10. | B13: =B110 -> ŠÍR | C13: Stanislav | D13: 6.A | E13: 0 | G13: =G110 -> 0 | H13: 0 | J13: =J110 -> 0 | K13: 0 | L13: 0
A14: 11. | B14: =B111 -> ŠPINAR | C14: František | D14: 6.A | E14: 262 | G14: =G111 -> Jilemnice 16.06.23 | H14: 499.434 | J14: =J111 -> 0 | K14: 0 | L14: 0
A15: 12. | B15: =B112 -> TOTH | C15: Mikuláš | D15: 6.A | E15: 0 | G15: =G112 -> 0 | H15: 0 | J15: =J112 -> 0 | K15: 0 | L15: 0
A16: 13. | B16: =B113 -> WEISZLEMLEIN | C16: Adam | D16: 6.A | E16: 240 | G16: =G113 -> Jilemnice 16.06.23 | H16: 466.83 | J16: =J113 -> 0 | K16: 0 | L16: 0
A17: 14. | B17: =B114 -> ČERNÝ | C17: Filip | D17: 6.B | E17: 0 | G17: =G114 -> 0 | H17: 0 | J17: =J114 -> 0 | K17: 0 | L17: 0
A18: 15. | B18: =B115 -> GINGAL | C18: Patrik | D18: 6.B | E18: 0 | G18: =G115 -> 0 | H18: 0 | J18: =J115 -> 0 | K18: 0 | L18: 0
A19: 16. | B19: =B116 -> HLAVÁČEK | C19: Josef | D19: 6.B | E19: 384 | G19: =G116 -> Turnov 16.05.23 | H19: 680.238 | J19: =J116 -> 0 | K19: 0 | L19: 0
A20: 17. | B20: =B117 -> KHUDA | C20: Ivan | D20: 6.B | E20: 0 | G20: =G117 -> 0 | H20: 0 | J20: =J117 -> 0 | K20: 0 | L20: 0
A21: 18. | B21: =B118 -> KRESAN | C21: Matěj | D21: 6.B | E21: 0 | G21: =G118 -> 0 | H21: 0 | J21: =J118 -> 0 | K21: 0 | L21: 0
A22: 19. | B22: =B119 -> RYCHTR | C22: Vojtěch | D22: 6.B | E22: 0 | G22: =G119 -> 0 | H22: 0 | J22: =J119 -> 0 | K22: 0 | L22: 0
A23: 20. | B23: =B120 -> ŠTAJER | C23: David | D23: 6.B | E23: 0 | G23: =G120 -> 0 | H23: 0 | J23: =J120 -> 0 | K23: 0 | L23: 0
A24: 21. | B24: =B121 -> TKACHUK | C24: Dzvenyslav | D24: 6.B | E24: 0 | G24: =G121 -> 0 | H24: 0 | J24: =J121 -> 0 | K24: 0 | L24: 0
A25: 22. | B25: =B122 -> VELIKOVSKÝ | C25: Dominik | D25: 6.B | E25: 0 | G25: =G122 -> 0 | H25: 0 | J25: =J122 -> 0 | K25: 0 | L25: 0
A26: 23. | B26: =B123 -> EXNER | C26: Tomáš | D26: 7.A | E26: 382 | G26: =G123 -> Jilemnice 31.10.22 | H26: 677.274 | J26: =J123 -> 409 | K26: 0 | L26: 0
A27: 24. | B27: =B124 -> JANATA | C27: Denis | D27: 7.A | E27: 375 | G27: =G124 -> Jilemnice 31.10.22 | H27: 666.9 | J27: =J124 -> 331 | K27: 0 | L27: 0
A28: 25. | B28: =B125 -> JINDŘIŠEK | C28: Alex Jiří | D28: 7.A | E28: 361 | G28: =G125 -> Jilemnice 31.10.22 | H28: 646.152 | J28: =J125 -> 310 | K28: 0 | L28: 0
A29: 26. | B29: =B126 -> KAZLEPKA | C29: Miroslav | D29: 7.A | E29: 0 | G29: =G126 ->  | H29: 0 | J29: =J126 -> 0 | K29: 0 | L29: 0
A30: 27. | B30: =B127 -> MARŠÁLEK | C30: Ondřej | D30: 7.A | E30: 270 | G30: =G127 -> Jilemnice 31.10.22 | H30: 511.29 | J30: =J127 -> 283 | K30: 0 | L30: 0
A31: 28. | B31: =B128 -> MLATEČEK | C31: Patrik | D31: 7.A | E31: 361 | G31: =G128 -> Jilemnice 03.05.23 | H31: 646.152 | J31: =J128 -> 262 | K31: 0 | L31: 0
A32: 29. | B32: =B129 -> SCHOLZ | C32: Matyáš | D32: 7.A | E32: 370 | G32: =G129 -> Jilemnice 03.05.23 | H32: 659.49 | J32: =J129 -> 313 | K32: 0 | L32: 0
A33: 30. | B33: =B130 -> TOMÁŠ | C33: Jakub | D33: 7.A | E33: 315 | G33: =G130 -> Jilemnice 31.10.22 | H33: 577.98 | J33: =J130 -> 345 | K33: 0 | L33: 0
A34: 31. | B34: =B131 -> VÁCLAVÍK | C34: Jan | D34: 7.A | E34: 359 | G34: =G131 -> Turnov 16.05.23 | H34: 643.188 | J34: =J131 -> 314 | K34: 0 | L34: 0
A35: 32. | B35: =B132 -> VEČEŘA | C35: David | D35: 7.A | E35: 330 | G35: =G132 -> Jilemnice 31.10.22 | H35: 600.21 | J35: =J132 -> 262 | K35: 0 | L35: 0
A36: 33. | B36: =B133 -> VYBÍRAL | C36: Radim | D36: 7.A | E36: 445 | G36: =G133 -> Jilemnice 03.05.23 | H36: 770.64 | J36: =J133 -> 384 | K36: 0 | L36: 0
A37: 34. | B37: =B134 -> BERISHA | C37: David | D37: 7.B | E37: 0 | G37: =G134 -> 0 | H37: 0 | J37: =J134 -> 190 | K37: 0 | L37: 0
A38: 35. | B38: =B135 -> EFENBERK | C38: Šimon | D38: 7.B | E38: 340 | G38: =G135 -> Jilemnice 03.05.23 | H38: 615.03 | J38: =J135 -> 283 | K38: 0 | L38: 0
A39: 36. | B39: =B136 -> FEJKL | C39: Antonín | D39: 7.B | E39: 475 | G39: =G136 -> Jilemnice 03.05.23 | H39: 815.1 | J39: =J136 -> 375 | K39: 0 | L39: 0
A40: 37. | B40: =B137 -> GOTTSTEIN | C40: Matouš | D40: 7.B | E40: 465 | G40: =G137 -> Jilemnice 03.05.23 | H40: 800.28 | J40: =J137 -> 417 | K40: 0 | L40: 0
A41: 38. | B41: =B138 -> MAŘAS | C41: Dominik | D41: 7.B | E41: 310 | G41: =G138 -> Jilemnice 03.05.23 | H41: 570.57 | J41: =J138 -> 262 | K41: 293 | L41: 0
A42: 39. | B42: =B139 -> POVAŽANEC | C42: Lukáš | D42: 7.B | E42: 351 | G42: =G139 -> Jilemnice 29.05.23 | H42: 631.332 | J42: =J139 -> 321 | K42: 0 | L42: 0
A43: 40. | B43: =B140 -> VANCL | C43: Jakub | D43: 7.B | E43: 287 | G43: =G140 -> Jilemnice 31.10.22 | H43: 536.484 | J43: =J140 -> 232 | K43: 0 | L43: 0
A44: 41. | B44: =B141 -> VANCL | C44: Miroslav | D44: 7.B | E44: 352 | G44: =G141 -> Jilemnice 31.10.22 | H44: 632.814 | J44: =J141 -> 296 | K44: 0 | L44: 0
A45: 42. | B45: =B142 -> VOTOČEK | C45: Michal | D45: 7.B | E45: 362 | G45: =G142 -> Jilemnice 31.10.22 | H45: 647.634 | J45: =J142 -> 249 | K45: 0 | L45: 0
A46: 43. | B46: =B143 -> DEMČUK | C46: Ilja | D46: 8.A | E46: 373 | G46: =G143 -> Jilemnice 31.10.22 | H46: 663.936 | J46: =J143 -> 367 | K46: 311 | L46: 0
A47: 44. | B47: =B144 -> FAISTAUER | C47: Kryštof | D47: 8.A | E47: 454 | G47: =G144 -> Jilemnice 31.10.22 | H47: 783.978 | J47: =J144 -> 380 | K47: 366 | L47: 0
A48: 45. | B48: =B145 -> FRK | C48: Matyáš | D48: 8.A | E48: 359 | G48: =G145 -> Jilemnice 19.05.23 | H48: 643.188 | J48: =J145 -> 292 | K48: 282 | L48: 0
A49: 46. | B49: =B146 -> HUBÁLOVSKÝ | C49: Marek | D49: 8.A | E49: 419 | G49: =G146 -> Jilemnice 19.05.23 | H49: 732.108 | J49: =J146 -> 326 | K49: 383 | L49: 0
A50: 47. | B50: =B147 -> MAŤÁTKO | C50: Jakub | D50: 8.A | E50: 0 | G50: =G147 -> 0 | H50: 0 | J50: =J147 -> 0 | K50: 0 | L50: 0
A51: 48. | B51: =B148 -> MERY | C51: Luboš | D51: 8.A | E51: 323 | G51: =G148 -> Jilemnice 31.10.22 | H51: 589.836 | J51: =J148 -> 322 | K51: 0 | L51: 0
A52: 49. | B52: =B149 -> NOVOTNÝ | C52: Matěj | D52: 8.A | E52: 315 | G52: =G149 -> Jilemnice 19.05.23 | H52: 577.98 | J52: =J149 -> 291 | K52: 281 | L52: 0
A53: 50. | B53: =B150 -> ŘEHOŘEK | C53: Vojtěch | D53: 8.A | E53: 375 | G53: =G150 -> Jilemnice 19.05.23 | H53: 666.9 | J53: =J150 -> 351 | K53: 296 | L53: 0
A54: 51. | B54: =B151 -> ŠÍR | C54: Matyáš | D54: 8.A | E54: 341 | G54: =G151 -> Jilemnice 19.05.23 | H54: 616.512 | J54: =J151 -> 293 | K54: 283 | L54: 0
A55: 52. | B55: =B152 -> TORÁČ | C55: Tomáš | D55: 8.A | E55: 0 | G55: =G152 -> 0 | H55: 0 | J55: =J152 -> 184 | K55: 0 | L55: 0
A56: 53. | B56: =B153 -> VÁCLAVÍK | C56: Ondřej | D56: 8.A | E56: 438 | G56: =G153 -> Jilemnice 19.05.23 | H56: 760.266 | J56: =J153 -> 394 | K56: 309 | L56: 0
A57: 54. | B57: =B154 -> AUERSWALD | C57: Daniel | D57: 8.B | E57: 388 | G57: =G154 -> Jilemnice 31.10.22 | H57: 686.166 | J57: =J154 -> 380 | K57: 348 | L57: 0
A58: 55. | B58: =B155 -> BOUKAL | C58: Jakub | D58: 8.B | E58: 0 | G58: =G155 -> 0 | H58: 0 | J58: =J155 -> 0 | K58: 245 | L58: 0
A59: 56. | B59: =B156 -> BUDÍN | C59: Martin | D59: 8.B | E59: 420 | G59: =G156 -> Jilemnice 19.05.23 | H59: 733.59 | J59: =J156 -> 333 | K59: 327 | L59: 0
A60: 57. | B60: =B157 -> DVOŘÁK | C60: Dominik | D60: 8.B | E60: 355 | G60: =G157 -> Jilemnice 19.05.23 | H60: 637.26 | J60: =J157 -> 291 | K60: 247 | L60: 0
A61: 58. | B61: =B158 -> FIŠERA | C61: Vojtěch | D61: 8.B | E61: 304 | G61: =G158 -> Jilemnice 31.10.22 | H61: 561.678 | J61: =J158 -> 302 | K61: 323 | L61: 0
A62: 59. | B62: =B159 -> JINDŘIŠEK | C62: Vít | D62: 8.B | E62: 493 | G62: =G159 -> Jilemnice 19.05.23 | H62: 841.776 | J62: =J159 -> 428 | K62: 381 | L62: 0
A63: 60. | B63: =B160 -> JIROUŠ | C63: Matouš | D63: 8.B | E63: 392 | G63: =G160 -> Jilemnice 31.10.22 | H63: 692.094 | J63: =J160 -> 381 | K63: 356 | L63: 0
A64: 61. | B64: =B161 -> KERLE | C64: Marek | D64: 8.B | E64: 472 | G64: =G161 -> Jilemnice 12.06.23 | H64: 810.654 | J64: =J161 -> 433 | K64: 321 | L64: 0
A65: 62. | B65: =B162 -> LUKEŠ | C65: Jakub | D65: 8.B | E65: 452 | G65: =G162 -> Jilemnice 19.05.23 | H65: 781.014 | J65: =J162 -> 423 | K65: 304 | L65: 0
A66: 63. | B66: =B163 -> OTT | C66: Matyáš | D66: 8.B | E66: 440 | G66: =G163 -> Jilemnice 19.05.23 | H66: 763.23 | J66: =J163 -> 392 | K66: 307 | L66: 0
A67: 64. | B67: =B164 -> POKORNÝ | C67: Matyáš | D67: 8.B | E67: 454 | G67: =G164 -> Turnov 16.05.23 | H67: 783.978 | J67: =J164 -> 445 | K67: 0 | L67: 0
A68: 65. | B68: =B165 -> POLÁČEK | C68: Matyáš | D68: 8.B | E68: 328 | G68: =G165 -> Jilemnice 19.05.23 | H68: 597.246 | J68: =J165 -> 299 | K68: 282 | L68: 0
A69: 66. | B69: =B166 -> ULLMAN | C69: Šimon | D69: 8.B | E69: 466 | G69: =G166 -> Jilemnice 19.05.23 | H69: 801.762 | J69: =J166 -> 348 | K69: 353 | L69: 0
A70: 67. | B70: =B167 -> VALENTA | C70: Jakub | D70: 8.B | E70: 407 | G70: =G167 -> Jilemnice 31.10.22 | H70: 714.324 | J70: =J167 -> 0 | K70: 0 | L70: 0
A71: 68. | B71: =B168 -> VRBATA | C71: Dominik | D71: 8.B | E71: 0 | G71: =G168 -> 0 | H71: 0 | J71: =J168 -> 375 | K71: 339 | L71: 0
A72: 69. | B72: =B169 -> FEJKL | C72: Jan | D72: 9.A | E72: 521 | G72: =G169 -> Jilemnice 03.05.23 | H72: 883.272 | J72: =J169 -> 464 | K72: 465 | L72: 389
A73: 70. | B73: =B170 -> KOTYK | C73: Tadeáš | D73: 9.A | E73: 374 | G73: =G170 -> Jilemnice 03.05.23 | H73: 665.418 | J73: =J170 -> 287 | K73: 296 | L73: 305
A74: 71. | B74: =B171 -> KRAUSE | C74: Tadeáš | D74: 9.A | E74: 468 | G74: =G171 -> Jilemnice 03.05.23 | H74: 804.726 | J74: =J171 -> 457 | K74: 357 | L74: 324
A75: 72. | B75: =B172 -> LEŠÁK | C75: Martin | D75: 9.A | E75: 374 | G75: =G172 -> Jilemnice 03.05.23 | H75: 665.418 | J75: =J172 -> 371 | K75: 0 | L75: 307
A76: 73. | B76: =B173 -> NECHANICKÝ | C76: David | D76: 9.A | E76: 542 | G76: =G173 -> Turnov 11.05.23 | H76: 914.394 | J76: =J173 -> 461 | K76: 371 | L76: 356
A77: 74. | B77: =B174 -> ŘEHOŘEK | C77: Jan | D77: 9.A | E77: 455 | G77: =G174 -> Jilemnice 03.05.23 | H77: 785.46 | J77: =J174 -> 412 | K77: 362 | L77: 333
A78: 75. | B78: =B175 -> SOUKUP | C78: Ondřej | D78: 9.A | E78: 422 | G78: =G175 -> Jilemnice 03.05.23 | H78: 736.554 | J78: =J175 -> 311 | K78: 314 | L78: 341
A79: 76. | B79: =B176 -> SPANILÝ | C79: David | D79: 9.A | E79: 495 | G79: =G176 -> Jilemnice 03.05.23 | H79: 844.74 | J79: =J176 -> 459 | K79: 0 | L79: 336
A80: 77. | B80: =B177 -> ČERNÝ | C80: Michal | D80: 9.B | E80: 387 | G80: =G177 -> Jilemnice 03.05.23 | H80: 684.684 | J80: =J177 -> 342 | K80: 282 | L80: 294
A81: 78. | B81: =B178 -> DOLEJŠÍ | C81: David | D81: 9.B | E81: 422 | G81: =G178 -> Jilemnice 03.05.23 | H81: 736.554 | J81: =J178 -> 402 | K81: 303 | L81: 287
A82: 79. | B82: =B179 -> POVAŽANEC | C82: Martin | D82: 9.B | E82: 475 | G82: =G179 -> Jilemnice 03.05.23 | H82: 815.1 | J82: =J179 -> 480 | K82: 371 | L82: 310
A83: 80. | B83: =B180 -> RICHTER | C83: Jakub | D83: 9.B | E83: 382 | G83: =G180 -> Jilemnice 03.05.23 | H83: 677.274 | J83: =J180 -> 322 | K83: 0 | L83: 266
A84: 81. | B84: =B181 -> ROZUMEK | C84: Adam | D84: 9.B | E84: 385 | G84: =G181 -> Jilemnice 03.05.23 | H84: 681.72 | J84: =J181 -> 315 | K84: 273 | L84: 238
A85: 82. | B85: =B182 -> VALENTA | C85: František | D85: 9.B | E85: 322 | G85: =G182 -> Jilemnice 03.05.23 | H85: 588.354 | J85: =J182 -> 335 | K85: 273 | L85: 271
A86: 83. | B86: =B183 -> ZAPLATÍLEK | C86: Josef | D86: 9.B | E86: 413 | G86: =G183 -> Jilemnice 03.05.23 | H86: 723.216 | J86: =J183 -> 359 | K86: 0 | L86: 333
B101: HONCŮ | C101: Filip | D101: 6.A | E101: 302 | G101: Jilemnice 16.06.23 | H101: =IF(E101=0,0,(E101+75)*1.482) -> 558.714
B102: JÍLEK | C102: Lukáš | D102: 6.A | H102: 0
B103: KUČERA | C103: Tadeáš | D103: 6.A | E103: 308 | G103: Jilemnice 16.06.23 | H103: 567.606
B104: ROZUMEK | C104: Lukáš | D104: 6.A | E104: 225 | G104: Jilemnice 16.06.23 | H104: 444.6
B105: ŘEHOŘEK | C105: Marek | D105: 6.A | H105: 0
B106: ŘÍHA | C106: Tadeáš | D106: 6.A | E106: 403 | G106: Jilemnice 16.06.23 | H106: 708.396
B107: SKRBEK | C107: Richard | D107: 6.A | E107: 317 | G107: Jilemnice 16.06.23 | H107: 580.944
B108: ŠIMEK | C108: Erik | D108: 6.A | H108: 0
B109: ŠÍR | C109: Jan | D109: 6.A | E109: 319 | G109: Jilemnice 16.06.23 | H109: 583.908
B110: ŠÍR | C110: Stanislav | D110: 6.A | H110: 0
B111: ŠPINAR | C111: František | D111: 6.A | E111: 262 | G111: Jilemnice 16.06.23 | H111: 499.434
B112: TOTH | C112: Mikuláš | D112: 6.A | H112: 0
B113: WEISZLEMLEIN | C113: Adam | D113: 6.A | E113: 240 | G113: Jilemnice 16.06.23 | H113: 466.83
B114: ČERNÝ | C114: Filip | D114: 6.B | H114: 0
B115: GINGAL | C115: Patrik | D115: 6.B | H115: 0
B116: HLAVÁČEK | C116: Josef | D116: 6.B | E116: 384 | G116: Turnov 16.05.23 | H116: 680.238
B117: KHUDA | C117: Ivan | D117: 6.B | H117: 0
B118: KRESAN | C118: Matěj | D118: 6.B | H118: 0
B119: RYCHTR | C119: Vojtěch | D119: 6.B | H119: 0
B120: ŠTAJER | C120: David | D120: 6.B | H120: 0
B121: TKACHUK | C121: Dzvenyslav | D121: 6.B | H121: 0
B122: VELIKOVSKÝ | C122: Dominik | D122: 6.B | H122: 0
B123: EXNER | C123: Tomáš | D123: 7.A | E123: 382 | G123: Jilemnice 31.10.22 | H123: 677.274 | J123: 409
B124: JANATA | C124: Denis | D124: 7.A | E124: 375 | G124: Jilemnice 31.10.22 | H124: 666.9 | J124: 331
B125: JINDŘIŠEK | C125: Alex Jiří | D125: 7.A | E125: 361 | G125: Jilemnice 31.10.22 | H125: 646.152 | J125: 310
B126: KAZLEPKA | C126: Miroslav | D126: 7.A | H126: 0 | J126: 0
B127: MARŠÁLEK | C127: Ondřej | D127: 7.A | E127: 270 | G127: Jilemnice 31.10.22 | H127: 511.29 | J127: 283
B128: MLATEČEK | C128: Patrik | D128: 7.A | E128: 361 | G128: Jilemnice 03.05.23 | H128: 646.152 | J128: 262
B129: SCHOLZ | C129: Matyáš | D129: 7.A | E129: 370 | G129: Jilemnice 03.05.23 | H129: 659.49 | J129: 313
B130: TOMÁŠ | C130: Jakub | D130: 7.A | E130: 315 | G130: Jilemnice 31.10.22 | H130: 577.98 | J130: 345
B131: VÁCLAVÍK | C131: Jan | D131: 7.A | E131: 359 | G131: Turnov 16.05.23 | H131: 643.188 | J131: 314
B132: VEČEŘA | C132: David | D132: 7.A | E132: 330 | G132: Jilemnice 31.10.22 | H132: 600.21 | J132: 262
B133: VYBÍRAL | C133: Radim | D133: 7.A | E133: 445 | G133: Jilemnice 03.05.23 | H133: =IF(E133=0,0,(E133+75)*1.482) -> 770.64 | J133: 384
B134: BERISHA | C134: David | D134: 7.B | H134: 0 | J134: 190
B135: EFENBERK | C135: Šimon | D135: 7.B | E135: 340 | G135: Jilemnice 03.05.23 | H135: 615.03 | J135: 283
B136: FEJKL | C136: Antonín | D136: 7.B | E136: 475 | G136: Jilemnice 03.05.23 | H136: 815.1 | J136: 375
B137: GOTTSTEIN | C137: Matouš | D137: 7.B | E137: 465 | G137: Jilemnice 03.05.23 | H137: 800.28 | J137: 417
B138: MAŘAS | C138: Dominik | D138: 7.B | E138: 310 | G138: Jilemnice 03.05.23 | H138: 570.57 | J138: 262 | K138: 293
B139: POVAŽANEC | C139: Lukáš | D139: 7.B | E139: 351 | G139: Jilemnice 29.05.23 | H139: 631.332 | J139: 321
B140: VANCL | C140: Jakub | D140: 7.B | E140: 287 | G140: Jilemnice 31.10.22 | H140: 536.484 | J140: 232
B141: VANCL | C141: Miroslav | D141: 7.B | E141: 352 | G141: Jilemnice 31.10.22 | H141: 632.814 | J141: 296
B142: VOTOČEK | C142: Michal | D142: 7.B | E142: 362 | G142: Jilemnice 31.10.22 | H142: 647.634 | J142: 249
B143: DEMČUK | C143: Ilja | D143: 8.A | E143: 373 | G143: Jilemnice 31.10.22 | H143: 663.936 | J143: 367 | K143: 311
B144: FAISTAUER | C144: Kryštof | D144: 8.A | E144: 454 | G144: Jilemnice 31.10.22 | H144: 783.978 | J144: 380 | K144: 366
B145: FRK | C145: Matyáš | D145: 8.A | E145: 359 | G145: Jilemnice 19.05.23 | H145: 643.188 | J145: 292 | K145: 282
B146: HUBÁLOVSKÝ | C146: Marek | D146: 8.A | E146: 419 | G146: Jilemnice 19.05.23 | H146: 732.108 | J146: 326 | K146: 383
B147: MAŤÁTKO | C147: Jakub | D147: 8.A | H147: 0
B148: MERY | C148: Luboš | D148: 8.A | E148: 323 | G148: Jilemnice 31.10.22 | H148: 589.836 | J148: 322
B149: NOVOTNÝ | C149: Matěj | D149: 8.A | E149: 315 | G149: Jilemnice 19.05.23 | H149: 577.98 | J149: 291 | K149: 281
B150: ŘEHOŘEK | C150: Vojtěch | D150: 8.A | E150: 375 | G150: Jilemnice 19.05.23 | H150: 666.9 | J150: 351 | K150: 296
B151: ŠÍR | C151: Matyáš | D151: 8.A | E151: 341 | G151: Jilemnice 19.05.23 | H151: 616.512 | J151: 293 | K151: 283
B152: TORÁČ | C152: Tomáš | D152: 8.A | H152: 0 | J152: 184
B153: VÁCLAVÍK | C153: Ondřej | D153: 8.A | E153: 438 | G153: Jilemnice 19.05.23 | H153: 760.266 | J153: 394 | K153: 309
B154: AUERSWALD | C154: Daniel | D154: 8.B | E154: 388 | G154: Jilemnice 31.10.22 | H154: 686.166 | J154: 380 | K154: 348
B155: BOUKAL | C155: Jakub | D155: 8.B | H155: 0 | K155: 245
B156: BUDÍN | C156: Martin | D156: 8.B | E156: 420 | G156: Jilemnice 19.05.23 | H156: 733.59 | J156: 333 | K156: 327
B157: DVOŘÁK | C157: Dominik | D157: 8.B | E157: 355 | G157: Jilemnice 19.05.23 | H157: 637.26 | J157: 291 | K157: 247
B158: FIŠERA | C158: Vojtěch | D158: 8.B | E158: 304 | G158: Jilemnice 31.10.22 | H158: 561.678 | J158: 302 | K158: 323
B159: JINDŘIŠEK | C159: Vít | D159: 8.B | E159: 493 | G159: Jilemnice 19.05.23 | H159: 841.776 | J159: 428 | K159: 381
B160: JIROUŠ | C160: Matouš | D160: 8.B | E160: 392 | G160: Jilemnice 31.10.22 | H160: 692.094 | J160: 381 | K160: 356
B161: KERLE | C161: Marek | D161: 8.B | E161: 472 | G161: Jilemnice 12.06.23 | H161: 810.654 | J161: 433 | K161: 321
B162: LUKEŠ | C162: Jakub | D162: 8.B | E162: 452 | G162: Jilemnice 19.05.23 | H162: 781.014 | J162: 423 | K162: 304
B163: OTT | C163: Matyáš | D163: 8.B | E163: 440 | G163: Jilemnice 19.05.23 | H163: 763.23 | J163: 392 | K163: 307
B164: POKORNÝ | C164: Matyáš | D164: 8.B | E164: 454 | G164: Turnov 16.05.23 | H164: 783.978 | J164: 445
B165: POLÁČEK | C165: Matyáš | D165: 8.B | E165: 328 | G165: Jilemnice 19.05.23 | H165: =IF(E165=0,0,(E165+75)*1.482) -> 597.246 | J165: 299 | K165: 282
B166: ULLMAN | C166: Šimon | D166: 8.B | E166: 466 | G166: Jilemnice 19.05.23 | H166: 801.762 | J166: 348 | K166: 353
B167: VALENTA | C167: Jakub | D167: 8.B | E167: 407 | G167: Jilemnice 31.10.22 | H167: 714.324
B168: VRBATA | C168: Dominik | D168: 8.B | H168: 0 | J168: 375 | K168: 339
B169: FEJKL | C169: Jan | D169: 9.A | E169: 521 | G169: Jilemnice 03.05.23 | H169: 883.272 | J169: 464 | K169: 465 | L169: 389
B170: KOTYK | C170: Tadeáš | D170: 9.A | E170: 374 | G170: Jilemnice 03.05.23 | H170: 665.418 | J170: 287 | K170: 296 | L170: 305
B171: KRAUSE | C171: Tadeáš | D171: 9.A | E171: 468 | G171: Jilemnice 03.05.23 | H171: 804.726 | J171: 457 | K171: 357 | L171: 324
B172: LEŠÁK | C172: Martin | D172: 9.A | E172: 374 | G172: Jilemnice 03.05.23 | H172: 665.418 | J172: 371 | L172: 307
B173: NECHANICKÝ | C173: David | D173: 9.A | E173: 542 | G173: Turnov 11.05.23 | H173: 914.394 | J173: 461 | K173: 371 | L173: 356
B174: ŘEHOŘEK | C174: Jan | D174: 9.A | E174: 455 | G174: Jilemnice 03.05.23 | H174: 785.46 | J174: 412 | K174: 362 | L174: 333
B175: SOUKUP | C175: Ondřej | D175: 9.A | E175: 422 | G175: Jilemnice 03.05.23 | H175: 736.554 | J175: 311 | K175: 314 | L175: 341
B176: SPANILÝ | C176: David | D176: 9.A | E176: 495 | G176: Jilemnice 03.05.23 | H176: 844.74 | J176: 459 | L176: 336
B177: ČERNÝ | C177: Michal | D177: 9.B | E177: 387 | G177: Jilemnice 03.05.23 | H177: 684.684 | J177: 342 | K177: 282 | L177: 294
B178: DOLEJŠÍ | C178: David | D178: 9.B | E178: 422 | G178: Jilemnice 03.05.23 | H178: 736.554 | J178: 402 | K178: 303 | L178: 287
B179: POVAŽANEC | C179: Martin | D179: 9.B | E179: 475 | G179: Jilemnice 03.05.23 | H179: 815.1 | J179: 480 | K179: 371 | L179: 310
B180: RICHTER | C180: Jakub | D180: 9.B | E180: 382 | G180: Jilemnice 03.05.23 | H180: 677.274 | J180: 322 | L180: 266
B181: ROZUMEK | C181: Adam | D181: 9.B | E181: 385 | G181: Jilemnice 03.05.23 | H181: 681.72 | J181: 315 | K181: 273 | L181: 238
B182: VALENTA | C182: František | D182: 9.B | E182: 322 | G182: Jilemnice 03.05.23 | H182: 588.354 | J182: 335 | K182: 273 | L182: 271
B183: ZAPLATÍLEK | C183: Josef | D183: 9.B | E183: 413 | G183: Jilemnice 03.05.23 | H183: 723.216 | J183: 359 | L183: 333

Sheet VÝŠKA
C1: VÝKONY 2022 - 2023 | G1: VÝŠKA | H1: CHLAPCI 6. - 9. ROČ.
B2: stav k | C2: =TODAY() -> 2023-06-26 | J2: 21 - 22 | K2: 20 - 21 | L2: 19 - 20
A4: 1. | B4: =B101 -> HONCŮ | C4: =C101 -> Filip | D4: 6.A | E4: 95 | G4: Jilemnice 12.06.23 | H4: 525.4 | J4: 0 | K4: 0 | L4: 0
A5: 2. | B5: =B102 -> JÍLEK | C5: Lukáš | D5: 6.A | E5: 0 | G5: =G102 -> 0 | H5: 0 | J5: =J102 -> 0 | K5: 0 | L5: 0
A6: 3. | B6: =B103 -> KUČERA | C6: Tadeáš | D6: 6.A | E6: 95 | G6: =G103 -> Jilemnice 12.06.23 | H6: 525.4 | J6: =J103 -> 0 | K6: 0 | L6: 0
A7: 4. | B7: =B104 -> ROZUMEK | C7: Lukáš | D7: 6.A | E7: 0 | G7: =G104 -> 0 | H7: 0 | J7: =J104 -> 0 | K7: 0 | L7: 0
A8: 5. | B8: =B105 -> ŘEHOŘEK | C8: Marek | D8: 6.A | E8: 80 | G8: =G105 -> Jilemnice 05.06.23 | H8: 439.6 | J8: =J105 -> 0 | K8: 0 | L8: 0
A9: 6. | B9: =B106 -> ŘÍHA | C9: Tadeáš | D9: 6.A | E9: 115 | G9: =G106 -> Jilemnice 12.06.23 | H9: 639.8 | J9: =J106 -> 0 | K9: 0 | L9: 0
A10: 7. | B10: =B107 -> SKRBEK | C10: Richard | D10: 6.A | E10: 85 | G10: =G107 -> Jilemnice 05.06.23 | H10: 468.2 | J10: =J107 -> 0 | K10: 0 | L10: 0
A11: 8. | B11: =B108 -> ŠIMEK | C11: Erik | D11: 6.A | E11: 125 | G11: =G108 -> Jilemnice 12.06.23 | H11: 697 | J11: =J108 -> 0 | K11: 0 | L11: 0
A12: 9. | B12: =B109 -> ŠÍR | C12: Jan | D12: 6.A | E12: 110 | G12: =G109 -> Jilemnice 05.06.23 | H12: 611.2 | J12: =J109 -> 0 | K12: 0 | L12: 0
A13: 10. | B13: =B110 -> ŠÍR | C13: Stanislav | D13: 6.A | E13: 95 | G13: =G110 -> Jilemnice 12.06.23 | H13: 525.4 | J13: =J110 -> 0 | K13: 0 | L13: 0
A14: 11. | B14: =B111 -> ŠPINAR | C14: František | D14: 6.A | E14: 95 | G14: =G111 -> Jilemnice 12.06.23 | H14: 525.4 | J14: =J111 -> 0 | K14: 0 | L14: 0
A15: 12. | B15: =B112 -> TOTH | C15: Mikuláš | D15: 6.A | E15: 95 | G15: =G112 -> Jilemnice 12.06.23 | H15: 525.4 | J15: =J112 -> 0 | K15: 0 | L15: 0
A16: 13. | B16: =B113 -> WEISZLEMLEIN | C16: Adam | D16: 6.A | E16: 0 | G16: =G113 -> 0 | H16: 0 | J16: =J113 -> 0 | K16: 0 | L16: 0
A17: 14. | B17: =B114 -> ČERNÝ | C17: Filip | D17: 6.B | E17: 0 | G17: =G114 -> 0 | H17: 0 | J17: =J114 -> 0 | K17: 0 | L17: 0
A18: 15. | B18: =B115 -> GINGAL | C18: Patrik | D18: 6.B | E18: 0 | G18: =G115 -> 0 | H18: 0 | J18: =J115 -> 0 | K18: 0 | L18: 0
A19: 16. | B19: =B116 -> HLAVÁCEK | C19: Josef | D19: 6.B | E19: 115 | G19: =G116 -> Jilemnice 12.06.23 | H19: 639.8 | J19: =J116 -> 0 | K19: 0 | L19: 0
A20: 17. | B20: =B117 -> KHUDA | C20: Ivan | D20: 6.B | E20: 85 | G20: =G117 -> Jilemnice 05.06.23 | H20: 468.2 | J20: =J117 -> 0 | K20: 0 | L20: 0
A21: 18. | B21: =B118 -> KRESAN | C21: Matěj | D21: 6.B | E21: 95 | G21: =G118 -> Jilemnice 12.06.23 | H21: 525.4 | J21: =J118 -> 0 | K21: 0 | L21: 0
A22: 19. | B22: =B119 -> RYCHTR | C22: Vojtěch | D22: 6.B | E22: 100 | G22: =G119 -> Jilemnice 12.06.23 | H22: 554 | J22: =J119 -> 0 | K22: 0 | L22: 0
A23: 20. | B23: =B120 -> ŠTAJER | C23: David | D23: 6.B | E23: 120 | G23: =G120 -> Jilemnice 12.06.23 | H23: 668.4 | J23: =J120 -> 0 | K23: 0 | L23: 0
A24: 21. | B24: =B121 -> TKACHUK | C24: Dzvenyslav | D24: 6.B | E24: 0 | G24: =G121 -> 0 | H24: 0 | J24: =J121 -> 0 | K24: 0 | L24: 0
A25: 22. | B25: =B122 -> VELIKOVSKÝ | C25: Dominik | D25: 6.B | E25: 90 | G25: =G122 -> Jilemnice 12.06.23 | H25: 496.8 | J25: =J122 -> 0 | K25: 0 | L25: 0
A26: 23. | B26: =B123 -> EXNER | C26: Tomáš | D26: 7.A | E26: 110 | G26: =G123 -> Jilemnice 10.05.23 | H26: 611.2 | J26: =J123 -> 111 | K26: 0 | L26: 0
A27: 24. | B27: =B124 -> JANATA | C27: Denis | D27: 7.A | E27: 95 | G27: =G124 -> Jilemnice 10.05.23 | H27: 525.4 | J27: =J124 -> 103 | K27: 0 | L27: 0
A28: 25. | B28: =B125 -> JINDŘIŠEK | C28: Alex Jiří | D28: 7.A | E28: 0 | G28: =G125 -> 0 | H28: 0 | J28: =J125 -> 93 | K28: 0 | L28: 0
A29: 26. | B29: =B126 -> KAZLEPKA | C29: Miroslav | D29: 7.A | E29: 0 | G29: =G126 -> 0 | H29: 0 | J29: =J126 -> 0 | K29: 0 | L29: 0
A30: 27. | B30: =B127 -> MARŠÁLEK | C30: Ondřej | D30: 7.A | E30: 90 | G30: =G127 -> Jilemnice 10.05.23 | H30: 496.8 | J30: =J127 -> 103 | K30: 0 | L30: 0
A31: 28. | B31: =B128 -> MLATEČEK | C31: Patrik | D31: 7.A | E31: 105 | G31: =G128 -> Jilemnice 10.05.23 | H31: 582.6 | J31: =J128 -> 91 | K31: 0 | L31: 0
A32: 29. | B32: =B129 -> SCHOLZ | C32: Matyáš | D32: 7.A | E32: 110 | G32: =G129 -> Jilemnice 10.05.23 | H32: 611.2 | J32: =J129 -> 102 | K32: 0 | L32: 0
A33: 30. | B33: =B130 -> TOMÁŠ | C33: Jakub | D33: 7.A | E33: 115 | G33: =G130 -> Jilemnice 10.05.23 | H33: 639.8 | J33: =J130 -> 111 | K33: 0 | L33: 0
A34: 31. | B34: =B131 -> VÁCLAVÍK | C34: Jan | D34: 7.A | E34: 115 | G34: =G131 -> Jilemnice 10.05.23 | H34: 639.8 | J34: =J131 -> 108 | K34: 0 | L34: 0
A35: 32. | B35: =B132 -> VEČEŘA | C35: David | D35: 7.A | E35: 100 | G35: =G132 -> Jilemnice 10.05.23 | H35: 554 | J35: =J132 -> 93 | K35: 0 | L35: 0
A36: 33. | B36: =B133 -> VYBÍRAL | C36: Radim | D36: 7.A | E36: 122 | G36: =G133 -> Turnov 16.05.23 | H36: 679.84 | J36: =J133 -> 119 | K36: 0 | L36: 0
A37: 34. | B37: =B134 -> BERISHA | C37: David | D37: 7.B | E37: 0 | G37: =G134 -> 0 | H37: 0 | J37: =J134 -> 71 | K37: 0 | L37: 0
A38: 35. | B38: =B135 -> EFENBERK | C38: Šimon | D38: 7.B | E38: 115 | G38: =G135 -> Jilemnice 10.05.23 | H38: 639.8 | J38: =J135 -> 102 | K38: 0 | L38: 0
A39: 36. | B39: =B136 -> FEJKL | C39: Antonín | D39: 7.B | E39: 147 | G39: =G136 -> Turnov 11.05.23 | H39: 822.84 | J39: =J136 -> 111 | K39: 0 | L39: 0
A40: 37. | B40: =B137 -> GOTTSTEIN | C40: Matouš | D40: 7.B | E40: 125 | G40: =G137 -> Jilemnice 10.05.23 | H40: 697 | J40: =J137 -> 123 | K40: 0 | L40: 0
A41: 38. | B41: =B138 -> MAŘAS | C41: Dominik | D41: 7.B | E41: 130 | G41: =G138 -> Jilemnice 10.05.23 | H41: 725.6 | J41: =J138 -> 110 | K41: 0 | L41: 0
A42: 39. | B42: =B139 -> POVAŽANEC | C42: Lukáš | D42: 7.B | E42: 0 | G42: =G139 -> 0 | H42: 0 | J42: =J139 -> 105 | K42: 0 | L42: 0
A43: 40. | B43: =B140 -> VANCL | C43: Jakub | D43: 7.B | E43: 95 | G43: =G140 -> Jilemnice 10.05.23 | H43: 525.4 | J43: =J140 -> 91 | K43: 0 | L43: 0
A44: 41. | B44: =B141 -> VANCL | C44: Miroslav | D44: 7.B | E44: 90 | G44: =G141 -> Jilemnice 10.05.23 | H44: 496.8 | J44: =J141 -> 103 | K44: 0 | L44: 0
A45: 42. | B45: =B142 -> VOTOČEK | C45: Michal | D45: 7.B | E45: 0 | G45: =G142 -> 0 | H45: 0 | J45: =J142 -> 102 | K45: 0 | L45: 0
A46: 43. | B46: =B143 -> DEMČUK | C46: Ilja | D46: 8.A | E46: 120 | G46: =G143 -> Jilemnice 12.05.23 | H46: 668.4 | J46: =J143 -> 120 | K46: 80 | L46: 0
A47: 44. | B47: =B144 -> FAISTAUER | C47: Kryštof | D47: 8.A | E47: 145 | G47: =G144 -> Jilemnice 12.05.23 | H47: 811.4 | J47: =J144 -> 130 | K47: 80 | L47: 0
A48: 45. | B48: =B145 -> FRK | C48: Matyáš | D48: 8.A | E48: 105 | G48: =G145 -> Jilemnice 12.05.23 | H48: 582.6 | J48: =J145 -> 0 | K48: 75 | L48: 0
A49: 46. | B49: =B146 -> HUBÁLOVSKÝ | C49: Marek | D49: 8.A | E49: 110 | G49: =G146 -> Jilemnice 12.05.23 | H49: 611.2 | J49: =J146 -> 115 | K49: 80 | L49: 0
A50: 47. | B50: =B147 -> MAŤÁTKO | C50: Jakub | D50: 8.A | E50: 100 | G50: =G147 -> Jilemnice 31.10.22 | H50: 554 | J50: =J147 -> 110 | K50: 0 | L50: 0
A51: 48. | B51: =B148 -> MERY | C51: Luboš | D51: 8.A | E51: 85 | G51: =G148 -> Jilemnice 12.05.23 | H51: 468.2 | J51: =J148 -> 0 | K51: 70 | L51: 0
A52: 49. | B52: =B149 -> NOVOTNÝ | C52: Matěj | D52: 8.A | E52: 95 | G52: =G149 -> Jilemnice 12.05.23 | H52: 525.4 | J52: =J149 -> 0 | K52: 80 | L52: 0
A53: 50. | B53: =B150 -> ŘEHOŘEK | C53: Vojtěch | D53: 8.A | E53: 0 | G53: =G150 -> 0 | H53: 0 | J53: =J150 -> 110 | K53: 0 | L53: 0
A54: 51. | B54: =B151 -> ŠÍR | C54: Matyáš | D54: 8.A | E54: 105 | G54: =G151 -> Jilemnice 12.05.23 | H54: 582.6 | J54: =J151 -> 98 | K54: 70 | L54: 0
A55: 52. | B55: =B152 -> TORÁČ | C55: Tomáš | D55: 8.A | E55: 95 | G55: =G152 -> Jilemnice 31.10.22 | H55: 525.4 | J55: =J152 -> 90 | K55: 0 | L55: 0
A56: 53. | B56: =B153 -> VÁCLAVÍK | C56: Ondřej | D56: 8.A | E56: 120 | G56: =G153 -> Jilemnice 12.05.23 | H56: 668.4 | J56: =J153 -> 108 | K56: 80 | L56: 0
A57: 54. | B57: =B154 -> AUERSWALD | C57: Daniel | D57: 8.B | E57: 0 | G57: =G154 -> 0 | H57: 0 | J57: =J154 -> 108 | K57: 0 | L57: 0
A58: 55. | B58: =B155 -> BOUKAL | C58: Jakub | D58: 8.B | E58: 0 | G58: =G155 -> 0 | H58: 0 | J58: =J155 -> 0 | K58: 0 | L58: 0
A59: 56. | B59: =B156 -> BUDÍN | C59: Martin | D59: 8.B | E59: 115 | G59: =G156 -> Jilemnice 12.05.23 | H59: 639.8 | J59: =J156 -> 110 | K59: 80 | L59: 0
A60: 57. | B60: =B157 -> DVOŘÁK | C60: Dominik | D60: 8.B | E60: 105 | G60: =G157 -> Jilemnice 12.05.23 | H60: 582.6 | J60: =J157 -> 110 | K60: 75 | L60: 0
A61: 58. | B61: =B158 -> FIŠERA | C61: Vojtěch | D61: 8.B | E61: 105 | G61: =G158 -> Jilemnice 12.05.23 | H61: 582.6 | J61: =J158 -> 103 | K61: 0 | L61: 0
A62: 59. | B62: =B159 -> JINDŘIŠEK | C62: Vít | D62: 8.B | E62: 135 | G62: =G159 -> Jilemnice 12.05.23 | H62: 754.2 | J62: =J159 -> 136 | K62: 80 | L62: 0
A63: 60. | B63: =B160 -> JIROUŠ | C63: Matouš | D63: 8.B | E63: 0 | G63: =G160 ->  | H63: 0 | J63: =J160 -> 108 | K63: 80 | L63: 0
A64: 61. | B64: =B161 -> KERLE | C64: Marek | D64: 8.B | E64: 150 | G64: =G161 -> Jilemnice 12.05.23 | H64: 840 | J64: =J161 -> 138 | K64: 80 | L64: 0
A65: 62. | B65: =B162 -> LUKEŠ | C65: Jakub | D65: 8.B | E65: 150 | G65: =G162 -> Jilemnice 12.05.23 | H65: 840 | J65: =J162 -> 146 | K65: 75 | L65: 0
A66: 63. | B66: =B163 -> OTT | C66: Matyáš | D66: 8.B | E66: 125 | G66: =G163 -> Turnov 13.09.22 | H66: 697 | J66: =J163 -> 125 | K66: 80 | L66: 0
A67: 64. | B67: =B164 -> POKORNÝ | C67: Matyáš | D67: 8.B | E67: 153 | G67: =G164 -> Jilemnice 12.05.23 | H67: 857.16 | J67: =J164 -> 135 | K67: 80 | L67: 0
A68: 65. | B68: =B165 -> POLÁČEK | C68: Matyáš | D68: 8.B | E68: 100 | G68: =G165 -> Jilemnice 12.05.23 | H68: 554 | J68: =J165 -> 98 | K68: 75 | L68: 0
A69: 66. | B69: =B166 -> ULLMAN | C69: Šimon | D69: 8.B | E69: 130 | G69: =G166 -> Jilemnice 12.05.23 | H69: 725.6 | J69: =J166 -> 120 | K69: 80 | L69: 0
A70: 67. | B70: =B167 -> VALENTA | C70: Jakub | D70: 8.B | E70: 140 | G70: =G167 -> Jilemnice 12.05.23 | H70: 782.8 | J70: =J167 -> 130 | K70: 0 | L70: 0
A71: 68. | B71: =B168 -> VRBATA | C71: Dominik | D71: 8.B | E71: 125 | G71: =G168 -> Jilemnice 12.05.23 | H71: 697 | J71: =J168 -> 108 | K71: 80 | L71: 0
A72: 69. | B72: =B169 -> FEJKL | C72: Jan | D72: 9.A | E72: 157 | G72: =G169 -> Turnov 11.05.23 | H72: 880.04 | J72: =J169 -> 145 | K72: 115 | L72: 115
A73: 70. | B73: =B170 -> KOTYK | C73: Tadeáš | D73: 9.A | E73: 115 | G73: =G170 -> Jilemnice 10.05.23 | H73: 639.8 | J73: =J170 -> 95 | K73: 92 | L73: 0
A74: 71. | B74: =B171 -> KRAUSE | C74: Tadeáš | D74: 9.A | E74: 155 | G74: =G171 -> Turnov 11.05.23 | H74: 868.6 | J74: =J171 -> 143 | K74: 0 | L74: 0
A75: 72. | B75: =B172 -> LEŠÁK | C75: Martin | D75: 9.A | E75: 130 | G75: =G172 -> Jilemnice 12.05.23 | H75: 725.6 | J75: =J172 -> 118 | K75: 82 | L75: 0
A76: 73. | B76: =B173 -> NECHANICKÝ | C76: David | D76: 9.A | E76: 141 | G76: =G173 -> Jilemnice 12.05.23 | H76: 788.52 | J76: =J173 -> 123 | K76: 110 | L76: 0
A77: 74. | B77: =B174 -> ŘEHOŘEK | C77: Jan | D77: 9.A | E77: 146 | G77: =G174 -> Jilemnice 12.05.23 | H77: 817.12 | J77: =J174 -> 139 | K77: 115 | L77: 105
A78: 75. | B78: =B175 -> SOUKUP | C78: Ondřej | D78: 9.A | E78: 141 | G78: =G175 -> Jilemnice 12.05.23 | H78: 788.52 | J78: =J175 -> 103 | K78: 101 | L78: 0
A79: 76. | B79: =B176 -> SPANILÝ | C79: David | D79: 9.A | E79: 141 | G79: =G176 -> Jilemnice 12.05.23 | H79: 788.52 | J79: =J176 -> 123 | K79: 0 | L79: 0
A80: 77. | B80: =B177 -> ČERNÝ | C80: Michal | D80: 9.B | E80: 120 | G80: =G177 -> Jilemnice 12.05.23 | H80: 668.4 | J80: =J177 -> 108 | K80: 92 | L80: 0
A81: 78. | B81: =B178 -> DOLEJŠÍ | C81: David | D81: 9.B | E81: 125 | G81: =G178 -> Jilemnice 10.05.23 | H81: 697 | J81: =J178 -> 118 | K81: 92 | L81: 0
A82: 79. | B82: =B179 -> POVAŽANEC | C82: Martin | D82: 9.B | E82: 140 | G82: =G179 -> Jilemnice 07.09.22 | H82: 782.8 | J82: =J179 -> 147 | K82: 110 | L82: 0
A83: 80. | B83: =B180 -> RICHTER | C83: Jakub | D83: 9.B | E83: 115 | G83: =G180 -> Jilemnice 12.05.23 | H83: 639.8 | J83: =J180 -> 98 | K83: 0 | L83: 0
A84: 81. | B84: =B181 -> ROZUMEK | C84: Adam | D84: 9.B | E84: 110 | G84: =G181 -> Jilemnice 07.09.22 | H84: 611.2 | J84: =J181 -> 103 | K84: 0 | L84: 0
A85: 82. | B85: =B182 -> VALENTA | C85: František | D85: 9.B | E85: 115 | G85: =G182 -> Jilemnice 07.09.22 | H85: 639.8 | J85: =J182 -> 113 | K85: 0 | L85: 0
A86: 83. | B86: =B183 -> ZAPLATÍLEK | C86: Josef | D86: 9.B | E86: 115 | G86: =G183 -> Jilemnice 07.09.22 | H86: 639.8 | J86: =J183 -> 130 | K86: 0 | L86: 0
B101: HONCŮ | C101: Filip | D101: 6.A | E101: 95 | G101: Jilemnice 12.06.23 | H101: =IF(E101=0,0,(IF(E101>0,E101*4.4*1.3-18))) -> 525.4
B102: JÍLEK | C102: Lukáš | D102: 6.A | H102: 0
B103: KUČERA | C103: Tadeáš | D103: 6.A | E103: 95 | G103: Jilemnice 12.06.23 | H103: 525.4
B104: ROZUMEK | C104: Lukáš | D104: 6.A | H104: 0
B105: ŘEHOŘEK | C105: Marek | D105: 6.A | E105: 80 | G105: Jilemnice 05.06.23 | H105: 439.6
B106: ŘÍHA | C106: Tadeáš | D106: 6.A | E106: 115 | G106: Jilemnice 12.06.23 | H106: 639.8
B107: SKRBEK | C107: Richard | D107: 6.A | E107: 85 | G107: Jilemnice 05.06.23 | H107: 468.2
B108: ŠIMEK | C108: Erik | D108: 6.A | E108: 125 | G108: Jilemnice 12.06.23 | H108: 697
B109: ŠÍR | C109: Jan | D109: 6.A | E109: 110 | G109: Jilemnice 05.06.23 | H109: 611.2
B110: ŠÍR | C110: Stanislav | D110: 6.A | E110: 95 | G110: Jilemnice 12.06.23 | H110: 525.4
B111: ŠPINAR | C111: František | D111: 6.A | E111: 95 | G111: Jilemnice 12.06.23 | H111: 525.4
B112: TOTH | C112: Mikuláš | D112: 6.A | E112: 95 | G112: Jilemnice 12.06.23 | H112: 525.4
B113: WEISZLEMLEIN | C113: Adam | D113: 6.A | H113: 0
B114: ČERNÝ | C114: Filip | D114: 6.B | H114: 0
B115: GINGAL | C115: Patrik | D115: 6.B | H115: 0
B116: HLAVÁCEK | C116: Josef | D116: 6.B | E116: 115 | G116: Jilemnice 12.06.23 | H116: 639.8
B117: KHUDA | C117: Ivan | D117: 6.B | E117: 85 | G117: Jilemnice 05.06.23 | H117: 468.2
B118: KRESAN | C118: Matěj | D118: 6.B | E118: 95 | G118: Jilemnice 12.06.23 | H118: 525.4
B119: RYCHTR | C119: Vojtěch | D119: 6.B | E119: 100 | G119: Jilemnice 12.06.23 | H119: 554
B120: ŠTAJER | C120: David | D120: 6.B | E120: 120 | G120: Jilemnice 12.06.23 | H120: 668.4
B121: TKACHUK | C121: Dzvenyslav | D121: 6.B | H121: 0
B122: VELIKOVSKÝ | C122: Dominik | D122: 6.B | E122: 90 | G122: Jilemnice 12.06.23 | H122: 496.8
B123: EXNER | C123: Tomáš | D123: 7.A | E123: 110 | G123: Jilemnice 10.05.23 | H123: 611.2 | J123: 111
B124: JANATA | C124: Denis | D124: 7.A | E124: 95 | G124: Jilemnice 10.05.23 | H124: 525.4 | J124: 103
B125: JINDŘIŠEK | C125: Alex Jiří | D125: 7.A | H125: 0 | J125: 93
B126: KAZLEPKA | C126: Miroslav | D126: 7.A
B127: MARŠÁLEK | C127: Ondřej | D127: 7.A | E127: 90 | G127: Jilemnice 10.05.23 | H127: =IF(E127=0,0,(IF(E127>0,E127*4.4*1.3-18))) -> 496.8 | J127: 103
B128: MLATEČEK | C128: Patrik | D128: 7.A | E128: 105 | G128: Jilemnice 10.05.23 | H128: 582.6 | J128: 91
B129: SCHOLZ | C129: Matyáš | D129: 7.A | E129: 110 | G129: Jilemnice 10.05.23 | H129: 611.2 | J129: 102
B130: TOMÁŠ | C130: Jakub | D130: 7.A | E130: 115 | G130: Jilemnice 10.05.23 | H130: 639.8 | J130: 111
B131: VÁCLAVÍK | C131: Jan | D131: 7.A | E131: 115 | G131: Jilemnice 10.05.23 | H131: 639.8 | J131: 108
B132: VEČEŘA | C132: David | D132: 7.A | E132: 100 | G132: Jilemnice 10.05.23 | H132: 554 | J132: 93
B133: VYBÍRAL | C133: Radim | D133: 7.A | E133: 122 | G133: Turnov 16.05.23 | H133: 679.84 | J133: 119
B134: BERISHA | C134: David | D134: 7.B | H134: 0 | J134: 71
B135: EFENBERK | C135: Šimon | D135: 7.B | E135: 115 | G135: Jilemnice 10.05.23 | H135: 639.8 | J135: 102
B136: FEJKL | C136: Antonín | D136: 7.B | E136: 147 | G136: Turnov 11.05.23 | H136: 822.84 | J136: 111
B137: GOTTSTEIN | C137: Matouš | D137: 7.B | E137: 125 | G137: Jilemnice 10.05.23 | H137: 697 | J137: 123
B138: MAŘAS | C138: Dominik | D138: 7.B | E138: 130 | G138: Jilemnice 10.05.23 | H138: 725.6 | J138: 110
B139: POVAŽANEC | C139: Lukáš | D139: 7.B | H139: 0 | J139: 105
B140: VANCL | C140: Jakub | D140: 7.B | E140: 95 | G140: Jilemnice 10.05.23 | H140: 525.4 | J140: 91
B141: VANCL | C141: Miroslav | D141: 7.B | E141: 90 | G141: Jilemnice 10.05.23 | H141: 496.8 | J141: 103
B142: VOTOČEK | C142: Michal | D142: 7.B | H142: 0 | J142: 102
B143: DEMČUK | C143: Ilja | D143: 8.A | E143: 120 | G143: Jilemnice 12.05.23 | H143: 668.4 | J143: 120 | K143: 80
B144: FAISTAUER | C144: Kryštof | D144: 8.A | E144: 145 | G144: Jilemnice 12.05.23 | H144: 811.4 | J144: 130 | K144: 80
B145: FRK | C145: Matyáš | D145: 8.A | E145: 105 | G145: Jilemnice 12.05.23 | H145: 582.6 | K145: 75
B146: HUBÁLOVSKÝ | C146: Marek | D146: 8.A | E146: 110 | G146: Jilemnice 12.05.23 | H146: 611.2 | J146: 115 | K146: 80
B147: MAŤÁTKO | C147: Jakub | D147: 8.A | E147: 100 | G147: Jilemnice 31.10.22 | H147: 554 | J147: 110
B148: MERY | C148: Luboš | D148: 8.A | E148: 85 | G148: Jilemnice 12.05.23 | H148: 468.2 | K148: 70
B149: NOVOTNÝ | C149: Matěj | D149: 8.A | E149: 95 | G149: Jilemnice 12.05.23 | H149: 525.4 | K149: 80
B150: ŘEHOŘEK | C150: Vojtěch | D150: 8.A | H150: 0 | J150: 110
B151: ŠÍR | C151: Matyáš | D151: 8.A | E151: 105 | G151: Jilemnice 12.05.23 | H151: 582.6 | J151: 98 | K151: 70
B152: TORÁČ | C152: Tomáš | D152: 8.A | E152: 95 | G152: Jilemnice 31.10.22 | H152: 525.4 | J152: 90
B153: VÁCLAVÍK | C153: Ondřej | D153: 8.A | E153: 120 | G153: Jilemnice 12.05.23 | H153: 668.4 | J153: 108 | K153: 80
B154: AUERSWALD | C154: Daniel | D154: 8.B | H154: 0 | J154: 108
B155: BOUKAL | C155: Jakub | D155: 8.B | H155: 0
B156: BUDÍN | C156: Martin | D156: 8.B | E156: 115 | G156: Jilemnice 12.05.23 | H156: 639.8 | J156: 110 | K156: 80
B157: DVOŘÁK | C157: Dominik | D157: 8.B | E157: 105 | G157: Jilemnice 12.05.23 | H157: 582.6 | J157: 110 | K157: 75
B158: FIŠERA | C158: Vojtěch | D158: 8.B | E158: 105 | G158: Jilemnice 12.05.23 | H158: 582.6 | J158: 103
B159: JINDŘIŠEK | C159: Vít | D159: 8.B | E159: 135 | G159: Jilemnice 12.05.23 | H159: =IF(E159=0,0,(IF(E159>0,E159*4.4*1.3-18))) -> 754.2 | J159: 136 | K159: 80
B160: JIROUŠ | C160: Matouš | D160: 8.B | H160: 0 | J160: 108 | K160: 80
B161: KERLE | C161: Marek | D161: 8.B | E161: 150 | G161: Jilemnice 12.05.23 | H161: 840 | J161: 138 | K161: 80
B162: LUKEŠ | C162: Jakub | D162: 8.B | E162: 150 | G162: Jilemnice 12.05.23 | H162: 840 | J162: 146 | K162: 75
B163: OTT | C163: Matyáš | D163: 8.B | E163: 125 | G163: Turnov 13.09.22 | H163: 697 | J163: 125 | K163: 80
B164: POKORNÝ | C164: Matyáš | D164: 8.B | E164: 153 | G164: Jilemnice 12.05.23 | H164: 857.16 | J164: 135 | K164: 80
B165: POLÁČEK | C165: Matyáš | D165: 8.B | E165: 100 | G165: Jilemnice 12.05.23 | H165: 554 | J165: 98 | K165: 75
B166: ULLMAN | C166: Šimon | D166: 8.B | E166: 130 | G166: Jilemnice 12.05.23 | H166: 725.6 | J166: 120 | K166: 80
B167: VALENTA | C167: Jakub | D167: 8.B | E167: 140 | G167: Jilemnice 12.05.23 | H167: 782.8 | J167: 130
B168: VRBATA | C168: Dominik | D168: 8.B | E168: 125 | G168: Jilemnice 12.05.23 | H168: 697 | J168: 108 | K168: 80
B169: FEJKL | C169: Jan | D169: 9.A | E169: 157 | G169: Turnov 11.05.23 | H169: 880.04 | J169: 145 | K169: 115 | L169: 115
B170: KOTYK | C170: Tadeáš | D170: 9.A | E170: 115 | G170: Jilemnice 10.05.23 | H170: 639.8 | J170: 95 | K170: 92
B171: KRAUSE | C171: Tadeáš | D171: 9.A | E171: 155 | G171: Turnov 11.05.23 | H171: 868.6 | J171: 143
B172: LEŠÁK | C172: Martin | D172: 9.A | E172: 130 | G172: Jilemnice 12.05.23 | H172: 725.6 | J172: 118 | K172: 82
B173: NECHANICKÝ | C173: David | D173: 9.A | E173: 141 | G173: Jilemnice 12.05.23 | H173: 788.52 | J173: 123 | K173: 110
B174: ŘEHOŘEK | C174: Jan | D174: 9.A | E174: 146 | G174: Jilemnice 12.05.23 | H174: 817.12 | J174: 139 | K174: 115 | L174: 105
B175: SOUKUP | C175: Ondřej | D175: 9.A | E175: 141 | G175: Jilemnice 12.05.23 | H175: 788.52 | J175: 103 | K175: 101
B176: SPANILÝ | C176: David | D176: 9.A | E176: 141 | G176: Jilemnice 12.05.23 | H176: 788.52 | J176: 123
B177: ČERNÝ | C177: Michal | D177: 9.B | E177: 120 | G177: Jilemnice 12.05.23 | H177: 668.4 | J177: 108 | K177: 92
B178: DOLEJŠÍ | C178: David | D178: 9.B | E178: 125 | G178: Jilemnice 10.05.23 | H178: 697 | J178: 118 | K178: 92
B179: POVAŽANEC | C179: Martin | D179: 9.B | E179: 140 | G179: Jilemnice 07.09.22 | H179: 782.8 | J179: 147 | K179: 110
B180: RICHTER | C180: Jakub | D180: 9.B | E180: 115 | G180: Jilemnice 12.05.23 | H180: 639.8 | J180: 98
B181: ROZUMEK | C181: Adam | D181: 9.B | E181: 110 | G181: Jilemnice 07.09.22 | H181: 611.2 | J181: 103
B182: VALENTA | C182: František | D182: 9.B | E182: 115 | G182: Jilemnice 07.09.22 | H182: 639.8 | J182: 113
B183: ZAPLATÍLEK | C183: Josef | D183: 9.B | E183: 115 | G183: Jilemnice 07.09.22 | H183: 639.8 | J183: 130

Sheet MÍČEK
C1: VÝKONY 2022 - 2023 | G1: MÍČEK | H1: CHLAPCI 6. - 9. ROČ. | L1: 1959
B2: stav k | C2: =TODAY() -> 2023-06-26 | J2: 21 - 22 | K2: 20 - 21 | L2: 19 - 20
A4: 1. | B4: =B101 -> HONCŮ | C4: =C101 -> Filip | D4: 6.A | E4: 0 | G4: 0 | H4: 0 | J4: 0 | K4: 0 | L4: 0
A5: 2. | B5: =B102 -> JÍLEK | C5: Lukáš | D5: 6.A | E5: 0 | G5: =G102 -> 0 | H5: 0 | J5: =J102 -> 0 | K5: 0 | L5: 0
A6: 3. | B6: =B103 -> KUČERA | C6: Tadeáš | D6: 6.A | E6: 16 | G6: =G103 -> Jilemnice 01.06.23 | H6: 200 | J6: =J103 -> 0 | K6: 0 | L6: 0
A7: 4. | B7: =B104 -> ROZUMEK | C7: Lukáš | D7: 6.A | E7: 31 | G7: =G104 -> Jilemnice 01.06.23 | H7: 387.5 | J7: =J104 -> 0 | K7: 0 | L7: 0
A8: 5. | B8: =B105 -> ŘEHOŘEK | C8: Marek | D8: 6.A | E8: 23 | G8: =G105 -> Jilemnice 01.06.23 | H8: 287.5 | J8: =J105 -> 0 | K8: 0 | L8: 0
A9: 6. | B9: =B106 -> ŘÍHA | C9: Tadeáš | D9: 6.A | E9: 42.06 | G9: =G106 -> Turnov 16.05.23 | H9: 525.75 | J9: =J106 -> 0 | K9: 0 | L9: 0
A10: 7. | B10: =B107 -> SKRBEK | C10: Richard | D10: 6.A | E10: 0 | G10: =G107 -> 0 | H10: 0 | J10: =J107 -> 0 | K10: 0 | L10: 0
A11: 8. | B11: =B108 -> ŠIMEK | C11: Erik | D11: 6.A | E11: 37 | G11: =G108 -> Jilemnice 01.06.23 | H11: 462.5 | J11: =J108 -> 0 | K11: 0 | L11: 0
A12: 9. | B12: =B109 -> ŠÍR | C12: Jan | D12: 6.A | E12: 26 | G12: =G109 -> Jilemnice 01.06.23 | H12: 325 | J12: =J109 -> 0 | K12: 0 | L12: 0
A13: 10. | B13: =B110 -> ŠÍR | C13: Stanislav | D13: 6.A | E13: 34 | G13: =G110 -> Jilemnice 01.06.23 | H13: 425 | J13: =J110 -> 0 | K13: 0 | L13: 0
A14: 11. | B14: =B111 -> ŠPINAR | C14: František | D14: =D111 -> 6.A | E14: 27 | G14: =G111 -> Jilemnice 01.06.23 | H14: 337.5 | J14: =J111 -> 0 | K14: 0 | L14: 0
A15: 12. | B15: TOTH | C15: Mikuláš | D15: 6.A | E15: 28.5 | G15: =G112 -> Jilemnice 01.06.23 | H15: 356.25 | J15: =J112 -> 0 | K15: 0 | L15: 0
A16: 13. | B16: =B113 -> WEISZLEMLEIN | C16: Adam | D16: 6.A | E16: 0 | G16: =G113 -> 0 | H16: 0 | J16: =J113 -> 0 | K16: 0 | L16: 0
A17: 14. | B17: =B114 -> ČERNÝ | C17: Filip | D17: 6.B | E17: 0 | G17: =G114 -> 0 | H17: 0 | J17: =J114 -> 0 | K17: 0 | L17: 0
A18: 15. | B18: =B115 -> GINGAL | C18: Patrik | D18: 6.B | E18: 32.5 | G18: =G115 -> Jilemnice 01.06.23 | H18: 406.25 | J18: =J115 -> 0 | K18: 0 | L18: 0
A19: 16. | B19: =B116 -> HLAVÁCEK | C19: Josef | D19: 6.B | E19: 29 | G19: =G116 -> Jilemnice 01.06.23 | H19: 362.5 | J19: =J116 -> 0 | K19: 0 | L19: 0
A20: 17. | B20: =B117 -> KHUDA | C20: Ivan | D20: 6.B | E20: 23 | G20: =G117 -> Jilemnice 01.06.23 | H20: 287.5 | J20: =J117 -> 0 | K20: 0 | L20: 0
A21: 18. | B21: =B118 -> KRESAN | C21: Matěj | D21: 6.B | E21: 17 | G21: =G118 -> Jilemnice 01.06.23 | H21: 212.5 | J21: =J118 -> 0 | K21: 0 | L21: 0
A22: 19. | B22: =B119 -> RYCHTR | C22: Vojtěch | D22: 6.B | E22: 32 | G22: =G119 -> Jilemnice 01.06.23 | H22: 400 | J22: =J119 -> 0 | K22: 0 | L22: 0
A23: 20. | B23: =B120 -> ŠTAJER | C23: David | D23: 6.B | E23: 25 | G23: =G120 -> Jilemnice 01.06.23 | H23: 312.5 | J23: =J120 -> 0 | K23: 0 | L23: 0
A24: 21. | B24: =B121 -> TKACHUK | C24: Dzvenyslav | D24: 6.B | E24: 0 | G24: =G121 -> 0 | H24: 0 | J24: =J121 -> 0 | K24: 0 | L24: 0
A25: 22. | B25: =B122 -> VELIKOVSKÝ | C25: Dominik | D25: 6.B | E25: 21 | G25: =G122 -> Jilemnice 01.06.23 | H25: 262.5 | J25: =J122 -> 0 | K25: 0 | L25: 0
A26: 23. | B26: =B123 -> EXNER | C26: Tomáš | D26: 7.A | E26: 24 | G26: =G123 -> Jilemnice 07.05.23 | H26: 300 | J26: =J123 -> 16 | K26: 0 | L26: 0
A27: 24. | B27: =B124 -> JANATA | C27: Denis | D27: 7.A | E27: 21.5 | G27: =G124 -> Jilemnice 07.05.23 | H27: 268.75 | J27: =J124 -> 24 | K27: 0 | L27: 0
A28: 25. | B28: =B125 -> JINDŘIŠEK | C28: Alex Jiří | D28: 7.A | E28: 29.5 | G28: =G125 -> Jilemnice 02.11.22 | H28: 368.75 | J28: =J125 -> 25 | K28: 0 | L28: 0
A29: 26. | B29: =B126 -> KAZLEPKA | C29: Miroslav | D29: 7.A | E29: 20.5 | G29: =G126 -> Jilemnice 02.11.22 | H29: 256.25 | J29: =J126 -> 0 | K29: 0 | L29: 0
A30: 27. | B30: =B127 -> MARŠÁLEK | C30: Ondřej | D30: 7.A | E30: 26 | G30: =G127 -> Jilemnice 07.05.23 | H30: 325 | J30: =J127 -> 22.5 | K30: 0 | L30: 0
A31: 28. | B31: =B128 -> MLATEČEK | C31: Patrik | D31: 7.A | E31: 29 | G31: =G128 -> Jilemnice 02.11.22 | H31: 362.5 | J31: =J128 -> 26.5 | K31: 0 | L31: 0
A32: 29. | B32: =B129 -> SCHOLZ | C32: Matyáš | D32: 7.A | E32: 32 | G32: =G129 -> Jilemnice 07.05.23 | H32: 400 | J32: =J129 -> 26 | K32: 0 | L32: 0
A33: 30. | B33: =B130 -> TOMÁŠ | C33: Jakub | D33: 7.A | E33: 26.5 | G33: =G130 -> Jilemnice 02.11.22 | H33: 331.25 | J33: =J130 -> 24.5 | K33: 0 | L33: 0
A34: 31. | B34: =B131 -> VÁCLAVÍK | C34: Jan | D34: 7.A | E34: 27 | G34: =G131 -> Jilemnice 07.05.23 | H34: 337.5 | J34: =J131 -> 25 | K34: 0 | L34: 0
A35: 32. | B35: =B132 -> VEČEŘA | C35: David | D35: 7.A | E35: 22 | G35: =G132 -> Jilemnice 02.11.22 | H35: 275 | J35: =J132 -> 23 | K35: 0 | L35: 0
A36: 33. | B36: =B133 -> VYBÍRAL | C36: Radim | D36: 7.A | E36: 35.5 | G36: =G133 -> Turnov 13.09.22 | H36: 443.75 | J36: =J133 -> 30 | K36: 0 | L36: 0
A37: 34. | B37: =B134 -> BERISHA | C37: David | D37: 7.B | E37: 18 | G37: =G134 -> Jilemnice 02.11.22 | H37: 225 | J37: =J134 -> 17.5 | K37: 0 | L37: 0
A38: 35. | B38: =B135 -> EFENBERK | C38: Šimon | D38: 7.B | E38: 26.5 | G38: =G135 -> Jilemnice 07.05.23 | H38: 331.25 | J38: =J135 -> 21 | K38: 0 | L38: 0
A39: 36. | B39: =B136 -> FEJKL | C39: Antonín | D39: 7.B | E39: 49 | G39: =G136 -> Jilemnice 02.11.22 | H39: 612.5 | J39: =J136 -> 40 | K39: 0 | L39: 0
A40: 37. | B40: =B137 -> GOTTSTEIN | C40: Matouš | D40: 7.B | E40: 42 | G40: =G137 -> Jilemnice 12.06.23 | H40: 525 | J40: =J137 -> 36 | K40: 0 | L40: 0
A41: 38. | B41: =B138 -> MAŘAS | C41: Dominik | D41: 7.B | E41: 33 | G41: =G138 -> Jilemnice 07.05.23 | H41: 412.5 | J41: =J138 -> 28 | K41: 0 | L41: 0
A42: 39. | B42: =B139 -> POVAŽANEC | C42: Lukáš | D42: 7.B | E42: 45 | G42: =G139 -> Jilemnice 12.06.23 | H42: 562.5 | J42: =J139 -> 33 | K42: 0 | L42: 0
A43: 40. | B43: =B140 -> VANCL | C43: Jakub | D43: 7.B | E43: 22 | G43: =G140 -> Jilemnice 02.11.22 | H43: 275 | J43: =J140 -> 20.5 | K43: 0 | L43: 0
A44: 41. | B44: =B141 -> VANCL | C44: Miroslav | D44: 7.B | E44: 25 | G44: =G141 -> Jilemnice 02.11.22 | H44: 312.5 | J44: =J141 -> 21 | K44: 0 | L44: 0
A45: 42. | B45: =B142 -> VOTOČEK | C45: Michal | D45: 7.B | E45: 28 | G45: =G142 -> Jilemnice 02.11.22 | H45: 350 | J45: =J142 -> 30 | K45: 0 | L45: 0
A46: 43. | B46: =B143 -> DEMČUK | C46: Ilja | D46: 8.A | E46: 30.5 | G46: =G143 -> Jilemnice 02.06.23 | H46: 381.25 | J46: =J143 -> 31 | K46: 20 | L46: 0
A47: 44. | B47: =B144 -> FAISTAUER | C47: Kryštof | D47: 8.A | E47: 40 | G47: =G144 -> Jilemnice 02.06.23 | H47: 500 | J47: =J144 -> 45 | K47: 34.5 | L47: 0
A48: 45. | B48: =B145 -> FRK | C48: Matyáš | D48: 8.A | E48: 0 | G48: =G145 -> 0 | H48: 0 | J48: =J145 -> 26 | K48: 0 | L48: 0
A49: 46. | B49: =B146 -> HUBÁLOVSKÝ | C49: Marek | D49: 8.A | E49: 34.5 | G49: =G146 -> Jilemnice 02.06.23 | H49: 431.25 | J49: =J146 -> 34 | K49: 26 | L49: 0
A50: 47. | B50: =B147 -> MAŤÁTKO | C50: Jakub | D50: 8.A | E50: 27.5 | G50: =G147 -> Jilemnice 10.11.22 | H50: 343.75 | J50: =J147 -> 25 | K50: 0 | L50: 0
A51: 48. | B51: =B148 -> MERY | C51: Luboš | D51: 8.A | E51: 21.5 | G51: =G148 -> Jilemnice 02.06.23 | H51: 268.75 | J51: =J148 -> 21 | K51: 0 | L51: 0
A52: 49. | B52: =B149 -> NOVOTNÝ | C52: Matěj | D52: 8.A | E52: 40 | G52: =G149 -> Jilemnice 02.06.23 | H52: 500 | J52: =J149 -> 25.5 | K52: 29 | L52: 0
A53: 50. | B53: =B150 -> ŘEHOŘEK | C53: Vojtěch | D53: 8.A | E53: 53 | G53: =G150 -> Jilemnice 05.06.23 | H53: 662.5 | J53: =J150 -> 44.8 | K53: 40 | L53: 0
A54: 51. | B54: =B151 -> ŠÍR | C54: Matyáš | D54: 8.A | E54: 29.5 | G54: =G151 -> Jilemnice 02.06.23 | H54: 368.75 | J54: =J151 -> 25 | K54: 20 | L54: 0
A55: 52. | B55: =B152 -> TORÁČ | C55: Tomáš | D55: 8.A | E55: 20 | G55: =G152 -> Jilemnice 10.11.22 | H55: 250 | J55: =J152 -> 17.5 | K55: 0 | L55: 0
A56: 53. | B56: =B153 -> VÁCLAVÍK | C56: Ondřej | D56: 8.A | E56: 49 | G56: =G153 -> Jilemnice 02.06.23 | H56: 612.5 | J56: =J153 -> 42 | K56: 36 | L56: 0
A57: 54. | B57: =B154 -> AUERSWALD | C57: Daniel | D57: 8.B | E57: 32 | G57: =G154 -> Jilemnice 05.06.23 | H57: 400 | J57: =J154 -> 29 | K57: 25 | L57: 0
A58: 55. | B58: =B155 -> BOUKAL | C58: Jakub | D58: 8.B | E58: 0 | G58: =G155 -> 0 | H58: 0 | J58: =J155 -> 0 | K58: 0 | L58: 0
A59: 56. | B59: =B156 -> BUDÍN | C59: Martin | D59: 8.B | E59: 42 | G59: =G156 -> Jilemnice 05.06.23 | H59: 525 | J59: =J156 -> 37 | K59: 31 | L59: 0
A60: 57. | B60: =B157 -> DVOŘÁK | C60: Dominik | D60: 8.B | E60: 34 | G60: =G157 -> Jilemnice 05.06.23 | H60: 425 | J60: =J157 -> 31 | K60: 0 | L60: 0
A61: 58. | B61: =B158 -> FIŠERA | C61: Vojtěch | D61: 8.B | E61: 22.5 | G61: =G158 -> Jilemnice 05.06.23 | H61: 281.25 | J61: =J158 -> 19 | K61: 19 | L61: 0
A62: 59. | B62: =B159 -> JINDŘIŠEK | C62: Vít | D62: 8.B | E62: 56 | G62: =G159 -> Jilemnice 05.06.23 | H62: 700 | J62: =J159 -> 52.9 | K62: 42 | L62: 0
A63: 60. | B63: =B160 -> JIROUŠ | C63: Matouš | D63: 8.B | E63: 41 | G63: =G160 -> Jilemnice 05.06.23 | H63: 512.5 | J63: =J160 -> 29.5 | K63: 28 | L63: 0
A64: 61. | B64: =B161 -> KERLE | C64: Marek | D64: 8.B | E64: 49 | G64: =G161 -> Jilemnice 05.06.23 | H64: 612.5 | J64: =J161 -> 46 | K64: 0 | L64: 0
A65: 62. | B65: =B162 -> LUKEŠ | C65: Jakub | D65: 8.B | E65: 30 | G65: =G162 -> Jilemnice 05.06.23 | H65: 375 | J65: =J162 -> 24 | K65: 21 | L65: 0
A66: 63. | B66: =B163 -> OTT | C66: Matyáš | D66: 8.B | E66: 41 | G66: =G163 -> Jilemnice 05.06.23 | H66: 512.5 | J66: =J163 -> 35 | K66: 29 | L66: 0
A67: 64. | B67: =B164 -> POKORNÝ | C67: Matyáš | D67: 8.B | E67: 55 | G67: =G164 -> Jilemnice 05.06.23 | H67: 687.5 | J67: =J164 -> 45 | K67: 43 | L67: 0
A68: 65. | B68: =B165 -> POLÁČEK | C68: Matyáš | D68: 8.B | E68: 42 | G68: =G165 -> Jilemnice 05.06.23 | H68: 525 | J68: =J165 -> 37 | K68: 34 | L68: 0
A69: 66. | B69: =B166 -> ULLMAN | C69: Šimon | D69: 8.B | E69: 26.5 | G69: =G166 -> Jilemnice 05.06.23 | H69: 331.25 | J69: =J166 -> 0 | K69: 24.5 | L69: 0
A70: 67. | B70: =B167 -> VALENTA | C70: Jakub | D70: 8.B | E70: 28 | G70: =G167 -> Jilemnice 05.06.23 | H70: 350 | J70: =J167 -> 28 | K70: 26 | L70: 0
A71: 68. | B71: =B168 -> VRBATA | C71: Dominik | D71: 8.B | E71: 40 | G71: =G168 -> Jilemnice 05.06.23 | H71: 500 | J71: =J168 -> 37 | K71: 34.5 | L71: 0
A72: 69. | B72: =B169 -> FEJKL | C72: Jan | D72: 9.A | E72: 61 | G72: =G169 -> Jilemnice 02.06.23 | H72: 762.5 | J72: =J169 -> 61 | K72: 49 | L72: 39.5
A73: 70. | B73: =B170 -> KOTYK | C73: Tadeáš | D73: 9.A | E73: 26.5 | G73: =G170 -> Jilemnice 02.06.23 | H73: 331.25 | J73: =J170 -> 26 | K73: 20 | L73: 16.5
A74: 71. | B74: =B171 -> KRAUSE | C74: Tadeáš | D74: 9.A | E74: 44.2 | G74: =G171 -> Turnov 11.05.23 | H74: 552.5 | J74: =J171 -> 37.5 | K74: 29.5 | L74: 25
A75: 72. | B75: =B172 -> LEŠÁK | C75: Martin | D75: 9.A | E75: 33.5 | G75: =G172 -> Jilemnice 02.06.23 | H75: 418.75 | J75: =J172 -> 30 | K75: 25.5 | L75: 22
A76: 73. | B76: =B173 -> NECHANICKÝ | C76: David | D76: 9.A | E76: 45 | G76: =G173 -> Jilemnice 02.11.22 | H76: 562.5 | J76: =J173 -> 43 | K76: 31 | L76: 29
A77: 74. | B77: =B174 -> ŘEHOŘEK | C77: Jan | D77: 9.A | E77: 51.5 | G77: =G174 -> Jilemnice 02.06.23 | H77: 643.75 | J77: =J174 -> 39 | K77: 42 | L77: 41
A78: 75. | B78: =B175 -> SOUKUP | C78: Ondřej | D78: 9.A | E78: 0 | G78: =G175 -> 0 | H78: 0 | J78: =J175 -> 0 | K78: 0 | L78: 0
A79: 76. | B79: =B176 -> SPANILÝ | C79: David | D79: 9.A | E79: 61 | G79: =G176 -> Jilemnice 02.06.23 | H79: 762.5 | J79: =J176 -> 59 | K79: 47 | L79: 44
A80: 77. | B80: =B177 -> ČERNÝ | C80: Michal | D80: 9.B | E80: 51 | G80: =G177 -> Jilemnice 02.06.23 | H80: 637.5 | J80: =J177 -> 44.5 | K80: 39.5 | L80: 31
A81: 78. | B81: =B178 -> DOLEJŠÍ | C81: David | D81: 9.B | E81: 24 | G81: =G178 -> Jilemnice 02.11.22 | H81: 300 | J81: =J178 -> 21.5 | K81: 21 | L81: 20
A82: 79. | B82: =B179 -> POVAŽANEC | C82: Martin | D82: 9.B | E82: 61 | G82: =G179 -> Jilemnice 02.06.23 | H82: 762.5 | J82: =J179 -> 50 | K82: 40.5 | L82: 34
A83: 80. | B83: =B180 -> RICHTER | C83: Jakub | D83: 9.B | E83: 30 | G83: =G180 -> Jilemnice 02.11.22 | H83: 375 | J83: =J180 -> 29 | K83: 23 | L83: 19.5
A84: 81. | B84: =B181 -> ROZUMEK | C84: Adam | D84: 9.B | E84: 50 | G84: =G181 -> Jilemnice 02.11.22 | H84: 625 | J84: =J181 -> 45 | K84: 38 | L84: 30.5
A85: 82. | B85: =B182 -> VALENTA | C85: František | D85: 9.B | E85: 29 | G85: =G182 -> Jilemnice 02.11.22 | H85: 362.5 | J85: =J182 -> 28 | K85: 20 | L85: 20
A86: 83. | B86: =B183 -> ZAPLATÍLEK | C86: Josef | D86: 9.B | E86: 49 | G86: =G183 -> Jilemnice 02.06.23 | H86: 612.5 | J86: =J183 -> 42 | K86: 36 | L86: 34.5
B101: HONCŮ | C101: Filip | D101: 6.A | H101: =IF(E101=0,0,E101*10*1.25) -> 0
B102: JÍLEK | C102: Lukáš | D102: 6.A | H102: 0
B103: KUČERA | C103: Tadeáš | D103: 6.A | E103: 16 | G103: Jilemnice 01.06.23 | H103: 200
B104: ROZUMEK | C104: Lukáš | D104: 6.A | E104: 31 | G104: Jilemnice 01.06.23 | H104: 387.5
B105: ŘEHOŘEK | C105: Marek | D105: 6.A | E105: 23 | G105: Jilemnice 01.06.23 | H105: 287.5
B106: ŘÍHA | C106: Tadeáš | D106: 6.A | E106: 42.06 | G106: Turnov 16.05.23 | H106: 525.75
B107: SKRBEK | C107: Richard | D107: 6.A | H107: 0
B108: ŠIMEK | C108: Erik | D108: 6.A | E108: 37 | G108: Jilemnice 01.06.23 | H108: 462.5
B109: ŠÍR | C109: Jan | D109: 6.A | E109: 26 | G109: Jilemnice 01.06.23 | H109: 325
B110: ŠÍR | C110: Stanislav | D110: 6.A | E110: 34 | G110: Jilemnice 01.06.23 | H110: 425
B111: ŠPINAR | C111: František | D111: 6.A | E111: 27 | G111: Jilemnice 01.06.23 | H111: 337.5
B112: TOTH | C112: Mikuláš | D112: 6.A | E112: 28.5 | G112: Jilemnice 01.06.23 | H112: 356.25
B113: WEISZLEMLEIN | C113: Adam | D113: 6.A | H113: 0
B114: ČERNÝ | C114: Filip | D114: 6.B | H114: 0
B115: GINGAL | C115: Patrik | D115: 6.B | E115: 32.5 | G115: Jilemnice 01.06.23 | H115: 406.25
B116: HLAVÁCEK | C116: Josef | D116: 6.B | E116: 29 | G116: Jilemnice 01.06.23 | H116: 362.5
B117: KHUDA | C117: Ivan | D117: 6.B | E117: 23 | G117: Jilemnice 01.06.23 | H117: 287.5
B118: KRESAN | C118: Matěj | D118: 6.B | E118: 17 | G118: Jilemnice 01.06.23 | H118: 212.5
B119: RYCHTR | C119: Vojtěch | D119: 6.B | E119: 32 | G119: Jilemnice 01.06.23 | H119: 400
B120: ŠTAJER | C120: David | D120: 6.B | E120: 25 | G120: Jilemnice 01.06.23 | H120: 312.5
B121: TKACHUK | C121: Dzvenyslav | D121: 6.B | H121: 0
B122: VELIKOVSKÝ | C122: Dominik | D122: 6.B | E122: 21 | G122: Jilemnice 01.06.23 | H122: 262.5
B123: EXNER | C123: Tomáš | D123: 7.A | E123: 24 | G123: Jilemnice 07.05.23 | H123: 300 | J123: 16
B124: JANATA | C124: Denis | D124: 7.A | E124: 21.5 | G124: Jilemnice 07.05.23 | H124: 268.75 | J124: 24
B125: JINDŘIŠEK | C125: Alex Jiří | D125: 7.A | E125: 29.5 | G125: Jilemnice 02.11.22 | H125: 368.75 | J125: 25
B126: KAZLEPKA | C126: Miroslav | D126: 7.A | E126: 20.5 | G126: Jilemnice 02.11.22 | H126: 256.25
B127: MARŠÁLEK | C127: Ondřej | D127: 7.A | E127: 26 | G127: Jilemnice 07.05.23 | H127: 325 | J127: 22.5
B128: MLATEČEK | C128: Patrik | D128: 7.A | E128: 29 | G128: Jilemnice 02.11.22 | H128: 362.5 | J128: 26.5
B129: SCHOLZ | C129: Matyáš | D129: 7.A | E129: 32 | G129: Jilemnice 07.05.23 | H129: 400 | J129: 26
B130: TOMÁŠ | C130: Jakub | D130: 7.A | E130: 26.5 | G130: Jilemnice 02.11.22 | H130: 331.25 | J130: 24.5
B131: VÁCLAVÍK | C131: Jan | D131: 7.A | E131: 27 | G131: Jilemnice 07.05.23 | H131: 337.5 | J131: 25
B132: VEČEŘA | C132: David | D132: 7.A | E132: 22 | G132: Jilemnice 02.11.22 | H132: 275 | J132: 23
B133: VYBÍRAL | C133: Radim | D133: 7.A | E133: 35.5 | G133: Turnov 13.09.22 | H133: =IF(E133=0,0,E133*10*1.25) -> 443.75 | J133: 30
B134: BERISHA | C134: David | D134: 7.B | E134: 18 | G134: Jilemnice 02.11.22 | H134: 225 | J134: 17.5
B135: EFENBERK | C135: Šimon | D135: 7.B | E135: 26.5 | G135: Jilemnice 07.05.23 | H135: 331.25 | J135: 21
B136: FEJKL | C136: Antonín | D136: 7.B | E136: 49 | G136: Jilemnice 02.11.22 | H136: 612.5 | J136: 40
B137: GOTTSTEIN | C137: Matouš | D137: 7.B | E137: 42 | G137: Jilemnice 12.06.23 | H137: 525 | J137: 36
B138: MAŘAS | C138: Dominik | D138: 7.B | E138: 33 | G138: Jilemnice 07.05.23 | H138: 412.5 | J138: 28
B139: POVAŽANEC | C139: Lukáš | D139: 7.B | E139: 45 | G139: Jilemnice 12.06.23 | H139: 562.5 | J139: 33
B140: VANCL | C140: Jakub | D140: 7.B | E140: 22 | G140: Jilemnice 02.11.22 | H140: 275 | J140: 20.5
B141: VANCL | C141: Miroslav | D141: 7.B | E141: 25 | G141: Jilemnice 02.11.22 | H141: 312.5 | J141: 21
B142: VOTOČEK | C142: Michal | D142: 7.B | E142: 28 | G142: Jilemnice 02.11.22 | H142: 350 | J142: 30
B143: DEMČUK | C143: Ilja | D143: 8.A | E143: 30.5 | G143: Jilemnice 02.06.23 | H143: 381.25 | J143: 31 | K143: 20
B144: FAISTAUER | C144: Kryštof | D144: 8.A | E144: 40 | G144: Jilemnice 02.06.23 | H144: 500 | J144: 45 | K144: 34.5
B145: FRK | C145: Matyáš | D145: 8.A | H145: 0 | J145: 26
B146: HUBÁLOVSKÝ | C146: Marek | D146: 8.A | E146: 34.5 | G146: Jilemnice 02.06.23 | H146: 431.25 | J146: 34 | K146: 26
B147: MAŤÁTKO | C147: Jakub | D147: 8.A | E147: 27.5 | G147: Jilemnice 10.11.22 | H147: 343.75 | J147: 25
B148: MERY | C148: Luboš | D148: 8.A | E148: 21.5 | G148: Jilemnice 02.06.23 | H148: 268.75 | J148: 21
B149: NOVOTNÝ | C149: Matěj | D149: 8.A | E149: 40 | G149: Jilemnice 02.06.23 | H149: 500 | J149: 25.5 | K149: 29
B150: ŘEHOŘEK | C150: Vojtěch | D150: 8.A | E150: 53 | G150: Jilemnice 05.06.23 | H150: 662.5 | J150: 44.8 | K150: 40
B151: ŠÍR | C151: Matyáš | D151: 8.A | E151: 29.5 | G151: Jilemnice 02.06.23 | H151: 368.75 | J151: 25 | K151: 20
B152: TORÁČ | C152: Tomáš | D152: 8.A | E152: 20 | G152: Jilemnice 10.11.22 | H152: 250 | J152: 17.5
B153: VÁCLAVÍK | C153: Ondřej | D153: 8.A | E153: 49 | G153: Jilemnice 02.06.23 | H153: 612.5 | J153: 42 | K153: 36
B154: AUERSWALD | C154: Daniel | D154: 8.B | E154: 32 | G154: Jilemnice 05.06.23 | H154: 400 | J154: 29 | K154: 25
B155: BOUKAL | C155: Jakub | D155: 8.B | H155: 0
B156: BUDÍN | C156: Martin | D156: 8.B | E156: 42 | G156: Jilemnice 05.06.23 | H156: 525 | J156: 37 | K156: 31
B157: DVOŘÁK | C157: Dominik | D157: 8.B | E157: 34 | G157: Jilemnice 05.06.23 | H157: 425 | J157: 31
B158: FIŠERA | C158: Vojtěch | D158: 8.B | E158: 22.5 | G158: Jilemnice 05.06.23 | H158: 281.25 | J158: 19 | K158: 19
B159: JINDŘIŠEK | C159: Vít | D159: 8.B | E159: 56 | G159: Jilemnice 05.06.23 | H159: 700 | J159: 52.9 | K159: 42
B160: JIROUŠ | C160: Matouš | D160: 8.B | E160: 41 | G160: Jilemnice 05.06.23 | H160: 512.5 | J160: 29.5 | K160: 28
B161: KERLE | C161: Marek | D161: 8.B | E161: 49 | G161: Jilemnice 05.06.23 | H161: 612.5 | J161: 46
B162: LUKEŠ | C162: Jakub | D162: 8.B | E162: 30 | G162: Jilemnice 05.06.23 | H162: 375 | J162: 24 | K162: 21
B163: OTT | C163: Matyáš | D163: 8.B | E163: 41 | G163: Jilemnice 05.06.23 | H163: 512.5 | J163: 35 | K163: 29
B164: POKORNÝ | C164: Matyáš | D164: 8.B | E164: 55 | G164: Jilemnice 05.06.23 | H164: 687.5 | J164: 45 | K164: 43
B165: POLÁČEK | C165: Matyáš | D165: 8.B | E165: 42 | G165: Jilemnice 05.06.23 | H165: =IF(E165=0,0,E165*10*1.25) -> 525 | J165: 37 | K165: 34
B166: ULLMAN | C166: Šimon | D166: 8.B | E166: 26.5 | G166: Jilemnice 05.06.23 | H166: 331.25 | K166: 24.5
B167: VALENTA | C167: Jakub | D167: 8.B | E167: 28 | G167: Jilemnice 05.06.23 | H167: 350 | J167: 28 | K167: 26
B168: VRBATA | C168: Dominik | D168: 8.B | E168: 40 | G168: Jilemnice 05.06.23 | H168: 500 | J168: 37 | K168: 34.5
B169: FEJKL | C169: Jan | D169: 9.A | E169: 61 | G169: Jilemnice 02.06.23 | H169: 762.5 | J169: 61 | K169: 49 | L169: 39.5
B170: KOTYK | C170: Tadeáš | D170: 9.A | E170: 26.5 | G170: Jilemnice 02.06.23 | H170: 331.25 | J170: 26 | K170: 20 | L170: 16.5
B171: KRAUSE | C171: Tadeáš | D171: 9.A | E171: 44.2 | G171: Turnov 11.05.23 | H171: 552.5 | J171: 37.5 | K171: 29.5 | L171: 25
B172: LEŠÁK | C172: Martin | D172: 9.A | E172: 33.5 | G172: Jilemnice 02.06.23 | H172: 418.75 | J172: 30 | K172: 25.5 | L172: 22
B173: NECHANICKÝ | C173: David | D173: 9.A | E173: 45 | G173: Jilemnice 02.11.22 | H173: 562.5 | J173: 43 | K173: 31 | L173: 29
B174: ŘEHOŘEK | C174: Jan | D174: 9.A | E174: 51.5 | G174: Jilemnice 02.06.23 | H174: 643.75 | J174: 39 | K174: 42 | L174: 41
B175: SOUKUP | C175: Ondřej | D175: 9.A | H175: 0
B176: SPANILÝ | C176: David | D176: 9.A | E176: 61 | G176: Jilemnice 02.06.23 | H176: 762.5 | J176: 59 | K176: 47 | L176: 44
B177: ČERNÝ | C177: Michal | D177: 9.B | E177: 51 | G177: Jilemnice 02.06.23 | H177: 637.5 | J177: 44.5 | K177: 39.5 | L177: 31
B178: DOLEJŠÍ | C178: David | D178: 9.B | E178: 24 | G178: Jilemnice 02.11.22 | H178: 300 | J178: 21.5 | K178: 21 | L178: 20
B179: POVAŽANEC | C179: Martin | D179: 9.B | E179: 61 | G179: Jilemnice 02.06.23 | H179: 762.5 | J179: 50 | K179: 40.5 | L179: 34
B180: RICHTER | C180: Jakub | D180: 9.B | E180: 30 | G180: Jilemnice 02.11.22 | H180: 375 | J180: 29 | K180: 23 | L180: 19.5
B181: ROZUMEK | C181: Adam | D181: 9.B | E181: 50 | G181: Jilemnice 02.11.22 | H181: 625 | J181: 45 | K181: 38 | L181: 30.5
B182: VALENTA | C182: František | D182: 9.B | E182: 29 | G182: Jilemnice 02.11.22 | H182: 362.5 | J182: 28 | K182: 20 | L182: 20
B183: ZAPLATÍLEK | C183: Josef | D183: 9.B | E183: 49 | G183: Jilemnice 02.06.23 | H183: 612.5 | J183: 42 | K183: 36 | L183: 34.5

Sheet KOULE
C1: VÝKONY 2022 - 2023 | G1: KOULE | H1: CHLAPCI 6. - 9. ROČ.
B2: stav k | C2: =TODAY() -> 2023-06-26 | J2: 21 - 22 | K2: 20 - 21 | L2: 19 - 20
A4: 1. | B4: =B101 -> HONCŮ | C4: =C101 -> Filip | D4: 6.A | E4: 4.07 | G4: Jilemnice 16.06.23 | H4: 392.7777778 | J4: 0 | K4: 0 | L4: 0
A5: 2. | B5: =B102 -> JÍLEK | C5: Lukáš | D5: 6.A | E5: 0 | G5: =G102 -> 0 | H5: 0 | J5: =J102 -> 0 | K5: 0 | L5: 0
A6: 3. | B6: =B103 -> KUČERA | C6: Tadeáš | D6: 6.A | E6: 4.69 | G6: =G103 -> Jilemnice 16.06.23 | H6: 427.2222222 | J6: =J103 -> 0 | K6: 0 | L6: 0
A7: 4. | B7: =B104 -> ROZUMEK | C7: Lukáš | D7: 6.A | E7: 6.16 | G7: =G104 -> Jilemnice 19.06.23 | H7: 508.8888889 | J7: =J104 -> 0 | K7: 0 | L7: 0
A8: 5. | B8: =B105 -> ŘEHOŘEK | C8: Marek | D8: 6.A | E8: 0 | G8: =G105 -> 0 | H8: 0 | J8: =J105 -> 0 | K8: 0 | L8: 0
A9: 6. | B9: =B106 -> ŘÍHA | C9: Tadeáš | D9: 6.A | E9: 6.9 | G9: =G106 -> Jilemnice 16.06.23 | H9: 550 | J9: =J106 -> 0 | K9: 0 | L9: 0
A10: 7. | B10: =B107 -> SKRBEK | C10: Richard | D10: 6.A | E10: 5.82 | G10: =G107 -> Jilemnice 16.06.23 | H10: 490 | J10: =J107 -> 0 | K10: 0 | L10: 0
A11: 8. | B11: =B108 -> ŠIMEK | C11: Erik | D11: 6.A | E11: 7.62 | G11: =G108 -> Jilemnice 19.06.23 | H11: 590 | J11: =J108 -> 0 | K11: 0 | L11: 0
A12: 9. | B12: =B109 -> ŠÍR | C12: Jan | D12: 6.A | E12: 5.7 | G12: =G109 -> Jilemnice 16.06.23 | H12: 483.3333333 | J12: =J109 -> 0 | K12: 0 | L12: 0
A13: 10. | B13: =B110 -> ŠÍR | C13: Stanislav | D13: 6.A | E13: 4.28 | G13: =G110 -> Jilemnice 19.06.23 | H13: 404.4444444 | J13: =J110 -> 0 | K13: 0 | L13: 0
A14: 11. | B14: =B111 -> ŠPINAR | C14: František | D14: 6.A | E14: 5.75 | G14: =G111 -> Jilemnice 16.06.23 | H14: 486.1111111 | J14: =J111 -> 0 | K14: 0 | L14: 0
A15: 12. | B15: =B112 -> TOTH | C15: Mikuláš | D15: 6.A | E15: 0 | G15: =G112 -> 0 | H15: 0 | J15: =J112 -> 0 | K15: 0 | L15: 0
A16: 13. | B16: =B113 -> WEISZLEMLEIN | C16: Adam | D16: 6.A | E16: 0 | G16: =G113 -> 0 | H16: 0 | J16: =J113 -> 0 | K16: 0 | L16: 0
A17: 14. | B17: =B114 -> ČERNÝ | C17: Filip | D17: 6.B | E17: 0 | G17: =G114 -> 0 | H17: 0 | J17: =J114 -> 0 | K17: 0 | L17: 0
A18: 15. | B18: =B115 -> GINGAL | C18: Patrik | D18: 6.B | E18: 0 | G18: =G115 -> 0 | H18: 0 | J18: =J115 -> 0 | K18: 0 | L18: 0
A19: 16. | B19: =B116 -> HLAVÁCEK | C19: Josef | D19: 6.B | E19: 6.9 | G19: =G116 -> Jilemnice 19.06.23 | H19: 550 | J19: =J116 -> 0 | K19: 0 | L19: 0
A20: 17. | B20: =B117 -> KHUDA | C20: Ivan | D20: 6.B | E20: 6.3 | G20: =G117 -> Jilemnice 19.06.23 | H20: 516.6666667 | J20: =J117 -> 0 | K20: 0 | L20: 0
A21: 18. | B21: =B118 -> KRESAN | C21: Matěj | D21: 6.B | E21: 4.8 | G21: =G118 -> Jilemnice 19.06.23 | H21: 433.3333333 | J21: =J118 -> 0 | K21: 0 | L21: 0
A22: 19. | B22: =B119 -> RYCHTR | C22: Vojtěch | D22: 6.B | E22: 0 | G22: =G119 -> 0 | H22: 0 | J22: =J119 -> 0 | K22: 0 | L22: 0
A23: 20. | B23: =B120 -> ŠTAJER | C23: David | D23: 6.B | E23: 7.92 | G23: =G120 -> Jilemnice 19.06.23 | H23: 606.6666667 | J23: =J120 -> 0 | K23: 0 | L23: 0
A24: 21. | B24: =B121 -> TKACHUK | C24: Dzvenyslav | D24: 6.B | E24: 0 | G24: =G121 -> 0 | H24: 0 | J24: =J121 -> 0 | K24: 0 | L24: 0
A25: 22. | B25: =B122 -> VELIKOVSKÝ | C25: Dominik | D25: 6.B | E25: 3.9 | G25: =G122 -> Jilemnice 19.06.23 | H25: 383.3333333 | J25: =J122 -> 0 | K25: 0 | L25: 0
A26: 23. | B26: =B123 -> EXNER | C26: Tomáš | D26: 7.A | E26: 8.75 | G26: =G123 -> Jilemnice 07.05.23 | H26: 652.7777778 | J26: =J123 -> 6.58 | K26: 0 | L26: 0
A27: 24. | B27: =B124 -> JANATA | C27: Denis | D27: 7.A | E27: 4.94 | G27: =G124 -> Jilemnice 31.05.23 | H27: 441.1111111 | J27: =J124 -> 4.45 | K27: 0 | L27: 0
A28: 25. | B28: =B125 -> JINDŘIŠEK | C28: Alex Jiří | D28: 7.A | E28: 8.79 | G28: =G125 -> Jilemnice 31.05.23 | H28: 655 | J28: =J125 -> 7.65 | K28: 0 | L28: 0
A29: 26. | B29: =B126 -> KAZLEPKA | C29: Miroslav | D29: 7.A | E29: 0 | G29: =G126 -> 0 | H29: 0 | J29: =J126 -> 0 | K29: 0 | L29: 0
A30: 27. | B30: =B127 -> MARŠÁLEK | C30: Ondřej | D30: 7.A | E30: 8.19 | G30: =G127 -> Jilemnice 31.05.23 | H30: 621.6666667 | J30: =J127 -> 6.27 | K30: 0 | L30: 0
A31: 28. | B31: =B128 -> MLATEČEK | C31: Patrik | D31: 7.A | E31: 6.71 | G31: =G128 -> Jilemnice 31.05.23 | H31: 539.4444444 | J31: =J128 -> 5.48 | K31: 0 | L31: 0
A32: 29. | B32: =B129 -> SCHOLZ | C32: Matyáš | D32: 7.A | E32: 7.71 | G32: =G129 -> Jilemnice 07.05.23 | H32: 595 | J32: =J129 -> 6.98 | K32: 0 | L32: 0
A33: 30. | B33: =B130 -> TOMÁŠ | C33: Jakub | D33: 7.A | E33: 7.47 | G33: =G130 -> Jilemnice 31.05.23 | H33: 581.6666667 | J33: =J130 -> 5.85 | K33: 0 | L33: 0
A34: 31. | B34: =B131 -> VÁCLAVÍK | C34: Jan | D34: 7.A | E34: 6.19 | G34: =G131 -> Jilemnice 31.05.23 | H34: 510.5555556 | J34: =J131 -> 5.22 | K34: 0 | L34: 0
A35: 32. | B35: =B132 -> VEČEŘA | C35: David | D35: 7.A | E35: 6.87 | G35: =G132 -> Jilemnice 31.05.23 | H35: 548.3333333 | J35: =J132 -> 5.4 | K35: 0 | L35: 0
A36: 33. | B36: =B133 -> VYBÍRAL | C36: Radim | D36: 7.A | E36: 7.66 | G36: =G133 -> Jilemnice 31.05.23 | H36: 592.2222222 | J36: =J133 -> 6.29 | K36: 0 | L36: 0
A37: 34. | B37: =B134 -> BERISHA | C37: David | D37: 7.B | E37: 0 | G37: =G134 -> 0 | H37: 0 | J37: =J134 -> 2.15 | K37: 0 | L37: 0
A38: 35. | B38: =B135 -> EFENBERK | C38: Šimon | D38: 7.B | E38: 8.95 | G38: =G135 -> Jilemnice 31.05.23 | H38: 663.8888889 | J38: =J135 -> 6.61 | K38: 0 | L38: 0
A39: 36. | B39: =B136 -> FEJKL | C39: Antonín | D39: 7.B | E39: 9.37 | G39: =G136 -> Jilemnice 07.05.23 | H39: 687.2222222 | J39: =J136 -> 6.37 | K39: 0 | L39: 0
A40: 37. | B40: =B137 -> GOTTSTEIN | C40: Matouš | D40: 7.B | E40: 9.59 | G40: =G137 -> Jilemnice 31.05.23 | H40: 699.4444444 | J40: =J137 -> 6.45 | K40: 0 | L40: 0
A41: 38. | B41: =B138 -> MAŘAS | C41: Dominik | D41: 7.B | E41: 9.29 | G41: =G138 -> Jilemnice 31.05.23 | H41: 682.7777778 | J41: =J138 -> 5.2 | K41: 0 | L41: 0
A42: 39. | B42: =B139 -> POVAŽANEC | C42: Lukáš | D42: 7.B | E42: 10.08 | G42: =G139 -> Jilemnice 31.05.23 | H42: 726.6666667 | J42: =J139 -> 7.1 | K42: 0 | L42: 0
A43: 40. | B43: =B140 -> VANCL | C43: Jakub | D43: 7.B | E43: 6.65 | G43: =G140 -> Jilemnice 31.05.23 | H43: 536.1111111 | J43: =J140 -> 5.46 | K43: 0 | L43: 0
A44: 41. | B44: =B141 -> VANCL | C44: Miroslav | D44: 7.B | E44: 6.64 | G44: =G141 -> Jilemnice 31.05.23 | H44: 535.5555556 | J44: =J141 -> 4.98 | K44: 0 | L44: 0
A45: 42. | B45: =B142 -> VOTOČEK | C45: Michal | D45: 7.B | E45: 7.95 | G45: =G142 -> Jilemnice 31.05.23 | H45: 608.3333333 | J45: =J142 -> 5.7 | K45: 0 | L45: 0
A46: 43. | B46: =B143 -> DEMČUK | C46: Ilja | D46: 8.A | E46: 8.47 | G46: =G143 -> Jilemnice 05.05.23 | H46: 637.2222222 | J46: =J143 -> 6.49 | K46: 0 | L46: 0
A47: 44. | B47: =B144 -> FAISTAUER | C47: Kryštof | D47: 8.A | E47: 10.31 | G47: =G144 -> Jilemnice 07.05.23 | H47: 739.4444444 | J47: =J144 -> 6.11 | K47: 0 | L47: 0
A48: 45. | B48: =B145 -> FRK | C48: Matyáš | D48: 8.A | E48: 0 | G48: =G145 -> 0 | H48: 0 | J48: =J145 -> 5.63 | K48: 0 | L48: 0
A49: 46. | B49: =B146 -> HUBÁLOVSKÝ | C49: Marek | D49: 8.A | E49: 7.05 | G49: =G146 -> Jilemnice 05.05.23 | H49: 558.3333333 | J49: =J146 -> 5.12 | K49: 0 | L49: 0
A50: 47. | B50: =B147 -> MAŤÁTKO | C50: Jakub | D50: 8.A | E50: 0 | G50: =G147 -> 0 | H50: 0 | J50: =J147 -> 0 | K50: 0 | L50: 0
A51: 48. | B51: =B148 -> MERY | C51: Luboš | D51: 8.A | E51: 6.17 | G51: =G148 -> Jilemnice 05.05.23 | H51: 509.4444444 | J51: =J148 -> 4.9 | K51: 0 | L51: 0
A52: 49. | B52: =B149 -> NOVOTNÝ | C52: Matěj | D52: 8.A | E52: 8.31 | G52: =G149 -> Jilemnice 16.06.23 | H52: 628.3333333 | J52: =J149 -> 5.88 | K52: 0 | L52: 0
A53: 50. | B53: =B150 -> ŘEHOŘEK | C53: Vojtěch | D53: 8.A | E53: 10.1 | G53: =G150 -> Jilemnice 07.05.23 | H53: 727.7777778 | J53: =J150 -> 6.5 | K53: 0 | L53: 0
A54: 51. | B54: =B151 -> ŠÍR | C54: Matyáš | D54: 8.A | E54: 5.53 | G54: =G151 -> Jilemnice 05.05.23 | H54: 473.8888889 | J54: =J151 -> 3.72 | K54: 0 | L54: 0
A55: 52. | B55: =B152 -> TORÁČ | C55: Tomáš | D55: 8.A | E55: 0 | G55: =G152 -> 0 | H55: 0 | J55: =J152 -> 4.54 | K55: 0 | L55: 0
A56: 53. | B56: =B153 -> VÁCLAVÍK | C56: Ondřej | D56: 8.A | E56: 7.53 | G56: =G153 -> Jilemnice 05.05.23 | H56: 585 | J56: =J153 -> 0 | K56: 0 | L56: 0
A57: 54. | B57: =B154 -> AUERSWALD | C57: Daniel | D57: 8.B | E57: 6.76 | G57: =G154 -> Jilemnice 05.05.23 | H57: 542.2222222 | J57: =J154 -> 0 | K57: 0 | L57: 0
A58: 55. | B58: =B155 -> BOUKAL | C58: Jakub | D58: 8.B | E58: 0 | G58: =G155 -> 0 | H58: 0 | J58: =J155 -> 6.72 | K58: 0 | L58: 0
A59: 56. | B59: =B156 -> BUDÍN | C59: Martin | D59: 8.B | E59: 7.26 | G59: =G156 -> Jilemnice 05.05.23 | H59: 570 | J59: =J156 -> 5.27 | K59: 0 | L59: 0
A60: 57. | B60: =B157 -> DVOŘÁK | C60: Dominik | D60: 8.B | E60: 8.88 | G60: =G157 -> Jilemnice 16.06.23 | H60: 660 | J60: =J157 -> 6.24 | K60: 0 | L60: 0
A61: 58. | B61: =B158 -> FIŠERA | C61: Vojtěch | D61: 8.B | E61: 7.12 | G61: =G158 -> Jilemnice 05.05.23 | H61: 562.2222222 | J61: =J158 -> 5.51 | K61: 0 | L61: 0
A62: 59. | B62: =B159 -> JINDŘIŠEK | C62: Vít | D62: 8.B | E62: 11.17 | G62: =G159 -> Jilemnice 16.06.23 | H62: 787.2222222 | J62: =J159 -> 7.91 | K62: 0 | L62: 0
A63: 60. | B63: =B160 -> JIROUŠ | C63: Matouš | D63: 8.B | E63: 7.85 | G63: =G160 -> Jilemnice 16.06.23 | H63: 602.7777778 | J63: =J160 -> 5.9 | K63: 0 | L63: 0
A64: 61. | B64: =B161 -> KERLE | C64: Marek | D64: 8.B | E64: 11.17 | G64: =G161 -> Jilemnice 05.05.23 | H64: 787.2222222 | J64: =J161 -> 7.25 | K64: 0 | L64: 0
A65: 62. | B65: =B162 -> LUKEŠ | C65: Jakub | D65: 8.B | E65: 7.25 | G65: =G162 -> Jilemnice 05.05.23 | H65: 569.4444444 | J65: =J162 -> 4.95 | K65: 0 | L65: 0
A66: 63. | B66: =B163 -> OTT | C66: Matyáš | D66: 8.B | E66: 8.95 | G66: =G163 -> Jilemnice 16.06.23 | H66: 663.8888889 | J66: =J163 -> 6.12 | K66: 0 | L66: 0
A67: 64. | B67: =B164 -> POKORNÝ | C67: Matyáš | D67: 8.B | E67: 8.31 | G67: =G164 -> Jilemnice 05.05.23 | H67: 628.3333333 | J67: =J164 -> 5.51 | K67: 0 | L67: 0
A68: 65. | B68: =B165 -> POLÁČEK | C68: Matyáš | D68: 8.B | E68: 8.69 | G68: =G165 -> Jilemnice 16.06.23 | H68: 649.4444444 | J68: =J165 -> 5.3 | K68: 0 | L68: 0
A69: 66. | B69: =B166 -> ULLMAN | C69: Šimon | D69: 8.B | E69: 6.48 | G69: =G166 -> Jilemnice 05.05.23 | H69: 526.6666667 | J69: =J166 -> 5.29 | K69: 0 | L69: 0
A70: 67. | B70: =B167 -> VALENTA | C70: Jakub | D70: 8.B | E70: 6.51 | G70: =G167 -> Jilemnice 05.05.23 | H70: 528.3333333 | J70: =J167 -> 5.4 | K70: 0 | L70: 0
A71: 68. | B71: =B168 -> VRBATA | C71: Dominik | D71: 8.B | E71: 7.05 | G71: =G168 -> Jilemnice 16.06.23 | H71: 558.3333333 | J71: =J168 -> 6.41 | K71: 0 | L71: 0
A72: 69. | B72: =B169 -> FEJKL | C72: Jan | D72: 9.A | E72: 9.99 | G72: =G169 -> Jilemnice 05.05.23 | H72: 721.6666667 | J72: =J169 -> 7.58 | K72: 0 | L72: 0
A73: 70. | B73: =B170 -> KOTYK | C73: Tadeáš | D73: 9.A | E73: 9.07 | G73: =G170 -> Jilemnice 05.05.23 | H73: 670.5555556 | J73: =J170 -> 6.98 | K73: 0 | L73: 0
A74: 71. | B74: =B171 -> KRAUSE | C74: Tadeáš | D74: 9.A | E74: 8.02 | G74: =G171 -> Jilemnice 05.05.23 | H74: 612.2222222 | J74: =J171 -> 7.32 | K74: 0 | L74: 0
A75: 72. | B75: =B172 -> LEŠÁK | C75: Martin | D75: 9.A | E75: 8.44 | G75: =G172 -> Jilemnice 05.05.23 | H75: 635.5555556 | J75: =J172 -> 6.91 | K75: 0 | L75: 0
A76: 73. | B76: =B173 -> NECHANICKÝ | C76: David | D76: 9.A | E76: 9.5 | G76: =G173 -> Jilemnice 05.05.23 | H76: 694.4444444 | J76: =J173 -> 8.3 | K76: 0 | L76: 0
A77: 74. | B77: =B174 -> ŘEHOŘEK | C77: Jan | D77: 9.A | E77: 8.08 | G77: =G174 -> Jilemnice 05.05.23 | H77: 615.5555556 | J77: =J174 -> 5.9 | K77: 0 | L77: 0
A78: 75. | B78: =B175 -> SOUKUP | C78: Ondřej | D78: 9.A | E78: 10.02 | G78: =G175 -> Jilemnice 05.05.23 | H78: 723.3333333 | J78: =J175 -> 7.75 | K78: 0 | L78: 0
A79: 76. | B79: =B176 -> SPANILÝ | C79: David | D79: 9.A | E79: 10.77 | G79: =G176 -> Jilemnice 05.05.23 | H79: 765 | J79: =J176 -> 7.9 | K79: 0 | L79: 0
A80: 77. | B80: =B177 -> ČERNÝ | C80: Michal | D80: 9.B | E80: 8.49 | G80: =G177 -> Jilemnice 05.05.23 | H80: 638.3333333 | J80: =J177 -> 8.44 | K80: 0 | L80: 0
A81: 78. | B81: =B178 -> DOLEJŠÍ | C81: David | D81: 9.B | E81: 7.81 | G81: =G178 -> Jilemnice 05.05.23 | H81: 600.5555556 | J81: =J178 -> 6.94 | K81: 0 | L81: 0
A82: 79. | B82: =B179 -> POVAŽANEC | C82: Martin | D82: 9.B | E82: 11.02 | G82: =G179 -> Jilemnice 05.05.23 | H82: 778.8888889 | J82: =J179 -> 10.96 | K82: 0 | L82: 0
A83: 80. | B83: =B180 -> RICHTER | C83: Jakub | D83: 9.B | E83: 7.66 | G83: =G180 -> Jilemnice 05.05.23 | H83: 592.2222222 | J83: =J180 -> 6.2 | K83: 0 | L83: 0
A84: 81. | B84: =B181 -> ROZUMEK | C84: Adam | D84: 9.B | E84: 11.29 | G84: =G181 -> Jilemnice 05.05.23 | H84: 793.8888889 | J84: =J181 -> 9.4 | K84: 0 | L84: 0
A85: 82. | B85: =B182 -> VALENTA | C85: František | D85: 9.B | E85: 8.07 | G85: =G182 -> Jilemnice 05.05.23 | H85: 615 | J85: =J182 -> 7.7 | K85: 0 | L85: 0
A86: 83. | B86: =B183 -> ZAPLATÍLEK | C86: Josef | D86: 9.B | E86: 8.92 | G86: =G183 -> Jilemnice 05.05.23 | H86: 662.2222222 | J86: =J183 -> 5.83 | K86: 0 | L86: 0
B101: HONCŮ | C101: Filip | D101: 6.A | E101: 4.07 | G101: Jilemnice 16.06.23 | H101: =IF(E101=0,0,(25*E101+75)/0.45) -> 392.7777778
B102: JÍLEK | C102: Lukáš | D102: 6.A | H102: 0
B103: KUČERA | C103: Tadeáš | D103: 6.A | E103: 4.69 | G103: Jilemnice 16.06.23 | H103: 427.2222222
B104: ROZUMEK | C104: Lukáš | D104: 6.A | E104: 6.16 | G104: Jilemnice 19.06.23 | H104: 508.8888889
B105: ŘEHOŘEK | C105: Marek | D105: 6.A | H105: 0
B106: ŘÍHA | C106: Tadeáš | D106: 6.A | E106: 6.9 | G106: Jilemnice 16.06.23 | H106: 550
B107: SKRBEK | C107: Richard | D107: 6.A | E107: 5.82 | G107: Jilemnice 16.06.23 | H107: 490
B108: ŠIMEK | C108: Erik | D108: 6.A | E108: 7.62 | G108: Jilemnice 19.06.23 | H108: 590
B109: ŠÍR | C109: Jan | D109: 6.A | E109: 5.7 | G109: Jilemnice 16.06.23 | H109: 483.3333333
B110: ŠÍR | C110: Stanislav | D110: 6.A | E110: 4.28 | G110: Jilemnice 19.06.23 | H110: 404.4444444
B111: ŠPINAR | C111: František | D111: 6.A | E111: 5.75 | G111: Jilemnice 16.06.23 | H111: 486.1111111
B112: TOTH | C112: Mikuláš | D112: 6.A | H112: 0
B113: WEISZLEMLEIN | C113: Adam | D113: 6.A | H113: 0
B114: ČERNÝ | C114: Filip | D114: 6.B | H114: 0
B115: GINGAL | C115: Patrik | D115: 6.B | H115: 0
B116: HLAVÁCEK | C116: Josef | D116: 6.B | E116: 6.9 | G116: Jilemnice 19.06.23 | H116: 550
B117: KHUDA | C117: Ivan | D117: 6.B | E117: 6.3 | G117: Jilemnice 19.06.23 | H117: 516.6666667
B118: KRESAN | C118: Matěj | D118: 6.B | E118: 4.8 | G118: Jilemnice 19.06.23 | H118: 433.3333333
B119: RYCHTR | C119: Vojtěch | D119: 6.B | H119: 0
B120: ŠTAJER | C120: David | D120: 6.B | E120: 7.92 | G120: Jilemnice 19.06.23 | H120: 606.6666667
B121: TKACHUK | C121: Dzvenyslav | D121: 6.B | H121: 0
B122: VELIKOVSKÝ | C122: Dominik | D122: 6.B | E122: 3.9 | G122: Jilemnice 19.06.23 | H122: 383.3333333
B123: EXNER | C123: Tomáš | D123: 7.A | E123: 8.75 | G123: Jilemnice 07.05.23 | H123: 652.7777778 | J123: 6.58
B124: JANATA | C124: Denis | D124: 7.A | E124: 4.94 | G124: Jilemnice 31.05.23 | H124: 441.1111111 | J124: 4.45
B125: JINDŘIŠEK | C125: Alex Jiří | D125: 7.A | E125: 8.79 | G125: Jilemnice 31.05.23 | H125: 655 | J125: 7.65
B126: KAZLEPKA | C126: Miroslav | D126: 7.A | H126: 0
B127: MARŠÁLEK | C127: Ondřej | D127: 7.A | E127: 8.19 | G127: Jilemnice 31.05.23 | H127: 621.6666667 | J127: 6.27
B128: MLATEČEK | C128: Patrik | D128: 7.A | E128: 6.71 | G128: Jilemnice 31.05.23 | H128: 539.4444444 | J128: 5.48
B129: SCHOLZ | C129: Matyáš | D129: 7.A | E129: 7.71 | G129: Jilemnice 07.05.23 | H129: 595 | J129: 6.98
B130: TOMÁŠ | C130: Jakub | D130: 7.A | E130: 7.47 | G130: Jilemnice 31.05.23 | H130: 581.6666667 | J130: 5.85
B131: VÁCLAVÍK | C131: Jan | D131: 7.A | E131: 6.19 | G131: Jilemnice 31.05.23 | H131: 510.5555556 | J131: 5.22
B132: VEČEŘA | C132: David | D132: 7.A | E132: 6.87 | G132: Jilemnice 31.05.23 | H132: 548.3333333 | J132: 5.4
B133: VYBÍRAL | C133: Radim | D133: 7.A | E133: 7.66 | G133: Jilemnice 31.05.23 | H133: =IF(E133=0,0,(25*E133+75)/0.45) -> 592.2222222 | J133: 6.29
B134: BERISHA | C134: David | D134: 7.B | H134: 0 | J134: 2.15
B135: EFENBERK | C135: Šimon | D135: 7.B | E135: 8.95 | G135: Jilemnice 31.05.23 | H135: 663.8888889 | J135: 6.61
B136: FEJKL | C136: Antonín | D136: 7.B | E136: 9.37 | G136: Jilemnice 07.05.23 | H136: 687.2222222 | J136: 6.37
B137: GOTTSTEIN | C137: Matouš | D137: 7.B | E137: 9.59 | G137: Jilemnice 31.05.23 | H137: 699.4444444 | J137: 6.45
B138: MAŘAS | C138: Dominik | D138: 7.B | E138: 9.29 | G138: Jilemnice 31.05.23 | H138: 682.7777778 | J138: 5.2
B139: POVAŽANEC | C139: Lukáš | D139: 7.B | E139: 10.08 | G139: Jilemnice 31.05.23 | H139: 726.6666667 | J139: 7.1
B140: VANCL | C140: Jakub | D140: 7.B | E140: 6.65 | G140: Jilemnice 31.05.23 | H140: 536.1111111 | J140: 5.46
B141: VANCL | C141: Miroslav | D141: 7.B | E141: 6.64 | G141: Jilemnice 31.05.23 | H141: 535.5555556 | J141: 4.98
B142: VOTOČEK | C142: Michal | D142: 7.B | E142: 7.95 | G142: Jilemnice 31.05.23 | H142: 608.3333333 | J142: 5.7
B143: DEMČUK | C143: Ilja | D143: 8.A | E143: 8.47 | G143: Jilemnice 05.05.23 | H143: 637.2222222 | J143: 6.49
B144: FAISTAUER | C144: Kryštof | D144: 8.A | E144: 10.31 | G144: Jilemnice 07.05.23 | H144: 739.4444444 | J144: 6.11
B145: FRK | C145: Matyáš | D145: 8.A | H145: 0 | J145: 5.63
B146: HUBÁLOVSKÝ | C146: Marek | D146: 8.A | E146: 7.05 | G146: Jilemnice 05.05.23 | H146: 558.3333333 | J146: 5.12
B147: MAŤÁTKO | C147: Jakub | D147: 8.A | H147: 0
B148: MERY | C148: Luboš | D148: 8.A | E148: 6.17 | G148: Jilemnice 05.05.23 | H148: 509.4444444 | J148: 4.9
B149: NOVOTNÝ | C149: Matěj | D149: 8.A | E149: 8.31 | G149: Jilemnice 16.06.23 | H149: 628.3333333 | J149: 5.88
B150: ŘEHOŘEK | C150: Vojtěch | D150: 8.A | E150: 10.1 | G150: Jilemnice 07.05.23 | H150: 727.7777778 | J150: 6.5
B151: ŠÍR | C151: Matyáš | D151: 8.A | E151: 5.53 | G151: Jilemnice 05.05.23 | H151: 473.8888889 | J151: 3.72
B152: TORÁČ | C152: Tomáš | D152: 8.A | H152: 0 | J152: 4.54
B153: VÁCLAVÍK | C153: Ondřej | D153: 8.A | E153: 7.53 | G153: Jilemnice 05.05.23 | H153: 585
B154: AUERSWALD | C154: Daniel | D154: 8.B | E154: 6.76 | G154: Jilemnice 05.05.23 | H154: 542.2222222
B155: BOUKAL | C155: Jakub | D155: 8.B | H155: 0 | J155: 6.72
B156: BUDÍN | C156: Martin | D156: 8.B | E156: 7.26 | G156: Jilemnice 05.05.23 | H156: 570 | J156: 5.27
B157: DVOŘÁK | C157: Dominik | D157: 8.B | E157: 8.88 | G157: Jilemnice 16.06.23 | H157: 660 | J157: 6.24
B158: FIŠERA | C158: Vojtěch | D158: 8.B | E158: 7.12 | G158: Jilemnice 05.05.23 | H158: 562.2222222 | J158: 5.51
B159: JINDŘIŠEK | C159: Vít | D159: 8.B | E159: 11.17 | G159: Jilemnice 16.06.23 | H159: 787.2222222 | J159: 7.91
B160: JIROUŠ | C160: Matouš | D160: 8.B | E160: 7.85 | G160: Jilemnice 16.06.23 | H160: 602.7777778 | J160: 5.9
B161: KERLE | C161: Marek | D161: 8.B | E161: 11.17 | G161: Jilemnice 05.05.23 | H161: 787.2222222 | J161: 7.25
B162: LUKEŠ | C162: Jakub | D162: 8.B | E162: 7.25 | G162: Jilemnice 05.05.23 | H162: 569.4444444 | J162: 4.95
B163: OTT | C163: Matyáš | D163: 8.B | E163: 8.95 | G163: Jilemnice 16.06.23 | H163: 663.8888889 | J163: 6.12
B164: POKORNÝ | C164: Matyáš | D164: 8.B | E164: 8.31 | G164: Jilemnice 05.05.23 | H164: 628.3333333 | J164: 5.51
B165: POLÁČEK | C165: Matyáš | D165: 8.B | E165: 8.69 | G165: Jilemnice 16.06.23 | H165: =IF(E165=0,0,(25*E165+75)/0.45) -> 649.4444444 | J165: 5.3
B166: ULLMAN | C166: Šimon | D166: 8.B | E166: 6.48 | G166: Jilemnice 05.05.23 | H166: 526.6666667 | J166: 5.29
B167: VALENTA | C167: Jakub | D167: 8.B | E167: 6.51 | G167: Jilemnice 05.05.23 | H167: 528.3333333 | J167: 5.4
B168: VRBATA | C168: Dominik | D168: 8.B | E168: 7.05 | G168: Jilemnice 16.06.23 | H168: 558.3333333 | J168: 6.41
B169: FEJKL | C169: Jan | D169: 9.A | E169: 9.99 | G169: Jilemnice 05.05.23 | H169: 721.6666667 | J169: 7.58
B170: KOTYK | C170: Tadeáš | D170: 9.A | E170: 9.07 | G170: Jilemnice 05.05.23 | H170: 670.5555556 | J170: 6.98
B171: KRAUSE | C171: Tadeáš | D171: 9.A | E171: 8.02 | G171: Jilemnice 05.05.23 | H171: 612.2222222 | J171: 7.32
B172: LEŠÁK | C172: Martin | D172: 9.A | E172: 8.44 | G172: Jilemnice 05.05.23 | H172: 635.5555556 | J172: 6.91
B173: NECHANICKÝ | C173: David | D173: 9.A | E173: 9.5 | G173: Jilemnice 05.05.23 | H173: 694.4444444 | J173: 8.3
B174: ŘEHOŘEK | C174: Jan | D174: 9.A | E174: 8.08 | G174: Jilemnice 05.05.23 | H174: 615.5555556 | J174: 5.9
B175: SOUKUP | C175: Ondřej | D175: 9.A | E175: 10.02 | G175: Jilemnice 05.05.23 | H175: 723.3333333 | J175: 7.75
B176: SPANILÝ | C176: David | D176: 9.A | E176: 10.77 | G176: Jilemnice 05.05.23 | H176: 765 | J176: 7.9
B177: ČERNÝ | C177: Michal | D177: 9.B | E177: 8.49 | G177: Jilemnice 05.05.23 | H177: 638.3333333 | J177: 8.44
B178: DOLEJŠÍ | C178: David | D178: 9.B | E178: 7.81 | G178: Jilemnice 05.05.23 | H178: 600.5555556 | J178: 6.94
B179: POVAŽANEC | C179: Martin | D179: 9.B | E179: 11.02 | G179: Jilemnice 05.05.23 | H179: 778.8888889 | J179: 10.96
B180: RICHTER | C180: Jakub | D180: 9.B | E180: 7.66 | G180: Jilemnice 05.05.23 | H180: 592.2222222 | J180: 6.2
B181: ROZUMEK | C181: Adam | D181: 9.B | E181: 11.29 | G181: Jilemnice 05.05.23 | H181: 793.8888889 | J181: 9.4
B182: VALENTA | C182: František | D182: 9.B | E182: 8.07 | G182: Jilemnice 05.05.23 | H182: 615 | J182: 7.7
B183: ZAPLATÍLEK | C183: Josef | D183: 9.B | E183: 8.92 | G183: Jilemnice 05.05.23 | H183: 662.2222222 | J183: 5.83

Sheet OŠTĚP
C1: VÝKONY 2022 - 2023 | G1: OŠTĚP | H1: CHLAPCI 6. - 9. ROČ.
B2: stav k | C2: =TODAY() -> 2023-06-26 | J2: 21 - 22 | K2: 20 - 21 | L2: 19 - 20
A4: 1. | B4: =B101 -> HONCŮ | C4: =C101 -> Filip | D4: 6.A | E4: 0 | G4: 0 | H4: 0 | J4: 0 | K4: 0 | L4: 0
A5: 2. | B5: =B102 -> JÍLEK | C5: Lukáš | D5: 6.A | E5: 0 | G5: =G102 -> 0 | H5: 0 | J5: =J102 -> 0 | K5: 0 | L5: 0
A6: 3. | B6: =B103 -> KUČERA | C6: Tadeáš | D6: 6.A | E6: 0 | G6: =G103 -> 0 | H6: 0 | J6: =J103 -> 0 | K6: 0 | L6: 0
A7: 4. | B7: =B104 -> ROZUMEK | C7: Lukáš | D7: 6.A | E7: 0 | G7: =G104 -> 0 | H7: 0 | J7: =J104 -> 0 | K7: 0 | L7: 0
A8: 5. | B8: =B105 -> ŘEHOŘEK | C8: Marek | D8: 6.A | E8: 0 | G8: =G105 -> 0 | H8: 0 | J8: =J105 -> 0 | K8: 0 | L8: 0
A9: 6. | B9: =B106 -> ŘÍHA | C9: Tadeáš | D9: 6.A | E9: 0 | G9: =G106 -> 0 | H9: 0 | J9: =J106 -> 0 | K9: 0 | L9: 0
A10: 7. | B10: =B107 -> SKRBEK | C10: Richard | D10: 6.A | E10: 0 | G10: =G107 -> 0 | H10: 0 | J10: =J107 -> 0 | K10: 0 | L10: 0
A11: 8. | B11: =B108 -> ŠIMEK | C11: Erik | D11: 6.A | E11: 0 | G11: =G108 -> 0 | H11: 0 | J11: =J108 -> 0 | K11: 0 | L11: 0
A12: 9. | B12: =B109 -> ŠÍR | C12: Jan | D12: 6.A | E12: 0 | G12: =G109 -> 0 | H12: 0 | J12: =J109 -> 0 | K12: 0 | L12: 0
A13: 10. | B13: =B110 -> ŠÍR | C13: Stanislav | D13: 6.A | E13: 0 | G13: =G110 -> 0 | H13: 0 | J13: =J110 -> 0 | K13: 0 | L13: 0
A14: 11. | B14: =B111 -> ŠPINAR | C14: František | D14: 6.A | E14: 0 | G14: =G111 -> 0 | H14: 0 | J14: =J111 -> 0 | K14: 0 | L14: 0
A15: 12. | B15: =B112 -> TOTH | C15: Mikuláš | D15: 6.A | E15: 0 | G15: =G112 -> 0 | H15: 0 | J15: =J112 -> 0 | K15: 0 | L15: 0
A16: 13. | B16: =B113 -> WEISZLEMLEIN | C16: Adam | D16: 6.A | E16: 0 | G16: =G113 -> 0 | H16: 0 | J16: =J113 -> 0 | K16: 0 | L16: 0
A17: 14. | B17: =B114 -> ČERNÝ | C17: Filip | D17: 6.B | E17: 0 | G17: =G114 -> 0 | H17: 0 | J17: =J114 -> 0 | K17: 0 | L17: 0
A18: 15. | B18: =B115 -> GINGAL | C18: Patrik | D18: 6.B | E18: 0 | G18: =G115 -> 0 | H18: 0 | J18: =J115 -> 0 | K18: 0 | L18: 0
A19: 16. | B19: =B116 -> HLAVÁCEK | C19: Josef | D19: 6.B | E19: 0 | G19: =G116 -> 0 | H19: 0 | J19: =J116 -> 0 | K19: 0 | L19: 0
A20: 17. | B20: =B117 -> KHUDA | C20: Ivan | D20: 6.B | E20: 0 | G20: =G117 -> 0 | H20: 0 | J20: =J117 -> 0 | K20: 0 | L20: 0
A21: 18. | B21: =B118 -> KRESAN | C21: Matěj | D21: 6.B | E21: 0 | G21: =G118 -> 0 | H21: 0 | J21: =J118 -> 0 | K21: 0 | L21: 0
A22: 19. | B22: =B119 -> RYCHTR | C22: Vojtěch | D22: 6.B | E22: 0 | G22: =G119 -> 0 | H22: 0 | J22: =J119 -> 0 | K22: 0 | L22: 0
A23: 20. | B23: =B120 -> ŠTAJER | C23: David | D23: 6.B | E23: 0 | G23: =G120 -> 0 | H23: 0 | J23: =J120 -> 0 | K23: 0 | L23: 0
A24: 21. | B24: =B121 -> TKACHUK | C24: Dzvenyslav | D24: 6.B | E24: 0 | G24: =G121 -> 0 | H24: 0 | J24: =J121 -> 0 | K24: 0 | L24: 0
A25: 22. | B25: =B122 -> VELIKOVSKÝ | C25: Dominik | D25: 6.B | E25: 0 | G25: =G122 -> 0 | H25: 0 | J25: =J122 -> 0 | K25: 0 | L25: 0
A26: 23. | B26: =B123 -> EXNER | C26: Tomáš | D26: 7.A | E26: 0 | G26: =G123 -> 0 | H26: 0 | J26: =J123 -> 0 | K26: 0 | L26: 0
A27: 24. | B27: =B124 -> JANATA | C27: Denis | D27: 7.A | E27: 0 | G27: =G124 -> 0 | H27: 0 | J27: =J124 -> 0 | K27: 0 | L27: 0
A28: 25. | B28: =B125 -> JINDŘIŠEK | C28: Alex Jiří | D28: 7.A | E28: 0 | G28: =G125 -> 0 | H28: 0 | J28: =J125 -> 0 | K28: 0 | L28: 0
A29: 26. | B29: =B126 -> KAZLEPKA | C29: Miroslav | D29: 7.A | E29: 0 | G29: =G126 -> 0 | H29: 0 | J29: =J126 -> 0 | K29: 0 | L29: 0
A30: 27. | B30: =B127 -> MARŠÁLEK | C30: Ondřej | D30: 7.A | E30: 0 | G30: =G127 -> 0 | H30: 0 | J30: =J127 -> 0 | K30: 0 | L30: 0
A31: 28. | B31: =B128 -> MLATEČEK | C31: Patrik | D31: 7.A | E31: 0 | G31: =G128 -> 0 | H31: 0 | J31: =J128 -> 0 | K31: 0 | L31: 0
A32: 29. | B32: =B129 -> SCHOLZ | C32: Matyáš | D32: 7.A | E32: 0 | G32: =G129 -> 0 | H32: 0 | J32: =J129 -> 0 | K32: 0 | L32: 0
A33: 30. | B33: =B130 -> TOMÁŠ | C33: Jakub | D33: 7.A | E33: 0 | G33: =G130 -> 0 | H33: 0 | J33: =J130 -> 0 | K33: 0 | L33: 0
A34: 31. | B34: =B131 -> VÁCLAVÍK | C34: Jan | D34: 7.A | E34: 0 | G34: =G131 -> 0 | H34: 0 | J34: =J131 -> 0 | K34: 0 | L34: 0
A35: 32. | B35: =B132 -> VEČEŘA | C35: David | D35: 7.A | E35: 0 | G35: =G132 -> 0 | H35: 0 | J35: =J132 -> 0 | K35: 0 | L35: 0
A36: 33. | B36: =B133 -> VYBÍRAL | C36: Radim | D36: 7.A | E36: 0 | G36: =G133 -> 0 | H36: 0 | J36: =J133 -> 0 | K36: 0 | L36: 0
A37: 34. | B37: =B134 -> BERISHA | C37: David | D37: 7.B | E37: 0 | G37: =G134 -> 0 | H37: 0 | J37: =J134 -> 0 | K37: 0 | L37: 0
A38: 35. | B38: =B135 -> EFENBERK | C38: Šimon | D38: 7.B | E38: 0 | G38: =G135 -> 0 | H38: 0 | J38: =J135 -> 0 | K38: 0 | L38: 0
A39: 36. | B39: =B136 -> FEJKL | C39: Antonín | D39: 7.B | E39: 0 | G39: =G136 -> 0 | H39: 0 | J39: =J136 -> 0 | K39: 0 | L39: 0
A40: 37. | B40: =B137 -> GOTTSTEIN | C40: Matouš | D40: 7.B | E40: 0 | G40: =G137 -> 0 | H40: 0 | J40: =J137 -> 0 | K40: 0 | L40: 0
A41: 38. | B41: =B138 -> MAŘAS | C41: Dominik | D41: 7.B | E41: 0 | G41: =G138 -> 0 | H41: 0 | J41: =J138 -> 0 | K41: 0 | L41: 0
A42: 39. | B42: =B139 -> POVAŽANEC | C42: Lukáš | D42: 7.B | E42: 0 | G42: =G139 -> 0 | H42: 0 | J42: =J139 -> 0 | K42: 0 | L42: 0
A43: 40. | B43: =B140 -> VANCL | C43: Jakub | D43: 7.B | E43: 0 | G43: =G140 -> 0 | H43: 0 | J43: =J140 -> 0 | K43: 0 | L43: 0
A44: 41. | B44: =B141 -> VANCL | C44: Miroslav | D44: 7.B | E44: 0 | G44: =G141 -> 0 | H44: 0 | J44: =J141 -> 0 | K44: 0 | L44: 0
A45: 42. | B45: =B142 -> VOTOČEK | C45: Michal | D45: 7.B | E45: 0 | G45: =G142 -> 0 | H45: 0 | J45: =J142 -> 0 | K45: 0 | L45: 0
A46: 43. | B46: =B143 -> DEMČUK | C46: Ilja | D46: 8.A | E46: 0 | G46: =G143 -> 0 | H46: 0 | J46: =J143 -> 0 | K46: 0 | L46: 0
A47: 44. | B47: =B144 -> FAISTAUER | C47: Kryštof | D47: 8.A | E47: 0 | G47: =G144 -> 0 | H47: 0 | J47: =J144 -> 0 | K47: 0 | L47: 0
A48: 45. | B48: =B145 -> FRK | C48: Matyáš | D48: 8.A | E48: 0 | G48: =G145 -> 0 | H48: 0 | J48: =J145 -> 0 | K48: 0 | L48: 0
A49: 46. | B49: =B146 -> HUBÁLOVSKÝ | C49: Marek | D49: 8.A | E49: 0 | G49: =G146 -> 0 | H49: 0 | J49: =J146 -> 0 | K49: 0 | L49: 0
A50: 47. | B50: =B147 -> MAŤÁTKO | C50: Jakub | D50: 8.A | E50: 0 | G50: =G147 -> 0 | H50: 0 | J50: =J147 -> 0 | K50: 0 | L50: 0
A51: 48. | B51: =B148 -> MERY | C51: Luboš | D51: 8.A | E51: 0 | G51: =G148 -> 0 | H51: 0 | J51: =J148 -> 0 | K51: 0 | L51: 0
